Workbook

Sheet PNB BDD
C2: A sélectionner dans menu déroulant | V2: Légende
B3: Direction commerciale | J3: =(SUM(H63:H68)/SUM(E63:E68))*1000/5 -> 89.84673 | V3: Réalisations > objectif proraté
B4: Secteur | V4: Réalisations < 50% de objectif proraté
B5: Agence | V5: Taux / durée lié a une convention
B7: =IF(C3="","CEGEE",IF(AND(C5="",C4=""),C3,IF(AND(C5="",C4<>""),C4,IF(C5="","""Sélectionneragence",C5)))) -> CEGEE | E7: PNB sur Activité Nouvelle 2019
B9: Données arrêtées au : | C9: ='Indicateurs Cumulés'!$G$4 -> 2019-11-30
B10: Taux de réalisation attendu : | C10: =MONTH(C9)/12 -> 92% | E10: Réalisations Mensuelles | J10: Réalisations Annuelles | P10: OBJECTIFS | V10: TAUX Réal. Objectif
E11: Volume | F11: Taux | G11: Durée | H11: PNB | J11: Volume | K11: Taux | L11: Durée | M11: PNB | N11: PNB / ETP perf. | P11: Volume | Q11: Taux | R11: Durée | S11: PNB | T11: PNB / ETP Cible | V11: Volume | W11: PNB annuel | X11: Ecart /obj. PNB/ETP
B12: Montants en k€
B14: COLLECTE (yc DAV) - Excédents | E14: =E15+E16++E32 -> -21,439 | H14: =H15+H16+H32 -> 1,195 | J14: =J15+J16++J32 -> 56,714 | M14: =M15+M16+M32 -> 17,777 | N14: =IF(ISERROR(M14/SUMIF('Indicateurs Cumulés'!$F:$F,$B$7,'Indicateurs Cumulés'!LM:LM)),"nc",M14/SUMIF('Indicateurs Cumulés'!$F:$F,$B$7,'Indicateurs Cumulés'!LM:LM)) -> 13.4 | P14: =P15+P16+P32 -> 180,000 | S14: =S15+S16+S32 -> 24,756 | T14: =IF(ISERROR(S14/SUMIF(objectifs!$F:$F,$B$7,objectifs!IC:IC)),"nc",S14/SUMIF(objectifs!$F:$F,$B$7,objectifs!IC:IC)) -> 16.3 | V14: =IF(ISERROR(J14/P14),0,J14/P14) -> 32% | W14: =IF(ISERROR(M14/S14),0,M14/S14) -> 72% | X14: =IF(ISERROR(N14-(T14/12*MONTH($C$9))),"nc",N14-(T14/12*MONTH($C$9))) -> -1.6
B15: DAV Créditeurs - Variation d'EMJ mensuel | E15: =SUMIF('Indicateurs mensuels'!$F:$F,$B$7,'Indicateurs mensuels'!HH:HH)/12 -> 11,430 | F15: =K15 -> 1.00% | G15: =L15 -> 5.37 | H15: =E15*F15*G15 -> 614 | J15: =SUMIF('Indicateurs Cumulés'!$F:$F,$B$7,'Indicateurs Cumulés'!GG:GG) -> 80,919 | K15: ='Indicateurs Cumulés'!$GH$374 -> 1.00% | L15: ='Indicateurs Cumulés'!$GI$374 -> 5.37 | M15: =J15*K15*L15 -> 4,345 | N15: =IF(ISERROR(M15/SUMIF('Indicateurs Cumulés'!$F:$F,$B$7,'Indicateurs Cumulés'!LM:LM)),"nc",M15/SUMIF('Indicateurs Cumulés'!$F:$F,$B$7,'Indicateurs Cumulés'!LM:LM)) -> 3.3 | P15: =SUMIF(objectifs!F:F,$B$7,objectifs!FF:FF) -> 130,000 | Q15: =objectifs!$FG$373 -> 1.00% | R15: =objectifs!$FH$373 -> 5.37 | S15: =P15*Q15*R15 -> 6,981 | T15: =IF(ISERROR(S15/SUMIF(objectifs!$F:$F,$B$7,objectifs!IC:IC)),"nc",S15/SUMIF(objectifs!$F:$F,$B$7,objectifs!IC:IC)) -> 4.6 | V15: =IF(ISERROR(J15/P15),0,J15/P15) -> 62% | W15: =IF(ISERROR(M15/S15),0,M15/S15) -> 62% | X15: =IF(ISERROR(N15-(T15/12*MONTH($C$9))),"nc",N15-(T15/12*MONTH($C$9))) -> -0.9
B16: Epargne Bilan | E16: =SUMIF('Indicateurs mensuels'!$F:$F,$B$7,'Indicateurs mensuels'!FV:FV) -> -28,394 | H16: =SUMIF('Indicateurs mensuels'!$F:$F,$B$7,'Indicateurs mensuels'!FW:FW) -> 220 | J16: =SUMIF('Indicateurs Cumulés'!$F:$F,$B$7,'Indicateurs Cumulés'!EN:EN) -> -154,395 | M16: =SUMIF('Indicateurs Cumulés'!$F:$F,$B$7,'Indicateurs Cumulés'!EO:EO) -> 2,505 | N16: =IF(ISERROR(M16/SUMIF('Indicateurs Cumulés'!$F:$F,$B$7,'Indicateurs Cumulés'!LM:LM)),"nc",M16/SUMIF('Indicateurs Cumulés'!$F:$F,$B$7,'Indicateurs Cumulés'!LM:LM)) -> 1.9 | P16: =SUMIF(objectifs!F:F,$B$7,objectifs!CH:CH)+SUMIF(objectifs!F:F,$B$7,objectifs!FB:FB) -> -120,000 | S16: =SUMIF(objectifs!F:F,$B$7,objectifs!CK:CK)+SUMIF(objectifs!F:F,$B$7,objectifs!FC:FC) -> 2,792 | T16: =IF(ISERROR(S16/SUMIF(objectifs!$F:$F,$B$7,objectifs!IC:IC)),"nc",S16/SUMIF(objectifs!$F:$F,$B$7,objectifs!IC:IC)) -> 1.8 | V16: =IF(ISERROR(J16/P16),0,J16/P16) -> 129% | W16: =IF(ISERROR(M16/S16),0,M16/S16) -> 90% | X16: =IF(ISERROR(N16-(T16/12*MONTH($C$9))),"nc",N16-(T16/12*MONTH($C$9))) -> 0.2
B17: Livret A | E17: =SUMIF('Indicateurs mensuels'!$F:$F,$B$7,'Indicateurs mensuels'!DB:DB) -> 1,215 | F17: =K17 -> 0.70% | G17: =L17 -> 5.33 | H17: =E17*F17*G17 -> 45 | J17: =SUMIF('Indicateurs Cumulés'!$F:$F,$B$7,'Indicateurs Cumulés'!CJ:CJ) -> 33,021 | K17: ='Indicateurs Cumulés'!$CK$374 -> 0.70% | L17: ='Indicateurs Cumulés'!$CL$374 -> 5.33 | M17: =SUMIF('Indicateurs Cumulés'!$F:$F,$B$7,'Indicateurs Cumulés'!CM:CM) -> 1,232 | N17: =IF(ISERROR(M17/SUMIF('Indicateurs Cumulés'!$F:$F,$B$7,'Indicateurs Cumulés'!LM:LM)),"nc",M17/SUMIF('Indicateurs Cumulés'!$F:$F,$B$7,'Indicateurs Cumulés'!LM:LM)) -> 0.9 | P17: =SUMIF(objectifs!F:F,$B$7,objectifs!CH:CH) -> 30,000 | Q17: =objectifs!$CI$373 -> 0.70% | R17: =objectifs!$CJ$373 -> 5.37 | S17: =P17*Q17*R17 -> 1,128 | T17: =IF(ISERROR(S17/SUMIF(objectifs!$F:$F,$B$7,objectifs!IC:IC)),"nc",S17/SUMIF(objectifs!$F:$F,$B$7,objectifs!IC:IC)) -> 0.7 | V17: =IF(ISERROR(J17/P17),0,J17/P17) -> 110% | W17: =IF(ISERROR(M17/S17),0,M17/S17) -> 109% | X17: 0.2
B18: LDDS | E18: =SUMIF('Indicateurs mensuels'!$F:$F,$B$7,'Indicateurs mensuels'!DV:DV) -> 2,812 | F18: =K18 -> 0.20% | G18: =L18 -> 5.37 | H18: 30 | J18: =SUMIF('Indicateurs Cumulés'!$F:$F,$B$7,'Indicateurs Cumulés'!DD:DD) -> 21,489 | K18: ='Indicateurs Cumulés'!$DE$374 -> 0.20% | L18: ='Indicateurs Cumulés'!$DF$374 -> 5.37 | M18: =SUMIF('Indicateurs Cumulés'!$F:$F,$B$7,'Indicateurs Cumulés'!DG:DG) -> 231 | N18: =IF(ISERROR(M18/SUMIF('Indicateurs Cumulés'!$F:$F,$B$7,'Indicateurs Cumulés'!LM:LM)),"nc",M18/SUMIF('Indicateurs Cumulés'!$F:$F,$B$7,'Indicateurs Cumulés'!LM:LM)) -> 0.2 | P18: =SUMIF(objectifs!F:F,$B$7,objectifs!DB:DB) -> 10,000 | Q18: =objectifs!$DC$373 -> 0.20% | R18: =objectifs!$DD$373 -> 5.37 | S18: =P18*Q18*R18 -> 107 | T18: =IF(ISERROR(S18/SUMIF(objectifs!$F:$F,$B$7,objectifs!IC:IC)),"nc",S18/SUMIF(objectifs!$F:$F,$B$7,objectifs!IC:IC)) -> 0.1 | V18: =IF(ISERROR(J18/P18),0,J18/P18) -> 215% | W18: =IF(ISERROR(M18/S18),0,M18/S18) -> 215% | X18: 0.1
B19: LEP | E19: =SUMIF('Indicateurs mensuels'!$F:$F,$B$7,'Indicateurs mensuels'!DR:DR) -> -1,466 | F19: 0.20% | G19: 5.37 | H19: -16 | J19: =SUMIF('Indicateurs Cumulés'!$F:$F,$B$7,'Indicateurs Cumulés'!CZ:CZ) -> -123,596 | K19: ='Indicateurs Cumulés'!$DA$374 -> 0.20% | L19: ='Indicateurs Cumulés'!$DB$374 -> 5.37 | M19: =SUMIF('Indicateurs Cumulés'!$F:$F,$B$7,'Indicateurs Cumulés'!DC:DC) -> -1,327 | N19: =IF(ISERROR(M19/SUMIF('Indicateurs Cumulés'!$F:$F,$B$7,'Indicateurs Cumulés'!LM:LM)),"nc",M19/SUMIF('Indicateurs Cumulés'!$F:$F,$B$7,'Indicateurs Cumulés'!LM:LM)) -> -1.0 | P19: =SUMIF(objectifs!F:F,$B$7,objectifs!CX:CX) -> -40,000 | Q19: =objectifs!$CY$373 -> 0.20% | R19: =objectifs!$CZ$373 -> 5.37 | S19: -430 | T19: =IF(ISERROR(S19/SUMIF(objectifs!$F:$F,$B$7,objectifs!IC:IC)),"nc",S19/SUMIF(objectifs!$F:$F,$B$7,objectifs!IC:IC)) -> -0.3 | V19: 309% | W19: 309% | X19: -0.7
B20: Livret B | E20: =SUMIF('Indicateurs mensuels'!$F:$F,$B$7,'Indicateurs mensuels'!DF:DF) -> 14,643 | F20: 0.63% | G20: 5.33 | H20: 490 | J20: =SUMIF('Indicateurs Cumulés'!$F:$F,$B$7,'Indicateurs Cumulés'!CN:CN) -> 46,288 | K20: ='Indicateurs Cumulés'!$CO$374 -> 0.63% | L20: ='Indicateurs Cumulés'!$CP$374 -> 5.33 | M20: =SUMIF('Indicateurs Cumulés'!$F:$F,$B$7,'Indicateurs Cumulés'!CQ:CQ) -> 1,550 | N20: =IF(ISERROR(M20/SUMIF('Indicateurs Cumulés'!$F:$F,$B$7,'Indicateurs Cumulés'!LM:LM)),"nc",M20/SUMIF('Indicateurs Cumulés'!$F:$F,$B$7,'Indicateurs Cumulés'!LM:LM)) -> 1.2 | P20: =SUMIF(objectifs!F:F,$B$7,objectifs!CL:CL) -> 40,000 | Q20: =objectifs!$CM$373 -> 0.70% | R20: =objectifs!$CN$373 -> 5.37 | S20: 1,504 | T20: =IF(ISERROR(S20/SUMIF(objectifs!$F:$F,$B$7,objectifs!IC:IC)),"nc",S20/SUMIF(objectifs!$F:$F,$B$7,objectifs!IC:IC)) -> 1.0 | V20: 116% | W20: 103% | X20: 0.3
B21: Livret Jeune / Livret 10-12 | E21: =SUMIF('Indicateurs mensuels'!$F:$F,$B$7,'Indicateurs mensuels'!DZ:DZ) -> -1,006 | F21: 0.20% | G21: 5.37 | H21: -11 | J21: =SUMIF('Indicateurs Cumulés'!$F:$F,$B$7,'Indicateurs Cumulés'!DH:DH) -> -8,303 | K21: ='Indicateurs Cumulés'!$DI$374 -> 0.20% | L21: ='Indicateurs Cumulés'!$DJ$374 -> 5.37 | M21: =SUMIF('Indicateurs Cumulés'!$F:$F,$B$7,'Indicateurs Cumulés'!DK:DK) -> -89 | N21: =IF(ISERROR(M21/SUMIF('Indicateurs Cumulés'!$F:$F,$B$7,'Indicateurs Cumulés'!LM:LM)),"nc",M21/SUMIF('Indicateurs Cumulés'!$F:$F,$B$7,'Indicateurs Cumulés'!LM:LM)) -> -0.1 | P21: =SUMIF(objectifs!F:F,$B$7,objectifs!DF:DF) -> 1,000 | Q21: =objectifs!$DG$373 -> 0.20% | R21: =objectifs!$DH$373 -> 5.37 | S21: 11 | T21: =IF(ISERROR(S21/SUMIF(objectifs!$F:$F,$B$7,objectifs!IC:IC)),"nc",S21/SUMIF(objectifs!$F:$F,$B$7,objectifs!IC:IC)) -> 0.0 | V21: -830% | W21: -830% | X21: -0.1
B22: Livret Grand prix | E22: =SUMIF('Indicateurs mensuels'!$F:$F,$B$7,'Indicateurs mensuels'!DN:DN) -> -1,921 | F22: 0.40% | G22: 1.05 | H22: -8 | J22: =SUMIF('Indicateurs Cumulés'!$F:$F,$B$7,'Indicateurs Cumulés'!CV:CV) -> 52,076 | K22: ='Indicateurs Cumulés'!$CW$374 -> 0.40% | L22: ='Indicateurs Cumulés'!$CX$374 -> 1.05 | M22: =SUMIF('Indicateurs Cumulés'!$F:$F,$B$7,'Indicateurs Cumulés'!CY:CY) -> 218 | N22: =IF(ISERROR(M22/SUMIF('Indicateurs Cumulés'!$F:$F,$B$7,'Indicateurs Cumulés'!LM:LM)),"nc",M22/SUMIF('Indicateurs Cumulés'!$F:$F,$B$7,'Indicateurs Cumulés'!LM:LM)) -> 0.2 | P22: =SUMIF(objectifs!F:F,$B$7,objectifs!CT:CT) -> 0 | Q22: =objectifs!$CU$373 -> 0.70% | R22: =objectifs!$CV$373 -> 5.37 | S22: 0 | T22: =IF(ISERROR(S22/SUMIF(objectifs!$F:$F,$B$7,objectifs!IC:IC)),"nc",S22/SUMIF(objectifs!$F:$F,$B$7,objectifs!IC:IC)) -> 0.0
B23: Livret Grand Format | E23: =SUMIF('Indicateurs mensuels'!$F:$F,$B$7,'Indicateurs mensuels'!DJ:DJ) -> -1,098 | F23: 0.71% | G23: 5.33 | H23: -42 | J23: =SUMIF('Indicateurs Cumulés'!$F:$F,$B$7,'Indicateurs Cumulés'!CR:CR) -> -12,911 | K23: ='Indicateurs Cumulés'!$CS$374 -> 0.71% | L23: ='Indicateurs Cumulés'!$CT$374 -> 5.33 | M23: =SUMIF('Indicateurs Cumulés'!$F:$F,$B$7,'Indicateurs Cumulés'!CU:CU) -> -489 | N23: =IF(ISERROR(M23/SUMIF('Indicateurs Cumulés'!$F:$F,$B$7,'Indicateurs Cumulés'!LM:LM)),"nc",M23/SUMIF('Indicateurs Cumulés'!$F:$F,$B$7,'Indicateurs Cumulés'!LM:LM)) -> -0.4 | P23: 0 | Q23: 0.00% | R23: 0.00 | S23: 0 | T23: =IF(ISERROR(S23/SUMIF(objectifs!$F:$F,$B$7,objectifs!IC:IC)),"nc",S23/SUMIF(objectifs!$F:$F,$B$7,objectifs!IC:IC)) -> 0.0
B24: Compte Excédent Pro | E24: =SUMIF('Indicateurs mensuels'!$F:$F,$B$7,'Indicateurs mensuels'!HS:HS) -> 3,882 | F24: 0.60% | G24: 5.37 | H24: =SUMIF('Indicateurs mensuels'!$F:$F,$B$7,'Indicateurs mensuels'!HT:HT) -> 125 | J24: =SUMIF('Indicateurs Cumulés'!$F:$F,$B$7,'Indicateurs Cumulés'!GR:GR) -> 37,061 | K24: ='Indicateurs Cumulés'!$GR$3 -> 0.60% | L24: ='Indicateurs Cumulés'!$HA$3 -> 5.37 | M24: =SUMIF('Indicateurs Cumulés'!$F:$F,$B$7,'Indicateurs Cumulés'!HA:HA) -> 1,194 | N24: =IF(ISERROR(M24/SUMIF('Indicateurs Cumulés'!$F:$F,$B$7,'Indicateurs Cumulés'!LM:LM)),"nc",M24/SUMIF('Indicateurs Cumulés'!$F:$F,$B$7,'Indicateurs Cumulés'!LM:LM)) -> 0.9 | P24: =SUMIF(objectifs!F:F,$B$7,objectifs!CP:CP) -> 19,000 | Q24: =objectifs!$CQ$373 -> 0.60% | R24: =objectifs!$CR$373 -> 5.37 | S24: 612 | T24: =IF(ISERROR(S24/SUMIF(objectifs!$F:$F,$B$7,objectifs!IC:IC)),"nc",S24/SUMIF(objectifs!$F:$F,$B$7,objectifs!IC:IC)) -> 0.4 | V24: 195% | W24: 195% | X24: 0.5
B25: PEL | E25: =SUMIF('Indicateurs mensuels'!$F:$F,$B$7,'Indicateurs mensuels'!EP:EP) -> -2,352 | F25: 0.00% | G25: 8.47 | H25: 0 | J25: =SUMIF('Indicateurs Cumulés'!$F:$F,$B$7,'Indicateurs Cumulés'!DX:DX) -> -33,307 | K25: ='Indicateurs Cumulés'!$DY$374 -> 0.00% | L25: ='Indicateurs Cumulés'!$DZ$374 -> 8.47 | M25: =SUMIF('Indicateurs Cumulés'!$F:$F,$B$7,'Indicateurs Cumulés'!EA:EA) -> 0 | N25: =IF(ISERROR(M25/SUMIF('Indicateurs Cumulés'!$F:$F,$B$7,'Indicateurs Cumulés'!LM:LM)),"nc",M25/SUMIF('Indicateurs Cumulés'!$F:$F,$B$7,'Indicateurs Cumulés'!LM:LM)) -> 0.0 | P25: =SUMIF(objectifs!F:F,$B$7,objectifs!DV:DV) -> -20,000 | Q25: =objectifs!$DW$373 -> 0.00% | R25: =objectifs!$DX$373 -> 8.50 | S25: 0 | T25: =IF(ISERROR(S25/SUMIF(objectifs!$F:$F,$B$7,objectifs!IC:IC)),"nc",S25/SUMIF(objectifs!$F:$F,$B$7,objectifs!IC:IC)) -> 0.0 | V25: 167% | W25: 0% | X25: 0
B26: CEL | E26: =SUMIF('Indicateurs mensuels'!$F:$F,$B$7,'Indicateurs mensuels'!ED:ED) -> -77 | F26: 0.19% | G26: 5.33 | H26: -1 | J26: =SUMIF('Indicateurs Cumulés'!$F:$F,$B$7,'Indicateurs Cumulés'!DL:DL) -> -4,494 | K26: ='Indicateurs Cumulés'!$DM$374 -> 0.19% | L26: ='Indicateurs Cumulés'!$DN$374 -> 5.33 | M26: =SUMIF('Indicateurs Cumulés'!$F:$F,$B$7,'Indicateurs Cumulés'!DO:DO) -> -46 | N26: =IF(ISERROR(M26/SUMIF('Indicateurs Cumulés'!$F:$F,$B$7,'Indicateurs Cumulés'!LM:LM)),"nc",M26/SUMIF('Indicateurs Cumulés'!$F:$F,$B$7,'Indicateurs Cumulés'!LM:LM)) -> -0.0 | P26: =SUMIF(objectifs!F:F,$B$7,objectifs!DJ:DJ) -> 0 | Q26: =objectifs!$DK$373 -> 0.30% | R26: =objectifs!$DL$373 -> 5.37 | S26: 0 | T26: =IF(ISERROR(S26/SUMIF(objectifs!$F:$F,$B$7,objectifs!IC:IC)),"nc",S26/SUMIF(objectifs!$F:$F,$B$7,objectifs!IC:IC)) -> 0.0
B27: PEP | E27: =SUMIF('Indicateurs mensuels'!$F:$F,$B$7,'Indicateurs mensuels'!ET:ET) -> -142 | F27: -0.26% | G27: 0.74 | H27: 0 | J27: =SUMIF('Indicateurs Cumulés'!$F:$F,$B$7,'Indicateurs Cumulés'!EB:EB) -> -1,178 | K27: ='Indicateurs Cumulés'!$EC$374 -> -0.26% | L27: ='Indicateurs Cumulés'!$ED$374 -> 0.74 | M27: =SUMIF('Indicateurs Cumulés'!$F:$F,$B$7,'Indicateurs Cumulés'!EE:EE) -> 2 | N27: =IF(ISERROR(M27/SUMIF('Indicateurs Cumulés'!$F:$F,$B$7,'Indicateurs Cumulés'!LM:LM)),"nc",M27/SUMIF('Indicateurs Cumulés'!$F:$F,$B$7,'Indicateurs Cumulés'!LM:LM)) -> 0.0 | P27: 0 | Q27: 0.00% | R27: 0.00 | S27: 0 | T27: =IF(ISERROR(S27/SUMIF(objectifs!$F:$F,$B$7,objectifs!IC:IC)),"nc",S27/SUMIF(objectifs!$F:$F,$B$7,objectifs!IC:IC)) -> 0.0
B28: SLR | E28: =SUMIF('Indicateurs mensuels'!$F:$F,$B$7,'Indicateurs mensuels'!EH:EH) -> -386 | F28: 0.10% | G28: 7.05 | H28: -3 | J28: =SUMIF('Indicateurs Cumulés'!$F:$F,$B$7,'Indicateurs Cumulés'!DP:DP) -> -3,941 | K28: ='Indicateurs Cumulés'!$DQ$374 -> 0.10% | L28: ='Indicateurs Cumulés'!$DR$374 -> 7.05 | M28: =SUMIF('Indicateurs Cumulés'!$F:$F,$B$7,'Indicateurs Cumulés'!DS:DS) -> -28 | N28: =IF(ISERROR(M28/SUMIF('Indicateurs Cumulés'!$F:$F,$B$7,'Indicateurs Cumulés'!LM:LM)),"nc",M28/SUMIF('Indicateurs Cumulés'!$F:$F,$B$7,'Indicateurs Cumulés'!LM:LM)) -> -0.0 | P28: =SUMIF(objectifs!F:F,$B$7,objectifs!DR:DR) -> 0 | Q28: =objectifs!$DS$373 -> 0.10% | R28: =objectifs!$DT$373 -> 7.00 | S28: 0 | T28: =IF(ISERROR(S28/SUMIF(objectifs!$F:$F,$B$7,objectifs!IC:IC)),"nc",S28/SUMIF(objectifs!$F:$F,$B$7,objectifs!IC:IC)) -> 0.0
B29: DAT (Bons, CDN, CAT, TCN, …) | E29: =SUMIF('Indicateurs mensuels'!$F:$F,$B$7,'Indicateurs mensuels'!EL:EL) -> -1,626 | F29: 0.20% | G29: 9.00 | H29: -29 | J29: =SUMIF('Indicateurs Cumulés'!$F:$F,$B$7,'Indicateurs Cumulés'!DT:DT) -> -16,855 | K29: ='Indicateurs Cumulés'!$DU$374 -> 0.20% | L29: ='Indicateurs Cumulés'!$DV$374 -> 9.00 | M29: =SUMIF('Indicateurs Cumulés'!$F:$F,$B$7,'Indicateurs Cumulés'!DW:DW) -> -303 | N29: =IF(ISERROR(M29/SUMIF('Indicateurs Cumulés'!$F:$F,$B$7,'Indicateurs Cumulés'!LM:LM)),"nc",M29/SUMIF('Indicateurs Cumulés'!$F:$F,$B$7,'Indicateurs Cumulés'!LM:LM)) -> -0.2 | P29: =SUMIF(objectifs!F:F,$B$7,objectifs!DN:DN) -> 20,000 | Q29: =objectifs!$DO$373 -> 0.20% | R29: =objectifs!$DP$373 -> 9.00 | S29: 360 | T29: =IF(ISERROR(S29/SUMIF(objectifs!$F:$F,$B$7,objectifs!IC:IC)),"nc",S29/SUMIF(objectifs!$F:$F,$B$7,objectifs!IC:IC)) -> 0.2 | V29: -84% | W29: -84% | X29: -0.4
B30: Emprunt CTO | E30: =SUMIF('Indicateurs mensuels'!$F:$F,$B$7,'Indicateurs mensuels'!FN:FN) -> -49,382 | F30: 0.20% | G30: 8.00 | H30: -790 | J30: =SUMIF('Indicateurs Cumulés'!$F:$F,$B$7,'Indicateurs Cumulés'!EF:EF) -> -216,105 | K30: ='Indicateurs Cumulés'!$EG$374 -> 0.20% | L30: ='Indicateurs Cumulés'!$EH$374 -> 8.00 | M30: =SUMIF('Indicateurs Cumulés'!$F:$F,$B$7,'Indicateurs Cumulés'!EI:EI) -> -3,458 | N30: =IF(ISERROR(M30/SUMIF('Indicateurs Cumulés'!$F:$F,$B$7,'Indicateurs Cumulés'!LM:LM)),"nc",M30/SUMIF('Indicateurs Cumulés'!$F:$F,$B$7,'Indicateurs Cumulés'!LM:LM)) -> -2.6 | P30: =SUMIF(objectifs!F:F,$B$7,objectifs!ET:ET) -> -250,000 | Q30: =objectifs!$EU$373 -> 0.20% | R30: =objectifs!$EV$373 -> 8.00 | S30: -4,000 | T30: =IF(ISERROR(S30/SUMIF(objectifs!$F:$F,$B$7,objectifs!IC:IC)),"nc",S30/SUMIF(objectifs!$F:$F,$B$7,objectifs!IC:IC)) -> -2.6 | V30: 86% | W30: 86% | X30: -0.2
B31: Parts sociales | E31: =SUMIF('Indicateurs mensuels'!$F:$F,$B$7,'Indicateurs mensuels'!FR:FR) -> 8,510 | F31: 1.00% | G31: 5.00 | H31: 425 | J31: =SUMIF('Indicateurs Cumulés'!$F:$F,$B$7,'Indicateurs Cumulés'!EJ:EJ) -> 76,362 | K31: ='Indicateurs Cumulés'!$EK$374 -> 1.00% | L31: ='Indicateurs Cumulés'!$EL$374 -> 5.00 | M31: =SUMIF('Indicateurs Cumulés'!$F:$F,$B$7,'Indicateurs Cumulés'!EM:EM) -> 3,818 | N31: =IF(ISERROR(M31/SUMIF('Indicateurs Cumulés'!$F:$F,$B$7,'Indicateurs Cumulés'!LM:LM)),"nc",M31/SUMIF('Indicateurs Cumulés'!$F:$F,$B$7,'Indicateurs Cumulés'!LM:LM)) -> 2.9 | P31: =SUMIF(objectifs!F:F,$B$7,objectifs!EX:EX) -> 70,000 | Q31: =objectifs!$EY$373 -> 1.00% | R31: =objectifs!$EZ$373 -> 5.00 | S31: 3,500 | T31: =IF(ISERROR(S31/SUMIF(objectifs!$F:$F,$B$7,objectifs!IC:IC)),"nc",S31/SUMIF(objectifs!$F:$F,$B$7,objectifs!IC:IC)) -> 2.3 | V31: 109% | W31: 109% | X31: 0.8
B32: Epargne Financière (Ass. vie - OPCVM - Autres val. mob.) | E32: =SUMIF('Indicateurs mensuels'!$F:$F,$B$7,'Indicateurs mensuels'!FX:FX) -> -4,475 | H32: =SUMIF('Indicateurs mensuels'!$F:$F,$B$7,'Indicateurs mensuels'!FY:FY) -> 361 | J32: =SUMIF('Indicateurs Cumulés'!$F:$F,$B$7,'Indicateurs Cumulés'!GD:GD) -> 130,190 | M32: =SUMIF('Indicateurs Cumulés'!$F:$F,$B$7,'Indicateurs Cumulés'!GE:GE) -> 10,926 | N32: =IF(ISERROR(M32/SUMIF('Indicateurs Cumulés'!$F:$F,$B$7,'Indicateurs Cumulés'!LM:LM)),"nc",M32/SUMIF('Indicateurs Cumulés'!$F:$F,$B$7,'Indicateurs Cumulés'!LM:LM)) -> 8.2 | P32: =SUMIF(objectifs!$F:$F,$B$7,objectifs!FD:FD) -> 170,000 | S32: =SUMIF(objectifs!$F:$F,$B$7,objectifs!FE:FE) -> 14,983 | T32: =IF(ISERROR(S32/SUMIF(objectifs!$F:$F,$B$7,objectifs!IC:IC)),"nc",S32/SUMIF(objectifs!$F:$F,$B$7,objectifs!IC:IC)) -> 9.9 | V32: 77% | W32: 73% | X32: -0.8
B33: Ass. Vie sur flux (versements) | E33: =SUMIF('Indicateurs mensuels'!$F:$F,$B$7,'Indicateurs mensuels'!FB:FB)+SUMIF('Indicateurs mensuels'!$F:$F,$B$7,'Indicateurs mensuels'!GP:GP) -> 53,800 | F33: =H33/E33 -> 0.37% | G33: =L33 -> 1.00 | H33: =SUMIF('Indicateurs mensuels'!$F:$F,$B$7,'Indicateurs mensuels'!FE:FE)+SUMIF('Indicateurs mensuels'!$F:$F,$B$7,'Indicateurs mensuels'!GS:GS) -> 201 | J33: =SUMIF('Indicateurs Cumulés'!$F:$F,$B$7,'Indicateurs Cumulés'!FJ:FJ)+SUMIF('Indicateurs Cumulés'!$F:$F,$B$7,'Indicateurs Cumulés'!FN:FN) -> 753,930 | K33: =M33/J33 -> 0.37% | L33: ='Indicateurs Cumulés'!$FL$374 -> 1.00 | M33: =SUMIF('Indicateurs Cumulés'!$F:$F,$B$7,'Indicateurs Cumulés'!FM:FM)+SUMIF('Indicateurs Cumulés'!$F:$F,$B$7,'Indicateurs Cumulés'!FQ:FQ) -> 2,758 | N33: =IF(ISERROR(M33/SUMIF('Indicateurs Cumulés'!$F:$F,$B$7,'Indicateurs Cumulés'!LM:LM)),"nc",M33/SUMIF('Indicateurs Cumulés'!$F:$F,$B$7,'Indicateurs Cumulés'!LM:LM)) -> 2.1 | P33: =SUMIF(objectifs!$F:$F,$B$7,objectifs!EH:EH) -> 1,000,000 | Q33: =objectifs!$EI$373 -> 0.40% | R33: =objectifs!$EJ$373 -> 1.00 | S33: =P33*Q33*R33 -> 4,000 | T33: =IF(ISERROR(S33/SUMIF(objectifs!$F:$F,$B$7,objectifs!IC:IC)),"nc",S33/SUMIF(objectifs!$F:$F,$B$7,objectifs!IC:IC)) -> 2.6 | V33: 75% | W33: 69% | X33: -0.3
B34: Ass. Vie sur encours (excédents) | E34: =SUMIF('Indicateurs mensuels'!$F:$F,$B$7,'Indicateurs mensuels'!EX:EX)+SUMIF('Indicateurs mensuels'!$F:$F,$B$7,'Indicateurs mensuels'!GL:GL) -> -2,287 | F34: =K34 -> 0.45% | G34: 8.00 | H34: =E34*F34*G34 -> -82 | J34: =SUMIF('Indicateurs Cumulés'!$F:$F,$B$7,'Indicateurs Cumulés'!EP:EP)+SUMIF('Indicateurs Cumulés'!$F:$F,$B$7,'Indicateurs Cumulés'!ET:ET) -> 164,782 | K34: ='Indicateurs Cumulés'!$EQ$374 -> 0.45% | L34: ='Indicateurs Cumulés'!$ER$374 -> 8.00 | M34: =SUMIF('Indicateurs Cumulés'!$F:$F,$B$7,'Indicateurs Cumulés'!ES:ES)+SUMIF('Indicateurs Cumulés'!$F:$F,$B$7,'Indicateurs Cumulés'!EW:EW) -> 5,932 | N34: =IF(ISERROR(M34/SUMIF('Indicateurs Cumulés'!$F:$F,$B$7,'Indicateurs Cumulés'!LM:LM)),"nc",M34/SUMIF('Indicateurs Cumulés'!$F:$F,$B$7,'Indicateurs Cumulés'!LM:LM)) -> 4.5 | P34: =SUMIF(objectifs!$F:$F,$B$7,objectifs!ED:ED) -> 165,000 | Q34: =objectifs!$EE$373 -> 0.45% | R34: =objectifs!$EF$373 -> 8.00 | S34: 5,940 | T34: =IF(ISERROR(S34/SUMIF(objectifs!$F:$F,$B$7,objectifs!IC:IC)),"nc",S34/SUMIF(objectifs!$F:$F,$B$7,objectifs!IC:IC)) -> 3.9 | V34: 100% | W34: 100% | X34: 0.9
B35: Arbitrage (fonds € vers UC) | E35: =SUMIF('Indicateurs mensuels'!$F:$F,$B$7,'Indicateurs mensuels'!BQ:BQ) -> 3,226 | F35: =K35 -> 0.25% | G35: 8.00 | H35: =E35*F35*G35 -> 65 | J35: =SUMIF('Indicateurs Cumulés'!$F:$F,$B$7,'Indicateurs Cumulés'!FZ:FZ) -> 34,111 | K35: =objectifs!$EA$373 -> 0.25% | L35: =VLOOKUP($B$7,objectifs!$F$3:$AAB$391,127,FALSE) -> 8.00 | M35: =SUMIF('Indicateurs Cumulés'!$F:$F,$B$7,'Indicateurs Cumulés'!GA:GA) -> 682 | N35: =IF(ISERROR(M35/SUMIF('Indicateurs Cumulés'!$F:$F,$B$7,'Indicateurs Cumulés'!LM:LM)),"nc",M35/SUMIF('Indicateurs Cumulés'!$F:$F,$B$7,'Indicateurs Cumulés'!LM:LM)) -> 0.5 | P35: =SUMIF(objectifs!$F:$F,$B$7,objectifs!DZ:DZ) -> 135,000 | Q35: =objectifs!$EA$373 -> 0.25% | R35: =objectifs!$EB$373 -> 8.00 | S35: 2,700 | T35: =IF(ISERROR(S35/SUMIF(objectifs!$F:$F,$B$7,objectifs!IC:IC)),"nc",S35/SUMIF(objectifs!$F:$F,$B$7,objectifs!IC:IC)) -> 1.8 | V35: 25% | W35: 25% | X35: -1.1
B36: OPCVM sur flux (versements) | E36: =SUMIF('Indicateurs mensuels'!$F:$F,$B$7,'Indicateurs mensuels'!FJ:FJ)+SUMIF('Indicateurs mensuels'!$F:$F,$B$7,'Indicateurs mensuels'!GX:GX) -> 2,521 | F36: =K36 -> 0.40% | G36: 1.00 | H36: =E36*F36*G36 -> 10 | J36: =SUMIF('Indicateurs Cumulés'!$F:$F,$B$7,'Indicateurs Cumulés'!FR:FR)+SUMIF('Indicateurs Cumulés'!$F:$F,$B$7,'Indicateurs Cumulés'!FV:FV) -> 15,476 | K36: ='Indicateurs Cumulés'!$FS$374 -> 0.40% | L36: ='Indicateurs Cumulés'!$FT$374 -> 1.00 | M36: =SUMIF('Indicateurs Cumulés'!$F:$F,$B$7,'Indicateurs Cumulés'!FU:FU)+SUMIF('Indicateurs Cumulés'!$F:$F,$B$7,'Indicateurs Cumulés'!FY:FY) -> 62 | N36: =IF(ISERROR(M36/SUMIF('Indicateurs Cumulés'!$F:$F,$B$7,'Indicateurs Cumulés'!LM:LM)),"nc",M36/SUMIF('Indicateurs Cumulés'!$F:$F,$B$7,'Indicateurs Cumulés'!LM:LM)) -> 0.0 | P36: =SUMIF(objectifs!$F:$F,$B$7,objectifs!EP:EP) -> 20,000 | Q36: =objectifs!$EQ$373 -> 0.40% | R36: =objectifs!$ER$373 -> 1.00 | S36: 80 | T36: =IF(ISERROR(S36/SUMIF(objectifs!$F:$F,$B$7,objectifs!IC:IC)),"nc",S36/SUMIF(objectifs!$F:$F,$B$7,objectifs!IC:IC)) -> 0.1 | V36: 77% | W36: 77% | X36: -0.0
B37: OPCVM sur encours (excédents) | E37: =SUMIF('Indicateurs mensuels'!$F:$F,$B$7,'Indicateurs mensuels'!FF:FF)+SUMIF('Indicateurs mensuels'!$F:$F,$B$7,'Indicateurs mensuels'!GT:GT) -> -4,612 | F37: =H37/E37/G37 -> 0.65% | G37: 5.00 | H37: =SUMIF('Indicateurs mensuels'!$F:$F,$B$7,'Indicateurs mensuels'!FI:FI)+SUMIF('Indicateurs mensuels'!$F:$F,$B$7,'Indicateurs mensuels'!GW:GW) -> -150 | J37: =SUMIF('Indicateurs Cumulés'!$F:$F,$B$7,'Indicateurs Cumulés'!EX:EX)+SUMIF('Indicateurs Cumulés'!$F:$F,$B$7,'Indicateurs Cumulés'!FB:FB) -> -47,931 | K37: =M37/J37/L37 -> 0.65% | L37: ='Indicateurs Cumulés'!$EZ$374 -> 5.00 | M37: =SUMIF('Indicateurs Cumulés'!$F:$F,$B$7,'Indicateurs Cumulés'!FA:FA)+SUMIF('Indicateurs Cumulés'!$F:$F,$B$7,'Indicateurs Cumulés'!FE:FE) -> -1,558 | N37: =IF(ISERROR(M37/SUMIF('Indicateurs Cumulés'!$F:$F,$B$7,'Indicateurs Cumulés'!LM:LM)),"nc",M37/SUMIF('Indicateurs Cumulés'!$F:$F,$B$7,'Indicateurs Cumulés'!LM:LM)) -> -1.2 | P37: =SUMIF(objectifs!$F:$F,$B$7,objectifs!EL:EL) -> 5,000 | Q37: =objectifs!$EM$373 -> 0.65% | R37: =objectifs!$EN$373 -> 5.00 | S37: 163 | T37: =IF(ISERROR(S37/SUMIF(objectifs!$F:$F,$B$7,objectifs!IC:IC)),"nc",S37/SUMIF(objectifs!$F:$F,$B$7,objectifs!IC:IC)) -> 0.1 | V37: -959% | W37: -959% | X37: -1.3
B38: FCP structurés (versements) | E38: =J38-SUMIF('Indicateurs Cumulés M-1'!$F:$F,$B$7,'Indicateurs Cumulés M-1'!BS:BS) -> 6,437 | F38: =K38 -> 2.80% | G38: 1.00 | H38: =E38*F38*G38 -> 180 | J38: =SUMIF('Indicateurs Cumulés'!$F:$F,$B$7,'Indicateurs Cumulés'!GB:GB) -> 85,104 | K38: =VLOOKUP($B$7,objectifs!$F$3:$AAB$391,68,FALSE) -> 2.80% | L38: ='Indicateurs Cumulés'!$FL$374 -> 1.00 | M38: =J38*K38*L38 -> 2,383 | N38: =IF(ISERROR(M38/SUMIF('Indicateurs Cumulés'!$F:$F,$B$7,'Indicateurs Cumulés'!LM:LM)),"nc",M38/SUMIF('Indicateurs Cumulés'!$F:$F,$B$7,'Indicateurs Cumulés'!LM:LM)) -> 1.8 | P38: =SUMIF(objectifs!$F:$F,$B$7,objectifs!BT:BT) -> 75,000 | Q38: =objectifs!$BU$373 -> 2.80% | R38: =objectifs!$BV$373 -> 1.00 | S38: 2,100 | T38: =IF(ISERROR(S38/SUMIF(objectifs!$F:$F,$B$7,objectifs!IC:IC)),"nc",S38/SUMIF(objectifs!$F:$F,$B$7,objectifs!IC:IC)) -> 1.4 | V38: =IF(ISERROR(J38/P38),0,J38/P38) -> 113% | W38: =IF(ISERROR(M38/S38),0,M38/S38) -> 113% | X38: 0.5
B39: Autres Valeurs mobilières (excédents) | E39: =SUMIF('Indicateurs mensuels'!$F:$F,$B$7,'Indicateurs mensuels'!HB:HB) -> 2,424 | F39: =K39 -> 1.00% | G39: 5.00 | H39: =E39*F39*G39 -> 121 | J39: =SUMIF('Indicateurs Cumulés'!$F:$F,$B$7,'Indicateurs Cumulés'!FF:FF) -> 13,339 | K39: ='Indicateurs Cumulés'!$FG$374 -> 1.00% | L39: ='Indicateurs Cumulés'!$FH$374 -> 5.00 | M39: =SUMIF('Indicateurs Cumulés'!$F:$F,$B$7,'Indicateurs Cumulés'!FI:FI) -> 667 | N39: =IF(ISERROR(M39/SUMIF('Indicateurs Cumulés'!$F:$F,$B$7,'Indicateurs Cumulés'!LM:LM)),"nc",M39/SUMIF('Indicateurs Cumulés'!$F:$F,$B$7,'Indicateurs Cumulés'!LM:LM)) -> 0.5 | P39: =SUMIF(objectifs!$F:$F,$B$7,objectifs!FW:FW) -> 0 | Q39: =objectifs!$FO$373 -> 1.00% | R39: =objectifs!$FP$373 -> 5.00 | S39: 0 | T39: =IF(ISERROR(S39/SUMIF(objectifs!$F:$F,$B$7,objectifs!IC:IC)),"nc",S39/SUMIF(objectifs!$F:$F,$B$7,objectifs!IC:IC)) -> 0.0
B41: CREDIT à la CONSOMMATION - Eng. Nets (yc accessoires) | E41: =E42+E43 -> 42,558 | F41: =IF(ISERROR(H41/(E41*G41)),0,H41/(E41*G41)) -> 4.68% | G41: =SUMPRODUCT(G42:G43,E42:E43)/(E42+E43) -> 2.36 | H41: =H42+H43+H44+H45 -> 4,703 | J41: =J42+J43 -> 637,028 | K41: =IF(ISERROR(M41/(J41*L41)),0,M41/(J41*L41)) -> 4.35% | L41: =SUMPRODUCT(L42:L43,J42:J43)/(J42+J43) -> 2.42 | M41: =M42+M43+M44+M45 -> 66,893 | N41: =IF(ISERROR(M41/SUMIF('Indicateurs Cumulés'!$F:$F,$B$7,'Indicateurs Cumulés'!LM:LM)),"nc",M41/SUMIF('Indicateurs Cumulés'!$F:$F,$B$7,'Indicateurs Cumulés'!LM:LM)) -> 50.2 | P41: =P42+P43 -> 710,000 | Q41: =IF(ISERROR(S41/(P41*R41)),0,S41/(P41*R41)) -> 4.32% | R41: =IF(P41=0,0,SUMPRODUCT(R42:R43,P42:P43)/(P42+P43)) -> 2.42 | S41: =S42+S43+S44+S45 -> 74,348 | T41: =IF(ISERROR(S41/SUMIF(objectifs!$F:$F,$B$7,objectifs!IC:IC)),"nc",S41/SUMIF(objectifs!$F:$F,$B$7,objectifs!IC:IC)) -> 48.9 | V41: =IF(ISERROR(J41/P41),0,J41/P41) -> 90% | W41: =IF(ISERROR(M41/S41),0,M41/S41) -> 90% | X41: =IF(ISERROR(N41-(T41/12*MONTH($C$9))),"nc",N41-(T41/12*MONTH($C$9))) -> 5.4
B42: Crédit à la Consommation (marge hors accessoires) | E42: =SUMIF('Indicateurs mensuels'!$F:$F,$B$7,'Indicateurs mensuels'!L:L) -> 37,772 | F42: =SUMPRODUCT(('Indicateurs mensuels'!$F$4:$F$374=$B$7)*(('Indicateurs mensuels'!$L$4:$L$374)*('Indicateurs mensuels'!$M$4:$M$374)/E42)) -> 3.64% | G42: =SUMPRODUCT(('Indicateurs mensuels'!$F$4:$F$374=$B$7)*(('Indicateurs mensuels'!$L$4:$L$374)*('Indicateurs mensuels'!$N$4:$N$374)/E42)) -> 2.46 | H42: =E42*F42*G42 -> 3,385 | J42: =SUMIF('Indicateurs Cumulés'!$F:$F,$B$7,'Indicateurs Cumulés'!L:L) -> 586,745 | K42: =SUMPRODUCT(('Indicateurs Cumulés'!$F$4:$F$374=$B$7)*(('Indicateurs Cumulés'!$L$4:$L$374)*('Indicateurs Cumulés'!$M$4:$M$374)/J42)) -> 3.32% | L42: =SUMPRODUCT(('Indicateurs Cumulés'!$F$4:$F$374=$B$7)*(('Indicateurs Cumulés'!$L$4:$L$374)*('Indicateurs Cumulés'!$N$4:$N$374)/J42)) -> 2.49 | M42: =J42*K42*L42 -> 48,456 | N42: =IF(ISERROR(M42/SUMIF('Indicateurs Cumulés'!$F:$F,$B$7,'Indicateurs Cumulés'!LM:LM)),"nc",M42/SUMIF('Indicateurs Cumulés'!$F:$F,$B$7,'Indicateurs Cumulés'!LM:LM)) -> 36 | P42: =SUMIF(objectifs!$F:$F,$B$7,objectifs!L:L) -> 650,000 | Q42: =objectifs!$M$373 -> 3.05% | R42: =objectifs!$N$373 -> 2.50 | S42: =P42*Q42*R42 -> 49,563 | T42: =IF(ISERROR(S42/SUMIF(objectifs!$F:$F,$B$7,objectifs!IC:IC)),"nc",S42/SUMIF(objectifs!$F:$F,$B$7,objectifs!IC:IC)) -> 32.6 | V42: =IF(ISERROR(J42/P42),0,J42/P42) -> 90% | W42: =IF(ISERROR(M42/S42),0,M42/S42) -> 98% | X42: =IF(ISERROR(N42-(T42/12*MONTH($C$9))),"nc",N42-(T42/12*MONTH($C$9))) -> 6.5
B43: Crédit Revolving | E43: =SUMIF('Indicateurs mensuels'!$F:$F,$B$7,'Indicateurs mensuels'!H:H) -> 4,786 | F43: =SUMPRODUCT(('Indicateurs mensuels'!$F$4:$F$374=$B$7)*(('Indicateurs mensuels'!$H$4:$H$374)*('Indicateurs mensuels'!$I$4:$I$374)/E43)) -> 4.32% | G43: =SUMPRODUCT(('Indicateurs mensuels'!$F$4:$F$374=$B$7)*(('Indicateurs mensuels'!$H$4:$H$374)*('Indicateurs mensuels'!$J$4:$J$374)/E43)) -> 1.57 | H43: =E43*F43*G43 -> 325 | J43: =SUMIF('Indicateurs Cumulés'!$F:$F,$B$7,'Indicateurs Cumulés'!H:H) -> 50,283 | K43: =SUMPRODUCT(('Indicateurs Cumulés'!$F$4:$F$374=$B$7)*(('Indicateurs Cumulés'!$H$4:$H$374)*('Indicateurs Cumulés'!$I$4:$I$374)/J43)) -> 4.32% | L43: =SUMPRODUCT(('Indicateurs Cumulés'!$F$4:$F$374=$B$7)*(('Indicateurs Cumulés'!$H$4:$H$374)*('Indicateurs Cumulés'!$J$4:$J$374)/J43)) -> 1.57 | M43: =J43*K43*L43 -> 3,410 | N43: =IF(ISERROR(M43/SUMIF('Indicateurs Cumulés'!$F:$F,$B$7,'Indicateurs Cumulés'!LM:LM)),"nc",M43/SUMIF('Indicateurs Cumulés'!$F:$F,$B$7,'Indicateurs Cumulés'!LM:LM)) -> 2.6 | P43: =SUMIF(objectifs!$F:$F,$B$7,objectifs!H:H) -> 60,000 | Q43: =objectifs!$I$373 -> 4.32% | R43: =objectifs!$J$373 -> 1.60 | S43: =P43*Q43*R43 -> 4,147 | T43: =IF(ISERROR(S43/SUMIF(objectifs!$F:$F,$B$7,objectifs!IC:IC)),"nc",S43/SUMIF(objectifs!$F:$F,$B$7,objectifs!IC:IC)) -> 2.7 | V43: =IF(ISERROR(J43/P43),0,J43/P43) -> 84% | W43: =IF(ISERROR(M43/S43),0,M43/S43) -> 82% | X43: =IF(ISERROR(N43-(T43/12*MONTH($C$9))),"nc",N43-(T43/12*MONTH($C$9))) -> 0.1
B44: Frais de dossier | H44: =SUMIF('Indicateurs mensuels'!$F:$F,$B$7,'Indicateurs mensuels'!CV:CV) -> 178 | M44: =SUMIF('Indicateurs Cumulés'!$F:$F,$B$7,'Indicateurs Cumulés'!S:S) -> 2,548 | N44: =IF(ISERROR(M44/SUMIF('Indicateurs Cumulés'!$F:$F,$B$7,'Indicateurs Cumulés'!LM:LM)),"nc",M44/SUMIF('Indicateurs Cumulés'!$F:$F,$B$7,'Indicateurs Cumulés'!LM:LM)) -> 1.9 | S44: =SUMIF(objectifs!$F:$F,$B$7,objectifs!BO:BO) -> 3,900 | T44: =IF(ISERROR(S44/SUMIF(objectifs!$F:$F,$B$7,objectifs!IC:IC)),"nc",S44/SUMIF(objectifs!$F:$F,$B$7,objectifs!IC:IC)) -> 2.6 | W44: =IF(ISERROR(M44/S44),0,M44/S44) -> 65% | X44: =IF(ISERROR(N44-(T44/12*MONTH($C$9))),"nc",N44-(T44/12*MONTH($C$9))) -> -0.4
B45: Commissions ADE | E45: =SUMPRODUCT(('Indicateurs mensuels'!$F$4:$F$374=$B$7)*(('Indicateurs mensuels'!$L$4:$L$374)*('Indicateurs mensuels'!$HM$4:$HM$374)/E42)) -> 140.2% | F45: =SUMPRODUCT(('Indicateurs mensuels'!$F$4:$F$374=$B$7)*(('Indicateurs mensuels'!$L$4:$L$374)*('Indicateurs mensuels'!$HL$4:$HL$374)/E42)) -> 91.0% | H45: =SUMIF('Indicateurs mensuels'!$F:$F,$B$7,'Indicateurs mensuels'!HN:HN) -> 815 | J45: =SUMPRODUCT(('Indicateurs Cumulés'!$F$4:$F$374=$B$7)*(('Indicateurs Cumulés'!$L$4:$L$374)*('Indicateurs Cumulés'!$Q$4:$Q$374)/J42)) -> 140.0% | K45: =SUMPRODUCT(('Indicateurs Cumulés'!$F$4:$F$374=$B$7)*(('Indicateurs Cumulés'!$L$4:$L$374)*('Indicateurs Cumulés'!$P$4:$P$374)/J42)) -> 93.1% | M45: =SUMIF('Indicateurs Cumulés'!$F:$F,$B$7,'Indicateurs Cumulés'!R:R) -> 12,479 | N45: =IF(ISERROR(M45/SUMIF('Indicateurs Cumulés'!$F:$F,$B$7,'Indicateurs Cumulés'!LM:LM)),"nc",M45/SUMIF('Indicateurs Cumulés'!$F:$F,$B$7,'Indicateurs Cumulés'!LM:LM)) -> 9.4 | P45: =objectifs!$BK$373 -> 135% | Q45: =objectifs!$BJ$373 -> 95% | S45: =SUMIF(objectifs!$F:$F,$B$7,objectifs!BY:BY) -> 16,738 | T45: =IF(ISERROR(S45/SUMIF(objectifs!$F:$F,$B$7,objectifs!IC:IC)),"nc",S45/SUMIF(objectifs!$F:$F,$B$7,objectifs!IC:IC)) -> 11.0 | W45: =IF(ISERROR(M45/S45),0,M45/S45) -> 75% | X45: =IF(ISERROR(N45-(T45/12*MONTH($C$9))),"nc",N45-(T45/12*MONTH($C$9))) -> -0.7
B47: CREDIT IMMOBILIER - Eng. Nets (yc accessoires) | E47: =E48 -> 189,913 | F47: =IF(ISERROR(H47/(E47*G47)),0,H47/(E47*G47)) -> 0.85% | G47: =G48 -> 7.74 | H47: =SUM(H48:H53) -> 12,542 | J47: =J48 -> 1,886,898 | K47: =IF(ISERROR(M47/(J47*L47)),0,M47/(J47*L47)) -> 0.65% | L47: =L48 -> 7.59 | M47: =SUM(M48:M53) -> 92,809 | N47: =IF(ISERROR(M47/SUMIF('Indicateurs Cumulés'!$F:$F,$B$7,'Indicateurs Cumulés'!LM:LM)),"nc",M47/SUMIF('Indicateurs Cumulés'!$F:$F,$B$7,'Indicateurs Cumulés'!LM:LM)) -> 69.7 | P47: =P48 -> 1,664,000 | Q47: =IF(ISERROR(S47/(P47*R47)),0,S47/(P47*R47)) -> 0.49% | R47: =R48 -> 7.50 | S47: =SUM(S48:S53) -> 60,661 | T47: =IF(ISERROR(S47/SUMIF(objectifs!$F:$F,$B$7,objectifs!IC:IC)),"nc",S47/SUMIF(objectifs!$F:$F,$B$7,objectifs!IC:IC)) -> 39.9 | V47: =IF(ISERROR(J47/P47),0,J47/P47) -> 113% | W47: =IF(ISERROR(M47/S47),0,M47/S47) -> 153% | X47: =IF(ISERROR(N47-(T47/12*MONTH($C$9))),"nc",N47-(T47/12*MONTH($C$9))) -> 33.1
B48: Crédit Immobilier (marge hors accessoires) | E48: =SUMIF('Indicateurs mensuels'!$F:$F,$B$7,'Indicateurs mensuels'!P:P) -> 189,913 | F48: =IF(E48=0,0,SUMPRODUCT(('Indicateurs mensuels'!$F$4:$F$374=$B$7)*(('Indicateurs mensuels'!$P$4:$P$374)*('Indicateurs mensuels'!$R$4:$R$374)/E48))) -> 0.52% | G48: =IF(E48=0,0,SUMPRODUCT(('Indicateurs mensuels'!$F$4:$F$374=$B$7)*(('Indicateurs mensuels'!$P$4:$P$374)*('Indicateurs mensuels'!$S$4:$S$374)/E48))) -> 7.74 | H48: =E48*F48*G48 -> 7,574 | J48: =SUMIF('Indicateurs Cumulés'!$F:$F,$B$7,'Indicateurs Cumulés'!U:U) -> 1,886,898 | K48: =SUMPRODUCT(('Indicateurs Cumulés'!$F$4:$F$374=$B$7)*(('Indicateurs Cumulés'!$U$4:$U$374)*('Indicateurs Cumulés'!$V$4:$V$374)/J48)) -> 0.32% | L48: =SUMPRODUCT(('Indicateurs Cumulés'!$F$4:$F$374=$B$7)*(('Indicateurs Cumulés'!$U$4:$U$374)*('Indicateurs Cumulés'!$W$4:$W$374)/J48)) -> 7.59 | M48: =J48*K48*L48 -> 45,413 | N48: =IF(ISERROR(M48/SUMIF('Indicateurs Cumulés'!$F:$F,$B$7,'Indicateurs Cumulés'!LM:LM)),"nc",M48/SUMIF('Indicateurs Cumulés'!$F:$F,$B$7,'Indicateurs Cumulés'!LM:LM)) -> 34.1 | P48: =SUMIF(objectifs!$F:$F,$B$7,objectifs!O:O) -> 1,664,000 | Q48: =objectifs!$Q$373 -> 0.20% | R48: =objectifs!$R$373 -> 7.50 | S48: =P48*Q48*R48 -> 24,960 | T48: =IF(ISERROR(S48/SUMIF(objectifs!$F:$F,$B$7,objectifs!IC:IC)),"nc",S48/SUMIF(objectifs!$F:$F,$B$7,objectifs!IC:IC)) -> 16.4 | V48: =IF(ISERROR(J48/P48),0,J48/P48) -> 113% | W48: =IF(ISERROR(M48/S48),0,M48/S48) -> 182% | X48: =IF(ISERROR(N48-(T48/12*MONTH($C$9))),"nc",N48-(T48/12*MONTH($C$9))) -> 19.0
B49: Commissions ADE (coefficient multiplicateur de 1,3 X) | E49: =IF(E48=0,0,SUMPRODUCT(('Indicateurs mensuels'!$F$4:$F$374=$B$7)*(('Indicateurs mensuels'!$P$4:$P$374)*('Indicateurs mensuels'!$CN$4:$CN$374)/E48))) -> 140.8% | F49: =IF(E48=0,0,SUMPRODUCT(('Indicateurs mensuels'!$F$4:$F$374=$B$7)*(('Indicateurs mensuels'!$P$4:$P$374)*('Indicateurs mensuels'!$CM$4:$CM$374)/E48))) -> 65.5% | H49: =SUMIF('Indicateurs mensuels'!$F:$F,$B$7,'Indicateurs mensuels'!CO:CO) -> 4,261 | J49: =SUMPRODUCT(('Indicateurs Cumulés'!$F$4:$F$374=$B$7)*(('Indicateurs Cumulés'!$U$4:$U$374)*('Indicateurs Cumulés'!$Y$4:$Y$374)/J48)) -> 141.5% | K49: =SUMPRODUCT(('Indicateurs Cumulés'!$F$4:$F$374=$B$7)*(('Indicateurs Cumulés'!$U$4:$U$374)*('Indicateurs Cumulés'!$X$4:$X$374)/J48)) -> 64.6% | M49: =SUMIF('Indicateurs Cumulés'!$F:$F,$B$7,'Indicateurs Cumulés'!Z:Z) -> 41,408 | N49: =IF(ISERROR(M49/SUMIF('Indicateurs Cumulés'!$F:$F,$B$7,'Indicateurs Cumulés'!LM:LM)),"nc",M49/SUMIF('Indicateurs Cumulés'!$F:$F,$B$7,'Indicateurs Cumulés'!LM:LM)) -> 31.1 | P49: =objectifs!$BI$373 -> 145% | Q49: =objectifs!$BH$373 -> 70% | S49: =SUMIF(objectifs!$F:$F,$B$7,objectifs!BX:BX) -> 27,130 | T49: =IF(ISERROR(S49/SUMIF(objectifs!$F:$F,$B$7,objectifs!IC:IC)),"nc",S49/SUMIF(objectifs!$F:$F,$B$7,objectifs!IC:IC)) -> 17.9 | W49: =IF(ISERROR(M49/S49),0,M49/S49) -> 153% | X49: =IF(ISERROR(N49-(T49/12*MONTH($C$9))),"nc",N49-(T49/12*MONTH($C$9))) -> 14.7
B50: Frais de dossier | H50: =SUMIF('Indicateurs mensuels'!$F:$F,$B$7,'Indicateurs mensuels'!CW:CW) -> 539 | M50: =SUMIF('Indicateurs Cumulés'!$F:$F,$B$7,'Indicateurs Cumulés'!AA:AA) -> 5,369 | N50: =IF(ISERROR(M50/SUMIF('Indicateurs Cumulés'!$F:$F,$B$7,'Indicateurs Cumulés'!LM:LM)),"nc",M50/SUMIF('Indicateurs Cumulés'!$F:$F,$B$7,'Indicateurs Cumulés'!LM:LM)) -> 4.0 | S50: =SUMIF(objectifs!$F:$F,$B$7,objectifs!BP:BP) -> 4,992 | T50: =IF(ISERROR(S50/SUMIF(objectifs!$F:$F,$B$7,objectifs!IC:IC)),"nc",S50/SUMIF(objectifs!$F:$F,$B$7,objectifs!IC:IC)) -> 3.3 | W50: =IF(ISERROR(M50/S50),0,M50/S50) -> 108% | X50: =IF(ISERROR(N50-(T50/12*MONTH($C$9))),"nc",N50-(T50/12*MONTH($C$9))) -> 1.0
B51: Commissions SACCEF | H51: =SUMIF('Indicateurs mensuels'!$F:$F,$B$7,'Indicateurs mensuels'!AI:AI) -> 357 | M51: =SUMIF('Indicateurs Cumulés'!$F:$F,$B$7,'Indicateurs Cumulés'!AB:AB) -> 3,520 | N51: =IF(ISERROR(M51/SUMIF('Indicateurs Cumulés'!$F:$F,$B$7,'Indicateurs Cumulés'!LM:LM)),"nc",M51/SUMIF('Indicateurs Cumulés'!$F:$F,$B$7,'Indicateurs Cumulés'!LM:LM)) -> 2.6 | S51: =SUMIF(objectifs!$F:$F,$B$7,objectifs!CA:CA) -> 3,578
B52: Bonus clients devenus BPe / JBPe via le crédit immobilier | E52: =J52-SUMIF('Indicateurs Cumulés M-1'!$F:$F,'PNB BDD'!$B$7,'Indicateurs Cumulés M-1'!CL:CL) -> 721 | F52: =K52 -> 1,000 € | G52: =L52 -> 1.00 | H52: =E52*F52*G52/1000 -> 721 | J52: =SUMIF('Indicateurs Cumulés'!$F:$F,$B$7,'Indicateurs Cumulés'!AD:AD) -> 4,547 | K52: =IF(ISERROR(M52/(J52*L52)*1000),0,M52/(J52*L52)*1000) -> 1,000 € | L52: 1.00 | M52: =SUMIF('Indicateurs Cumulés'!$F:$F,$B$7,'Indicateurs Cumulés'!AD:AD) -> 4,547 | N52: =IF(ISERROR(M52/SUMIF('Indicateurs Cumulés'!$F:$F,$B$7,'Indicateurs Cumulés'!LM:LM)),"nc",M52/SUMIF('Indicateurs Cumulés'!$F:$F,$B$7,'Indicateurs Cumulés'!LM:LM)) -> 3.4
B53: Commissions apporteurs d'affaires | H53: =M53-SUMIF('Indicateurs Cumulés M-1'!$F:$F,'PNB BDD'!$B$7,'Indicateurs Cumulés M-1'!BW:BW) -> -910 | M53: =SUMIF('Indicateurs Cumulés'!$F:$F,$B$7,'Indicateurs Cumulés'!AE:AE) -> -7,449 | N53: =IF(ISERROR(M53/SUMIF('Indicateurs Cumulés'!$F:$F,$B$7,'Indicateurs Cumulés'!LM:LM)),"nc",M53/SUMIF('Indicateurs Cumulés'!$F:$F,$B$7,'Indicateurs Cumulés'!LM:LM)) -> -5.6
B55: CREDIT MLT PRO - Eng. Nets (yc accessoires) | E55: =E56+E57 -> 18,872 | F55: =IF(ISERROR(H55/(E55*G55)),0,H55/(E55*G55)) -> 1.01% | G55: =IF(E55=0,0,SUMPRODUCT(G56:G57,E56:E57)/(E56+E57)) -> 4.48 | H55: =H56+H57+H58+H59 -> 854 | J55: =J56+J57 -> 245,069 | K55: =IF(ISERROR(M55/(J55*L55)),0,M55/(J55*L55)) -> 0.89% | L55: =IF(J55=0,0,SUMPRODUCT(L56:L57,J56:J57)/(J56+J57)) -> 4.45 | M55: =M56+M57+M58+M59 -> 9,696 | N55: =IF(ISERROR(M55/SUMIF('Indicateurs Cumulés'!$F:$F,$B$7,'Indicateurs Cumulés'!LM:LM)),"nc",M55/SUMIF('Indicateurs Cumulés'!$F:$F,$B$7,'Indicateurs Cumulés'!LM:LM)) -> 7.3 | P55: =P56+P57 -> 250,000 | Q55: =IF(ISERROR(S55/(P55*R55)),0,S55/(P55*R55)) -> 0.70% | R55: =IF(P55=0,0,SUMPRODUCT(R56:R57,P56:P57)/(P56+P57)) -> 4.39 | S55: =S56+S57+S58+S59 -> 7,646 | T55: =IF(ISERROR(S55/SUMIF(objectifs!$F:$F,$B$7,objectifs!IC:IC)),"nc",S55/SUMIF(objectifs!$F:$F,$B$7,objectifs!IC:IC)) -> 5.0 | V55: =IF(ISERROR(J55/P55),0,J55/P55) -> 98% | W55: =IF(ISERROR(M55/S55),0,M55/S55) -> 127% | X55: =IF(ISERROR(N55-(T55/12*MONTH($C$9))),"nc",N55-(T55/12*MONTH($C$9))) -> 2.7
B56: Crédit MLT (marge hors accessoires) | E56: =SUMIF('Indicateurs mensuels'!$F:$F,$B$7,'Indicateurs mensuels'!AA:AA) -> 17,966 | F56: =IF(E56=0,0,SUMPRODUCT(('Indicateurs mensuels'!$F$4:$F$374=$B$7)*(('Indicateurs mensuels'!$AA$4:$AA$374)*('Indicateurs mensuels'!$AB$4:$AB$374)/E56))) -> 0.85% | G56: =IF(E56=0,0,SUMPRODUCT(('Indicateurs mensuels'!$F$4:$F$374=$B$7)*(('Indicateurs mensuels'!$AA$4:$AA$374)*('Indicateurs mensuels'!$AC$4:$AC$374)/E56))) -> 4.60 | H56: =E56*F56*G56 -> 700 | J56: =SUMIF('Indicateurs Cumulés'!$F:$F,$B$7,'Indicateurs Cumulés'!AG:AG) -> 231,663 | K56: =IF(J56=0,0,SUMPRODUCT(('Indicateurs Cumulés'!$F$4:$F$374=$B$7)*(('Indicateurs Cumulés'!$AG$4:$AG$374)*('Indicateurs Cumulés'!$AH$4:$AH$374)/J56))) -> 0.71% | L56: =IF(J56=0,0,SUMPRODUCT(('Indicateurs Cumulés'!$F$4:$F$374=$B$7)*(('Indicateurs Cumulés'!$AG$4:$AG$374)*('Indicateurs Cumulés'!$AI$4:$AI$374)/J56))) -> 4.57 | M56: =J56*K56*L56 -> 7,532 | N56: =IF(ISERROR(M56/SUMIF('Indicateurs Cumulés'!$F:$F,$B$7,'Indicateurs Cumulés'!LM:LM)),"nc",M56/SUMIF('Indicateurs Cumulés'!$F:$F,$B$7,'Indicateurs Cumulés'!LM:LM)) -> 5.7 | P56: =SUMIF(objectifs!$F:$F,$B$7,objectifs!Y:Y) -> 238,000 | Q56: =objectifs!$Z$373 -> 0.40% | R56: =objectifs!$AA$373 -> 4.50 | S56: =P56*Q56*R56 -> 4,284 | T56: =IF(ISERROR(S56/SUMIF(objectifs!$F:$F,$B$7,objectifs!IC:IC)),"nc",S56/SUMIF(objectifs!$F:$F,$B$7,objectifs!IC:IC)) -> 2.8 | V56: =IF(ISERROR(J56/P56),0,J56/P56) -> 97% | W56: =IF(ISERROR(M56/S56),0,M56/S56) -> 176% | X56: =IF(ISERROR(N56-(T56/12*MONTH($C$9))),"nc",N56-(T56/12*MONTH($C$9))) -> 3.1
B57: Crédit Bail Mobilier | E57: =SUMIF('Indicateurs mensuels'!$F:$F,$B$7,'Indicateurs mensuels'!GH:GH) -> 906 | F57: =IF(E57=0,0,SUMPRODUCT(('Indicateurs mensuels'!$F$4:$F$374=$B$7)*(('Indicateurs mensuels'!$GH$4:$GH$374)*('Indicateurs mensuels'!$GI$4:$GI$374)/E57))) -> 1.09% | G57: =IF(E57=0,0,SUMPRODUCT(('Indicateurs mensuels'!$F$4:$F$374=$B$7)*(('Indicateurs mensuels'!$GH$4:$GH$374)*('Indicateurs mensuels'!$GJ$4:$GJ$374)/E57))) -> 2.04 | H57: =E57*F57*G57 -> 20 | J57: =SUMIF('Indicateurs Cumulés'!$F:$F,$B$7,'Indicateurs Cumulés'!AJ:AJ) -> 13,406 | K57: =IF(J57=0,0,SUMPRODUCT(('Indicateurs Cumulés'!$F$4:$F$374=$B$7)*(('Indicateurs Cumulés'!$AJ$4:$AJ$374)*('Indicateurs Cumulés'!$AK$4:$AK$374)/J57))) -> 0.94% | L57: =IF(J57=0,0,SUMPRODUCT(('Indicateurs Cumulés'!$F$4:$F$374=$B$7)*(('Indicateurs Cumulés'!$AJ$4:$AJ$374)*('Indicateurs Cumulés'!$AL$4:$AL$374)/J57))) -> 2.27 | M57: =J57*K57*L57 -> 285 | N57: =IF(ISERROR(M57/SUMIF('Indicateurs Cumulés'!$F:$F,$B$7,'Indicateurs Cumulés'!LM:LM)),"nc",M57/SUMIF('Indicateurs Cumulés'!$F:$F,$B$7,'Indicateurs Cumulés'!LM:LM)) -> 0.2 | P57: =SUMIF(objectifs!$F:$F,$B$7,objectifs!S:S) -> 12,000 | Q57: =objectifs!$T$373 -> 0.40% | R57: =objectifs!$U$373 -> 2.30 | S57: =P57*Q57*R57 -> 110 | T57: =IF(ISERROR(S57/SUMIF(objectifs!$F:$F,$B$7,objectifs!IC:IC)),"nc",S57/SUMIF(objectifs!$F:$F,$B$7,objectifs!IC:IC)) -> 0.1 | V57: =IF(ISERROR(J57/P57),0,J57/P57) -> 112% | W57: =IF(ISERROR(M57/S57),0,M57/S57) -> 258% | X57: =IF(ISERROR(N57-(T57/12*MONTH($C$9))),"nc",N57-(T57/12*MONTH($C$9))) -> 0.1
B58: Frais de dossier (yc CBM) | H58: =SUMIF('Indicateurs mensuels'!$F:$F,$B$7,'Indicateurs mensuels'!CS:CS)+SUMIF('Indicateurs mensuels'!$F:$F,$B$7,'Indicateurs mensuels'!CX:CX) -> 58 | M58: =SUMIF('Indicateurs Cumulés'!$F:$F,$B$7,'Indicateurs Cumulés'!AN:AN)+SUMIF('Indicateurs Cumulés'!$F:$F,$B$7,'Indicateurs Cumulés'!AO:AO) -> 726 | N58: =IF(ISERROR(M58/SUMIF('Indicateurs Cumulés'!$F:$F,$B$7,'Indicateurs Cumulés'!LM:LM)),"nc",M58/SUMIF('Indicateurs Cumulés'!$F:$F,$B$7,'Indicateurs Cumulés'!LM:LM)) -> 0.5 | S58: =SUMIF(objectifs!$F:$F,$B$7,objectifs!BS:BS) -> 750 | T58: =IF(ISERROR(S58/SUMIF(objectifs!$F:$F,$B$7,objectifs!IC:IC)),"nc",S58/SUMIF(objectifs!$F:$F,$B$7,objectifs!IC:IC)) -> 0.5 | W58: =IF(ISERROR(M58/S58),0,M58/S58) -> 97% | X58: =IF(ISERROR(N58-(T58/12*MONTH($C$9))),"nc",N58-(T58/12*MONTH($C$9))) -> 0.1
B59: Commissions ADE | E59: =IF(E56=0,0,SUMPRODUCT(('Indicateurs mensuels'!$F$4:$F$374=$B$7)*(('Indicateurs mensuels'!$AA$4:$AA$374)*('Indicateurs mensuels'!$HP$4:$HP$374)/E56))) -> 117.6% | F59: =IF(E56=0,0,SUMPRODUCT(('Indicateurs mensuels'!$F$4:$F$374=$B$7)*(('Indicateurs mensuels'!$AA$4:$AA$374)*('Indicateurs mensuels'!$HO$4:$HO$374)/E56))) -> 73.3% | H59: =SUMIF('Indicateurs mensuels'!$F:$F,$B$7,'Indicateurs mensuels'!HQ:HQ) -> 76 | J59: =IF(J56=0,0,SUMPRODUCT(('Indicateurs Cumulés'!$F$4:$F$374=$B$7)*(('Indicateurs Cumulés'!$AG$4:$AG$374)*('Indicateurs Cumulés'!$AQ$4:$AQ$374)/J56))) -> 111.7% | K59: =IF(J56=0,0,SUMPRODUCT(('Indicateurs Cumulés'!$F$4:$F$374=$B$7)*(('Indicateurs Cumulés'!$AG$4:$AG$374)*('Indicateurs Cumulés'!$AP$4:$AP$374)/J56))) -> 61.5% | M59: =SUMIF('Indicateurs Cumulés'!$F:$F,$B$7,'Indicateurs Cumulés'!AR:AR) -> 1,153 | N59: =IF(ISERROR(M59/SUMIF('Indicateurs Cumulés'!$F:$F,$B$7,'Indicateurs Cumulés'!LM:LM)),"nc",M59/SUMIF('Indicateurs Cumulés'!$F:$F,$B$7,'Indicateurs Cumulés'!LM:LM)) -> 0.9 | P59: =objectifs!$BM$373 -> 110% | Q59: =objectifs!$BL$373 -> 70% | S59: =SUMIF(objectifs!$F:$F,$B$7,objectifs!CB:CB) -> 2,501 | T59: =IF(ISERROR(S59/SUMIF(objectifs!$F:$F,$B$7,objectifs!IC:IC)),"nc",S59/SUMIF(objectifs!$F:$F,$B$7,objectifs!IC:IC)) -> 1.6 | W59: =IF(ISERROR(M59/S59),0,M59/S59) -> 46% | X59: =IF(ISERROR(N59-(T59/12*MONTH($C$9))),"nc",N59-(T59/12*MONTH($C$9))) -> -0.6
B61: BANCA - Ventes nettes | H61: =H62+H76+H83+H74+H75+H84+H88 -> 1,056 | M61: =M62+M76+M83+M74+M75+M84+M88 -> 26,034 | N61: =IF(ISERROR(M61/SUMIF('Indicateurs Cumulés'!$F:$F,$B$7,'Indicateurs Cumulés'!LM:LM)),"nc",M61/SUMIF('Indicateurs Cumulés'!$F:$F,$B$7,'Indicateurs Cumulés'!LM:LM)) -> 19.6 | P61: =P62+P76+P84+P75 -> 59,265 | Q61: =IF(ISERROR(S61/(P61*R61)*1000),0,S61/(P61*R61)*1000) -> 114 € | R61: 5.00 | S61: =S62+S76+S84+S75 -> 33,763 | T61: =IF(ISERROR(S61/SUMIF(objectifs!$F:$F,$B$7,objectifs!IC:IC)),"nc",S61/SUMIF(objectifs!$F:$F,$B$7,objectifs!IC:IC)) -> 22.2 | V61: =IF(ISERROR(J61/P61),0,J61/P61) -> 0% | W61: =IF(ISERROR(M61/S61),0,M61/S61) -> 77% | X61: =IF(ISERROR(N61-(T61/12*MONTH($C$9))),"nc",N61-(T61/12*MONTH($C$9))) -> -0.8
B62: Forfaits - Tarification | E62: =SUM(E63:E73) -> 372 | H62: =SUM(H63:I73) -> 228 | J62: =SUM(J63:J73) -> 6,539 | M62: =SUM(M63:M73) -> 7,291 | N62: =IF(ISERROR(M62/SUMIF('Indicateurs Cumulés'!$F:$F,$B$7,'Indicateurs Cumulés'!LM:LM)),"nc",M62/SUMIF('Indicateurs Cumulés'!$F:$F,$B$7,'Indicateurs Cumulés'!LM:LM)) -> 5.5 | P62: =SUMIF(objectifs!$F:$F,$B$7,objectifs!GD:GD)*0.95 -> 21,280 | Q62: =objectifs!$GD$3 -> 137 € | R62: =objectifs!$GE$3 -> 5.00 | S62: =P62*Q62*R62/1000 -> 14,602 | T62: =IF(ISERROR(S62/SUMIF(objectifs!$F:$F,$B$7,objectifs!IC:IC)),"nc",S62/SUMIF(objectifs!$F:$F,$B$7,objectifs!IC:IC)) -> 9.6 | V62: =IF(ISERROR(J62/P62),0,J62/P62) -> 31% | W62: =IF(ISERROR(M62/S62),0,M62/S62) -> 50% | X62: =IF(ISERROR(N62-(T62/12*MONTH($C$9))),"nc",N62-(T62/12*MONTH($C$9))) -> -3.3
B63: Formule Initial famille | E63: =J63-0 -> 6 | F63: =K63 -> 144 € | G63: =L63 -> 5.00 | H63: =E63*F63*G63/1000 -> 4 | J63: =SUMIF('Indicateurs Cumulés'!$F:$F,$B$7,'Indicateurs Cumulés'!HM:HM) -> 6 | K63: ='Indicateurs Cumulés'!HM3 -> 144 € | L63: ='Indicateurs Cumulés'!$IH$3 -> 5.00 | M63: =J63*K63*L63/1000 -> 4 | N63: =IF(ISERROR(M63/SUMIF('Indicateurs Cumulés'!$F:$F,$B$7,'Indicateurs Cumulés'!LM:LM)),"nc",M63/SUMIF('Indicateurs Cumulés'!$F:$F,$B$7,'Indicateurs Cumulés'!LM:LM)) -> 0.0
B64: Formule Confort famille | E64: =J64-0 -> 254 | F64: 170 € | G64: 5.00 | H64: 216 | J64: =SUMIF('Indicateurs Cumulés'!$F:$F,$B$7,'Indicateurs Cumulés'!HN:HN) -> 254 | K64: ='Indicateurs Cumulés'!HN3 -> 170 € | L64: ='Indicateurs Cumulés'!$IH$3 -> 5.00 | M64: 216 | N64: =IF(ISERROR(M64/SUMIF('Indicateurs Cumulés'!$F:$F,$B$7,'Indicateurs Cumulés'!LM:LM)),"nc",M64/SUMIF('Indicateurs Cumulés'!$F:$F,$B$7,'Indicateurs Cumulés'!LM:LM)) -> 0.2
B65: Formule Optimal famille | E65: 43 | F65: 324 € | G65: 5.00 | H65: 70 | J65: =SUMIF('Indicateurs Cumulés'!$F:$F,$B$7,'Indicateurs Cumulés'!HO:HO) -> 43 | K65: ='Indicateurs Cumulés'!HO3 -> 324 € | L65: ='Indicateurs Cumulés'!$IH$3 -> 5.00 | M65: 70 | N65: =IF(ISERROR(M65/SUMIF('Indicateurs Cumulés'!$F:$F,$B$7,'Indicateurs Cumulés'!LM:LM)),"nc",M65/SUMIF('Indicateurs Cumulés'!$F:$F,$B$7,'Indicateurs Cumulés'!LM:LM)) -> 0.1
B66: Formule Initial individuelle | E66: 694 | F66: 38 € | G66: 5.00 | H66: 133 | J66: =SUMIF('Indicateurs Cumulés'!$F:$F,$B$7,'Indicateurs Cumulés'!HJ:HJ) -> 694 | K66: ='Indicateurs Cumulés'!HJ3 -> 38 € | L66: ='Indicateurs Cumulés'!$IH$3 -> 5.00 | M66: 133 | N66: =IF(ISERROR(M66/SUMIF('Indicateurs Cumulés'!$F:$F,$B$7,'Indicateurs Cumulés'!LM:LM)),"nc",M66/SUMIF('Indicateurs Cumulés'!$F:$F,$B$7,'Indicateurs Cumulés'!LM:LM)) -> 0.1
B67: Formule Confort individuelle | E67: 2,230 | F67: 80 € | G67: 5.00 | H67: 891 | J67: =SUMIF('Indicateurs Cumulés'!$F:$F,$B$7,'Indicateurs Cumulés'!HK:HK) -> 2,230 | K67: ='Indicateurs Cumulés'!HK3 -> 80 € | L67: ='Indicateurs Cumulés'!$IH$3 -> 5.00 | M67: 891 | N67: =IF(ISERROR(M67/SUMIF('Indicateurs Cumulés'!$F:$F,$B$7,'Indicateurs Cumulés'!LM:LM)),"nc",M67/SUMIF('Indicateurs Cumulés'!$F:$F,$B$7,'Indicateurs Cumulés'!LM:LM)) -> 0.7
B68: Formule Optimal individuelle | E68: 225 | F68: 210 € | G68: 5.00 | H68: 236 | J68: =SUMIF('Indicateurs Cumulés'!$F:$F,$B$7,'Indicateurs Cumulés'!HL:HL) -> 225 | K68: ='Indicateurs Cumulés'!HL3 -> 210 € | L68: ='Indicateurs Cumulés'!$IH$3 -> 5.00 | M68: 236 | N68: =IF(ISERROR(M68/SUMIF('Indicateurs Cumulés'!$F:$F,$B$7,'Indicateurs Cumulés'!LM:LM)),"nc",M68/SUMIF('Indicateurs Cumulés'!$F:$F,$B$7,'Indicateurs Cumulés'!LM:LM)) -> 0.2
B69: Bouquet liberté HDG | E69: =J69-SUMIF('Indicateurs Cumulés M-1'!$F:$F,$B$7,'Indicateurs Cumulés M-1'!LA:LA) -> 648 | F69: =K69 -> 140 € | G69: =L69 -> 5.00 | H69: =E69*F69*G69/1000 -> 452 | J69: =SUMIF('Indicateurs Cumulés'!$F:$F,$B$7,'Indicateurs Cumulés'!HE:HE) -> 22,117 | K69: ='Indicateurs Cumulés'!$HE$3 -> 140 € | L69: ='Indicateurs Cumulés'!$IH$3 -> 5.00 | M69: =J69*K69*L69/1000 -> 15,427 | N69: =IF(ISERROR(M69/SUMIF('Indicateurs Cumulés'!$F:$F,$B$7,'Indicateurs Cumulés'!LM:LM)),"nc",M69/SUMIF('Indicateurs Cumulés'!$F:$F,$B$7,'Indicateurs Cumulés'!LM:LM)) -> 11.6
B70: Bouquet liberté Autres | E70: =J70-SUMIF('Indicateurs Cumulés M-1'!$F:$F,$B$7,'Indicateurs Cumulés M-1'!IF:IF) -> -3,812 | F70: =K70 -> 87 € | G70: 5.00 | H70: -1,661 | J70: =SUMIF('Indicateurs Cumulés'!$F:$F,$B$7,'Indicateurs Cumulés'!HF:HF) -> -12,448 | K70: ='Indicateurs Cumulés'!$HF$3 -> 87 € | L70: ='Indicateurs Cumulés'!$II$3 -> 5.00 | M70: =J70*K70*L70/1000 -> -5,422 | N70: =IF(ISERROR(M70/SUMIF('Indicateurs Cumulés'!$F:$F,$B$7,'Indicateurs Cumulés'!LM:LM)),"nc",M70/SUMIF('Indicateurs Cumulés'!$F:$F,$B$7,'Indicateurs Cumulés'!LM:LM)) -> -4.1
B71: Futéo / SOL 16-17 | E71: =J71-SUMIF('Indicateurs Cumulés M-1'!$F:$F,$B$7,'Indicateurs Cumulés M-1'!IG:IG) -> 272 | F71: 12 € | G71: 5.00 | H71: 16 | J71: =SUMIF('Indicateurs Cumulés'!$F:$F,$B$7,'Indicateurs Cumulés'!HG:HG) -> -385 | K71: ='Indicateurs Cumulés'!$HG$3 -> 12 € | L71: ='Indicateurs Cumulés'!$IJ$3 -> 5.00 | M71: =J71*K71*L71/1000 -> -23 | N71: =IF(ISERROR(M71/SUMIF('Indicateurs Cumulés'!$F:$F,$B$7,'Indicateurs Cumulés'!LM:LM)),"nc",M71/SUMIF('Indicateurs Cumulés'!$F:$F,$B$7,'Indicateurs Cumulés'!LM:LM)) -> -0.0
B72: Satellis Essentiel / Essentiel + | E72: =J72-SUMIF('Indicateurs Cumulés M-1'!$F:$F,$B$7,'Indicateurs Cumulés M-1'!IH:IH) -> -156 | F72: 125 € | G72: 5.00 | H72: -97 | J72: =SUMIF('Indicateurs Cumulés'!$F:$F,$B$7,'Indicateurs Cumulés'!HH:HH) -> -5,319 | K72: ='Indicateurs Cumulés'!$HH$3 -> 125 € | L72: ='Indicateurs Cumulés'!$IK$3 -> 5.00 | M72: =J72*K72*L72/1000 -> -3,319 | N72: =IF(ISERROR(M72/SUMIF('Indicateurs Cumulés'!$F:$F,$B$7,'Indicateurs Cumulés'!LM:LM)),"nc",M72/SUMIF('Indicateurs Cumulés'!$F:$F,$B$7,'Indicateurs Cumulés'!LM:LM)) -> -2.5
B73: Satellis Intégral | E73: =J73-SUMIF('Indicateurs Cumulés M-1'!$F:$F,$B$7,'Indicateurs Cumulés M-1'!II:II) -> -32 | F73: 210 € | G73: 5.00 | H73: -34 | J73: =SUMIF('Indicateurs Cumulés'!$F:$F,$B$7,'Indicateurs Cumulés'!HI:HI) -> -878 | K73: ='Indicateurs Cumulés'!$HI$3 -> 210 € | L73: ='Indicateurs Cumulés'!$IL$3 -> 5.00 | M73: =J73*K73*L73/1000 -> -922 | N73: =IF(ISERROR(M73/SUMIF('Indicateurs Cumulés'!$F:$F,$B$7,'Indicateurs Cumulés'!LM:LM)),"nc",M73/SUMIF('Indicateurs Cumulés'!$F:$F,$B$7,'Indicateurs Cumulés'!LM:LM)) -> -0.7
B74: Bonus Mobilité bancaire | E74: =J74-SUMIF('Indicateurs Cumulés M-1'!$F:$F,$B$7,'Indicateurs Cumulés M-1'!CG:CG) -> 717 | F74: =K74 -> 200 € | G74: =L74 -> 1.00 | H74: 143 | J74: =SUMIF('Indicateurs Cumulés'!$F:$F,$B$7,'Indicateurs Cumulés'!IG:IG) -> 6,504 | K74: =IF(ISERROR(M74/(J74*L74)*1000),0,M74/(J74*L74)*1000) -> 200 € | L74: 1.00 | M74: =SUMIF('Indicateurs Cumulés'!$F:$F,$B$7,'Indicateurs Cumulés'!JH:JH) -> 1,301 | N74: =IF(ISERROR(M74/SUMIF('Indicateurs Cumulés'!$F:$F,$B$7,'Indicateurs Cumulés'!LM:LM)),"nc",M74/SUMIF('Indicateurs Cumulés'!$F:$F,$B$7,'Indicateurs Cumulés'!LM:LM)) -> 1.0
B75: Options complémentaires sur Bouquet Liberté | E75: =J75-SUMIF('Indicateurs Cumulés M-1'!$F:$F,$B$7,'Indicateurs Cumulés M-1'!GM:GM) -> 102 | F75: =K75 -> 15 € | G75: =L75 -> 5.00 | H75: 8 | J75: =SUMIF('Indicateurs Cumulés'!$F:$F,$B$7,'Indicateurs Cumulés'!HP:HP) -> 269 | K75: =IF(ISERROR(M75/(J75*L75)*1000),0,M75/(J75*L75)*1000) -> 15 € | L75: ='Indicateurs Cumulés'!$II$3 -> 5.00 | M75: =SUMIF('Indicateurs Cumulés'!$F:$F,$B$7,'Indicateurs Cumulés'!JG:JG) -> 20 | N75: =IF(ISERROR(M75/SUMIF('Indicateurs Cumulés'!$F:$F,$B$7,'Indicateurs Cumulés'!LM:LM)),"nc",M75/SUMIF('Indicateurs Cumulés'!$F:$F,$B$7,'Indicateurs Cumulés'!LM:LM)) -> 0.0 | P75: =SUMIF(objectifs!$F:$F,$B$7,objectifs!FL:FL) -> 1,600 | Q75: =objectifs!$FL$3 -> 15 € | R75: =objectifs!$FM$3 -> 5.00 | S75: =P75*Q75*R75/1000 -> 120 | T75: =IF(ISERROR(S75/SUMIF(objectifs!$F:$F,$B$7,objectifs!IC:IC)),"nc",S75/SUMIF(objectifs!$F:$F,$B$7,objectifs!IC:IC)) -> 0.1 | V75: =IF(ISERROR(J75/P75),0,J75/P75) -> 17% | W75: =IF(ISERROR(M75/S75),0,M75/S75) -> 17% | X75: =IF(ISERROR(N75-(T75/12*MONTH($C$9))),"nc",N75-(T75/12*MONTH($C$9))) -> -0.1
B76: Cartes - Tarification | E76: =SUM(E77:E82) -> -282 | H76: =SUM(H77:H82) -> 243 | J76: =SUM(J77:J82) -> 1,253 | M76: =SUM(M77:M82) -> 10,432 | N76: =IF(ISERROR(M76/SUMIF('Indicateurs Cumulés'!$F:$F,$B$7,'Indicateurs Cumulés'!LM:LM)),"nc",M76/SUMIF('Indicateurs Cumulés'!$F:$F,$B$7,'Indicateurs Cumulés'!LM:LM)) -> 7.8 | P76: =SUMIF(objectifs!$F:$F,$B$7,objectifs!GF:GF)*0.95 -> 11,400 | Q76: =objectifs!$GF$3 -> 289 € | R76: =objectifs!$GG$3 -> 5.00 | S76: =P76*Q76*R76/1000 -> 16,484 | T76: =IF(ISERROR(S76/SUMIF(objectifs!$F:$F,$B$7,objectifs!IC:IC)),"nc",S76/SUMIF(objectifs!$F:$F,$B$7,objectifs!IC:IC)) -> 10.9 | V76: =IF(ISERROR(J76/P76),0,J76/P76) -> 11% | W76: =IF(ISERROR(M76/S76),0,M76/S76) -> 63% | X76: =IF(ISERROR(N76-(T76/12*MONTH($C$9))),"nc",N76-(T76/12*MONTH($C$9))) -> -2.1
B77: Carte Infinite | E77: =J77-SUMIF('Indicateurs Cumulés M-1'!$F:$F,$B$7,'Indicateurs Cumulés M-1'!IJ:IJ) -> 7 | F77: =K77 -> 315 € | G77: =L77 -> 5.00 | H77: =E77*F77*G77/1000 -> 11 | J77: =SUMIF('Indicateurs Cumulés'!$F:$F,$B$7,'Indicateurs Cumulés'!HZ:HZ) -> 110 | K77: ='Indicateurs Cumulés'!$HZ$3 -> 315 € | L77: ='Indicateurs Cumulés'!$IZ$3 -> 5.00 | M77: =J77*K77*L77/1000 -> 173 | N77: =IF(ISERROR(M77/SUMIF('Indicateurs Cumulés'!$F:$F,$B$7,'Indicateurs Cumulés'!LM:LM)),"nc",M77/SUMIF('Indicateurs Cumulés'!$F:$F,$B$7,'Indicateurs Cumulés'!LM:LM)) -> 0.1
B78: Carte Platinum (yc izicarte) | E78: =J78-SUMIF('Indicateurs Cumulés M-1'!$F:$F,$B$7,'Indicateurs Cumulés M-1'!IK:IK) -> 32 | F78: =K78 -> 200 € | G78: 5.00 | H78: 32 | J78: =SUMIF('Indicateurs Cumulés'!$F:$F,$B$7,'Indicateurs Cumulés'!IA:IA) -> 1,011 | K78: ='Indicateurs Cumulés'!$IA$3 -> 200 € | L78: ='Indicateurs Cumulés'!$JA$3 -> 5.00 | M78: 1,011 | N78: =IF(ISERROR(M78/SUMIF('Indicateurs Cumulés'!$F:$F,$B$7,'Indicateurs Cumulés'!LM:LM)),"nc",M78/SUMIF('Indicateurs Cumulés'!$F:$F,$B$7,'Indicateurs Cumulés'!LM:LM)) -> 0.8
B79: Carte Premier (yc izicarte) | E79: =J79-SUMIF('Indicateurs Cumulés M-1'!$F:$F,$B$7,'Indicateurs Cumulés M-1'!IL:IL) -> 609 | F79: 130 € | G79: 5.00 | H79: 396 | J79: =SUMIF('Indicateurs Cumulés'!$F:$F,$B$7,'Indicateurs Cumulés'!IB:IB) -> 20,996 | K79: ='Indicateurs Cumulés'!$IB$3 -> 130 € | L79: ='Indicateurs Cumulés'!$JB$3 -> 5.00 | M79: 13,647 | N79: =IF(ISERROR(M79/SUMIF('Indicateurs Cumulés'!$F:$F,$B$7,'Indicateurs Cumulés'!LM:LM)),"nc",M79/SUMIF('Indicateurs Cumulés'!$F:$F,$B$7,'Indicateurs Cumulés'!LM:LM)) -> 10.2
B80: Carte Classic (yc izicarte) | E80: =J80-SUMIF('Indicateurs Cumulés M-1'!$F:$F,$B$7,'Indicateurs Cumulés M-1'!IM:IM) -> -13 | F80: 43 € | G80: 5.00 | H80: -3 | J80: =SUMIF('Indicateurs Cumulés'!$F:$F,$B$7,'Indicateurs Cumulés'!IC:IC) -> -17,129 | K80: ='Indicateurs Cumulés'!$IC$3 -> 43 € | L80: ='Indicateurs Cumulés'!$JC$3 -> 5.00 | M80: -3,683 | N80: =IF(ISERROR(M80/SUMIF('Indicateurs Cumulés'!$F:$F,$B$7,'Indicateurs Cumulés'!LM:LM)),"nc",M80/SUMIF('Indicateurs Cumulés'!$F:$F,$B$7,'Indicateurs Cumulés'!LM:LM)) -> -2.8
B81: Carte Sensea | E81: =J81-SUMIF('Indicateurs Cumulés M-1'!$F:$F,$B$7,'Indicateurs Cumulés M-1'!CI:CI) -> -904 | F81: 43 € | G81: 5.00 | H81: -192 | J81: =SUMIF('Indicateurs Cumulés'!$F:$F,$B$7,'Indicateurs Cumulés'!ID:ID) -> -3,233 | K81: ='Indicateurs Cumulés'!$ID$3 -> 43 € | L81: ='Indicateurs Cumulés'!$JD$3 -> 5.00 | M81: -687 | N81: =IF(ISERROR(M81/SUMIF('Indicateurs Cumulés'!$F:$F,$B$7,'Indicateurs Cumulés'!LM:LM)),"nc",M81/SUMIF('Indicateurs Cumulés'!$F:$F,$B$7,'Indicateurs Cumulés'!LM:LM)) -> -0.5
B82: Autres Cartes | E82: =J82-SUMIF('Indicateurs Cumulés M-1'!$F:$F,$B$7,'Indicateurs Cumulés M-1'!IN:IN) -> -13 | F82: 12 € | G82: 5.00 | H82: -1 | J82: =SUMIF('Indicateurs Cumulés'!$F:$F,$B$7,'Indicateurs Cumulés'!IE:IE) -> -502 | K82: ='Indicateurs Cumulés'!$IE$3 -> 12 € | L82: ='Indicateurs Cumulés'!$JE$3 -> 5.00 | M82: -30 | N82: =IF(ISERROR(M82/SUMIF('Indicateurs Cumulés'!$F:$F,$B$7,'Indicateurs Cumulés'!LM:LM)),"nc",M82/SUMIF('Indicateurs Cumulés'!$F:$F,$B$7,'Indicateurs Cumulés'!LM:LM)) -> -0.0
B83: Booster Cartes débit différé | E83: =J83-SUMIF('Indicateurs Cumulés M-1'!$F:$F,$B$7,'Indicateurs Cumulés M-1'!KX:KX) -> 523 | F83: =K83 -> 40 € | G83: 5.00 | H83: 105 | J83: =SUMIF('Indicateurs Cumulés'!$F:$F,$B$7,'Indicateurs Cumulés'!IF:IF) -> 9,361 | K83: =IF(ISERROR(M83/(J83*L83)*1000),0,M83/(J83*L83)*1000) -> 40 € | L83: =objectifs!$GG$3 -> 5.00 | M83: =SUMIF('Indicateurs Cumulés'!$F:$F,$B$7,'Indicateurs Cumulés'!JF:JF) -> 1,872 | N83: =IF(ISERROR(M83/SUMIF('Indicateurs Cumulés'!$F:$F,$B$7,'Indicateurs Cumulés'!LM:LM)),"nc",M83/SUMIF('Indicateurs Cumulés'!$F:$F,$B$7,'Indicateurs Cumulés'!LM:LM)) -> 1.4
B84: IARD & Prévoyance - Commissions | E84: =J84-(SUMIF('Indicateurs Cumulés M-1'!$F:$F,$B$7,'Indicateurs Cumulés M-1'!HY:HY) +SUMIF('Indicateurs Cumulés M-1'!$F:$F,$B$7,'Indicateurs Cumulés M-1'!HZ:HZ) +SUMIF('Indicateurs Cumulés M-1'!$F:$F,$B$7,'Indicateurs Cumulés M-1'!IA:IA) +SUMIF('Indicateurs Cumulés M-1'!$F:$F,$B$7,'Indicateurs Cumulés M-1'!IB:IB) +SUMIF('Indicateurs Cumulés M-1'!$F:$F,$B$7,'Indicateurs Cumulés M-1'!IC:IC) +SUMIF('Indicateurs Cumulés M-1'!$F:$F,$B$7,'Indicateurs Cumulés M-1'!ID:ID) +SUMIF('Indicateurs Cumulés M-1'!$F:$F,$B$7,'Indicateurs Cumulés M-1'!IE:IE) +SUMIF('Indicateurs Cumulés M-1'!$F:$F,$B$7,'Indicateurs Cumulés M-1'!JK:JK) +SUMIF('Indicateurs Cumulés M-1'!$F:$F,$B$7,'Indicateurs Cumulés M-1'!LC:LC)) -> 1,007 | F84: =IF(ISERROR(H84/(E84*G84)*1000),0,H84/(E84*G84)*1000) -> 28 € | G84: =L84 -> 5.00 | H84: =M84- (SUMIF('Indicateurs Cumulés M-1'!$F:$F,$B$7,'Indicateurs Cumulés M-1'!IO:IO) +SUMIF('Indicateurs Cumulés M-1'!$F:$F,$B$7,'Indicateurs Cumulés M-1'!IP:IP) +SUMIF('Indicateurs Cumulés M-1'!$F:$F,$B$7,'Indicateurs Cumulés M-1'!IQ:IQ) +SUMIF('Indicateurs Cumulés M-1'!$F:$F,$B$7,'Indicateurs Cumulés M-1'!IR:IR) +SUMIF('Indicateurs Cumulés M-1'!$F:$F,$B$7,'Indicateurs Cumulés M-1'!IS:IS) +SUMIF('Indicateurs Cumulés M-1'!$F:$F,$B$7,'Indicateurs Cumulés M-1'!IT:IT) +SUMIF('Indicateurs Cumulés M-1'!$F:$F,$B$7,'Indicateurs Cumulés M-1'!IU:IU) +SUMIF('Indicateurs Cumulés M-1'!$F:$F,$B$7,'Indicateurs Cumulés M-1'!JL:JL) +SUMIF('Indicateurs Cumulés M-1'!$F:$F,$B$7,'Indicateurs Cumulés M-1'!LD:LD)) -> 143 | J84: =SUMIF('Indicateurs Cumulés'!$F:$F,$B$7,'Indicateurs Cumulés'!HQ:HQ) +SUMIF('Indicateurs Cumulés'!$F:$F,$B$7,'Indicateurs Cumulés'!HR:HR) +SUMIF('Indicateurs Cumulés'!$F:$F,$B$7,'Indicateurs Cumulés'!HS:HS) +SUMIF('Indicateurs Cumulés'!$F:$F,$B$7,'Indicateurs Cumulés'!HT:HT) +SUMIF('Indicateurs Cumulés'!$F:$F,$B$7,'Indicateurs Cumulés'!HU:HU) +SUMIF('Indicateurs Cumulés'!$F:$F,$B$7,'Indicateurs Cumulés'!HV:HV) +SUMIF('Indicateurs Cumulés'!$F:$F,$B$7,'Indicateurs Cumulés'!HW:HW) +SUMIF('Indicateurs Cumulés'!$F:$F,$B$7,'Indicateurs Cumulés'!HX:HX) +SUMIF('Indicateurs Cumulés'!$F:$F,$B$7,'Indicateurs Cumulés'!HY:HY) -> 23,971 | K84: =IF(ISERROR(M84/(J84*L84)*1000),0,M84/(J84*L84)*1000) -> 23 € | L84: =objectifs!$GI$3 -> 5.00 | M84: =SUMIF('Indicateurs Cumulés'!$F:$F,$B$7,'Indicateurs Cumulés'!IO:IO) +SUMIF('Indicateurs Cumulés'!$F:$F,$B$7,'Indicateurs Cumulés'!IP:IP) +SUMIF('Indicateurs Cumulés'!$F:$F,$B$7,'Indicateurs Cumulés'!IQ:IQ) +SUMIF('Indicateurs Cumulés'!$F:$F,$B$7,'Indicateurs Cumulés'!IR:IR) +SUMIF('Indicateurs Cumulés'!$F:$F,$B$7,'Indicateurs Cumulés'!IS:IS) +SUMIF('Indicateurs Cumulés'!$F:$F,$B$7,'Indicateurs Cumulés'!IT:IT) +SUMIF('Indicateurs Cumulés'!$F:$F,$B$7,'Indicateurs Cumulés'!IU:IU) +SUMIF('Indicateurs Cumulés'!$F:$F,$B$7,'Indicateurs Cumulés'!IV:IV) +SUMIF('Indicateurs Cumulés'!$F:$F,$B$7,'Indicateurs Cumulés'!IW:IW) -> 2,753 | N84: =IF(ISERROR(M84/SUMIF('Indicateurs Cumulés'!$F:$F,$B$7,'Indicateurs Cumulés'!LM:LM)),"nc",M84/SUMIF('Indicateurs Cumulés'!$F:$F,$B$7,'Indicateurs Cumulés'!LM:LM)) -> 2.1 | P84: =SUMIF(objectifs!$F:$F,$B$7,objectifs!GH:GH)*0.95 -> 24,985 | Q84: =objectifs!$GH$3 -> 20 € | R84: =objectifs!$GI$3 -> 5.00 | S84: =P84*Q84*R84/1000 -> 2,558 | T84: =IF(ISERROR(S84/SUMIF(objectifs!$F:$F,$B$7,objectifs!IC:IC)),"nc",S84/SUMIF(objectifs!$F:$F,$B$7,objectifs!IC:IC)) -> 1.7 | V84: =IF(ISERROR(J84/P84),0,J84/P84) -> 96% | W84: =IF(ISERROR(M84/S84),0,M84/S84) -> 108% | X84: =IF(ISERROR(N84-(T84/12*MONTH($C$9))),"nc",N84-(T84/12*MONTH($C$9))) -> 0.5
B85: dont AUTO | E85: =J85-SUMIF('Indicateurs Cumulés M-1'!$F:$F,$B$7,'Indicateurs Cumulés M-1'!HY:HY) -> 336 | F85: =K85 -> 43 € | G85: 2.75 | H85: =E85*F85*G85/1000 -> 40 | J85: =SUMIF('Indicateurs Cumulés'!$F:$F,$B$7,'Indicateurs Cumulés'!HQ:HQ) -> 6,203 | K85: 43 € | L85: =objectifs!$HT$3 -> 2.75 | M85: =SUMIF('Indicateurs Cumulés'!$F:$F,$B$7,'Indicateurs Cumulés'!IO:IO) -> 731 | N85: =IF(ISERROR(M85/SUMIF('Indicateurs Cumulés'!$F:$F,$B$7,'Indicateurs Cumulés'!LM:LM)),"nc",M85/SUMIF('Indicateurs Cumulés'!$F:$F,$B$7,'Indicateurs Cumulés'!LM:LM)) -> 0.5 | P85: =SUMIF(objectifs!$F:$F,$B$7,objectifs!HS:HS) -> 6,400 | Q85: =objectifs!$HS$3 -> 43 € | R85: =objectifs!$HT$3 -> 2.75 | S85: =P85*Q85*R85/1000 -> 754 | T85: =IF(ISERROR(S85/SUMIF(objectifs!$F:$F,$B$7,objectifs!IC:IC)),"nc",S85/SUMIF(objectifs!$F:$F,$B$7,objectifs!IC:IC)) -> 0.5 | V85: =IF(ISERROR(J85/P85),0,J85/P85) -> 97% | W85: =IF(ISERROR(M85/S85),0,M85/S85) -> 97% | X85: =IF(ISERROR(N85-(T85/12*MONTH($C$9))),"nc",N85-(T85/12*MONTH($C$9))) -> 0.1
B86: dont MRH | E86: =J86-SUMIF('Indicateurs Cumulés M-1'!$F:$F,$B$7,'Indicateurs Cumulés M-1'!HZ:HZ) -> 598 | F86: 25 € | G86: 3.96 | H86: =E86*F86*G86/1000 -> 59 | J86: =SUMIF('Indicateurs Cumulés'!$F:$F,$B$7,'Indicateurs Cumulés'!HR:HR) -> 5,626 | K86: 25 € | L86: =objectifs!$HV$3 -> 3.96 | M86: =SUMIF('Indicateurs Cumulés'!$F:$F,$B$7,'Indicateurs Cumulés'!IP:IP) -> 558 | N86: =IF(ISERROR(M86/SUMIF('Indicateurs Cumulés'!$F:$F,$B$7,'Indicateurs Cumulés'!LM:LM)),"nc",M86/SUMIF('Indicateurs Cumulés'!$F:$F,$B$7,'Indicateurs Cumulés'!LM:LM)) -> 0.4 | P86: =SUMIF(objectifs!$F:$F,$B$7,objectifs!HU:HU) -> 4,600 | Q86: =objectifs!$HU$3 -> 25 € | R86: =objectifs!$HV$3 -> 3.96 | S86: =P86*Q86*R86/1000 -> 456 | T86: =IF(ISERROR(S86/SUMIF(objectifs!$F:$F,$B$7,objectifs!IC:IC)),"nc",S86/SUMIF(objectifs!$F:$F,$B$7,objectifs!IC:IC)) -> 0.3 | V86: =IF(ISERROR(J86/P86),0,J86/P86) -> 122% | W86: =IF(ISERROR(M86/S86),0,M86/S86) -> 122% | X86: =IF(ISERROR(N86-(T86/12*MONTH($C$9))),"nc",N86-(T86/12*MONTH($C$9))) -> 0.1
B87: dont Sécur Famille | E87: =J87-SUMIF('Indicateurs Cumulés M-1'!$F:$F,$B$7,'Indicateurs Cumulés M-1'!IE:IE) -> 415 | F87: 19 € | G87: 6.00 | H87: =M87-VLOOKUP($B$7,'Indicateurs Cumulés M-1'!$F$3:$JD$390,250,FALSE) -> 48 | J87: =SUMIF('Indicateurs Cumulés'!$F:$F,$B$7,'Indicateurs Cumulés'!HW:HW) -> 9,774 | K87: =+objectifs!$ID$3 -> 19 € | L87: =+objectifs!$IE$3 -> 6.00 | M87: =SUMIF('Indicateurs Cumulés'!$F:$F,$B$7,'Indicateurs Cumulés'!IU:IU) -> 1,126 | N87: =IF(ISERROR(M87/SUMIF('Indicateurs Cumulés'!$F:$F,$B$7,'Indicateurs Cumulés'!LM:LM)),"nc",M87/SUMIF('Indicateurs Cumulés'!$F:$F,$B$7,'Indicateurs Cumulés'!LM:LM)) -> 0.8 | P87: =SUMIF(objectifs!$F:$F,$B$7,objectifs!ID:ID) -> 10,000 | Q87: =+objectifs!$ID$3 -> 19 € | R87: =+objectifs!$IE$3 -> 6.00 | S87: =P87*Q87*R87/1000 -> 1,152 | T87: =IF(ISERROR(S87/SUMIF(objectifs!$F:$F,$B$7,objectifs!IC:IC)),"nc",S87/SUMIF(objectifs!$F:$F,$B$7,objectifs!IC:IC)) -> 0.8 | V87: =IF(ISERROR(J87/P87),0,J87/P87) -> 98% | W87: =IF(ISERROR(M87/S87),0,M87/S87) -> 98% | X87: =IF(ISERROR(N87-(T87/12*MONTH($C$9))),"nc",N87-(T87/12*MONTH($C$9))) -> 0.2
B88: Booster AUTO & MRH | E88: =E85+E86 -> 934 | F88: =K88 -> 40 € | G88: 5.00 | H88: =E88*F88*G88/1000 -> 187 | J88: =J85+J86 -> 11,829 | K88: 40 € | L88: =objectifs!$GG$3 -> 5.00 | M88: =SUMIF('Indicateurs Cumulés'!$F:$F,$B$7,'Indicateurs Cumulés'!IX:IX)+SUMIF('Indicateurs Cumulés'!$F:$F,$B$7,'Indicateurs Cumulés'!IY:IY) -> 2,366 | N88: =IF(ISERROR(M88/SUMIF('Indicateurs Cumulés'!$F:$F,$B$7,'Indicateurs Cumulés'!LM:LM)),"nc",M88/SUMIF('Indicateurs Cumulés'!$F:$F,$B$7,'Indicateurs Cumulés'!LM:LM)) -> 1.8
B90: BANCA PRO - Ventes nettes | E90: =SUM(E91:E97) -> 97 | H90: =SUM(H91:H97) -> 104 | J90: =SUM(J91:J96) -> 2,744 | M90: =SUM(M91:M97) -> 4,038 | N90: =IF(ISERROR(M90/SUMIF('Indicateurs Cumulés'!$F:$F,$B$7,'Indicateurs Cumulés'!LM:LM)),"nc",M90/SUMIF('Indicateurs Cumulés'!$F:$F,$B$7,'Indicateurs Cumulés'!LM:LM)) -> 3.0 | P90: =SUM(P91:P97) -> 4,570 | S90: =SUM(S91:S97) -> 4,913 | T90: =IF(ISERROR(S90/SUMIF(objectifs!$F:$F,$B$7,objectifs!IC:IC)),"nc",S90/SUMIF(objectifs!$F:$F,$B$7,objectifs!IC:IC)) -> 3.2 | V90: =IF(ISERROR(J90/P90),0,J90/P90) -> 60% | W90: =IF(ISERROR(M90/S90),0,M90/S90) -> 82% | X90: =IF(ISERROR(N90-(T90/12*MONTH($C$9))),"nc",N90-(T90/12*MONTH($C$9))) -> 0.1
B91: Forfaits PRO - Tarification | E91: =J91-SUMIF('Indicateurs Cumulés M-1'!$F:$F,$B$7,'Indicateurs Cumulés M-1'!KC:KC)-SUMIF('Indicateurs Cumulés M-1'!$F:$F,$B$7,'Indicateurs Cumulés M-1'!KE:KE) -> 67 | F91: =K91 -> 273 € | G91: =L91 -> 5.00 | H91: =E91*F91*G91/1000 -> 92 | J91: =SUMIF('Indicateurs Cumulés'!$F:$F,$B$7,'Indicateurs Cumulés'!JY:JY)+SUMIF('Indicateurs Cumulés'!$F:$F,$B$7,'Indicateurs Cumulés'!KA:KA) -> 1,192 | K91: =IF(ISERROR(M91/(J91*L91)*1000),0,M91/(J91*L91)*1000) -> 273 € | L91: =objectifs!$HF$3 -> 5.00 | M91: =SUMIF('Indicateurs Cumulés'!$F:$F,$B$7,'Indicateurs Cumulés'!KH:KH)+SUMIF('Indicateurs Cumulés'!$F:$F,$B$7,'Indicateurs Cumulés'!KJ:KJ) -> 1,629 | N91: =IF(ISERROR(M91/SUMIF('Indicateurs Cumulés'!$F:$F,$B$7,'Indicateurs Cumulés'!LM:LM)),"nc",M91/SUMIF('Indicateurs Cumulés'!$F:$F,$B$7,'Indicateurs Cumulés'!LM:LM)) -> 1.2 | P91: =SUMIF(objectifs!$F:$F,$B$7,objectifs!GZ:GZ)+SUMIF(objectifs!$F:$F,$B$7,objectifs!HB:HB) -> 1,500 | Q91: =IF(ISERROR(S91/(P91*R91)*1000),0,S91/(P91*R91)*1000) -> 204 € | R91: =objectifs!$HF$3 -> 5.00 | S91: =SUMIF(objectifs!$F:$F,$B$7,objectifs!HF:HF)+SUMIF(objectifs!$F:$F,$B$7,objectifs!HH:HH) -> 1,529 | T91: =IF(ISERROR(S91/SUMIF(objectifs!$F:$F,$B$7,objectifs!IC:IC)),"nc",S91/SUMIF(objectifs!$F:$F,$B$7,objectifs!IC:IC)) -> 1.0 | V91: 79% | W91: 107% | X91: 0.3
B92: Cartes PRO - Tarification | E92: =J92-SUMIF('Indicateurs Cumulés M-1'!$F:$F,$B$7,'Indicateurs Cumulés M-1'!KD:KD) -SUMIF('Indicateurs Cumulés M-1'!$F:$F,$B$7,'Indicateurs Cumulés M-1'!KF:KF) -SUMIF('Indicateurs Cumulés M-1'!$F:$F,$B$7,'Indicateurs Cumulés M-1'!KG:KG) -> -11 | F92: 101 € | G92: 5.00 | H92: -6 | J92: =SUMIF('Indicateurs Cumulés'!$F:$F,$B$7,'Indicateurs Cumulés'!JZ:JZ)+SUMIF('Indicateurs Cumulés'!$F:$F,$B$7,'Indicateurs Cumulés'!KB:KB)+SUMIF('Indicateurs Cumulés'!$F:$F,$B$7,'Indicateurs Cumulés'!KC:KC) -> 751 | K92: 101 € | L92: =objectifs!$HG$3 -> 5.00 | M92: =SUMIF('Indicateurs Cumulés'!$F:$F,$B$7,'Indicateurs Cumulés'!KI:KI)+SUMIF('Indicateurs Cumulés'!$F:$F,$B$7,'Indicateurs Cumulés'!KK:KK)+SUMIF('Indicateurs Cumulés'!$F:$F,$B$7,'Indicateurs Cumulés'!KL:KL) -> 379 | N92: =IF(ISERROR(M92/SUMIF('Indicateurs Cumulés'!$F:$F,$B$7,'Indicateurs Cumulés'!LM:LM)),"nc",M92/SUMIF('Indicateurs Cumulés'!$F:$F,$B$7,'Indicateurs Cumulés'!LM:LM)) -> 0.3 | P92: =SUMIF(objectifs!$F:$F,$B$7,objectifs!HA:HA)+SUMIF(objectifs!$F:$F,$B$7,objectifs!HC:HC)+SUMIF(objectifs!$F:$F,$B$7,objectifs!HD:HD) -> 1,000 | Q92: 150 € | R92: =objectifs!$HG$3 -> 5.00 | S92: =SUMIF(objectifs!$F:$F,$B$7,objectifs!HG:HG)+SUMIF(objectifs!$F:$F,$B$7,objectifs!HI:HI)+SUMIF(objectifs!$F:$F,$B$7,objectifs!HJ:HJ) -> 748 | T92: =IF(ISERROR(S92/SUMIF(objectifs!$F:$F,$B$7,objectifs!IC:IC)),"nc",S92/SUMIF(objectifs!$F:$F,$B$7,objectifs!IC:IC)) -> 0.5 | V92: 75% | W92: 51% | X92: -0.2
B93: AUTO PRO (ventes brutes) - Commissions | E93: =J93-SUMIF('Indicateurs Cumulés M-1'!$F:$F,$B$7,'Indicateurs Cumulés M-1'!CA:CA) -> -16 | F93: 100 € | G93: 2.75 | H93: -4 | J93: =SUMIF('Indicateurs Cumulés'!$F:$F,$B$7,'Indicateurs Cumulés'!KE:KE) -> 106 | K93: 100 € | L93: =objectifs!$HZ$3 -> 2.75 | M93: =SUMIF('Indicateurs Cumulés'!$F:$F,$B$7,'Indicateurs Cumulés'!KN:KN) -> 29 | N93: =IF(ISERROR(M93/SUMIF('Indicateurs Cumulés'!$F:$F,$B$7,'Indicateurs Cumulés'!LM:LM)),"nc",M93/SUMIF('Indicateurs Cumulés'!$F:$F,$B$7,'Indicateurs Cumulés'!LM:LM)) -> 0.0 | P93: =SUMIF(objectifs!$F:$F,$B$7,objectifs!HW:HW) -> 340 | Q93: 100 € | R93: =objectifs!$HZ$3 -> 2.75 | S93: =SUMIF(objectifs!$F:$F,$B$7,objectifs!HZ:HZ) -> 94 | T93: =IF(ISERROR(S93/SUMIF(objectifs!$F:$F,$B$7,objectifs!IC:IC)),"nc",S93/SUMIF(objectifs!$F:$F,$B$7,objectifs!IC:IC)) -> 0.1 | V93: 31% | W93: 31% | X93: -0.0
B94: Multirisque PRO (ventes brutes) - Commissions | E94: =J94-SUMIF('Indicateurs Cumulés M-1'!$F:$F,$B$7,'Indicateurs Cumulés M-1'!CC:CC) -> 0 | F94: 30 € | G94: 3.96 | H94: 0 | J94: =SUMIF('Indicateurs Cumulés'!$F:$F,$B$7,'Indicateurs Cumulés'!KF:KF) -> 140 | K94: 30 € | L94: =objectifs!$IA$3 -> 3.96 | M94: =SUMIF('Indicateurs Cumulés'!$F:$F,$B$7,'Indicateurs Cumulés'!KO:KO) -> 17 | N94: =IF(ISERROR(M94/SUMIF('Indicateurs Cumulés'!$F:$F,$B$7,'Indicateurs Cumulés'!LM:LM)),"nc",M94/SUMIF('Indicateurs Cumulés'!$F:$F,$B$7,'Indicateurs Cumulés'!LM:LM)) -> 0.0 | P94: =SUMIF(objectifs!$F:$F,$B$7,objectifs!HX:HX) -> 510 | Q94: 30 € | R94: =objectifs!$IA$3 -> 3.96 | S94: =SUMIF(objectifs!$F:$F,$B$7,objectifs!IA:IA) -> 61 | T94: =IF(ISERROR(S94/SUMIF(objectifs!$F:$F,$B$7,objectifs!IC:IC)),"nc",S94/SUMIF(objectifs!$F:$F,$B$7,objectifs!IC:IC)) -> 0.0 | V94: 27% | W94: 27% | X94: -0.0
B95: PAP - Commissions | E95: =J95-SUMIF('Indicateurs Cumulés M-1'!$F:$F,$B$7,'Indicateurs Cumulés M-1'!KH:KH) -> 6 | F95: 18 € | G95: 5.00 | H95: 1 | J95: =SUMIF('Indicateurs Cumulés'!$F:$F,$B$7,'Indicateurs Cumulés'!KD:KD) -> 336 | K95: 18 € | L95: =objectifs!$HK$3 -> 5.00 | M95: =SUMIF('Indicateurs Cumulés'!$F:$F,$B$7,'Indicateurs Cumulés'!KM:KM) -> 30 | N95: =IF(ISERROR(M95/SUMIF('Indicateurs Cumulés'!$F:$F,$B$7,'Indicateurs Cumulés'!LM:LM)),"nc",M95/SUMIF('Indicateurs Cumulés'!$F:$F,$B$7,'Indicateurs Cumulés'!LM:LM)) -> 0.0 | P95: =SUMIF(objectifs!$F:$F,$B$7,objectifs!HE:HE) -> 480 | Q95: 18 € | R95: =objectifs!$HK$3 -> 5.00 | S95: =SUMIF(objectifs!$F:$F,$B$7,objectifs!HK:HK) -> 42 | T95: =IF(ISERROR(S95/SUMIF(objectifs!$F:$F,$B$7,objectifs!IC:IC)),"nc",S95/SUMIF(objectifs!$F:$F,$B$7,objectifs!IC:IC)) -> 0.0 | V95: 70% | W95: 70% | X95: -0.0
B96: Contrats monétiques actifs - Commissions | E96: =J96-SUMIF('Indicateurs Cumulés M-1'!$F:$F,$B$7,'Indicateurs Cumulés M-1'!CE:CE) -> 51 | F96: 100 € | G96: 5.00 | H96: 26 | J96: =SUMIF('Indicateurs Cumulés'!$F:$F,$B$7,'Indicateurs Cumulés'!KG:KG) -> 219 | K96: 100 € | L96: =objectifs!$IB$3 -> 5.00 | M96: =SUMIF('Indicateurs Cumulés'!$F:$F,$B$7,'Indicateurs Cumulés'!KP:KP) -> 110 | N96: =IF(ISERROR(M96/SUMIF('Indicateurs Cumulés'!$F:$F,$B$7,'Indicateurs Cumulés'!LM:LM)),"nc",M96/SUMIF('Indicateurs Cumulés'!$F:$F,$B$7,'Indicateurs Cumulés'!LM:LM)) -> 0.1 | P96: =SUMIF(objectifs!$F:$F,$B$7,objectifs!HY:HY) -> 740 | Q96: 100 € | R96: =objectifs!$IB$3 -> 5.00 | S96: =SUMIF(objectifs!$F:$F,$B$7,objectifs!IB:IB) -> 370 | T96: =IF(ISERROR(S96/SUMIF(objectifs!$F:$F,$B$7,objectifs!IC:IC)),"nc",S96/SUMIF(objectifs!$F:$F,$B$7,objectifs!IC:IC)) -> 0.2 | V96: 30% | W96: 30% | X96: -0.1
B97: Commisions de mouvement | H97: =SUMIF('Indicateurs Cumulés'!$F:$F,$B$7,'Indicateurs Cumulés'!KQ:KQ)-SUMIF('Indicateurs Cumulés M-1'!$F:$F,$B$7,'Indicateurs Cumulés M-1'!KP:KP) -> -4 | M97: =SUMIF('Indicateurs Cumulés'!$F:$F,$B$7,'Indicateurs Cumulés'!KQ:KQ) -> 1,845 | N97: =IF(ISERROR(M97/SUMIF('Indicateurs Cumulés'!$F:$F,$B$7,'Indicateurs Cumulés'!LM:LM)),"nc",M97/SUMIF('Indicateurs Cumulés'!$F:$F,$B$7,'Indicateurs Cumulés'!LM:LM)) -> 1.4 | S97: =SUMIF(objectifs!$F:$F,$B$7,objectifs!HM:HM) -> 2,069 | T97: =IF(ISERROR(S97/SUMIF(objectifs!$F:$F,$B$7,objectifs!IC:IC)),"nc",S97/SUMIF(objectifs!$F:$F,$B$7,objectifs!IC:IC)) -> 1.4 | V97: 0% | W97: 89% | X97: 0.1
B99: BANCA PRO Relation privée - Ventes nettes | E99: =SUM(E100:E102) -> -80 | H99: =SUM(H100:H102) -> -60 | J99: =SUM(J100:J102) -> 43 | M99: =SUM(M100:M102) -> -331 | N99: =IF(ISERROR(M99/SUMIF('Indicateurs Cumulés'!$F:$F,$B$7,'Indicateurs Cumulés'!LM:LM)),"nc",M99/SUMIF('Indicateurs Cumulés'!$F:$F,$B$7,'Indicateurs Cumulés'!LM:LM)) -> -0.2 | P99: =SUM(P100:P102) -> 3,035 | Q99: =IF(ISERROR(S99/(P99*R99)*1000),0,S99/(P99*R99)*1000) -> 117 € | R99: =IF(ISERROR(SUMPRODUCT(R100:R102,P100:P102)/SUMPRODUCT(P100:P102)),0,SUMPRODUCT(R100:R102,P100:P102)/SUMPRODUCT(P100:P102)) -> 5.00 | S99: =SUM(S100:S102) -> 1,771 | T99: =IF(ISERROR(S99/SUMIF(objectifs!$F:$F,$B$7,objectifs!IC:IC)),"nc",S99/SUMIF(objectifs!$F:$F,$B$7,objectifs!IC:IC)) -> 1.2 | V99: =IF(ISERROR(J99/P99),0,J99/P99) -> 1% | W99: =IF(ISERROR(M99/S99),0,M99/S99) -> -19% | X99: =IF(ISERROR(N99-(T99/12*MONTH($C$9))),"nc",N99-(T99/12*MONTH($C$9))) -> -1.3
B100: Forfaits - Tarification | E100: =J100-SUMIF('Indicateurs Cumulés M-1'!$F:$F,$B$7,'Indicateurs Cumulés M-1'!LG:LG) -> 21 | F100: =K100 -> 137 € | G100: 5.00 | H100: =E100*F100*G100/1000 -> 14 | J100: =SUMIF('Indicateurs Cumulés'!$F:$F,$B$7,'Indicateurs Cumulés'!JJ:JJ) +SUMIF('Indicateurs Cumulés'!$F:$F,$B$7,'Indicateurs Cumulés'!JK:JK) +SUMIF('Indicateurs Cumulés'!$F:$F,$B$7,'Indicateurs Cumulés'!JL:JL) +SUMIF('Indicateurs Cumulés'!$F:$F,$B$7,'Indicateurs Cumulés'!JM:JM) +SUMIF('Indicateurs Cumulés'!$F:$F,$B$7,'Indicateurs Cumulés'!JN:JN) +SUMIF('Indicateurs Cumulés'!$F:$F,$B$7,'Indicateurs Cumulés'!JO:JO) +SUMIF('Indicateurs Cumulés'!$F:$F,$B$7,'Indicateurs Cumulés'!JP:JP) -> 63 | K100: =objectifs!$GD$3 -> 137 € | L100: =objectifs!$GE$3 -> 5.00 | M100: =SUMIF('Indicateurs Cumulés'!$F:$F,$B$7,'Indicateurs Cumulés'!JS:JS) +SUMIF('Indicateurs Cumulés'!$F:$F,$B$7,'Indicateurs Cumulés'!JT:JT) +SUMIF('Indicateurs Cumulés'!$F:$F,$B$7,'Indicateurs Cumulés'!JU:JU) -> 36 | N100: =IF(ISERROR(M100/SUMIF('Indicateurs Cumulés'!$F:$F,$B$7,'Indicateurs Cumulés'!LM:LM)),"nc",M100/SUMIF('Indicateurs Cumulés'!$F:$F,$B$7,'Indicateurs Cumulés'!LM:LM)) -> 0.0 | P100: =SUMIF(objectifs!$F:$F,$B$7,objectifs!GD:GD)*5% -> 1,120 | Q100: =objectifs!$GD$3 -> 137 € | R100: =objectifs!$GE$3 -> 5.00 | S100: =P100*Q100*R100/1000 -> 769 | T100: =IF(ISERROR(S100/SUMIF(objectifs!$F:$F,$B$7,objectifs!IC:IC)),"nc",S100/SUMIF(objectifs!$F:$F,$B$7,objectifs!IC:IC)) -> 0.5 | V100: =IF(ISERROR(J100/P100),0,J100/P100) -> 6% | W100: =IF(ISERROR(M100/S100),0,M100/S100) -> 5% | X100: =IF(ISERROR(N100-(T100/12*MONTH($C$9))),"nc",N100-(T100/12*MONTH($C$9))) -> -0.4
B101: Cartes - Tarification | E101: =J101-SUMIF('Indicateurs Cumulés M-1'!$F:$F,$B$7,'Indicateurs Cumulés M-1'!LI:LI) -> -48 | F101: 289 € | G101: 5.00 | H101: =E101*F101*G101/1000 -> -69 | J101: =SUMIF('Indicateurs Cumulés'!$F:$F,$B$7,'Indicateurs Cumulés'!JQ:JQ) -> -272 | K101: =objectifs!$GF$3 -> 289 € | L101: =objectifs!$GG$3 -> 5.00 | M101: =SUMIF('Indicateurs Cumulés'!$F:$F,$B$7,'Indicateurs Cumulés'!JV:JV) -> -393 | N101: =IF(ISERROR(M101/SUMIF('Indicateurs Cumulés'!$F:$F,$B$7,'Indicateurs Cumulés'!LM:LM)),"nc",M101/SUMIF('Indicateurs Cumulés'!$F:$F,$B$7,'Indicateurs Cumulés'!LM:LM)) -> -0.3 | P101: =SUMIF(objectifs!$F:$F,$B$7,objectifs!GF:GF)*5% -> 600 | Q101: =objectifs!$GF$3 -> 289 € | R101: =objectifs!$GG$3 -> 5.00 | S101: =P101*Q101*R101/1000 -> 868 | T101: =IF(ISERROR(S101/SUMIF(objectifs!$F:$F,$B$7,objectifs!IC:IC)),"nc",S101/SUMIF(objectifs!$F:$F,$B$7,objectifs!IC:IC)) -> 0.6 | V101: =IF(ISERROR(J101/P101),0,J101/P101) -> -45% | W101: =IF(ISERROR(M101/S101),0,M101/S101) -> -45% | X101: =IF(ISERROR(N101-(T101/12*MONTH($C$9))),"nc",N101-(T101/12*MONTH($C$9))) -> -0.8
B102: IARD & Prévoyance - Commissions | E102: =J102-SUMIF('Indicateurs Cumulés M-1'!$F:$F,$B$7,'Indicateurs Cumulés M-1'!LK:LK) -> -53 | F102: 20 € | G102: 5.00 | H102: =E102*F102*G102/1000 -> -5 | J102: =SUMIF('Indicateurs Cumulés'!$F:$F,$B$7,'Indicateurs Cumulés'!JR:JR) -> 252 | K102: =objectifs!$GH$3 -> 20 € | L102: =objectifs!$GI$3 -> 5.00 | M102: =SUMIF('Indicateurs Cumulés'!$F:$F,$B$7,'Indicateurs Cumulés'!JW:JW) -> 26 | N102: =IF(ISERROR(M102/SUMIF('Indicateurs Cumulés'!$F:$F,$B$7,'Indicateurs Cumulés'!LM:LM)),"nc",M102/SUMIF('Indicateurs Cumulés'!$F:$F,$B$7,'Indicateurs Cumulés'!LM:LM)) -> 0.0 | P102: =SUMIF(objectifs!$F:$F,$B$7,objectifs!GH:GH)*5% -> 1,315 | Q102: =objectifs!$GH$3 -> 20 € | R102: =objectifs!$GI$3 -> 5.00 | S102: =P102*Q102*R102/1000 -> 135 | T102: =IF(ISERROR(S102/SUMIF(objectifs!$F:$F,$B$7,objectifs!IC:IC)),"nc",S102/SUMIF(objectifs!$F:$F,$B$7,objectifs!IC:IC)) -> 0.1 | V102: =IF(ISERROR(J102/P102),0,J102/P102) -> 19% | W102: =IF(ISERROR(M102/S102),0,M102/S102) -> 19% | X102: =IF(ISERROR(N102-(T102/12*MONTH($C$9))),"nc",N102-(T102/12*MONTH($C$9))) -> -0.1
B104: AUTRES | H104: =H105+H109 -> -217 | M104: =M105+M109 -> -4,040 | N104: =IF(ISERROR(M104/SUMIF('Indicateurs Cumulés'!$F:$F,$B$7,'Indicateurs Cumulés'!LM:LM)),"nc",M104/SUMIF('Indicateurs Cumulés'!$F:$F,$B$7,'Indicateurs Cumulés'!LM:LM)) -> -3.0 | S104: =S105+S109 -> -3,348 | T104: =IF(ISERROR(S104/SUMIF(objectifs!$F:$F,$B$7,objectifs!IC:IC)),"nc",S104/SUMIF(objectifs!$F:$F,$B$7,objectifs!IC:IC)) -> -2.2 | W104: =IF(ISERROR(M104/S104),0,M104/S104) -> 121% | X104: =IF(ISERROR(N104-(T104/12*MONTH($C$9))),"nc",N104-(T104/12*MONTH($C$9))) -> -1.0
B105: Remises commerciales | H105: =M105-SUMIF('Indicateurs Cumulés M-1'!$F:$F,$B$7,'Indicateurs Cumulés M-1'!HN:HN) -> -488 | M105: =SUMIF('Indicateurs Cumulés'!$F:$F,$B$7,'Indicateurs Cumulés'!KS:KS) -> -5,272 | N105: =IF(ISERROR(M105/SUMIF('Indicateurs Cumulés'!$F:$F,$B$7,'Indicateurs Cumulés'!LM:LM)),"nc",M105/SUMIF('Indicateurs Cumulés'!$F:$F,$B$7,'Indicateurs Cumulés'!LM:LM)) -> -4.0 | S105: =SUMIF(objectifs!$F:$F,$B$7,objectifs!FU:FU) -> -5,200 | T105: =IF(ISERROR(S105/SUMIF(objectifs!$F:$F,$B$7,objectifs!IC:IC)),"nc",S105/SUMIF(objectifs!$F:$F,$B$7,objectifs!IC:IC)) -> -3.4 | W105: 101% | X105: -0.8
B106: dont hors MAD | N106: =IF(ISERROR(M106/SUMIF('Indicateurs Cumulés'!$F:$F,$B$7,'Indicateurs Cumulés'!LM:LM)),"nc",M106/SUMIF('Indicateurs Cumulés'!$F:$F,$B$7,'Indicateurs Cumulés'!LM:LM)) -> 0.0 | S106: -2,800 | T106: =IF(ISERROR(S106/SUMIF(objectifs!$F:$F,$B$7,objectifs!IC:IC)),"nc",S106/SUMIF(objectifs!$F:$F,$B$7,objectifs!IC:IC)) -> -1.8 | W106: 0% | X106: 1.7
B107: dont MAD | N107: =IF(ISERROR(M107/SUMIF('Indicateurs Cumulés'!$F:$F,$B$7,'Indicateurs Cumulés'!LM:LM)),"nc",M107/SUMIF('Indicateurs Cumulés'!$F:$F,$B$7,'Indicateurs Cumulés'!LM:LM)) -> 0.0 | S107: -1,700 | T107: =IF(ISERROR(S107/SUMIF(objectifs!$F:$F,$B$7,objectifs!IC:IC)),"nc",S107/SUMIF(objectifs!$F:$F,$B$7,objectifs!IC:IC)) -> -1.1 | W107: 0% | X107: 1.0
B108: dont PRO | H108: =M108 -> 30,581 | M108: =VLOOKUP($B$7,'Indicateurs Cumulés'!$F$3:$NA$391,73,FALSE) -> 30,581 | N108: =IF(ISERROR(M108/SUMIF('Indicateurs Cumulés'!$F:$F,$B$7,'Indicateurs Cumulés'!LM:LM)),"nc",M108/SUMIF('Indicateurs Cumulés'!$F:$F,$B$7,'Indicateurs Cumulés'!LM:LM)) -> 23.0 | S108: -700 | T108: =IF(ISERROR(S108/SUMIF(objectifs!$F:$F,$B$7,objectifs!IC:IC)),"nc",S108/SUMIF(objectifs!$F:$F,$B$7,objectifs!IC:IC)) -> -0.5 | W108: -4369% | X108: 23.4
B109: Commissions immobilières | H109: =M109-(SUMIF('Indicateurs Cumulés M-1'!$F:$F,$B$7,'Indicateurs Cumulés M-1'!HR:HR)*'Indicateurs Cumulés M-1'!$HR$3 +SUMIF('Indicateurs Cumulés M-1'!$F:$F,$B$7,'Indicateurs Cumulés M-1'!KZ:KZ)*'Indicateurs Cumulés M-1'!$KZ$3 +SUMIF('Indicateurs Cumulés M-1'!$F:$F,$B$7,'Indicateurs Cumulés M-1'!JG:JG)*'Indicateurs Cumulés M-1'!$JG$3 +SUMIF('Indicateurs Cumulés M-1'!$F:$F,$B$7,'Indicateurs Cumulés M-1'!JH:JH)*'Indicateurs Cumulés M-1'!$JH$3) -> 271 | M109: =SUMIF('Indicateurs Cumulés'!$F:$F,$B$7,'Indicateurs Cumulés'!KU:KU)*'Indicateurs Cumulés'!$KU$3 +SUMIF('Indicateurs Cumulés'!$F:$F,$B$7,'Indicateurs Cumulés'!KX:KX)*'Indicateurs Cumulés'!$KX$3 +SUMIF('Indicateurs Cumulés'!$F:$F,$B$7,'Indicateurs Cumulés'!KV:KV)*'Indicateurs Cumulés'!$KV$3 +SUMIF('Indicateurs Cumulés'!$F:$F,$B$7,'Indicateurs Cumulés'!KW:KW)*'Indicateurs Cumulés'!$KW$3 -> 1,233 | N109: =IF(ISERROR(M109/SUMIF('Indicateurs Cumulés'!$F:$F,$B$7,'Indicateurs Cumulés'!LM:LM)),"nc",M109/SUMIF('Indicateurs Cumulés'!$F:$F,$B$7,'Indicateurs Cumulés'!LM:LM)) -> 0.9 | S109: =SUMIF(objectifs!$F:$F,$B$7,objectifs!FY:FY) -> 1,852 | T109: =IF(ISERROR(S109/SUMIF(objectifs!$F:$F,$B$7,objectifs!IC:IC)),"nc",S109/SUMIF(objectifs!$F:$F,$B$7,objectifs!IC:IC)) -> 1.2 | W109: 67% | X109: -0.2
B111: PNB BDD sur Activité Nouvelle | H111: =H14+H41+H47+H61+H104+H55+H90+H99 -> 20,177 | M111: =M14+M41+M47+M61+M104+M55+M90+M99 -> 212,876 | N111: =IF(ISERROR(M111/SUMIF('Indicateurs Cumulés'!$F:$F,$B$7,'Indicateurs Cumulés'!LM:LM)),"nc",M111/SUMIF('Indicateurs Cumulés'!$F:$F,$B$7,'Indicateurs Cumulés'!LM:LM)) -> 159.9 | S111: =S14+S41+S47+S61+S104+S55+S90+S99 -> 204,509 | T111: =IF(ISERROR(S111/SUMIF(objectifs!$F:$F,$B$7,objectifs!IC:IC)),"nc",S111/SUMIF(objectifs!$F:$F,$B$7,objectifs!IC:IC)) -> 134.6 | W111: =IF(ISERROR(M111/S111),0,M111/S111) -> 104.1% | X111: =IF(ISERROR(N111-(T111/12*MONTH($C$9))),"nc",N111-(T111/12*MONTH($C$9))) -> 36.5
B113: BONUS DIGITAL | E113: Volume | F113: Montant | G113: Durée | H113: PNB | J113: Volume | K113: Montant | L113: Durée | M113: PNB | N113: PNB / ETP perf. | P113: Volume | Q113: Montant | R113: Durée | S113: PNB | T113: PNB / ETP Cible | V113: Volume | W113: PNB annuel | X113: Ecart /obj. PNB/ETP
B114: Evolution stock clients actifs BAD (1 connexion / mois sur 3 mois) | E114: =J114-SUMIF('Indicateurs Cumulés M-1'!$F:$F,$B$7,'Indicateurs Cumulés M-1'!LT:LT) -> 3,612 | F114: =K114 -> 15 € | G114: =L114 -> 5.00 | H114: =+E114*F114*G114/1000 -> 271 | J114: =SUMIF('Indicateurs Cumulés'!$F:$F,$B$7,'Indicateurs Cumulés'!KZ:KZ) -> 52,066 | K114: 15 € | L114: 5.00 | M114: =SUMIF('Indicateurs Cumulés'!$F:$F,$B$7,'Indicateurs Cumulés'!LF:LF) -> 3,905 | N114: =IF(ISERROR(M114/SUMIF('Indicateurs Cumulés'!$F:$F,$B$7,'Indicateurs Cumulés'!LM:LM)),"nc",M114/SUMIF('Indicateurs Cumulés'!$F:$F,$B$7,'Indicateurs Cumulés'!LM:LM)) -> 2.9
B115: Nombre de SED finalisées (en brut) | E115: =J115-SUMIF('Indicateurs Cumulés M-1'!$F:$F,$B$7,'Indicateurs Cumulés M-1'!LU:LU) -> 3,588 | F115: =K115 -> 10 € | G115: =L115 -> 1.00 | H115: =+E115*F115*G115/1000 -> 36 | J115: =SUMIF('Indicateurs Cumulés'!$F:$F,$B$7,'Indicateurs Cumulés'!LA:LA) -> 49,944 | K115: 10 € | L115: 1.00 | M115: =SUMIF('Indicateurs Cumulés'!$F:$F,$B$7,'Indicateurs Cumulés'!LG:LG) -> 499 | N115: =IF(ISERROR(M115/SUMIF('Indicateurs Cumulés'!$F:$F,$B$7,'Indicateurs Cumulés'!LM:LM)),"nc",M115/SUMIF('Indicateurs Cumulés'!$F:$F,$B$7,'Indicateurs Cumulés'!LM:LM)) -> 0.4
B116: Nombre de SAG finalisées (périmètre SAG hors OPC en brut) | E116: =J116-SUMIF('Indicateurs Cumulés M-1'!$F:$F,$B$7,'Indicateurs Cumulés M-1'!LV:LV) -> 28,399 | F116: 3 € | G116: 1.00 | H116: 85 | J116: =SUMIF('Indicateurs Cumulés'!$F:$F,$B$7,'Indicateurs Cumulés'!LB:LB) -> 357,360 | K116: 3 € | L116: 1.00 | M116: =SUMIF('Indicateurs Cumulés'!$F:$F,$B$7,'Indicateurs Cumulés'!LH:LH) -> 1,072 | N116: =IF(ISERROR(M116/SUMIF('Indicateurs Cumulés'!$F:$F,$B$7,'Indicateurs Cumulés'!LM:LM)),"nc",M116/SUMIF('Indicateurs Cumulés'!$F:$F,$B$7,'Indicateurs Cumulés'!LM:LM)) -> 0.8
B117: Evolution stock de clients équipés E-documents | E117: =J117-SUMIF('Indicateurs Cumulés M-1'!$F:$F,$B$7,'Indicateurs Cumulés M-1'!LW:LW) -> -1,871 | F117: 10 € | G117: 5.00 | H117: -94 | J117: =SUMIF('Indicateurs Cumulés'!$F:$F,$B$7,'Indicateurs Cumulés'!LC:LC) -> 25,672 | K117: 10 € | L117: 5.00 | M117: =SUMIF('Indicateurs Cumulés'!$F:$F,$B$7,'Indicateurs Cumulés'!LI:LI) -> 1,284 | N117: =IF(ISERROR(M117/SUMIF('Indicateurs Cumulés'!$F:$F,$B$7,'Indicateurs Cumulés'!LM:LM)),"nc",M117/SUMIF('Indicateurs Cumulés'!$F:$F,$B$7,'Indicateurs Cumulés'!LM:LM)) -> 1.0
B118: Evolution stock de clients avec Opt-in-mail et tél. | E118: =J118-SUMIF('Indicateurs Cumulés M-1'!$F:$F,$B$7,'Indicateurs Cumulés M-1'!LX:LX) -> -7,596 | F118: 5 € | G118: 3.00 | H118: -114 | J118: =SUMIF('Indicateurs Cumulés'!$F:$F,$B$7,'Indicateurs Cumulés'!LD:LD) -> 11,101 | K118: 5 € | L118: 3.00 | M118: =SUMIF('Indicateurs Cumulés'!$F:$F,$B$7,'Indicateurs Cumulés'!LJ:LJ) -> 167 | N118: =IF(ISERROR(M118/SUMIF('Indicateurs Cumulés'!$F:$F,$B$7,'Indicateurs Cumulés'!LM:LM)),"nc",M118/SUMIF('Indicateurs Cumulés'!$F:$F,$B$7,'Indicateurs Cumulés'!LM:LM)) -> 0.1
B119: Evolution stock de clients équipés Sécurpass | E119: =J119-SUMIF('Indicateurs Cumulés M-1'!$F:$F,$B$7,'Indicateurs Cumulés M-1'!LY:LY) -> 1,743 | F119: 1 € | G119: 5.00 | H119: 9 | J119: =SUMIF('Indicateurs Cumulés'!$F:$F,$B$7,'Indicateurs Cumulés'!LE:LE) -> 20,391 | K119: 1 € | L119: 5.00 | M119: =SUMIF('Indicateurs Cumulés'!$F:$F,$B$7,'Indicateurs Cumulés'!LK:LK) -> 102 | N119: =IF(ISERROR(M119/SUMIF('Indicateurs Cumulés'!$F:$F,$B$7,'Indicateurs Cumulés'!LM:LM)),"nc",M119/SUMIF('Indicateurs Cumulés'!$F:$F,$B$7,'Indicateurs Cumulés'!LM:LM)) -> 0.1
B121: PNB sur Bonus digital | H121: =SUM(H114:H120) -> 193 | M121: =SUM(M114:M120) -> 7,029 | N121: =IF(ISERROR(M121/SUMIF('Indicateurs Cumulés'!$F:$F,$B$7,'Indicateurs Cumulés'!LM:LM)),"nc",M121/SUMIF('Indicateurs Cumulés'!$F:$F,$B$7,'Indicateurs Cumulés'!LM:LM)) -> 5.3
B123: PNB Part variable | H123: =H121+H111 -> 20,370 | M123: =+M111+M121 -> 219,904 | N123: =IF(ISERROR(M123/SUMIF('Indicateurs Cumulés'!$F:$F,$B$7,'Indicateurs Cumulés'!LM:LM)),"nc",M123/SUMIF('Indicateurs Cumulés'!$F:$F,$B$7,'Indicateurs Cumulés'!LM:LM)) -> 165.1 | S123: =+S111+S121 -> 204,509 | T123: =IF(ISERROR(S123/SUMIF(objectifs!$F:$F,$B$7,objectifs!IC:IC)),"nc",S123/SUMIF(objectifs!$F:$F,$B$7,objectifs!IC:IC)) -> 134.6 | W123: =IF(ISERROR(M123/S123),0,M123/S123) -> 107.5% | X123: =IF(ISERROR(N123-(T123/12*MONTH($C$9))),"nc",N123-(T123/12*MONTH($C$9))) -> 41.7
B126: COLLECTE PRO (yc DAV) - Excédents | E126: =SUM(E127:E130) -> -1,940 | H126: =SUM(H127:H130) -> -40 | J126: =SUM(J127:J130) -> 53,334 | M126: =SUM(M127:M130) -> 1,934 | N126: =IF(ISERROR(M126/SUMIF('Indicateurs Cumulés'!$F:$F,$B$7,'Indicateurs Cumulés'!LM:LM)),"nc",M126/SUMIF('Indicateurs Cumulés'!$F:$F,$B$7,'Indicateurs Cumulés'!LM:LM)) -> 1.5 | P126: =SUM(P127:P130) -> 40,000 | S126: =SUM(S127:S130) -> 1,601 | T126: =IF(ISERROR(S126/SUMIF(objectifs!$F:$F,$B$7,objectifs!IC:IC)),"nc",S126/SUMIF(objectifs!$F:$F,$B$7,objectifs!IC:IC)) -> 1.1 | V126: =IF(ISERROR(J126/P126),0,J126/P126) -> 133% | W126: =IF(ISERROR(M126/S126),0,M126/S126) -> 121% | X126: =IF(ISERROR(N126-(T126/12*MONTH($C$9))),"nc",N126-(T126/12*MONTH($C$9))) -> 0.5
B127: DAV Créditeurs PRO - Variation d'EMJ mensuel | E127: =SUMIF('Indicateurs mensuels'!$F:$F,$B$7,'Indicateurs mensuels'!HR:HR)/12 -> 134 | F127: =K127 -> 1.00% | G127: 5.37 | H127: =E127*F127*G127 -> 7 | J127: =SUMIF('Indicateurs Cumulés'!$F:$F,$B$7,'Indicateurs Cumulés'!GU:GU) -> 1,760 | K127: ='Indicateurs Cumulés'!$GU$3 -> 1.00% | L127: ='Indicateurs Cumulés'!$HC$3 -> 5.37 | M127: =J127*K127*L127 -> 95 | N127: =IF(ISERROR(M127/SUMIF('Indicateurs Cumulés'!$F:$F,$B$7,'Indicateurs Cumulés'!LM:LM)),"nc",M127/SUMIF('Indicateurs Cumulés'!$F:$F,$B$7,'Indicateurs Cumulés'!LM:LM)) -> 0.1 | P127: =SUMIF(objectifs!$F:$F,$B$7,objectifs!GQ:GQ) -> 15,000 | Q127: =objectifs!$FG$373 -> 1.00% | R127: =objectifs!$FH$373 -> 5.37 | S127: =P127*Q127*R127 -> 806 | T127: =IF(ISERROR(S127/SUMIF(objectifs!$F:$F,$B$7,objectifs!IC:IC)),"nc",S127/SUMIF(objectifs!$F:$F,$B$7,objectifs!IC:IC)) -> 0.5 | V127: =IF(ISERROR(J127/P127),0,J127/P127) -> 12% | W127: =IF(ISERROR(M127/S127),0,M127/S127) -> 12% | X127: =IF(ISERROR(N127-(T127/12*MONTH($C$9))),"nc",N127-(T127/12*MONTH($C$9))) -> -0.4
B128: Compte Excédent Pro | E128: =SUMIF('Indicateurs mensuels'!$F:$F,$B$7,'Indicateurs mensuels'!HS:HS) -> 3,882 | F128: 0.60% | G128: 5.37 | H128: =E128*F128*G128 -> 125 | J128: =SUMIF('Indicateurs Cumulés'!$F:$F,$B$7,'Indicateurs Cumulés'!GR:GR) -> 37,061 | K128: ='Indicateurs Cumulés'!$GR$3 -> 0.60% | L128: ='Indicateurs Cumulés'!$HA$3 -> 5.37 | M128: =SUMIF('Indicateurs Cumulés'!$F:$F,$B$7,'Indicateurs Cumulés'!HA:HA) -> 1,194 | N128: =IF(ISERROR(M128/SUMIF('Indicateurs Cumulés'!$F:$F,$B$7,'Indicateurs Cumulés'!LM:LM)),"nc",M128/SUMIF('Indicateurs Cumulés'!$F:$F,$B$7,'Indicateurs Cumulés'!LM:LM)) -> 0.9 | P128: =SUMIF(objectifs!$F:$F,$B$7,objectifs!GO:GO) -> 25,000 | Q128: =objectifs!$CQ$373 -> 0.60% | R128: =objectifs!$CR$373 -> 5.37 | S128: =P128*Q128*R128 -> 806 | T128: =IF(ISERROR(S128/SUMIF(objectifs!$F:$F,$B$7,objectifs!IC:IC)),"nc",S128/SUMIF(objectifs!$F:$F,$B$7,objectifs!IC:IC)) -> 0.5 | V128: =IF(ISERROR(J128/P128),0,J128/P128) -> 148% | W128: =IF(ISERROR(M128/S128),0,M128/S128) -> 148% | X128: =IF(ISERROR(N128-(T128/12*MONTH($C$9))),"nc",N128-(T128/12*MONTH($C$9))) -> 0.4
B129: Assurance Vie | E129: =SUMIF('Indicateurs mensuels'!$F:$F,$B$7,'Indicateurs mensuels'!BX:BX) -> -2,170 | F129: 0.45% | G129: 8.00 | H129: =E129*F129*G129 -> -78 | J129: =SUMIF('Indicateurs Cumulés'!$F:$F,$B$7,'Indicateurs Cumulés'!GP:GP) -> 12,075 | K129: ='Indicateurs Cumulés'!$GP$3 -> 0.45% | L129: ='Indicateurs Cumulés'!$GY$3 -> 8.00 | M129: =SUMIF('Indicateurs Cumulés'!$F:$F,$B$7,'Indicateurs Cumulés'!GY:GY) -> 435 | N129: =IF(ISERROR(M129/SUMIF('Indicateurs Cumulés'!$F:$F,$B$7,'Indicateurs Cumulés'!LM:LM)),"nc",M129/SUMIF('Indicateurs Cumulés'!$F:$F,$B$7,'Indicateurs Cumulés'!LM:LM)) -> 0.3 | P129: =SUMIF(objectifs!$F:$F,$B$7,objectifs!GN:GN) -> 6,000 | Q129: =objectifs!$EE$373 -> 0.45% | R129: =objectifs!$EF$373 -> 8.00 | S129: =P129*Q129*R129 -> 216 | T129: =IF(ISERROR(S129/SUMIF(objectifs!$F:$F,$B$7,objectifs!IC:IC)),"nc",S129/SUMIF(objectifs!$F:$F,$B$7,objectifs!IC:IC)) -> 0.1 | V129: =IF(ISERROR(J129/P129),0,J129/P129) -> 201% | W129: =IF(ISERROR(M129/S129),0,M129/S129) -> 201% | X129: =IF(ISERROR(N129-(T129/12*MONTH($C$9))),"nc",N129-(T129/12*MONTH($C$9))) -> 0.2
B130: Autres | E130: =SUMIF('Indicateurs mensuels'!$F:$F,$B$7,'Indicateurs mensuels'!HU:HU) +SUMIF('Indicateurs mensuels'!$F:$F,$B$7,'Indicateurs mensuels'!HV:HV) +SUMIF('Indicateurs mensuels'!$F:$F,$B$7,'Indicateurs mensuels'!HW:HW) +SUMIF('Indicateurs mensuels'!$F:$F,$B$7,'Indicateurs mensuels'!HX:HX) -> -3,785 | F130: =H130/E130/G130 -> 0.28% | G130: =L130 -> 9.00 | H130: =SUMIF('Indicateurs mensuels'!$F:$F,$B$7,'Indicateurs mensuels'!HY:HY) -> -94 | J130: =SUMIF('Indicateurs Cumulés'!$F:$F,$B$7,'Indicateurs Cumulés'!GL:GL)+SUMIF('Indicateurs Cumulés'!$F:$F,$B$7,'Indicateurs Cumulés'!GN:GN) +SUMIF('Indicateurs Cumulés'!$F:$F,$B$7,'Indicateurs Cumulés'!GS:GS)+SUMIF('Indicateurs Cumulés'!$F:$F,$B$7,'Indicateurs Cumulés'!GQ:GQ) -> 2,438 | K130: =M130/J130/L130 -> 0.96% | L130: ='Indicateurs Cumulés'!$GV$3 -> 9.00 | M130: =SUMIF('Indicateurs Cumulés'!$F:$F,$B$7,'Indicateurs Cumulés'!GV:GV)+SUMIF('Indicateurs Cumulés'!$F:$F,$B$7,'Indicateurs Cumulés'!GW:GW) +SUMIF('Indicateurs Cumulés'!$F:$F,$B$7,'Indicateurs Cumulés'!HB:HB)+SUMIF('Indicateurs Cumulés'!$F:$F,$B$7,'Indicateurs Cumulés'!GZ:GZ) -> 211 | N130: =IF(ISERROR(M130/SUMIF('Indicateurs Cumulés'!$F:$F,$B$7,'Indicateurs Cumulés'!LM:LM)),"nc",M130/SUMIF('Indicateurs Cumulés'!$F:$F,$B$7,'Indicateurs Cumulés'!LM:LM)) -> 0.2 | P130: =SUMIF(objectifs!$F:$F,$B$7,objectifs!GP:GP) -> -6,000 | Q130: =objectifs!$CM$373 -> 0.70% | R130: =objectifs!$CN$373 -> 5.37 | S130: =P130*Q130*R130 -> -226 | T130: =IF(ISERROR(S130/SUMIF(objectifs!$F:$F,$B$7,objectifs!IC:IC)),"nc",S130/SUMIF(objectifs!$F:$F,$B$7,objectifs!IC:IC)) -> -0.1 | V130: =IF(ISERROR(J130/P130),0,J130/P130) -> -41% | W130: =IF(ISERROR(M130/S130),0,M130/S130) -> -94% | X130: =IF(ISERROR(N130-(T130/12*MONTH($C$9))),"nc",N130-(T130/12*MONTH($C$9))) -> 0.3
B132: CREDIT à la CONSOMMATION PRO - Eng. Nets (yc accessoires) | E132: =E133 -> 2,407 | F132: =IF(ISERROR(H132/(E132*G132)),0,H132/(E132*G132)) -> 3.78% | G132: =G133 -> 2.58 | H132: =H133+H134+H135 -> 235 | J132: =J133 -> 39,086 | K132: =IF(ISERROR(M132/(J132*L132)),0,M132/(J132*L132)) -> 3.47% | L132: =L133 -> 2.74 | M132: =M133+M134+M135 -> 3,712 | N132: =IF(ISERROR(M132/SUMIF('Indicateurs Cumulés'!$F:$F,$B$7,'Indicateurs Cumulés'!LM:LM)),"nc",M132/SUMIF('Indicateurs Cumulés'!$F:$F,$B$7,'Indicateurs Cumulés'!LM:LM)) -> 2.8 | P132: =P133 -> 45,000 | Q132: =IF(ISERROR(S132/(P132*R132)),0,S132/(P132*R132)) -> 4.32% | R132: =R133 -> 2.50 | S132: =S133+S134+S135 -> 4,860 | T132: =IF(ISERROR(S132/SUMIF(objectifs!$F:$F,$B$7,objectifs!IC:IC)),"nc",S132/SUMIF(objectifs!$F:$F,$B$7,objectifs!IC:IC)) -> 3.2 | V132: =IF(ISERROR(J132/P132),0,J132/P132) -> 87% | W132: =IF(ISERROR(M132/S132),0,M132/S132) -> 76% | X132: =IF(ISERROR(N132-(T132/12*MONTH($C$9))),"nc",N132-(T132/12*MONTH($C$9))) -> -0.1
B133: Crédit à la Consommation (marge hors accessoires) | E133: =SUMIF('Indicateurs mensuels'!$F:$F,$B$7,'Indicateurs mensuels'!U:U) -> 2,407 | F133: =IF(E133=0,0,SUMPRODUCT(('Indicateurs mensuels'!$F$4:$F$374=$B$7)*(('Indicateurs mensuels'!$U$4:$U$374)*('Indicateurs mensuels'!$V$4:$V$374)/E133))) -> 2.92% | G133: =IF(E133=0,0,SUMPRODUCT(('Indicateurs mensuels'!$F$4:$F$374=$B$7)*(('Indicateurs mensuels'!$U$4:$U$374)*('Indicateurs mensuels'!$W$4:$W$374)/E133))) -> 2.58 | H133: =E133*F133*G133 -> 181 | J133: =SUMIF('Indicateurs Cumulés'!$F:$F,$B$7,'Indicateurs Cumulés'!AT:AT) -> 39,086 | K133: =IF(J133=0,0,SUMPRODUCT(('Indicateurs Cumulés'!$F$4:$F$374=$B$7)*(('Indicateurs Cumulés'!$AT$4:$AT$374)*('Indicateurs Cumulés'!$AU$4:$AU$374)/J133))) -> 2.66% | L133: =IF(J133=0,0,SUMPRODUCT(('Indicateurs Cumulés'!$F$4:$F$374=$B$7)*(('Indicateurs Cumulés'!$AT$4:$AT$374)*('Indicateurs Cumulés'!$AV$4:$AV$374)/J133))) -> 2.74 | M133: =J133*K133*L133 -> 2,844 | N133: =IF(ISERROR(M133/SUMIF('Indicateurs Cumulés'!$F:$F,$B$7,'Indicateurs Cumulés'!LM:LM)),"nc",M133/SUMIF('Indicateurs Cumulés'!$F:$F,$B$7,'Indicateurs Cumulés'!LM:LM)) -> 2.1 | P133: =SUMIF(objectifs!$F:$F,$B$7,objectifs!L:L)*objectifs!$L$375/objectifs!$L$373 -> 45,000 | Q133: =objectifs!$M$373 -> 3.05% | R133: =objectifs!$N$373 -> 2.50 | S133: =P133*Q133*R133 -> 3,431 | T133: =IF(ISERROR(S133/SUMIF(objectifs!$F:$F,$B$7,objectifs!IC:IC)),"nc",S133/SUMIF(objectifs!$F:$F,$B$7,objectifs!IC:IC)) -> 2.3 | V133: =IF(ISERROR(J133/P133),0,J133/P133) -> 87% | W133: =IF(ISERROR(M133/S133),0,M133/S133) -> 83% | X133: =IF(ISERROR(N133-(T133/12*MONTH($C$9))),"nc",N133-(T133/12*MONTH($C$9))) -> 0.1
B134: Frais de dossier | H134: =M134-SUMIF('Indicateurs Cumulés M-1'!$F:$F,$B$7,'Indicateurs Cumulés M-1'!CV:CV) -> 9 | M134: =SUMIF('Indicateurs Cumulés'!$F:$F,$B$7,'Indicateurs Cumulés'!AW:AW) -> 131 | N134: =IF(ISERROR(M134/SUMIF('Indicateurs Cumulés'!$F:$F,$B$7,'Indicateurs Cumulés'!LM:LM)),"nc",M134/SUMIF('Indicateurs Cumulés'!$F:$F,$B$7,'Indicateurs Cumulés'!LM:LM)) -> 0.1 | S134: =SUMIF(objectifs!$F:$F,$B$7,objectifs!BO:BO)*objectifs!$L$375/objectifs!$L$373 -> 270 | T134: =IF(ISERROR(S134/SUMIF(objectifs!$F:$F,$B$7,objectifs!IC:IC)),"nc",S134/SUMIF(objectifs!$F:$F,$B$7,objectifs!IC:IC)) -> 0.2 | W134: =IF(ISERROR(M134/S134),0,M134/S134) -> 48% | X134: =IF(ISERROR(N134-(T134/12*MONTH($C$9))),"nc",N134-(T134/12*MONTH($C$9))) -> -0.1
B135: Commissions ADE | E135: =IF(E133=0,0,SUMPRODUCT(('Indicateurs mensuels'!$F$4:$F$374=$B$7)*(('Indicateurs mensuels'!$U$4:$U$374)*('Indicateurs mensuels'!$CQ$4:$CQ$374)/E133))) -> 137.1% | F135: =IF(E133=0,0,SUMPRODUCT(('Indicateurs mensuels'!$F$4:$F$374=$B$7)*(('Indicateurs mensuels'!$U$4:$U$374)*('Indicateurs mensuels'!$CP$4:$CP$374)/E133))) -> 83.9% | H135: =M135-SUMIF('Indicateurs Cumulés M-1'!$F:$F,$B$7,'Indicateurs Cumulés M-1'!CO:CO) -> 44 | J135: =IF(J133=0,0,SUMPRODUCT(('Indicateurs Cumulés'!$F$4:$F$374=$B$7)*(('Indicateurs Cumulés'!$AT$4:$AT$374)*('Indicateurs Cumulés'!$AY$4:$AY$374)/J132))) -> 143.7% | K135: =IF(J133=0,0,SUMPRODUCT(('Indicateurs Cumulés'!$F$4:$F$374=$B$7)*(('Indicateurs Cumulés'!$AT$4:$AT$374)*('Indicateurs Cumulés'!$AX$4:$AX$374)/J133))) -> 81.4% | M135: =SUMIF('Indicateurs Cumulés'!$F:$F,$B$7,'Indicateurs Cumulés'!AZ:AZ) -> 737 | N135: =IF(ISERROR(M135/SUMIF('Indicateurs Cumulés'!$F:$F,$B$7,'Indicateurs Cumulés'!LM:LM)),"nc",M135/SUMIF('Indicateurs Cumulés'!$F:$F,$B$7,'Indicateurs Cumulés'!LM:LM)) -> 0.6 | P135: =P45 -> 135% | Q135: =Q45 -> 95% | S135: =SUMIF(objectifs!$F:$F,$B$7,objectifs!BY:BY)*objectifs!$L$375/objectifs!$L$373 -> 1,159 | T135: =IF(ISERROR(S135/SUMIF(objectifs!$F:$F,$B$7,objectifs!IC:IC)),"nc",S135/SUMIF(objectifs!$F:$F,$B$7,objectifs!IC:IC)) -> 0.8 | W135: =IF(ISERROR(M135/S135),0,M135/S135) -> 64% | X135: =IF(ISERROR(N135-(T135/12*MONTH($C$9))),"nc",N135-(T135/12*MONTH($C$9))) -> -0.1
B137: CREDIT IMMOBILIER PRO - Eng. Nets (yc accessoires) | E137: =E138 -> 12,241 | F137: =IF(ISERROR(H137/(E137*G137)),0,H137/(E137*G137)) -> 0.78% | G137: =G138 -> 7.26 | H137: =H138+H139+H140+H141 -> 697 | J137: =J138 -> 125,613 | K137: =IF(ISERROR(M137/(J137*L137)),0,M137/(J137*L137)) -> 0.53% | L137: =L138 -> 7.13 | M137: =M138+M139+M140+M141 -> 4,757 | N137: =IF(ISERROR(M137/SUMIF('Indicateurs Cumulés'!$F:$F,$B$7,'Indicateurs Cumulés'!LM:LM)),"nc",M137/SUMIF('Indicateurs Cumulés'!$F:$F,$B$7,'Indicateurs Cumulés'!LM:LM)) -> 3.6 | P137: =P138 -> 120,000 | Q137: =IF(ISERROR(S137/(P137*R137)),0,S137/(P137*R137)) -> 0.49% | R137: =R138 -> 7.50 | S137: =S138+S139+S140+S141 -> 4,375 | T137: =IF(ISERROR(S137/SUMIF(objectifs!$F:$F,$B$7,objectifs!IC:IC)),"nc",S137/SUMIF(objectifs!$F:$F,$B$7,objectifs!IC:IC)) -> 2.9 | V137: =IF(ISERROR(J137/P137),0,J137/P137) -> 105% | W137: =IF(ISERROR(M137/S137),0,M137/S137) -> 109% | X137: =IF(ISERROR(N137-(T137/12*MONTH($C$9))),"nc",N137-(T137/12*MONTH($C$9))) -> 0.9
B138: Crédit Immobilier (marge hors accessoires) | E138: =SUMIF('Indicateurs mensuels'!$F:$F,$B$7,'Indicateurs mensuels'!X:X) -> 12,241 | F138: =IF(E138=0,0,SUMPRODUCT(('Indicateurs mensuels'!$F$4:$F$374=$B$7)*(('Indicateurs mensuels'!$X$4:$X$374)*('Indicateurs mensuels'!$Y$4:$Y$374)/E138))) -> 0.45% | G138: =IF(E138=0,0,SUMPRODUCT(('Indicateurs mensuels'!$F$4:$F$374=$B$7)*(('Indicateurs mensuels'!$X$4:$X$374)*('Indicateurs mensuels'!$Z$4:$Z$374)/E138))) -> 7.26 | H138: =E138*F138*G138 -> 404 | J138: =SUMIF('Indicateurs Cumulés'!$F:$F,$B$7,'Indicateurs Cumulés'!BB:BB) -> 125,613 | K138: =IF(J138=0,0,SUMPRODUCT(('Indicateurs Cumulés'!$F$4:$F$374=$B$7)*(('Indicateurs Cumulés'!$BB$4:$BB$374)*('Indicateurs Cumulés'!$BC$4:$BC$374)/J138))) -> 0.20% | L138: =IF(J138=0,0,SUMPRODUCT(('Indicateurs Cumulés'!$F$4:$F$374=$B$7)*(('Indicateurs Cumulés'!$BB$4:$BB$374)*('Indicateurs Cumulés'!$BD$4:$BD$374)/J138))) -> 7.13 | M138: =J138*K138*L138 -> 1,826 | N138: =IF(ISERROR(M138/SUMIF('Indicateurs Cumulés'!$F:$F,$B$7,'Indicateurs Cumulés'!LM:LM)),"nc",M138/SUMIF('Indicateurs Cumulés'!$F:$F,$B$7,'Indicateurs Cumulés'!LM:LM)) -> 1.4 | P138: =SUMIF(objectifs!$F:$F,$B$7,objectifs!O:O)*objectifs!$O$375/objectifs!$O$373 -> 120,000 | Q138: =objectifs!$Q$373 -> 0.20% | R138: =objectifs!$R$373 -> 7.50 | S138: =P138*Q138*R138 -> 1,800 | T138: =IF(ISERROR(S138/SUMIF(objectifs!$F:$F,$B$7,objectifs!IC:IC)),"nc",S138/SUMIF(objectifs!$F:$F,$B$7,objectifs!IC:IC)) -> 1.2 | V138: =IF(ISERROR(J138/P138),0,J138/P138) -> 105% | W138: =IF(ISERROR(M138/S138),0,M138/S138) -> 101% | X138: =IF(ISERROR(N138-(T138/12*MONTH($C$9))),"nc",N138-(T138/12*MONTH($C$9))) -> 0.3
B139: Frais de dossier | H139: =M139-SUMIF('Indicateurs Cumulés M-1'!$F:$F,$B$7,'Indicateurs Cumulés M-1'!CX:CX) -> 29 | M139: =SUMIF('Indicateurs Cumulés'!$F:$F,$B$7,'Indicateurs Cumulés'!BE:BE) -> 335 | N139: =IF(ISERROR(M139/SUMIF('Indicateurs Cumulés'!$F:$F,$B$7,'Indicateurs Cumulés'!LM:LM)),"nc",M139/SUMIF('Indicateurs Cumulés'!$F:$F,$B$7,'Indicateurs Cumulés'!LM:LM)) -> 0.3 | S139: =SUMIF(objectifs!$F:$F,$B$7,objectifs!BP:BP)*objectifs!$O$375/objectifs!$O$373 -> 360 | T139: =IF(ISERROR(S139/SUMIF(objectifs!$F:$F,$B$7,objectifs!IC:IC)),"nc",S139/SUMIF(objectifs!$F:$F,$B$7,objectifs!IC:IC)) -> 0.2 | W139: =IF(ISERROR(M139/S139),0,M139/S139) -> 93% | X139: =IF(ISERROR(N139-(T139/12*MONTH($C$9))),"nc",N139-(T139/12*MONTH($C$9))) -> 0.0
B140: Commissions ADE (coefficient multiplicateur de 1,3 X) | E140: =IF(E138=0,0,SUMPRODUCT(('Indicateurs mensuels'!$F$4:$F$374=$B$7)*(('Indicateurs mensuels'!$X$4:$X$374)*('Indicateurs mensuels'!$CK$4:$CK$374)/E138))) -> 139.2% | F140: =IF(E138=0,0,SUMPRODUCT(('Indicateurs mensuels'!$F$4:$F$374=$B$7)*(('Indicateurs mensuels'!$X$4:$X$374)*('Indicateurs mensuels'!$CJ$4:$CJ$374)/E138))) -> 58.2% | H140: =M140-SUMIF('Indicateurs Cumulés M-1'!$F:$F,$B$7,'Indicateurs Cumulés M-1'!CR:CR) -> 244 | J140: =IF(J138=0,0,SUMPRODUCT(('Indicateurs Cumulés'!$F$4:$F$374=$B$7)*(('Indicateurs Cumulés'!$BB$4:$BB$374)*('Indicateurs Cumulés'!$BG$4:$BG$374)/J138))) -> 139.1% | K140: =IF(J138=0,0,SUMPRODUCT(('Indicateurs Cumulés'!$F$4:$F$374=$B$7)*(('Indicateurs Cumulés'!$BB$4:$BB$374)*('Indicateurs Cumulés'!$BF$4:$BF$374)/J138))) -> 60.9% | M140: =SUMIF('Indicateurs Cumulés'!$F:$F,$B$7,'Indicateurs Cumulés'!BH:BH) -> 2,406 | N140: =IF(ISERROR(M140/SUMIF('Indicateurs Cumulés'!$F:$F,$B$7,'Indicateurs Cumulés'!LM:LM)),"nc",M140/SUMIF('Indicateurs Cumulés'!$F:$F,$B$7,'Indicateurs Cumulés'!LM:LM)) -> 1.8 | P140: =P49 -> 145% | Q140: =Q49 -> 70% | S140: =SUMIF(objectifs!$F:$F,$B$7,objectifs!BX:BX)*objectifs!$O$375/objectifs!$O$373 -> 1,956 | T140: =IF(ISERROR(S140/SUMIF(objectifs!$F:$F,$B$7,objectifs!IC:IC)),"nc",S140/SUMIF(objectifs!$F:$F,$B$7,objectifs!IC:IC)) -> 1.3 | W140: =IF(ISERROR(M140/S140),0,M140/S140) -> 123% | X140: =IF(ISERROR(N140-(T140/12*MONTH($C$9))),"nc",N140-(T140/12*MONTH($C$9))) -> 0.6
B141: Commissions SACCEF | H141: =M141-SUMIF('Indicateurs Cumulés M-1'!$F:$F,$B$7,'Indicateurs Cumulés M-1'!CT:CT) -> 20 | M141: =SUMIF('Indicateurs Cumulés'!$F:$F,$B$7,'Indicateurs Cumulés'!BI:BI) -> 191 | N141: =IF(ISERROR(M141/SUMIF('Indicateurs Cumulés'!$F:$F,$B$7,'Indicateurs Cumulés'!LM:LM)),"nc",M141/SUMIF('Indicateurs Cumulés'!$F:$F,$B$7,'Indicateurs Cumulés'!LM:LM)) -> 0.1 | S141: =SUMIF(objectifs!$F:$F,$B$7,objectifs!CA:CA)*objectifs!$O$375/objectifs!$O$373 -> 258 | T141: =IF(ISERROR(S141/SUMIF(objectifs!$F:$F,$B$7,objectifs!IC:IC)),"nc",S141/SUMIF(objectifs!$F:$F,$B$7,objectifs!IC:IC)) -> 0.2 | W141: =IF(ISERROR(M141/S141),0,M141/S141) -> 74% | X141: =IF(ISERROR(N141-(T141/12*MONTH($C$9))),"nc",N141-(T141/12*MONTH($C$9))) -> -0.0
B143: CREDIT MLT PRO - Eng. Nets (yc accessoires) | E143: =E144+E145 -> 18,872 | F143: =IF(ISERROR(H143/(E143*G143)),0,H143/(E143*G143)) -> 1.01% | G143: =IF(E143=0,0,SUMPRODUCT(G144:G145,E144:E145)/(E144+E145)) -> 4.48 | H143: =H144+H145+H146+H147 -> 854 | J143: =J144+J145 -> 245,069 | K143: =IF(ISERROR(M143/(J143*L143)),0,M143/(J143*L143)) -> 0.89% | L143: =IF(J143=0,0,SUMPRODUCT(L144:L145,J144:J145)/(J144+J145)) -> 4.45 | M143: =M144+M145+M146+M147 -> 9,696 | N143: =IF(ISERROR(M143/SUMIF('Indicateurs Cumulés'!$F:$F,$B$7,'Indicateurs Cumulés'!LM:LM)),"nc",M143/SUMIF('Indicateurs Cumulés'!$F:$F,$B$7,'Indicateurs Cumulés'!LM:LM)) -> 7.3 | P143: =P144+P145 -> 250,000 | Q143: =IF(ISERROR(S143/(P143*R143)),0,S143/(P143*R143)) -> 0.70% | R143: =IF(P143=0,0,SUMPRODUCT(R144:R145,P144:P145)/(P144+P145)) -> 4.39 | S143: =S144+S145+S146+S147 -> 7,646 | T143: =IF(ISERROR(S143/SUMIF(objectifs!$F:$F,$B$7,objectifs!IC:IC)),"nc",S143/SUMIF(objectifs!$F:$F,$B$7,objectifs!IC:IC)) -> 5.0 | V143: =IF(ISERROR(J143/P143),0,J143/P143) -> 98% | W143: =IF(ISERROR(M143/S143),0,M143/S143) -> 127% | X143: =IF(ISERROR(N143-(T143/12*MONTH($C$9))),"nc",N143-(T143/12*MONTH($C$9))) -> 2.7
B144: Crédit MLT (marge hors accessoires) | E144: =SUMIF('Indicateurs mensuels'!$F:$F,$B$7,'Indicateurs mensuels'!AA:AA) -> 17,966 | F144: =IF(E144=0,0,SUMPRODUCT(('Indicateurs mensuels'!$F$4:$F$374=$B$7)*(('Indicateurs mensuels'!$AA$4:$AA$374)*('Indicateurs mensuels'!$AB$4:$AB$374)/E144))) -> 0.85% | G144: =IF(E144=0,0,SUMPRODUCT(('Indicateurs mensuels'!$F$4:$F$374=$B$7)*(('Indicateurs mensuels'!$AA$4:$AA$374)*('Indicateurs mensuels'!$AC$4:$AC$374)/E144))) -> 4.60 | H144: =E144*F144*G144 -> 700 | J144: =SUMIF('Indicateurs Cumulés'!$F:$F,$B$7,'Indicateurs Cumulés'!AG:AG) -> 231,663 | K144: =IF(J144=0,0,SUMPRODUCT(('Indicateurs Cumulés'!$F$4:$F$374=$B$7)*(('Indicateurs Cumulés'!$AG$4:$AG$374)*('Indicateurs Cumulés'!$AH$4:$AH$374)/J144))) -> 0.71% | L144: =IF(J144=0,0,SUMPRODUCT(('Indicateurs Cumulés'!$F$4:$F$374=$B$7)*(('Indicateurs Cumulés'!$AG$4:$AG$374)*('Indicateurs Cumulés'!$AI$4:$AI$374)/J144))) -> 4.57 | M144: =J144*K144*L144 -> 7,532 | N144: =IF(ISERROR(M144/SUMIF('Indicateurs Cumulés'!$F:$F,$B$7,'Indicateurs Cumulés'!LM:LM)),"nc",M144/SUMIF('Indicateurs Cumulés'!$F:$F,$B$7,'Indicateurs Cumulés'!LM:LM)) -> 5.7 | P144: =SUMIF(objectifs!$F:$F,$B$7,objectifs!Y:Y) -> 238,000 | Q144: =objectifs!$Z$373 -> 0.40% | R144: =objectifs!$AA$373 -> 4.50 | S144: =P144*Q144*R144 -> 4,284 | T144: =IF(ISERROR(S144/SUMIF(objectifs!$F:$F,$B$7,objectifs!IC:IC)),"nc",S144/SUMIF(objectifs!$F:$F,$B$7,objectifs!IC:IC)) -> 2.8 | V144: =IF(ISERROR(J144/P144),0,J144/P144) -> 97% | W144: =IF(ISERROR(M144/S144),0,M144/S144) -> 176% | X144: =IF(ISERROR(N144-(T144/12*MONTH($C$9))),"nc",N144-(T144/12*MONTH($C$9))) -> 3.1
B145: Crédit Bail Mobilier | E145: =SUMIF('Indicateurs mensuels'!$F:$F,$B$7,'Indicateurs mensuels'!GH:GH) -> 906 | F145: =IF(E145=0,0,SUMPRODUCT(('Indicateurs mensuels'!$F$4:$F$374=$B$7)*(('Indicateurs mensuels'!$GH$4:$GH$374)*('Indicateurs mensuels'!$GI$4:$GI$374)/E145))) -> 1.09% | G145: =IF(E145=0,0,SUMPRODUCT(('Indicateurs mensuels'!$F$4:$F$374=$B$7)*(('Indicateurs mensuels'!$GH$4:$GH$374)*('Indicateurs mensuels'!$GJ$4:$GJ$374)/E145))) -> 2.04 | H145: =E145*F145*G145 -> 20 | J145: =SUMIF('Indicateurs Cumulés'!$F:$F,$B$7,'Indicateurs Cumulés'!AJ:AJ) -> 13,406 | K145: =IF(J145=0,0,SUMPRODUCT(('Indicateurs Cumulés'!$F$4:$F$374=$B$7)*(('Indicateurs Cumulés'!$AJ$4:$AJ$374)*('Indicateurs Cumulés'!$AK$4:$AK$374)/J145))) -> 0.94% | L145: =IF(J145=0,0,SUMPRODUCT(('Indicateurs Cumulés'!$F$4:$F$374=$B$7)*(('Indicateurs Cumulés'!$AJ$4:$AJ$374)*('Indicateurs Cumulés'!$AL$4:$AL$374)/J145))) -> 2.27 | M145: =J145*K145*L145 -> 285 | N145: =IF(ISERROR(M145/SUMIF('Indicateurs Cumulés'!$F:$F,$B$7,'Indicateurs Cumulés'!LM:LM)),"nc",M145/SUMIF('Indicateurs Cumulés'!$F:$F,$B$7,'Indicateurs Cumulés'!LM:LM)) -> 0.2 | P145: =SUMIF(objectifs!$F:$F,$B$7,objectifs!S:S) -> 12,000 | Q145: =objectifs!$T$373 -> 0.40% | R145: =objectifs!$U$373 -> 2.30 | S145: =P145*Q145*R145 -> 110 | T145: =IF(ISERROR(S145/SUMIF(objectifs!$F:$F,$B$7,objectifs!IC:IC)),"nc",S145/SUMIF(objectifs!$F:$F,$B$7,objectifs!IC:IC)) -> 0.1 | V145: =IF(ISERROR(J145/P145),0,J145/P145) -> 112% | W145: =IF(ISERROR(M145/S145),0,M145/S145) -> 258% | X145: =IF(ISERROR(N145-(T145/12*MONTH($C$9))),"nc",N145-(T145/12*MONTH($C$9))) -> 0.1
B146: Frais de dossier (yc CBM) | H146: =SUMIF('Indicateurs mensuels'!$F:$F,$B$7,'Indicateurs mensuels'!CS:CS)+SUMIF('Indicateurs mensuels'!$F:$F,$B$7,'Indicateurs mensuels'!CX:CX) -> 58 | M146: =SUMIF('Indicateurs Cumulés'!$F:$F,$B$7,'Indicateurs Cumulés'!AN:AN)+SUMIF('Indicateurs Cumulés'!$F:$F,$B$7,'Indicateurs Cumulés'!AO:AO) -> 726 | N146: =IF(ISERROR(M146/SUMIF('Indicateurs Cumulés'!$F:$F,$B$7,'Indicateurs Cumulés'!LM:LM)),"nc",M146/SUMIF('Indicateurs Cumulés'!$F:$F,$B$7,'Indicateurs Cumulés'!LM:LM)) -> 0.5 | S146: =SUMIF(objectifs!$F:$F,$B$7,objectifs!BS:BS) -> 750 | T146: =IF(ISERROR(S146/SUMIF(objectifs!$F:$F,$B$7,objectifs!IC:IC)),"nc",S146/SUMIF(objectifs!$F:$F,$B$7,objectifs!IC:IC)) -> 0.5 | W146: =IF(ISERROR(M146/S146),0,M146/S146) -> 97% | X146: =IF(ISERROR(N146-(T146/12*MONTH($C$9))),"nc",N146-(T146/12*MONTH($C$9))) -> 0.1
B147: Commissions ADE | E147: =IF(E144=0,0,SUMPRODUCT(('Indicateurs mensuels'!$F$4:$F$374=$B$7)*(('Indicateurs mensuels'!$AA$4:$AA$374)*('Indicateurs mensuels'!$HP$4:$HP$374)/E144))) -> 117.6% | F147: =IF(E144=0,0,SUMPRODUCT(('Indicateurs mensuels'!$F$4:$F$374=$B$7)*(('Indicateurs mensuels'!$AA$4:$AA$374)*('Indicateurs mensuels'!$HO$4:$HO$374)/E144))) -> 73.3% | H147: =SUMIF('Indicateurs mensuels'!$F:$F,$B$7,'Indicateurs mensuels'!HQ:HQ) -> 76 | J147: =IF(J144=0,0,SUMPRODUCT(('Indicateurs Cumulés'!$F$4:$F$374=$B$7)*(('Indicateurs Cumulés'!$AG$4:$AG$374)*('Indicateurs Cumulés'!$AQ$4:$AQ$374)/J144))) -> 111.7% | K147: =IF(J144=0,0,SUMPRODUCT(('Indicateurs Cumulés'!$F$4:$F$374=$B$7)*(('Indicateurs Cumulés'!$AG$4:$AG$374)*('Indicateurs Cumulés'!$AP$4:$AP$374)/J144))) -> 61.5% | M147: =SUMIF('Indicateurs Cumulés'!$F:$F,$B$7,'Indicateurs Cumulés'!AR:AR) -> 1,153 | N147: =IF(ISERROR(M147/SUMIF('Indicateurs Cumulés'!$F:$F,$B$7,'Indicateurs Cumulés'!LM:LM)),"nc",M147/SUMIF('Indicateurs Cumulés'!$F:$F,$B$7,'Indicateurs Cumulés'!LM:LM)) -> 0.9 | P147: =P59 -> 110% | Q147: =Q59 -> 70% | S147: =SUMIF(objectifs!$F:$F,$B$7,objectifs!CB:CB) -> 2,501 | T147: =IF(ISERROR(S147/SUMIF(objectifs!$F:$F,$B$7,objectifs!IC:IC)),"nc",S147/SUMIF(objectifs!$F:$F,$B$7,objectifs!IC:IC)) -> 1.6 | W147: =IF(ISERROR(M147/S147),0,M147/S147) -> 46% | X147: =IF(ISERROR(N147-(T147/12*MONTH($C$9))),"nc",N147-(T147/12*MONTH($C$9))) -> -0.6
B149: BANCA PRO - Ventes nettes | E149: =SUM(E150:E156) -> 97 | H149: =SUM(H150:H156) -> 104 | J149: =SUM(J150:J156) -> 2,744 | M149: =SUM(M150:M156) -> 4,038 | N149: =IF(ISERROR(M149/SUMIF('Indicateurs Cumulés'!$F:$F,$B$7,'Indicateurs Cumulés'!LM:LM)),"nc",M149/SUMIF('Indicateurs Cumulés'!$F:$F,$B$7,'Indicateurs Cumulés'!LM:LM)) -> 3.0 | P149: =SUM(P150:P156) -> 4,570 | S149: =SUM(S150:S156) -> 4,913 | T149: =IF(ISERROR(S149/SUMIF(objectifs!$F:$F,$B$7,objectifs!IC:IC)),"nc",S149/SUMIF(objectifs!$F:$F,$B$7,objectifs!IC:IC)) -> 3.2 | V149: =IF(ISERROR(J149/P149),0,J149/P149) -> 60% | W149: =IF(ISERROR(M149/S149),0,M149/S149) -> 82% | X149: =IF(ISERROR(N149-(T149/12*MONTH($C$9))),"nc",N149-(T149/12*MONTH($C$9))) -> 0.1
B150: Forfaits PRO - Tarification | E150: =J150-SUMIF('Indicateurs Cumulés M-1'!$F:$F,$B$7,'Indicateurs Cumulés M-1'!KC:KC)-SUMIF('Indicateurs Cumulés M-1'!$F:$F,$B$7,'Indicateurs Cumulés M-1'!KE:KE) -> 67 | F150: =K150 -> 273 € | G150: =L150 -> 5.00 | H150: =E150*F150*G150/1000 -> 92 | J150: =SUMIF('Indicateurs Cumulés'!$F:$F,$B$7,'Indicateurs Cumulés'!JY:JY)+SUMIF('Indicateurs Cumulés'!$F:$F,$B$7,'Indicateurs Cumulés'!KA:KA) -> 1,192 | K150: =IF(ISERROR(M150/(J150*L150)*1000),0,M150/(J150*L150)*1000) -> 273 € | L150: =objectifs!$HF$3 -> 5.00 | M150: =SUMIF('Indicateurs Cumulés'!$F:$F,$B$7,'Indicateurs Cumulés'!KH:KH)+SUMIF('Indicateurs Cumulés'!$F:$F,$B$7,'Indicateurs Cumulés'!KJ:KJ) -> 1,629 | N150: =IF(ISERROR(M150/SUMIF('Indicateurs Cumulés'!$F:$F,$B$7,'Indicateurs Cumulés'!LM:LM)),"nc",M150/SUMIF('Indicateurs Cumulés'!$F:$F,$B$7,'Indicateurs Cumulés'!LM:LM)) -> 1.2 | P150: =SUMIF(objectifs!$F:$F,$B$7,objectifs!GZ:GZ)+SUMIF(objectifs!$F:$F,$B$7,objectifs!HB:HB) -> 1,500 | Q150: =IF(ISERROR(S150/(P150*R150)*1000),0,S150/(P150*R150)*1000) -> 204 € | R150: =objectifs!$HF$3 -> 5.00 | S150: =SUMIF(objectifs!$F:$F,$B$7,objectifs!HF:HF)+SUMIF(objectifs!$F:$F,$B$7,objectifs!HH:HH) -> 1,529 | T150: =IF(ISERROR(S150/SUMIF(objectifs!$F:$F,$B$7,objectifs!IC:IC)),"nc",S150/SUMIF(objectifs!$F:$F,$B$7,objectifs!IC:IC)) -> 1.0 | V150: 79% | W150: 107% | X150: 0.3
B151: Cartes PRO - Tarification | E151: =J151-SUMIF('Indicateurs Cumulés M-1'!$F:$F,$B$7,'Indicateurs Cumulés M-1'!KD:KD) -SUMIF('Indicateurs Cumulés M-1'!$F:$F,$B$7,'Indicateurs Cumulés M-1'!KF:KF) -SUMIF('Indicateurs Cumulés M-1'!$F:$F,$B$7,'Indicateurs Cumulés M-1'!KG:KG) -> -11 | F151: 101 € | G151: 5.00 | H151: -6 | J151: =SUMIF('Indicateurs Cumulés'!$F:$F,$B$7,'Indicateurs Cumulés'!JZ:JZ)+SUMIF('Indicateurs Cumulés'!$F:$F,$B$7,'Indicateurs Cumulés'!KB:KB)+SUMIF('Indicateurs Cumulés'!$F:$F,$B$7,'Indicateurs Cumulés'!KC:KC) -> 751 | K151: 101 € | L151: =objectifs!$HG$3 -> 5.00 | M151: =SUMIF('Indicateurs Cumulés'!$F:$F,$B$7,'Indicateurs Cumulés'!KI:KI)+SUMIF('Indicateurs Cumulés'!$F:$F,$B$7,'Indicateurs Cumulés'!KK:KK)+SUMIF('Indicateurs Cumulés'!$F:$F,$B$7,'Indicateurs Cumulés'!KL:KL) -> 379 | N151: =IF(ISERROR(M151/SUMIF('Indicateurs Cumulés'!$F:$F,$B$7,'Indicateurs Cumulés'!LM:LM)),"nc",M151/SUMIF('Indicateurs Cumulés'!$F:$F,$B$7,'Indicateurs Cumulés'!LM:LM)) -> 0.3 | P151: =SUMIF(objectifs!$F:$F,$B$7,objectifs!HA:HA)+SUMIF(objectifs!$F:$F,$B$7,objectifs!HC:HC)+SUMIF(objectifs!$F:$F,$B$7,objectifs!HD:HD) -> 1,000 | Q151: 150 € | R151: =objectifs!$HG$3 -> 5.00 | S151: =SUMIF(objectifs!$F:$F,$B$7,objectifs!HG:HG)+SUMIF(objectifs!$F:$F,$B$7,objectifs!HI:HI)+SUMIF(objectifs!$F:$F,$B$7,objectifs!HJ:HJ) -> 748 | T151: =IF(ISERROR(S151/SUMIF(objectifs!$F:$F,$B$7,objectifs!IC:IC)),"nc",S151/SUMIF(objectifs!$F:$F,$B$7,objectifs!IC:IC)) -> 0.5 | V151: 75% | W151: 51% | X151: -0.2
B152: AUTO PRO (ventes brutes) - Commissions | E152: =J152-SUMIF('Indicateurs Cumulés M-1'!$F:$F,$B$7,'Indicateurs Cumulés M-1'!CA:CA) -> -16 | F152: 100 € | G152: 2.75 | H152: -4 | J152: =SUMIF('Indicateurs Cumulés'!$F:$F,$B$7,'Indicateurs Cumulés'!KE:KE) -> 106 | K152: 100 € | L152: =objectifs!$HZ$3 -> 2.75 | M152: =SUMIF('Indicateurs Cumulés'!$F:$F,$B$7,'Indicateurs Cumulés'!KN:KN) -> 29 | N152: =IF(ISERROR(M152/SUMIF('Indicateurs Cumulés'!$F:$F,$B$7,'Indicateurs Cumulés'!LM:LM)),"nc",M152/SUMIF('Indicateurs Cumulés'!$F:$F,$B$7,'Indicateurs Cumulés'!LM:LM)) -> 0.0 | P152: =SUMIF(objectifs!$F:$F,$B$7,objectifs!HW:HW) -> 340 | Q152: 100 € | R152: =objectifs!$HZ$3 -> 2.75 | S152: =SUMIF(objectifs!$F:$F,$B$7,objectifs!HZ:HZ) -> 94 | T152: =IF(ISERROR(S152/SUMIF(objectifs!$F:$F,$B$7,objectifs!IC:IC)),"nc",S152/SUMIF(objectifs!$F:$F,$B$7,objectifs!IC:IC)) -> 0.1 | V152: 31% | W152: 31% | X152: -0.0
B153: Multirisque PRO (ventes brutes) - Commissions | E153: =J153-SUMIF('Indicateurs Cumulés M-1'!$F:$F,$B$7,'Indicateurs Cumulés M-1'!CC:CC) -> 0 | F153: 30 € | G153: 3.96 | H153: 0 | J153: =SUMIF('Indicateurs Cumulés'!$F:$F,$B$7,'Indicateurs Cumulés'!KF:KF) -> 140 | K153: 30 € | L153: =objectifs!$IA$3 -> 3.96 | M153: =SUMIF('Indicateurs Cumulés'!$F:$F,$B$7,'Indicateurs Cumulés'!KO:KO) -> 17 | N153: =IF(ISERROR(M153/SUMIF('Indicateurs Cumulés'!$F:$F,$B$7,'Indicateurs Cumulés'!LM:LM)),"nc",M153/SUMIF('Indicateurs Cumulés'!$F:$F,$B$7,'Indicateurs Cumulés'!LM:LM)) -> 0.0 | P153: =SUMIF(objectifs!$F:$F,$B$7,objectifs!HX:HX) -> 510 | Q153: 30 € | R153: =objectifs!$IA$3 -> 3.96 | S153: =SUMIF(objectifs!$F:$F,$B$7,objectifs!IA:IA) -> 61 | T153: =IF(ISERROR(S153/SUMIF(objectifs!$F:$F,$B$7,objectifs!IC:IC)),"nc",S153/SUMIF(objectifs!$F:$F,$B$7,objectifs!IC:IC)) -> 0.0 | V153: 27% | W153: 27% | X153: -0.0
B154: PAP - Commissions | E154: =J154-SUMIF('Indicateurs Cumulés M-1'!$F:$F,$B$7,'Indicateurs Cumulés M-1'!KH:KH) -> 6 | F154: 18 € | G154: 5.00 | H154: 1 | J154: =SUMIF('Indicateurs Cumulés'!$F:$F,$B$7,'Indicateurs Cumulés'!KD:KD) -> 336 | K154: 18 € | L154: =objectifs!$HK$3 -> 5.00 | M154: =SUMIF('Indicateurs Cumulés'!$F:$F,$B$7,'Indicateurs Cumulés'!KM:KM) -> 30 | N154: =IF(ISERROR(M154/SUMIF('Indicateurs Cumulés'!$F:$F,$B$7,'Indicateurs Cumulés'!LM:LM)),"nc",M154/SUMIF('Indicateurs Cumulés'!$F:$F,$B$7,'Indicateurs Cumulés'!LM:LM)) -> 0.0 | P154: =SUMIF(objectifs!$F:$F,$B$7,objectifs!HE:HE) -> 480 | Q154: 18 € | R154: =objectifs!$HK$3 -> 5.00 | S154: =SUMIF(objectifs!$F:$F,$B$7,objectifs!HK:HK) -> 42 | T154: =IF(ISERROR(S154/SUMIF(objectifs!$F:$F,$B$7,objectifs!IC:IC)),"nc",S154/SUMIF(objectifs!$F:$F,$B$7,objectifs!IC:IC)) -> 0.0 | V154: 70% | W154: 70% | X154: -0.0
B155: Contrats monétiques actifs - Commissions | E155: =J155-SUMIF('Indicateurs Cumulés M-1'!$F:$F,$B$7,'Indicateurs Cumulés M-1'!CE:CE) -> 51 | F155: 100 € | G155: 5.00 | H155: 26 | J155: =SUMIF('Indicateurs Cumulés'!$F:$F,$B$7,'Indicateurs Cumulés'!KG:KG) -> 219 | K155: 100 € | L155: =objectifs!$IB$3 -> 5.00 | M155: =SUMIF('Indicateurs Cumulés'!$F:$F,$B$7,'Indicateurs Cumulés'!KP:KP) -> 110 | N155: =IF(ISERROR(M155/SUMIF('Indicateurs Cumulés'!$F:$F,$B$7,'Indicateurs Cumulés'!LM:LM)),"nc",M155/SUMIF('Indicateurs Cumulés'!$F:$F,$B$7,'Indicateurs Cumulés'!LM:LM)) -> 0.1 | P155: =SUMIF(objectifs!$F:$F,$B$7,objectifs!HY:HY) -> 740 | Q155: 100 € | R155: =objectifs!$IB$3 -> 5.00 | S155: =SUMIF(objectifs!$F:$F,$B$7,objectifs!IB:IB) -> 370 | T155: =IF(ISERROR(S155/SUMIF(objectifs!$F:$F,$B$7,objectifs!IC:IC)),"nc",S155/SUMIF(objectifs!$F:$F,$B$7,objectifs!IC:IC)) -> 0.2 | V155: 30% | W155: 30% | X155: -0.1
B156: Commisions de mouvement | H156: =SUMIF('Indicateurs Cumulés'!$F:$F,$B$7,'Indicateurs Cumulés'!KQ:KQ)-SUMIF('Indicateurs Cumulés M-1'!$F:$F,$B$7,'Indicateurs Cumulés M-1'!KP:KP) -> -4 | M156: =SUMIF('Indicateurs Cumulés'!$F:$F,$B$7,'Indicateurs Cumulés'!KQ:KQ) -> 1,845 | N156: =IF(ISERROR(M156/SUMIF('Indicateurs Cumulés'!$F:$F,$B$7,'Indicateurs Cumulés'!LM:LM)),"nc",M156/SUMIF('Indicateurs Cumulés'!$F:$F,$B$7,'Indicateurs Cumulés'!LM:LM)) -> 1.4 | S156: =SUMIF(objectifs!$F:$F,$B$7,objectifs!HM:HM) -> 2,069 | T156: =IF(ISERROR(S156/SUMIF(objectifs!$F:$F,$B$7,objectifs!IC:IC)),"nc",S156/SUMIF(objectifs!$F:$F,$B$7,objectifs!IC:IC)) -> 1.4 | V156: 0% | W156: 89% | X156: 0.1
B158: BANCA PRO Relation privée - Ventes nettes | E158: =SUM(E159:E161) -> -80 | H158: =SUM(H159:H161) -> -60 | J158: =SUM(J159:J161) -> 43 | M158: =SUM(M159:M161) -> -331 | N158: =IF(ISERROR(M158/SUMIF('Indicateurs Cumulés'!$F:$F,$B$7,'Indicateurs Cumulés'!LM:LM)),"nc",M158/SUMIF('Indicateurs Cumulés'!$F:$F,$B$7,'Indicateurs Cumulés'!LM:LM)) -> -0.2 | P158: =SUM(P159:P161) -> 3,035 | Q158: =IF(ISERROR(S158/(P158*R158)*1000),0,S158/(P158*R158)*1000) -> 117 € | R158: =IF(ISERROR(SUMPRODUCT(R159:R161,P159:P161)/SUMPRODUCT(P159:P161)),0,SUMPRODUCT(R159:R161,P159:P161)/SUMPRODUCT(P159:P161)) -> 5.00 | S158: =SUM(S159:S161) -> 1,771 | T158: =IF(ISERROR(S158/SUMIF(objectifs!$F:$F,$B$7,objectifs!IC:IC)),"nc",S158/SUMIF(objectifs!$F:$F,$B$7,objectifs!IC:IC)) -> 1.2 | V158: =IF(ISERROR(J158/P158),0,J158/P158) -> 1% | W158: =IF(ISERROR(M158/S158),0,M158/S158) -> -19% | X158: =IF(ISERROR(N158-(T158/12*MONTH($C$9))),"nc",N158-(T158/12*MONTH($C$9))) -> -1.3
B159: Forfaits - Tarification | E159: =J159-SUMIF('Indicateurs Cumulés M-1'!$F:$F,$B$7,'Indicateurs Cumulés M-1'!LG:LG) -> 21 | F159: =K159 -> 137 € | G159: =L159 -> 5.00 | H159: =E159*F159*G159/1000 -> 14 | J159: =SUMIF('Indicateurs Cumulés'!$F:$F,$B$7,'Indicateurs Cumulés'!JJ:JJ) +SUMIF('Indicateurs Cumulés'!$F:$F,$B$7,'Indicateurs Cumulés'!JK:JK) +SUMIF('Indicateurs Cumulés'!$F:$F,$B$7,'Indicateurs Cumulés'!JL:JL) +SUMIF('Indicateurs Cumulés'!$F:$F,$B$7,'Indicateurs Cumulés'!JM:JM) +SUMIF('Indicateurs Cumulés'!$F:$F,$B$7,'Indicateurs Cumulés'!JN:JN) +SUMIF('Indicateurs Cumulés'!$F:$F,$B$7,'Indicateurs Cumulés'!JO:JO) +SUMIF('Indicateurs Cumulés'!$F:$F,$B$7,'Indicateurs Cumulés'!JP:JP) -> 63 | K159: =objectifs!$GD$3 -> 137 € | L159: =objectifs!$GE$3 -> 5.00 | M159: =SUMIF('Indicateurs Cumulés'!$F:$F,$B$7,'Indicateurs Cumulés'!JS:JS) +SUMIF('Indicateurs Cumulés'!$F:$F,$B$7,'Indicateurs Cumulés'!JT:JT) +SUMIF('Indicateurs Cumulés'!$F:$F,$B$7,'Indicateurs Cumulés'!JU:JU) -> 36 | N159: =IF(ISERROR(M159/SUMIF('Indicateurs Cumulés'!$F:$F,$B$7,'Indicateurs Cumulés'!LM:LM)),"nc",M159/SUMIF('Indicateurs Cumulés'!$F:$F,$B$7,'Indicateurs Cumulés'!LM:LM)) -> 0.0 | P159: =SUMIF(objectifs!$F:$F,$B$7,objectifs!GD:GD)*5% -> 1,120 | Q159: =objectifs!$GD$3 -> 137 € | R159: =objectifs!$GE$3 -> 5.00 | S159: =P159*Q159*R159/1000 -> 769 | T159: =IF(ISERROR(S159/SUMIF(objectifs!$F:$F,$B$7,objectifs!IC:IC)),"nc",S159/SUMIF(objectifs!$F:$F,$B$7,objectifs!IC:IC)) -> 0.5 | V159: =IF(ISERROR(J159/P159),0,J159/P159) -> 6% | W159: =IF(ISERROR(M159/S159),0,M159/S159) -> 5% | X159: =IF(ISERROR(N159-(T159/12*MONTH($C$9))),"nc",N159-(T159/12*MONTH($C$9))) -> -0.4
B160: Cartes - Tarification | E160: =J160-SUMIF('Indicateurs Cumulés M-1'!$F:$F,$B$7,'Indicateurs Cumulés M-1'!LI:LI) -> -48 | F160: 289 € | G160: 5.00 | H160: =E160*F160*G160/1000 -> -69 | J160: =SUMIF('Indicateurs Cumulés'!$F:$F,$B$7,'Indicateurs Cumulés'!JQ:JQ) -> -272 | K160: =objectifs!$GF$3 -> 289 € | L160: =objectifs!$GG$3 -> 5.00 | M160: =SUMIF('Indicateurs Cumulés'!$F:$F,$B$7,'Indicateurs Cumulés'!JV:JV) -> -393 | N160: =IF(ISERROR(M160/SUMIF('Indicateurs Cumulés'!$F:$F,$B$7,'Indicateurs Cumulés'!LM:LM)),"nc",M160/SUMIF('Indicateurs Cumulés'!$F:$F,$B$7,'Indicateurs Cumulés'!LM:LM)) -> -0.3 | P160: =SUMIF(objectifs!$F:$F,$B$7,objectifs!GF:GF)*5% -> 600 | Q160: =objectifs!$GF$3 -> 289 € | R160: =objectifs!$GG$3 -> 5.00 | S160: =P160*Q160*R160/1000 -> 868 | T160: =IF(ISERROR(S160/SUMIF(objectifs!$F:$F,$B$7,objectifs!IC:IC)),"nc",S160/SUMIF(objectifs!$F:$F,$B$7,objectifs!IC:IC)) -> 0.6 | V160: =IF(ISERROR(J160/P160),0,J160/P160) -> -45% | W160: =IF(ISERROR(M160/S160),0,M160/S160) -> -45% | X160: =IF(ISERROR(N160-(T160/12*MONTH($C$9))),"nc",N160-(T160/12*MONTH($C$9))) -> -0.8
B161: IARD & Prévoyance - Commissions | E161: =J161-SUMIF('Indicateurs Cumulés M-1'!$F:$F,$B$7,'Indicateurs Cumulés M-1'!LK:LK) -> -53 | F161: 20 € | G161: 5.00 | H161: =E161*F161*G161/1000 -> -5 | J161: =SUMIF('Indicateurs Cumulés'!$F:$F,$B$7,'Indicateurs Cumulés'!JR:JR) -> 252 | K161: =objectifs!$GH$3 -> 20 € | L161: =objectifs!$GI$3 -> 5.00 | M161: =SUMIF('Indicateurs Cumulés'!$F:$F,$B$7,'Indicateurs Cumulés'!JW:JW) -> 26 | N161: =IF(ISERROR(M161/SUMIF('Indicateurs Cumulés'!$F:$F,$B$7,'Indicateurs Cumulés'!LM:LM)),"nc",M161/SUMIF('Indicateurs Cumulés'!$F:$F,$B$7,'Indicateurs Cumulés'!LM:LM)) -> 0.0 | P161: =SUMIF(objectifs!$F:$F,$B$7,objectifs!GH:GH)*5% -> 1,315 | Q161: =objectifs!$GH$3 -> 20 € | R161: =objectifs!$GI$3 -> 5.00 | S161: =P161*Q161*R161/1000 -> 135 | T161: =IF(ISERROR(S161/SUMIF(objectifs!$F:$F,$B$7,objectifs!IC:IC)),"nc",S161/SUMIF(objectifs!$F:$F,$B$7,objectifs!IC:IC)) -> 0.1 | V161: =IF(ISERROR(J161/P161),0,J161/P161) -> 19% | W161: =IF(ISERROR(M161/S161),0,M161/S161) -> 19% | X161: =IF(ISERROR(N161-(T161/12*MONTH($C$9))),"nc",N161-(T161/12*MONTH($C$9))) -> -0.1
B163: AUTRES | H163: =M163 -> 0 | M163: 0 | N163: =IF(ISERROR(M163/SUMIF('Indicateurs Cumulés'!$F:$F,$B$7,'Indicateurs Cumulés'!LM:LM)),"nc",M163/SUMIF('Indicateurs Cumulés'!$F:$F,$B$7,'Indicateurs Cumulés'!LM:LM)) -> 0.0 | S163: =VLOOKUP($B$7,objectifs!$F$3:$AAB$391,172,FALSE)*objectifs!$FU$375/objectifs!$FU$373 -> -700 | T163: =IF(ISERROR(S163/SUMIF(objectifs!$F:$F,$B$7,objectifs!IC:IC)),"nc",S163/SUMIF(objectifs!$F:$F,$B$7,objectifs!IC:IC)) -> -0.5 | W163: =IF(ISERROR(M163/S163),0,M163/S163) -> 0% | X163: =IF(ISERROR(N163-(T163/12*MONTH($C$9))),"nc",N163-(T163/12*MONTH($C$9))) -> 0.4
B165: ZOOM PNB PRO* sur Activité Nouvelle | H165: =H158+H126+H132+H137+H143+H149+H163 -> 1,790 | M165: =M158+M126+M132+M137+M143+M149+M163 -> 23,806 | N165: =IF(ISERROR(M165/SUMIF('Indicateurs Cumulés'!$F:$F,$B$7,'Indicateurs Cumulés'!LM:LM)),"nc",M165/SUMIF('Indicateurs Cumulés'!$F:$F,$B$7,'Indicateurs Cumulés'!LM:LM)) -> 17.9 | S165: =S158+S126+S132+S137+S143+S149+S163 -> 24,465 | T165: =IF(ISERROR(S165/SUMIF(objectifs!$F:$F,$B$7,objectifs!IC:IC)),"nc",S165/SUMIF(objectifs!$F:$F,$B$7,objectifs!IC:IC)) -> 16.1 | W165: =IF(ISERROR(M165/S165),0,M165/S165) -> 97.3% | X165: =IF(ISERROR(N165-(T165/12*MONTH($C$9))),"nc",N165-(T165/12*MONTH($C$9))) -> 3.1
B166: * y compris relation privée du pro

Sheet Lexique
B4: INDICATEURS
A5: Structure
B6: •Mise en place d’une synthèse BDD et d’un zoom Pro (yc relation privée du pro)
B7: •Application des taux réels sur la majorité des lignes de produits Collecte | C7: Les marges de certains produits sont adaptées au niveau local (marges figées) pour être en phase avec la politique commerciale de la CEGEE.
B8: •Ajout de l’indicateur PNB/ETP sur chaque ligne
B9: •Intégration d’un suivi bancarisation « relation privée » du Pro dans la synthèse BDD
A11: ETP
B12: •Le PNB par ETP sur objectifs est déterminé à partir des ETP cible. | C12: Déterminé lors de la fixation des objectifs, il ne change pas
B13: •Le PNB par ETP sur réalisations est calculé à partir de la moyenne des ETP performance. | C13: Mis a jour mensuellement en moyennant les ETP depuis le début d'année
A15: Collecte
B16: •Taux de marge figé à 0,20% sur les produits LEP, LDD, LJ, DAT, Emprunt Ecureuil
B17: •Taux du LGP | C17: Les taux boostés bénéficient d'un mode de calcul adapté a la politique commerciale de la CEGEE
B18: •Ajout des versements FCP structurés (objectif : 75 M€ de versements et 2,1 M€ de PNB)
B19: •Mise en place d'un cap / floor a 150% de l'objectif sur les comptes créditeurs en cas de forte variation
A21: Crédits
B22: •Commissions ADE | C22: Ajout d'un coefficient multiplicateur de 1,3 X sur le montant généré
B23: •Ajout d’un bonus de 1000€ pour chaque client devenu Bpe / JBPe via un crédit immobilier
B24: •Intégration des commissions apporteurs d’affaires venant en déduction du PNB crédit
A26: Bancarisation
B27: •Ajout d’un Booster Cartes à débit différé (40€ par carte à débit différé sur 5 ans) | C27: Sur chaque vente nette de carte à débit différé yc cartes PRO
B28: •Ajout d’un Bonus Mobilité bancaire | C28: 200€ pour chaque client sur la base de la mobilité réglementaire brute
B29: •Ajout d’un Booster sur IARD Auto et MRH (40€ par vente sur 5 ans) | C29: Bonus s'appliquant sur chaque vente nette Auto ou MRH
B30: •Mise en place d’un suivi sur options sur Bouquet Liberté (comptabilisé a partir de la 3e option) | C30: 15€ supplémentaires comptabilisés à compter de la 3e option sur un BL. Pas de pénalité pour les BL ayant moins de 2 options
A32: Autres
B33: •Mise a jour du taux sur commissions immobilières à 4%
B34: •Mise a jour du taux sur remises commerciales à 4%
A36: Bonus digital
B37: •Mise en place d'un floor à 0 sur le PNB lorsque les réalisations sont négatives | C37: Floor mis en place sur les données agrégées pour les secteurs et Dirco

Sheet Liste agences mai 2019
A1: CEGEE | B1: AUBE_HAUTE_MARNE | C1: BAS_RHIN | D1: HAUT_RHIN | E1: MARNE_ARDENNES | F1: MEURTHE_ET_MOSELLE_MEUSE | G1: MOSELLE | H1: VOSGES | I1: AGENCE_PERSONNEL | J1: MESANGE | K1: MBL | L1: BANQUE_DIRIGEANT
A2: AUBE_HAUTE_MARNE | B2: Territoire_TROYES | C2: Territoire_CHAUMONT
A3: BAS_RHIN | B3: Territoire_STRASBOURG | C3: Territoire_HAGUENAU | D3: Territoire_SELESTAT
A4: HAUT_RHIN | B4: Territoire_COLMAR | C4: Territoire_MULHOUSE
A5: MARNE_ARDENNES | B5: Territoire_CHARLEVILLE_MEZIERES | C5: Territoire_CHALONS_EN_CHAMPAGNE | D5: Territoire_REIMS
A6: MEURTHE_ET_MOSELLE_MEUSE | B6: Territoire_PONT_A_MOUSSON | C6: Territoire_NANCY | D6: Territoire_VERDUN
A7: MOSELLE | B7: Territoire_MOSELLE_EST | C7: Territoire_METZ | D7: Territoire_MOSELLE_NORD
A8: VOSGES | B8: Territoire_EPINAL | C8: Territoire_SAINT_DIE
A9: Territoire_TROYES | B9: AIX EN OTHE | C9: ARCIS SUR AUBE | D9: BAR SUR AUBE | E9: BAR SUR SEINE | F9: BRIENNE LE CHATEAU | G9: LA CHAPELLE ST LUC | H9: NOGENT SUR SEINE | I9: ROMILLY SUR SEINE | J9: SAINT ANDRE LES VERGERS | K9: SAINT JULIEN LES VILLAS | L9: SAINTE SAVINE | M9: TROYES 1ER MAI | N9: TROYES BROSSOLETTE | O9: TROYES CHARTREUX | P9: TROYES GAMBETTA | Q9: TROYES ZOLA
A10: Territoire_CHAUMONT | B10: BOURBONNE LES BAINS | C10: CHALINDREY | D10: CHATEAUVILLAIN | E10: CHAUMONT HOTEL DE VILLE | F10: CHAUMONT REPUBLIQUE | G10: JOINVILLE | H10: LANGRES | I10: NOGENT EN BASSIGNY | J10: SAINT DIZIER CENTRE | K10: SAINT DIZIER EUROPE | L10: WASSY
A11: Territoire_STRASBOURG | B11: BISCHHEIM | C11: ECKBOLSHEIM | D11: ESPACE MESANGE | E11: LA WANTZENAU | F11: MUNDOLSHEIM | G11: OBERHAUSBERGEN | H11: REICHSTETT | I11: SCHILTIGHEIM CENTRE | J11: SCHILTIGHEIM KLEBER | K11: STRASBOURG ANVERS | L11: STRASBOURG AUSTERLITZ | M11: STRASBOURG CRONENBOURG | N11: STRASBOURG DANUBE | O11: STRASBOURG ESPLANADE | P11: STRASBOURG FRANCS BOURGEOIS | Q11: STRASBOURG GARE | R11: STRASBOURG HALLES | S11: STRASBOURG KOENIGSHOFFEN | T11: STRASBOURG MEINAU | U11: STRASBOURG MONTAGNE VERTE | V11: STRASBOURG NEUDORF | W11: STRASBOURG ROBERTSAU | X11: STRASBOURG STOCKFELD | Y11: STRASBOURG VOSGES | Z11: VENDENHEIM
A12: Territoire_HAGUENAU | B12: BETSCHDORF | C12: BISCHWILLER | D12: BOUXWILLER | E12: BRUMATH | F12: DIEMERINGEN | G12: DRUSENHEIM | H12: GUNDERSHOFFEN | I12: HAGUENAU HOUBLON | J12: HAGUENAU MUSAU | K12: HERRLISHEIM | L12: HOCHFELDEN | M12: HOERDT | N12: INGWILLER | O12: LAUTERBOURG | P12: MARMOUTIER | Q12: NIEDERBRONN LES BAINS | R12: PFAFFENHOFFEN | S12: REICHSHOFFEN | T12: SARRE UNION | U12: SAVERNE | V12: SCHWEIGHOUSE SUR MODER | W12: SELTZ | X12: SOUFFLENHEIM | Y12: SOULTZ SOUS FORETS | Z12: TRUCHTERSHEIM | AA12: WEITBRUCH | AB12: WINGEN SUR MODER | AC12: WISSEMBOURG | AD12: WOERTH
A13: Territoire_SELESTAT | B13: BARR | C13: BENFELD | D13: CHATENOIS | E13: ERSTEIN | F13: FEGERSHEIM | G13: ILLKIRCH CENTRE | H13: ILLKIRCH NORD | I13: LINGOLSHEIM | J13: MARCKOLSHEIM | K13: MARLENHEIM | L13: MOLSHEIM | M13: MUTZIG | N13: OBERNAI | O13: OSTWALD | P13: ROSHEIM | Q13: SCHIRMECK | R13: SELESTAT CENTRE | S13: SELESTAT OUEST | T13: VILLE | U13: WASSELONNE
A14: Territoire_COLMAR | B14: COLMAR MARAICHERS | C14: COLMAR REPUBLIQUE | D14: COLMAR SAINT JOSEPH | E14: COLMAR SAINTE MARIE | F14: COLMAR VAUBAN | G14: ENSISHEIM | H14: GUEBWILLER | I14: HORBOURG WIHR | J14: INGERSHEIM | K14: KAYSERSBERG | L14: LAPOUTROIE | M14: LIEPVRE | N14: MUNSTER | O14: MUNTZENHEIM | P14: NEUF BRISACH | Q14: ORBEY | R14: PULVERSHEIM | S14: RIBEAUVILLE | T14: ROUFFACH | U14: SAINTE MARIE AUX MINES | V14: SOULTZ | W14: SOULTZMATT | X14: WINTZENHEIM
A15: Territoire_MULHOUSE | B15: ALTKIRCH | C15: BRUNSTATT | D15: CERNAY | E15: DANNEMARIE | F15: FERRETTE | G15: HUNINGUE | H15: ILLZACH | I15: MASEVAUX | J15: MULHOUSE DORNACH | K15: MULHOUSE REUNION | L15: MULHOUSE ROOSEVELT | M15: PFASTATT | N15: RIEDISHEIM | O15: RIXHEIM | P15: SAINT AMARIN | Q15: SAINT LOUIS | R15: SEPPOIS LE BAS | S15: SIERENTZ | T15: THANN | U15: WITTELSHEIM | V15: WITTENHEIM
A16: Territoire_CHARLEVILLE_MEZIERES | B16: CARIGNAN | C16: CHARLEVILLE JEAN JAURES | D16: CHARLEVILLE MEZIERES | E16: CHARLEVILLE MOHON | F16: CHARLEVILLE NEVERS | G16: GIVET | H16: MOUZON | I16: RETHEL | J16: REVIN | K16: ROCROI | L16: SEDAN | M16: VILLERS SEMEUSE CORA | N16: VOUZIERS | O16: VRIGNE AUX BOIS
A17: Territoire_CHALONS_EN_CHAMPAGNE | B17: CHALONS ROOSEVELT | C17: CHALONS VIVIERS | D17: FAGNIERES LECLERC | E17: MONTMIRAIL | F17: MOURMELON SUIPPES | G17: SAINTE MENEHOULD | H17: SARRY | I17: SEZANNE | J17: VERTUS | K17: VITRY LE FRANCOIS
A18: Territoire_REIMS | B18: AY CHAMPAGNE | C18: BETHENY | D18: DAMERY | E18: DORMANS | F18: EPERNAY | G18: FISMES | H18: PIERRY LECLERC | I18: REIMS CENTRE VILLE | J18: REIMS CHATILLONS | K18: REIMS EUROPE | L18: REIMS HIPPODROME | M18: REIMS HOTEL DE VILLE | N18: REIMS JEAN JAURES | O18: REIMS SAINT MARCEAUX | P18: REIMS SAINT REMI | Q18: REIMS SAINT THOMAS | R18: REIMS SAINTE ANNE | S18: TINQUEUX | T18: VERZY
A19: Territoire_PONT_A_MOUSSON | B19: BRIEY | C19: CHALIGNY NEUVES MAISONS | D19: CHAMPIGNEULLES | E19: DIEULOUARD | F19: FROUARD | G19: JARNY | H19: JOEUF | I19: LAXOU ARISTIDE BRIAND | J19: LAXOU LA SAPINIERE | K19: LUDRES | L19: NANCY PLATEAU DE HAYE | M19: NANCY TROIS MAISONS | N19: PAGNY SUR MOSELLE | O19: PIENNES | P19: POMPEY | Q19: PONT A MOUSSON BREUIL | R19: PONT A MOUSSON CENTRALE | S19: TOUL REPUBLIQUE | T19: VEZELISE | U19: VILLERS GENERAL LECLERC
A20: Territoire_NANCY | B20: BACCARAT | C20: BAYON | D20: BLAINVILLE | E20: BLAMONT | F20: DOMBASLE SUR MEURTHE | G20: ESSEY LES NANCY | H20: JARVILLE LA MALGRANGE | I20: LUNEVILLE CARNOT | J20: LUNEVILLE CHATEAU | K20: NANCY ARTEM | L20: NANCY JEAN JAURES | M20: NANCY PLACE DOMBASLE | N20: NANCY POINT CENTRAL | O20: NANCY SAINT SEBASTIEN | P20: SAINT MAX | Q20: SAINT NICOLAS DE PORT | R20: TOMBLAINE | S20: VANDOEUVRE LES NANCY
A21: Territoire_VERDUN | B21: BAR LE DUC | C21: COMMERCY | D21: ETAIN | E21: LIGNY EN BARROIS | F21: LONGUYON | G21: LONGWY BAS | H21: LONGWY HAUT | I21: MONTMEDY | J21: REVIGNY SUR ORNAIN | K21: SAINT MIHIEL | L21: STENAY | M21: VAUCOULEURS | N21: VERDUN CENTRALE | O21: VERDUN MAZEL | P21: VILLERUPT
A22: Territoire_MOSELLE_EST | B22: BEHREN LES FORBACH | C22: BITCHE | D22: CHATEAU SALINS | E22: CREUTZWALD | F22: DIEUZE | G22: FAULQUEMONT | H22: FORBACH CENTRALE | I22: GROSBLIEDERSTROFF | J22: HOMBOURG HAUT | K22: MERLEBACH | L22: MORHANGE | M22: NEUNKIRCH | N22: PHALSBOURG | O22: PUTTELANGE AUX LACS | P22: SAINT AVOLD | Q22: SARREBOURG | R22: SARREGUEMINES | S22: STIRING WENDEL | T22: VALMONT
A23: Territoire_METZ | B23: ARS SUR MOSELLE | C23: BOULAY | D23: CLOUANGE | E23: MAIZIERES LES METZ | F23: MARANGE SILVANGE | G23: MARLY | H23: METZ CATHEDRALE | I23: METZ MOZART | J23: METZ PLAPPEVILLE | K23: METZ POMPIDOU | L23: METZ REPUBLIQUE | M23: METZ SAINT LIVIER | N23: METZ SAINT LOUIS | O23: METZ SAINT MAXIMIN | P23: METZ SARRE | Q23: MONTIGNY LES METZ | R23: MOULINS LES METZ | S23: REMILLY | T23: ROMBAS | U23: SAINT JULIEN LES METZ | V23: SAINTE MARIE AUX CHENES | W23: WOIPPY
A24: Territoire_MOSELLE_NORD | B24: AUDUN LE TICHE | C24: BOUSSE | D24: BOUZONVILLE | E24: CATTENOM | F24: FAMECK | G24: FLORANGE | H24: FONTOY | I24: GUENANGE | J24: HAGONDANGE | K24: HAYANGE | L24: HETTANGE GRANDE | M24: METZERVISSE | N24: NILVANGE | O24: SIERCK LES BAINS | P24: TERVILLE | Q24: THIONVILLE CENTRALE | R24: THIONVILLE COTE DES ROSES | S24: THIONVILLE LA MILLIAIRE | T24: UCKANGE | U24: YUTZ
A25: Territoire_EPINAL | B25: CHANTRAINE | C25: CHARMES | D25: CHATENOIS VOSGES | E25: DARNEY | F25: DOCELLES | G25: ELOYES | H25: EPINAL ARISTIDE BRIAND | I25: EPINAL AVRINSART | J25: EPINAL LEOPOLD BOURG | K25: GOLBEY | L25: LE VAL D AJOL | M25: MIRECOURT | N25: NEUFCHATEAU | O25: NOMEXY | P25: REMIREMONT | Q25: THAON LES VOSGES | R25: VITTEL | S25: XERTIGNY
A26: Territoire_SAINT_DIE | B26: BRUYERES | C26: CORNIMONT LA BRESSE | D26: FRAIZE | E26: GERARDMER | F26: GRANGES AUMONTZEY | G26: LE THILLOT | H26: MOYENMOUTIER | I26: RAMBERVILLERS | J26: RAON L ETAPE | K26: SAINT DIE | L26: SAINT DIE CATHEDRALE | M26: SENONES | N26: VAGNEY

Sheet Indicateurs Cumulés
C1: 1 | D1: 2 | E1: 3 | F1: 4 | G1: 5 | H1: 6 | I1: 7 | J1: 8 | K1: 9 | L1: 10 | M1: 11 | N1: 12 | O1: 13 | P1: 14 | Q1: 15 | R1: 16 | S1: 17 | T1: 18 | U1: 19 | V1: 20 | W1: 21 | X1: 22 | Y1: 23 | Z1: 24 | AA1: 25 | AB1: 26 | AC1: 27 | AD1: 28 | AE1: 29 | AF1: 30 | AG1: 31 | AH1: 32 | AI1: 33 | AJ1: 34 | AK1: 35 | AL1: 36 | AM1: 37 | AN1: 38 | AO1: 39 | AP1: 40 | AQ1: 41 | AR1: 42 | AS1: 43 | AT1: 44 | AU1: 45 | AV1: 46 | AW1: 47 | AX1: 48 | AY1: 49 | AZ1: 50 | BA1: 51 | BB1: 52 | BC1: 53 | BD1: 54 | BE1: 55 | BF1: 56 | BG1: 57 | BH1: 58 | BI1: 59 | BJ1: 60 | BK1: 61 | BL1: 62 | BM1: 63 | BN1: 64 | BO1: 65 | BP1: 66 | BQ1: 67 | BR1: 68 | BS1: 69 | BT1: 70 | BU1: 71 | BV1: 72 | BW1: 73 | BX1: 74 | BY1: 75 | BZ1: 76 | CA1: 77 | CB1: 78 | CC1: 79 | CD1: 80 | CE1: 81 | CF1: 82 | CG1: 83 | CH1: 84 | CI1: 85 | CJ1: 86 | CK1: 87 | CL1: 88 | CM1: 89 | CN1: 90 | CO1: 91 | CP1: 92 | CQ1: 93 | CR1: 94 | CS1: 95 | CT1: 96 | CU1: 97 | CV1: 98 | CW1: 99 | CX1: 100 | CY1: 101 | CZ1: 102 | DA1: 103 | DB1: 104 | DC1: 105 | DD1: 106 | DE1: 107 | DF1: 108 | DG1: 109 | DH1: 110 | DI1: 111 | DJ1: 112 | DK1: 113 | DL1: 114 | DM1: 115 | DN1: 116 | DO1: 117 | DP1: 118 | DQ1: 119 | DR1: 120 | DS1: 121 | DT1: 122 | DU1: 123 | DV1: 124 | DW1: 125 | DX1: 126 | DY1: 127 | DZ1: 128 | EA1: 129 | EB1: 130 | EC1: 131 | ED1: 132 | EE1: 133 | EF1: 134 | EG1: 135 | EH1: 136 | EI1: 137 | EJ1: 138 | EK1: 139 | EL1: 140 | EM1: 141 | EN1: 142 | EO1: 143 | EP1: 144 | EQ1: 145 | ER1: 146 | ES1: 147 | ET1: 148 | EU1: 149 | EV1: 150 | EW1: 151 | EX1: 152 | EY1: 153 | EZ1: 154 | FA1: 155 | FB1: 156 | FC1: 157 | FD1: 158 | FE1: 159 | FF1: 160 | FG1: 161 | FH1: 162 | FI1: 163 | FJ1: 164 | FK1: 165 | FL1: 166 | FM1: 167 | FN1: 168 | FO1: 169 | FP1: 170 | FQ1: 171 | FR1: 172 | FS1: 173 | FT1: 174 | FU1: 175 | FV1: 176 | FW1: 177 | FX1: 178 | FY1: 179 | FZ1: 180 | GA1: 181 | GB1: 182 | GC1: 183 | GD1: 184 | GE1: 185 | GF1: 186 | GG1: 187 | GH1: 188 | GI1: 189 | GJ1: 190 | GK1: 191 | GL1: 192 | GM1: 193 | GN1: 194 | GO1: 195 | GP1: 196 | GQ1: 197 | GR1: 198 | GS1: 199 | GT1: 200 | GU1: 201 | GV1: 202 | GW1: 203 | GX1: 204 | GY1: 205 | GZ1: 206 | HA1: 207 | HB1: 208 | HC1: 209 | HD1: 210 | HE1: 111.0435668 | HF1: 111.5422102 | HG1: 112.0408536 | HH1: 112.539497 | HI1: 113.0381404 | HJ1: 220 | HK1: 223 | HL1: 225 | HM1: 226 | HN1: 227 | HO1: 228 | HP1: 191 | HQ1: 229 | HR1: 230 | HS1: 231 | HT1: 232 | HU1: 233 | HV1: 234 | HW1: 235 | HX1: 267 | HY1: 311 | HZ1: 240 | IA1: 241 | IB1: 242 | IC1: 243 | ID1: 83 | IE1: 244 | IF1: 306 | IG1: 81 | IH1: 310 | II1: 252 | IJ1: 253 | IK1: 254 | IL1: 255 | IM1: 300 | IN1: 299 | IO1: 245 | IP1: 246 | IQ1: 247 | IR1: 248 | IS1: 249 | IT1: 250 | IU1: 251 | IV1: 268 | IW1: 312 | IX1: 69 | IY1: 70 | IZ1: 256 | JA1: 257 | JB1: 258 | JC1: 259 | JD1: 84 | JE1: 260 | JF1: 307 | JG1: 192 | JH1: 82 | JI1: 261 | JJ1: 315 | JK1: 301 | JL1: 302 | JM1: 303 | JN1: 62 | JO1: 63 | JP1: 64 | JQ1: 317 | JR1: 319 | JS1: 316 | JT1: 106 | JU1: 193 | JV1: 318 | JW1: 320 | JX1: 326 | JY1: 285 | JZ1: 286 | KA1: 287 | KB1: 288 | KC1: 289 | KD1: 290 | KE1: 75 | KF1: 77 | KG1: 79 | KH1: 291 | KI1: 292 | KJ1: 293 | KK1: 294 | KL1: 295 | KM1: 296 | KN1: 76 | KO1: 78 | KP1: 80 | KQ1: 298 | KR1: 297 | KS1: 218 | KT1: 219 | KU1: 222 | KV1: 263 | KW1: 264 | KX1: 308 | KY1: 325 | KZ1: 328 | LA1: 329 | LB1: 330 | LC1: 331 | LD1: 332 | LE1: 333 | LF1: 334 | LG1: 335 | LH1: 336 | LI1: 337 | LJ1: 338 | LK1: 339 | LL1: 56 | LM1: 224 | LN1: 313 | LO1: 314 | LP1: 327 | LQ1: 321 | LR1: 322
A2: Id_UC | B2: Id_groupe | C2: Id_PV | D2: Lib_PV | E2: Id_Agence | F2: Lib_Agence | G2: DATE Financements Revolving | H2: Fin Revolving | I2: Tx marg Revolving | J2: DVMA Revolving | K2: DATE CRED | L2: volumes conso BDD | M2: Tx marg conso BDD | N2: DVMA Conso BDD | O2: Marge | P2: taux de pénétration DES PRET CONSO BDD | Q2: QUOTITE ASSUREE CONSO BDD | R2: PNB CNP CONSO BDD | S2: FDD CONSO MARCHE BDD | T2: PNB Crédit CONSO (yc revolving) | U2: volumes immo BDD | V2: Tx marg immo BDD | W2: DVMA Immo BDD | X2: taux de pénétration DES PRET IMMO | Y2: QUOTITE ASSUREE IMMO | Z2: PNB CNP IMMO BDD | AA2: FDD Immo BDD | AB2: CAUTION Immo BDD | AC2: Bonus Bancarisation Crédit Immo | AD2: Bonus Bancarisation PNB Crédit Immo | AE2: Comm apporteurs d'affaires BDD | AF2: PNB Crédit IMMO | AG2: volumes Equip | AH2: Tx marg Equip | AI2: DVMA EQUIP | AJ2: Volumes Crédit Bail BDD | AK2: Tx marg Crédit Bail BDD | AL2: DVMA Crédit Bail BDD | AM2: PNB Crédit Bail BDD | AN2: FDD EQUIP MARCHE BDD | AO2: FDD CB Marché PRO | AP2: taux de pénétration DES PRET MLT agences | AQ2: QUOTITE ASSUREE MLT agences | AR2: PNB CNP MLT agences | AS2: PNB Crédit MLT | AT2: volumes conso PRO | AU2: Tx marg conso PRO | AV2: DVMA Conso PRO | AW2: FDD CONSO MARCHE PRO | AX2: taux de pénétration DES PRET CONSO PRO | AY2: QUOTITE ASSUREE CONSO PRO | AZ2: PNB CNP CONSO PRO | BA2: zoom PNB Crédit CONSO PRO | BB2: volumes immo PRO | BC2: Tx marg immo PRO | BD2: DVMA Immo PRO | BE2: FDD IMMO MARCHE PRO | BF2: QUOTITE ASSUREE IMMO PRO | BG2: Tx pénétration IMMO PRO | BH2: PNB CNP IMMO PRO | BI2: CAUTION IMMO PRO | BJ2: zoom PNB Crédit IMMO PRO | BK2: PNB TOTAL CREDITS | BL2: DATE ASSVIE | BM2: Flux IT | BN2: com IT | BO2: Tx com IT | BP2: Flux N3D | BQ2: dont Flux N3D UC | BR2: % flux N3D en UC | BS2: com N3D | BT2: Tx com N3D | BU2: Flux N+ et NP | BV2: dont Flux N+ et NP UC | BW2: %Flux N+ et NP en UC | BX2: com N+ et NP | BY2: Tx com N+ et NP | BZ2: Flux Autres Ecu Vie | CA2: dont Flux Autres Ecu Vie UC | CB2: % Flux Autres Ecu Vie UC | CC2: com Autres Ecu Vie | CD2: Tx com Autres Ecu Vie | CE2: Flux total ECUVIE | CF2: dont total ECUVIE en UC | CG2: % total ECUVIE en UC | CH2: com total ECUVIE | CI2: TX com total ECUVIE | CJ2: Volumes LA BDD | CK2: Tx marg LA BDD | CL2: DVMA LA BDD | CM2: PNB LA BDD | CN2: Volumes LB BDD | CO2: Tx marg LB BDD | CP2: DVMA LB BDD | CQ2: PNB LB BDD | CR2: Volumes LGF BDD | CS2: Tx marg LGF BDD | CT2: DVMA LGF BDD | CU2: PNB LGF BDD | CV2: Volumes LGP BDD | CW2: Tx marg LGP BDD | CX2: DVMA LGP BDD | CY2: PNB LGP BDD | CZ2: Volumes LEP BDD | DA2: Tx marg LEP BDD | DB2: DVMA LEP BDD | DC2: PNB LEP BDD | DD2: Volumes LDD BDD | DE2: Tx marg LDD BDD | DF2: DVMA LDD BDD | DG2: PNB LDD BDD | DH2: Volumes LJ (yc 10-12) BDD | DI2: Tx marg LJ (yc 10-12) BDD | DJ2: DVMA LJ (yc 10-12) BDD | DK2: PNB LJ (yc 10-12) BDD | DL2: Volumes CEL BDD | DM2: Tx marg CEL BDD | DN2: DVMA CEL BDD | DO2: PNB CEL BDD | DP2: Volumes SLR BDD | DQ2: Tx marg SLR BDD | DR2: DVMA SLR BDD | DS2: PNB SLR BDD | DT2: Volumes DAT BDD | DU2: Tx marg DAT BDD | DV2: DVMA DAT BDD | DW2: PNB DAT BDD | DX2: Volumes PEL BDD | DY2: Tx marg PEL BDD | DZ2: DVMA PEL BDD | EA2: PNB PEL BDD | EB2: Volumes PEP BDD | EC2: Tx marg PEP BDD | ED2: DVMA PEP BDD | EE2: PNB PEP BDD | EF2: Volumes Emprunt BDD | EG2: Tx marg Emprunt BDD | EH2: DVMA Emprunt BDD | EI2: PNB Emprunt BDD | EJ2: Volumes PS BDD | EK2: Tx marg PS BDD | EL2: DVMA PS BDD | EM2: PNB PS BDD | EN2: Volumes Epargne Bilan BDD | EO2: PNB Epargne Bilan BDD | EP2: Volumes Ass Vie encours BDD | EQ2: Tx marg Ass Vie encours BDD | ER2: DVMA Ass Vie encours BDD | ES2: PNB Ass Vie encours BDD | ET2: Volumes Ass Vie BP1818 encours | EU2: Tx marg Ass Vie BP1818 encours | EV2: DVMA Ass Vie BP1818 encours | EW2: PNB Ass Vie BP1818 encours | EX2: Volumes OPCVM encours BDD | EY2: Tx marg OPCVM encours BDD | EZ2: DVMA OPCVM encours BDD | FA2: PNBOPCVM encours BDD | FB2: Volumes OPCVM BP1818 encours | FC2: Tx marg OPCVM BP1818 encours | FD2: DVMA OPCVM BP1818 encours | FE2: PNB OPCVM BP1818 encours | FF2: Volumes Autres Val MOB | FG2: Tx marg Autres Val MOB | FH2: DVMA Autres Val MOB | FI2: PNB Autres Val MOB | FJ2: Volumes Ass Vie flux BDD | FK2: Tx marg Ass Vie flux BDD | FL2: DVMA Ass Vie flux BDD | FM2: PNB Ass Vie flux BDD | FN2: Volumes Ass Vie BP1818 flux | FO2: Tx marg Ass Vie BP1818 flux | FP2: DVMA Ass Vie BP1818 flux | FQ2: PNB Ass Vie BP1818 flux | FR2: Volumes OPCVM flux BDD | FS2: Tx marg OPCVM flux BDD | FT2: DVMA OPCVM flux BDD | FU2: PNB OPCVM flux BDD | FV2: Volumes OPCVM BP1818 flux | FW2: Tx marg OPCVM BP1818 flux | FX2: DVMA OPCVM BP1818 flux | FY2: PNB OPCVM BP1818 flux | FZ2: Arbitrage fonds € vers UC Volume | GA2: Arbitrage fonds € vers UC PNB | GB2: FCP structurés (versements) | GC2: FCP structurés PNB | GD2: Volumes Epargne Financière BDD | GE2: PNB Epargne Financière BDD | GF2: Volumes CDD créditeurs BDD hors plafond | GG2: Volumes CDD créditeurs BDD plafond (+150% et -50%) | GH2: Tx marg CDD créditeurs BDD | GI2: DVMA CDD créditeurs BDD | GJ2: PNB CDD créditeurs BDD | GK2: PNB TOTAL COLLECTE | GL2: Volumes DAT PRO | GM2: Tx marg DAT PRO | GN2: Volumes PS PRO | GO2: Volumes Ass Vie flux PRO | GP2: Volumes Ass Vie encours PRO | GQ2: Volumes PEL PRO | GR2: Volumes CE PRO | GS2: Volumes Autre Epargne PRO | GT2: Volumes CDD créditeurs PRO hors plafond | GU2: Volumes CDD créditeurs PRO plafond (+150% et -50%) | GV2: PNB DAT PRO | GW2: PNB PS PRO | GX2: PNB Ass Vie flux PRO | GY2: PNB Ass Vie encours PRO | GZ2: PNB PEL PRO | HA2: PNB CE PRO | HB2: PNB Autre Epargne PRO | HC2: PNB CDD créditeurs PRO plafond (+150% et -50%) | HD2: PNB PRO Collecte yc DAV | HE2: Bouquet liberté HDG | HF2: Bouquet liberté Autres | HG2: Futéo / SOL 16-17 / Jeune / Autonomie | HH2: Satellis Essentiel / Essentiel + | HI2: Satellis Intégral | HJ2: Formule individuelle initial | HK2: Formule individuelle confort | HL2: Formule individuelle optimal | HM2: Formule famille initial | HN2: Formule famille confort | HO2: Formule famille optimal | HP2: Options complémentaires BL > 2e | HQ2: Auto Part | HR2: MRH Part | HS2: Santé Part | HT2: GAV Part | HU2: PJ-GU Part | HV2: ESO Part | HW2: GF Part | HX2: Assistance Vie | HY2: Prévoyance du locataire | HZ2: Carte Infinite | IA2: Carte Platinum (yc izicarte) | IB2: Carte visa premier (yc izicarte) | IC2: Carte visa classique (yc izicarte) | ID2: Carte Senséa | IE2: Autres Cartes | IF2: CARTE dd ventes nettes | IG2: Contrats Mobilité bancaire | IH2: Bouquet liberté HDG | II2: Bouquet liberté Autres | IJ2: Futéo / SOL 16-17 / Jeune / Autonomie | IK2: Satellis Essentiel / Essentiel + | IL2: Satellis Intégral | IM2: PNB formules Famille BDD | IN2: PNB formules Individuelles BDD | IO2: Auto | IP2: MRH | IQ2: Santé | IR2: GAV | IS2: PJ GU | IT2: ESO | IU2: GF | IV2: Assistance Vie | IW2: Prévoyance du locataire | IX2: Booster IARD Auto | IY2: Booster IARD MRH | IZ2: Carte Infinite | JA2: Carte Platinum (yc izicarte) | JB2: Carte visa premier (yc izicarte) | JC2: Carte visa classique (yc izicarte) | JD2: PNB cartes Senséa | JE2: Autres Cartes | JF2: PNB CARTE débit dif bonus de 40€ x 5 ans par carte nette | JG2: PNB option | JH2: Bonus Mobilité bancaire | JI2: PNB BANCA PART | JJ2: Forfaits Part PRO | JK2: FORMULE INDIVIDUELLE INITIAL PRO | JL2: FORMULE INDIVIDUELLE CONFORT PRO | JM2: FORMULE INDIVIDUELLE OPTIMAL PRO | JN2: FORMULE FAMILLE INITIAL PRO | JO2: FORMULE FAMILLE CONFORT PRO | JP2: FORMULE FAMILLE OPTIMAL PRO | JQ2: Cartes Part PRO | JR2: IARD Part PRO | JS2: PNB Forfaits Part PRO | JT2: PNB FORMULE FAMILLE PRO | JU2: PNB FORMULE INDIVIDUELLE PRO | JV2: PNB Cartes Part PRO | JW2: PNB IARD Part PRO | JX2: PNB BANCA part du PRO | JY2: Ventes nettes Libre Convergence Labelis | JZ2: Business Platinum | KA2: Auto entrepreneur | KB2: Business | KC2: Business Gold | KD2: PAP | KE2: Auto PRO Volume | KF2: MRH PRO Volume | KG2: Contrats monétiques actif PRO | KH2: PNB Libre Convergence | KI2: Business Platinum | KJ2: Auto entrepreneur | KK2: Business | KL2: Business Gold | KM2: PAP | KN2: Auto PRO PNB | KO2: MRH PRO PNB | KP2: Contrats monétiques actif PRO PNB | KQ2: com mouv | KR2: PNB PRO Banca | KS2: Volumes Remises | KT2: Volumes Facturé | KU2: I selection Volumes (taux pour calcul PNB) | KV2: SCPI Volumes (taux pour calcul PNB) | KW2: STRADIM Volumes (taux pour calcul PNB) | KX2: CFF Volumes (taux de 1,00% pour calcul PNB) | KY2: PNB TOTAL AUTRES | KZ2: Evolution stock clients actifs BAD (1 connexion / mois sur 3 mois) | LA2: Nombre de SED finalisées (en brut) | LB2: Nombre de SAG finalisées (périmètre SAG hors OPC en brut) | LC2: Evolution stock de clients équipés E-documents | LD2: Evolution stock de clients avec Opt-in-mail et tél. | LE2: Evolution stock de clients équipés Sécurpass | LF2: Evolution stock clients actifs BAD (1 connexion / mois sur 3 mois) PNB | LG2: Nombre de SED finalisées (en brut) PNB | LH2: Nombre de SAG finalisées (périmètre SAG hors OPC en brut) PNB | LI2: Evolution stock de clients équipés E-documents PNB | LJ2: Evolution stock de clients avec Opt-in-mail et tél. PNB | LK2: Evolution stock de clients équipés Sécurpass PNB | LL2: Id Ecureuil Vie | LM2: ETP Performance | LN2: PNB TOTAL hors digital | LO2: PNB PRO | LP2: PNB TOTAL / ETP | LQ2: PNB TOTAL (Hors booster) | LR2: PNB TOTAL (Hors booster) / ETP | LS2: PV Bernard L. | MI2: tx
G3: 2019-11-30 | Z3: 1.30 | AD3: 1,000 € | BH3: =Z3 -> 1.30 | DZ3: =objectifs!DX373 -> 8.50 | FZ3: =objectifs!EA373 -> 0.25% | GA3: =objectifs!EB373 -> 8.00 | GB3: 2.80% | GC3: 1.00 | GL3: 0.20% | GN3: 1.00% | GP3: 0.45% | GQ3: =DY374 -> 0.00% | GR3: =GS3 -> 0.60% | GS3: 0.60% | GU3: 1.00% | GV3: 9.00 | GW3: 5.00 | GY3: 8.00 | GZ3: =GV3 -> 9.00 | HA3: 5.37 | HB3: 5.37 | HC3: 5.37 | HE3: 140 € | HF3: 87 € | HG3: 12 € | HH3: 125 € | HI3: 210 € | HJ3: 38 € | HK3: 80 € | HL3: 210 € | HM3: 144 € | HN3: 170 € | HO3: 324 € | HP3: =objectifs!FL3 -> 15 € | HQ3: 43 € | HR3: 25 € | HS3: 65 € | HT3: 15 € | HU3: 3 € | HV3: 14 € | HW3: 19 € | HX3: 45 € | HY3: 20 € | HZ3: 315 € | IA3: 200 € | IB3: 130 € | IC3: 43 € | ID3: 43 € | IE3: 12 € | IH3: 5.00 | II3: 5.00 | IJ3: 5.00 | IK3: 5.00 | IL3: 5.00 | IM3: =IN3 -> 5.00 | IN3: =II3 -> 5.00 | IO3: 2.75 | IP3: 3.96 | IQ3: 3.94 | IR3: 5.37 | IS3: 6.19 | IT3: 7.00 | IU3: 6.00 | IV3: 9.50 | IW3: 4.50 | IX3: 40 € | IY3: =IX3 -> 40 € | IZ3: 5.00 | JA3: 5.00 | JB3: 5.00 | JC3: 5.00 | JD3: 5.00 | JE3: 5.00 | JF3: 40 € | JG3: =objectifs!FM3 -> 5.00 | JH3: 200 € | JJ3: 137 € | JK3: =$HJ$3 -> 38 € | JL3: =$HK$3 -> 80 € | JM3: =$HL$3 -> 210 € | JN3: =HM3 -> 144 € | JO3: =HN3 -> 170 € | JP3: =HO3 -> 324 € | JQ3: 289 € | JR3: 20 € | JS3: 5.00 | JT3: 5.00 | JU3: 5.00 | JV3: 5.00 | JW3: 5.00 | JY3: =objectifs!GZ3 -> 288 € | JZ3: =objectifs!HA3 -> 195 € | KA3: =objectifs!HB3 -> 120 € | KB3: =objectifs!HC3 -> 47 € | KC3: =objectifs!HD3 -> 130 € | KD3: =objectifs!HE3 -> 18 € | KE3: 100 € | KF3: 30 € | KG3: 100 € | KH3: =objectifs!HF3 -> 5.00 | KI3: =objectifs!HG3 -> 5.00 | KJ3: =objectifs!HH3 -> 5.00 | KK3: =objectifs!HI3 -> 5.00 | KL3: =objectifs!HJ3 -> 5.00 | KM3: =objectifs!HK3 -> 5.00 | KN3: 2.75 | KO3: 3.96 | KP3: 5.00 | KU3: =objectifs!FW373 -> 4.00% | KV3: =objectifs!FW373 -> 4.00% | KW3: 2.00% | KX3: 1.00% | KZ3: 5.00 | LA3: 1.00 | LB3: 1.00 | LC3: 5.00 | LD3: 3.00 | LE3: 5.00 | LF3: 15 € | LG3: 10 € | LH3: 3 € | LI3: 10 € | LJ3: 5 € | LK3: 1 €
A4: 105006 | B4: 200262 | C4: 6 | D4: STRASBOURG NEUDORF | E4: 6 | F4: STRASBOURG NEUDORF | G4: =$G$3 -> 2019-11-30 | H4: 230 | I4: 4.32% | J4: 1.57 | K4: 2019-11-30 | L4: 2,041 | M4: 3.27% | N4: 2.47 | O4: =L4*M4*N4 -> 165 | P4: 96.37% | Q4: 130.01% | R4: 41 | S4: 8 | T4: =(H4*I4*J4)+O4+R4+S4 -> 229 | U4: 7,753 | V4: 0.33% | W4: 7.46 | X4: 59.45% | Y4: 122.13% | Z4: 131 | AA4: 19 | AB4: 13.8 | AC4: 9 | AD4: =AC4*$AD$3/1000 -> 9 | AE4: -25 | AF4: =(U4*V4*W4)+AA4+AB4+Z4+AD4+AE4 -> 339 | AG4: 100 | AH4: 1.72% | AI4: 1.72 | AJ4: 0 | AK4: 0.00% | AL4: 0 | AM4: =AJ4*AK4*AL4 -> 0 | AN4: 0.7 | AO4: 0.00 | AP4: 68.08% | AQ4: 100.00% | AR4: 0 | AS4: =(AG4*AH4*AI4)+AO4+AR4+AM4+AN4 -> 4 | AT4: 96 | AU4: 3.34% | AV4: 2.27 | AW4: 1 | AX4: 100.00% | AY4: 147.99% | AZ4: 2 | BA4: =(AT4*AU4*AV4)+AW4+AZ4 -> 10 | BB4: 1,441 | BC4: 0.14% | BD4: 8.10 | BE4: 0 | BF4: 100.00% | BG4: 26.70% | BH4: 10 | BI4: 2 | BJ4: =(BB4*BC4*BD4)+BH4+BI4+BE4 -> 29 | BK4: =AF4+T4+AS4 -> 572 | BL4: 201911 | BM4: 5.00 | BN4: 0.12 | BO4: =IF(ISERROR(BN4/BM4),0,BN4/BM4) -> 2.40% | BP4: 433.56 | BQ4: 50.76 | BR4: =IF(ISERROR(BQ4/BP4),0,BQ4/BP4) -> 12% | BS4: 5.88 | BT4: =IF(ISERROR(BS4/BP4),0,BS4/BP4) -> 1.36% | BU4: 1,642.60 | BV4: 178.76 | BW4: =IF(ISERROR(BV4/BU4),0,BV4/BU4) -> 10.9% | BX4: 7.25 | BY4: =IF(ISERROR(BX4/BU4),0,BX4/BU4) -> 0.44% | BZ4: 116.50 | CA4: 2.26 | CB4: =IF(ISERROR(CA4/BZ4),0,CA4/BZ4) -> 1.94% | CC4: 1.68 | CD4: =IF(ISERROR(CC4/BZ4),0,CC4/BZ4) -> 1.44% | CE4: 2,197.66 | CF4: 231.78 | CG4: =IF(ISERROR(CF4/CE4),0,CF4/CE4) -> 10.5% | CH4: 14.93 | CI4: =IF(ISERROR(CH4/CE4),0,CH4/CE4) -> 0.68% | CJ4: -33 | CK4: =CK$374 -> 0.70% | CL4: 5.33 | CM4: =CJ4*CK4*CL4 -> -1 | CN4: 222 | CO4: =CO$374 -> 0.63% | CP4: 5.33 | CQ4: =CN4*CO4*CP4 -> 7 | CR4: -61 | CS4: =CS$374 -> 0.71% | CT4: 5.33 | CU4: =CR4*CS4*CT4 -> -2 | CV4: 168 | CW4: =CW$374 -> 0.40% | CX4: 1.05 | CY4: =CV4*CW4*CX4 -> 1 | CZ4: -408 | DA4: =DA$374 -> 0.20% | DB4: 5.37 | DC4: =CZ4*DA4*DB4 -> -4 | DD4: 303 | DE4: =DE$374 -> 0.20% | DF4: 5.37 | DG4: =DD4*DE4*DF4 -> 3 | DH4: -32 | DI4: =DI$374 -> 0.20% | DJ4: 5.37 | DK4: =DH4*DI4*DJ4 -> -0 | DL4: 140 | DM4: =DM$374 -> 0.19% | DN4: 5.33 | DO4: =DL4*DM4*DN4 -> 1 | DP4: -4 | DQ4: =DQ$374 -> 0.10% | DR4: 8.57 | DS4: =DP4*DQ4*DR4 -> -0 | DT4: -79 | DU4: =DU$374 -> 0.20% | DV4: 9.00 | DW4: =DT4*DU4*DV4 -> -1 | DX4: -161 | DY4: =$DY$374 -> 0.00% | DZ4: 8.59 | EA4: =DX4*DY4*DZ4 -> 0 | EB4: -4 | EC4: =EC$374 -> -0.26% | ED4: 0.74 | EE4: =EB4*EC4*ED4 -> 0 | EF4: -889 | EG4: =EG$374 -> 0.20% | EH4: 8.00 | EI4: =EF4*EG4*EH4 -> -14 | EJ4: 284 | EK4: =EK$374 -> 1.00% | EL4: 5.00 | EM4: =EJ4*EK4*EL4 -> 14 | EN4: =CJ4+CN4+CR4+CV4+CZ4+DD4+DH4+DL4+DT4+DX4+EB4+EF4+EJ4+DP4+GR4 -> -367 | EO4: =CM4+CQ4+CU4+CY4+DC4+DG4+DK4+DO4+DS4+DW4+EA4+EE4+EI4+EM4+HA4 -> 9 | EP4: -1,058 | EQ4: =EQ$374 -> 0.45% | ER4: 8.00 | ES4: =EP4*EQ4*ER4 -> -38 | ET4: 179 | EU4: =EU$374 -> 0.45% | EV4: 8.00 | EW4: =ET4*EU4*EV4 -> 6 | EX4: -171 | EY4: =EY$374 -> 0.65% | EZ4: 5.00 | FA4: =EX4*EY4*EZ4 -> -6 | FB4: -303 | FC4: =FC$374 -> 0.65% | FD4: 5.00 | FE4: =FB4*FC4*FD4 -> -10 | FF4: -28 | FG4: =FG$374 -> 1.00% | FH4: 5.00 | FI4: =FF4*FG4*FH4 -> -1 | FJ4: 2,349 | FK4: =CI4 -> 0.68% | FL4: =FL$374 -> 1.00 | FM4: =FJ4*FK4*FL4 -> 16 | FN4: 282 | FO4: =FK4 -> 0.68% | FP4: =FP$374 -> 1.00 | FQ4: =FN4*FO4*FP4 -> 2 | FR4: 27 | FS4: =FS$374 -> 0.40% | FT4: 1.00 | FU4: =FR4*FS4*FT4 -> 0 | FV4: 0 | FW4: =FS4 -> 0.40% | FX4: =FX$374 -> 1.00 | FY4: =FV4*FW4*FX4 -> 0 | FZ4: 399 | GA4: =FZ4*$FZ$3*$GA$3 -> 8 | GB4: 165 | GC4: =GB4*$GB$3*$GC$3 -> 5 | GD4: =EP4+EX4+ET4+FB4+FF4 -> -1,381 | GE4: =ES4+FM4+FA4+FU4+EW4+FQ4+FE4+FY4+FI4+GA4+GC4 -> -18 | GF4: 252 | GG4: =IF(ISERROR(IF(VLOOKUP($C4,'Indicateurs Cumulés'!$C$3:$HJ$560,186,FALSE)/(VLOOKUP($C4,objectifs!$C$3:$AAB$559,158,FALSE))>=1.5,(VLOOKUP($C4,objectifs!$C$3:$AAB$559,158,FALSE))*1.5,IF(VLOOKUP($C4,'Indicateurs Cumulés'!$C$3:$HJ$560,186,FALSE)/(VLOOKUP($C4,objectifs!$C$3:$AAB$559,158,FALSE))<=-0.5,(VLOOKUP($C4,objectifs!$C$3:$AAB$559,158,FALSE))*-0.5,VLOOKUP($C4,'Indicateurs Cumulés'!$C$3:$HJ$560,186,FALSE)))),VLOOKUP($C4,'Indicateurs Cumulés'!$C$3:$HJ$560,186,FALSE),IF(VLOOKUP($C4,'Indicateurs Cumulés'!$C$3:$HJ$560,186,FALSE)/(VLOOKUP($C4,objectifs!$C$3:$AAB$559,158,FALSE))>=1.5,(VLOOKUP($C4,objectifs!$C$3:$AAB$559,158,FALSE))*1.5,IF(VLOOKUP($C4,'Indicateurs Cumulés'!$C$3:$HJ$560,186,FALSE)/(VLOOKUP($C4,objectifs!$C$3:$AAB$559,158,FALSE))<=-0.5,(VLOOKUP($C4,objectifs!$C$3:$AAB$559,158,FALSE))*-0.5,VLOOKUP($C4,'Indicateurs Cumulés'!$C$3:$HJ$560,186,FALSE)))) -> 252 | GH4: =GH$374 -> 1.00% | GI4: 5.37 | GJ4: =GG4*GH4*GI4 -> 14 | GK4: =(EO4+GE4+GJ4) -> 5 | GL4: 0 | GM4: =$DU$374 -> 0.20% | GN4: 10 | GP4: 8 | GQ4: 1 | GR4: 189 | GS4: -176 | GT4: 232 | GU4: =IF(ISERROR(IF(VLOOKUP($C4,'Indicateurs Cumulés'!$C$3:$HJ$560,200,FALSE)/(VLOOKUP($C4,objectifs!$C$3:$AAB$559,162,FALSE))>=1.5,(VLOOKUP($C4,objectifs!$C$3:$AAB$559,162,FALSE))*1.5,IF(VLOOKUP($C4,'Indicateurs Cumulés'!$C$3:$HJ$560,200,FALSE)/(VLOOKUP($C4,objectifs!$C$3:$AAB$559,162,FALSE))<=-0.5,(VLOOKUP($C4,objectifs!$C$3:$AAB$559,162,FALSE))*-0.5,VLOOKUP($C4,'Indicateurs Cumulés'!$C$3:$HJ$560,200,FALSE)))),VLOOKUP($C4,'Indicateurs Cumulés'!$C$3:$HJ$560,200,FALSE),IF(VLOOKUP($C4,'Indicateurs Cumulés'!$C$3:$HJ$560,200,FALSE)/(VLOOKUP($C4,objectifs!$C$3:$AAB$559,162,FALSE))>=1.5,(VLOOKUP($C4,objectifs!$C$3:$AAB$559,162,FALSE))*1.5,IF(VLOOKUP($C4,'Indicateurs Cumulés'!$C$3:$HJ$560,200,FALSE)/(VLOOKUP($C4,objectifs!$C$3:$AAB$559,162,FALSE))<=-0.5,(VLOOKUP($C4,objectifs!$C$3:$AAB$559,162,FALSE))*-0.5,VLOOKUP($C4,'Indicateurs Cumulés'!$C$3:$HJ$560,200,FALSE)))) -> 8 | GV4: =GL4*$GL$3*$GV$3 -> 0 | GW4: =GN4*$GN$3*$GW$3 -> 1 | GY4: =GP4*$GP$3*$GY$3 -> 0 | GZ4: =GQ4*$GQ$3*$GZ$3 -> 0 | HA4: =GR4*$GR$3*$HA$3 -> 6 | HB4: =GS4*$GS$3*$HB$3 -> -6 | HC4: =GU4*$GU$3*$HC$3 -> 0 | HD4: =GV4+GW4+GX4+GY4+HA4+HB4+HC4+GZ4 -> 2 | HE4: =HZ4+IA4+IB4 -> 128 | HF4: -116 | HG4: 5 | HH4: -64 | HI4: -5 | HJ4: 0 | HK4: 15 | HL4: 0 | HM4: 0 | HN4: 2 | HO4: 0 | HP4: 0 | HQ4: 17 | HR4: -1 | HS4: -2 | HT4: 14 | HU4: -7 | HV4: 7 | HW4: 29 | HX4: 0 | HY4: 0 | HZ4: 4 | IA4: -1 | IB4: 125 | IC4: -143 | ID4: -38 | IE4: 0 | IF4: 92 | IG4: 19 | IH4: =HE4*$HE$3*$IH$3/1000 -> 89 | II4: =HF4*II$3*HF$3/1000 -> -51 | IJ4: =HG4*IJ$3*HG$3/1000 -> 0 | IK4: =HH4*IK$3*HH$3/1000 -> -40 | IL4: =HI4*IL$3*HI$3/1000 -> -5 | IM4: =(HM4*$HM$3+HN4*$HN$3+HO4*$HO$3)*5/1000 -> 2 | IN4: =(HJ4*$HJ$3+HK4*$HK$3+HL4*$HL$3)*5/1000 -> 6 | IO4: =HQ4*IO$3*HQ$3/1000 -> 2 | IP4: =HR4*IP$3*HR$3/1000 -> -0 | IQ4: =HS4*IQ$3*HS$3/1000 -> -1 | IR4: =HT4*IR$3*HT$3/1000 -> 1 | IS4: =HU4*IS$3*HU$3/1000 -> -0 | IT4: =HV4*IT$3*HV$3/1000 -> 1 | IU4: =HW4*IU$3*HW$3/1000 -> 3 | IV4: =HX4*HX$3*IV$3/1000 -> 0 | IW4: =HY4*$HY$3*$IW$3/1000 -> 0 | IX4: =HQ4*$IX$3*$II$3/1000 -> 3 | IY4: =HR4*$IY$3*$II$3/1000 -> -0 | IZ4: =HZ4*IZ$3*HZ$3/1000 -> 6 | JA4: =IA4*JA$3*IA$3/1000 -> -1 | JB4: =IB4*JB$3*IB$3/1000 -> 81 | JC4: =IC4*JC$3*IC$3/1000 -> -31 | JD4: =(ID4*$ID$3*$JD$3)/1000 -> -8 | JE4: =IE4*JE$3*IE$3/1000 -> 0 | JF4: =IF4*$JF$3*$JB$3/1000 -> 18 | JG4: =HP4*$HP$3*$JG$3/1000 -> 0 | JH4: =+IG4*$JH$3/1000 -> 3.8 | JI4: =SUM(IH4:JH4) -> 81 | JJ4: 1 | JK4: 0 | JL4: 0 | JM4: 0 | JO4: 0 | JP4: 0 | JQ4: 3 | JR4: -2 | JS4: =JJ4*$JJ$3*$JS$3/1000 -> 1 | JT4: =(JN4*JN$3+JO4*$JO$3+JP4*$JP$3)*$JT$3/1000 -> 0 | JU4: =(JK4*JK$3+JL4*$JL$3+JM4*$JM$3)*$JU$3/1000 -> 0 | JV4: =JQ4*$JQ$3*$JV$3/1000 -> 4 | JW4: =JR4*$JR$3*$JW$3/1000 -> -0 | JX4: =SUM(JS4:JW4) -> 5 | JY4: 5 | JZ4: 0 | KA4: -1 | KB4: 3 | KC4: 2 | KD4: 0 | KE4: 0 | KF4: 0 | KG4: 0 | KH4: =JY4*KH$3*JY$3/1000 -> 7 | KI4: =JZ4*KI$3*JZ$3/1000 -> 0 | KJ4: =KA4*KJ$3*KA$3/1000 -> -1 | KK4: =KB4*KK$3*KB$3/1000 -> 1 | KL4: =KC4*KL$3*KC$3/1000 -> 1 | KM4: =KD4*KM$3*KD$3/1000 -> 0 | KN4: =KE4*$KE$3*$KN$3/1000 -> 0 | KO4: =KF4*$KF$3*$KO$3/1000 -> 0 | KP4: =KG4*$KG$3*$KP$3/1000 -> 0 | KQ4: 11 | KR4: =SUM(KH4:KQ4) -> 19 | KS4: -22 | KT4: 609 | KU4: 0 | KV4: 0 | KW4: 0 | KX4: 0 | KY4: =(KU4*$KU$3)+(KX4*$KX$3)+(KV4*$KV$3)+(KW4*$KW$3)+KS4 -> -22 | KZ4: 290 | LA4: 379 | LB4: 1469 | LC4: 189 | LD4: 80 | LE4: 168 | LF4: =IF(KZ4<0,0,KZ4*$KZ$3*$LF$3/1000) -> 21.8 | LG4: =IF(LA4<0,0,LA4*$LA$3*$LG$3/1000) -> 3.8 | LH4: =IF(LB4<0,0,LB4*$LB$3*$LH$3/1000) -> 4.4 | LI4: =IF(LC4<0,0,LC4*$LC$3*$LI$3/1000) -> 9.5 | LJ4: =IF(LD4<0,0,LD4*$LD$3*$LJ$3/1000) -> 1.2 | LK4: =IF(LE4<0,0,LE4*$LE$3*$LK$3/1000) -> 0.8 | LL4: 6 | LM4: 7.5 | LN4: =(H4*I4*J4+O4+R4+S4+U4*V4*W4+Z4+AA4+AB4+AD4+AE4+AG4*AH4*AI4+AM4+AN4+AO4+AR4)*1 +(CM4+CQ4+CU4+CY4+DC4+DG4+DK4+DO4+DS4+DW4+EA4+EE4+EI4+EM4+ES4+EW4+FA4+FE4+FI4+FM4+FQ4+FU4+FY4+GA4+GC4+GJ4+HA4)*1 +SUM(IH4:JH4)*1 +SUM(KH4:KQ4)*1 +SUM(JS4:JW4)*1 +(KU4*$KU$3+KV4*$KV$3+KW4*$KW$3+KX4*$KX$3+KS4)*1 -> 660 | LO4: =(AG4*AH4*AI4+AM4+AO4+AR4+AT4*AU4*AV4+AW4+AZ4+BB4*BC4*BD4+BE4+BH4+BI4)*1+SUM(GV4:HC4)*1+SUM(JS4:JW4)*1+SUM(KH4:KQ4)*1 -> 68 | LP4: =IF(LM4=0,0,LN4/LM4) -> 87.97 | LQ4: =LN4-JF4-IX4-IY4-JH4-AD4-(Z4-Z4/1.3) -> 595 | LR4: =IF(LM4=0,0,LQ4/LM4) -> 79.4 | LS4: =LN4+SUM(LF4:LK4) -> 702 | MI4: =#REF!/U4 -> 
A5: 105101 | B5: 200262 | C5: 7 | D5: ILLKIRCH CENTRE | E5: 7 | F5: ILLKIRCH CENTRE | G5: =$G$3 -> 2019-11-30 | H5: 239 | I5: 4.32% | J5: 1.57 | K5: 2019-11-30 | L5: 2,829 | M5: 2.99% | N5: 2.65 | O5: =L5*M5*N5 -> 224 | P5: 86.20% | Q5: 151.66% | R5: 63 | S5: 11 | T5: =(H5*I5*J5)+O5+R5+S5 -> 314 | U5: 11,499 | V5: 0.21% | W5: 6.44 | X5: 43.09% | Y5: 160.88% | Z5: 184 | AA5: 27 | AB5: 16.7 | AC5: 23 | AD5: 23 | AE5: -27 | AF5: =(U5*V5*W5)+AA5+AB5+Z5+AD5+AE5 -> 381 | AG5: 1,046 | AH5: 1.46% | AI5: 6.54 | AJ5: 305 | AK5: 0.58% | AL5: 2.37 | AM5: 4 | AN5: 2.8 | AO5: 0.98 | AP5: 81.90% | AQ5: 100.00% | AR5: 0 | AS5: =(AG5*AH5*AI5)+AO5+AR5+AM5+AN5 -> 108 | AT5: 312 | AU5: 2.63% | AV5: 2.70 | AW5: 1 | AX5: 80.74% | AY5: 137.99% | AZ5: 6 | BA5: 29 | BB5: 1,557 | BC5: 0.18% | BD5: 7.64 | BE5: 4 | BF5: 180.44% | BG5: 37.91% | BH5: 21 | BI5: 3 | BJ5: 50 | BK5: 802 | BL5: 201911 | BM5: 25.00 | BN5: 0.17 | BO5: =IF(ISERROR(BN5/BM5),0,BN5/BM5) -> 0.67% | BP5: 924.14 | BQ5: 221.11 | BR5: 24% | BS5: 6.60 | BT5: 0.71% | BU5: 3,536.45 | BV5: 471.44 | BW5: 13.3% | BX5: 6.23 | BY5: 0.18% | BZ5: 211.56 | CA5: 27.50 | CB5: 13.00% | CC5: 2.94 | CD5: 1.39% | CE5: 4,697.15 | CF5: 720.04 | CG5: 15.3% | CH5: 15.93 | CI5: 0.34% | CJ5: -491 | CK5: 0.70% | CL5: 5.33 | CM5: =CJ5*CK5*CL5 -> -18 | CN5: 5 | CO5: 0.63% | CP5: 5.33 | CQ5: =CN5*CO5*CP5 -> 0 | CR5: -76 | CS5: 0.71% | CT5: 5.33 | CU5: =CR5*CS5*CT5 -> -3 | CV5: 206 | CW5: 0.40% | CX5: 1.05 | CY5: =CV5*CW5*CX5 -> 1 | CZ5: -444 | DA5: 0.20% | DB5: 5.37 | DC5: =CZ5*DA5*DB5 -> -5 | DD5: -88 | DE5: 0.20% | DF5: 5.37 | DG5: =DD5*DE5*DF5 -> -1 | DH5: -40 | DI5: 0.20% | DJ5: 5.37 | DK5: =DH5*DI5*DJ5 -> -0 | DL5: -115 | DM5: 0.19% | DN5: 5.33 | DO5: =DL5*DM5*DN5 -> -1 | DP5: -37 | DQ5: 0.10% | DR5: 6.90 | DS5: =DP5*DQ5*DR5 -> -0 | DT5: -204 | DU5: 0.20% | DV5: 9.00 | DW5: =DT5*DU5*DV5 -> -4 | DX5: -234 | DY5: 0.00% | DZ5: 7.72 | EA5: =DX5*DY5*DZ5 -> 0 | EB5: 0 | EC5: -0.26% | ED5: 0.74 | EE5: =EB5*EC5*ED5 -> 0 | EF5: -918 | EG5: 0.20% | EH5: 8.00 | EI5: =EF5*EG5*EH5 -> -15 | EJ5: 409 | EK5: 1.00% | EL5: 5.00 | EM5: =EJ5*EK5*EL5 -> 20 | EN5: -1,633 | EO5: =CM5+CQ5+CU5+CY5+DC5+DG5+DK5+DO5+DW5+EA5+EE5+EI5+EM5+DS5+HA5 -> -13 | EP5: 1,375 | EQ5: 0.45% | ER5: 8.00 | ES5: =EP5*EQ5*ER5 -> 49 | ET5: 817 | EU5: 0.45% | EV5: 8.00 | EW5: =ET5*EU5*EV5 -> 29 | EX5: -443 | EY5: 0.65% | EZ5: 5.00 | FA5: =EX5*EY5*EZ5 -> -14 | FB5: 0 | FC5: 0.65% | FD5: 5.00 | FE5: =FB5*FC5*FD5 -> 0 | FF5: 450 | FG5: 1.00% | FH5: 5.00 | FI5: 22 | FJ5: 4,664 | FK5: 0.34% | FL5: 1.00 | FM5: =FJ5*FK5*FL5 -> 16 | FN5: 817 | FO5: 0.34% | FP5: 1.00 | FQ5: =FN5*FO5*FP5 -> 3 | FR5: 64 | FS5: 0.40% | FT5: 1.00 | FU5: =FR5*FS5*FT5 -> 0 | FV5: 0 | FW5: 0.40% | FX5: 1.00 | FY5: 0 | FZ5: 594 | GA5: =FZ5*$FZ$3*$GA$3 -> 12 | GB5: 760 | GC5: =IF(ISERROR(GB5*$GB$3*$GC$3),0,GB5*$GB$3*$GC$3) -> 21 | GD5: 2,198 | GE5: 139 | GF5: 67 | GG5: =IF(ISERROR(IF(VLOOKUP($C5,'Indicateurs Cumulés'!$C$3:$HJ$560,186,FALSE)/(VLOOKUP($C5,objectifs!$C$3:$AAB$559,158,FALSE))>=1.5,(VLOOKUP($C5,objectifs!$C$3:$AAB$559,158,FALSE))*1.5,IF(VLOOKUP($C5,'Indicateurs Cumulés'!$C$3:$HJ$560,186,FALSE)/(VLOOKUP($C5,objectifs!$C$3:$AAB$559,158,FALSE))<=-0.5,(VLOOKUP($C5,objectifs!$C$3:$AAB$559,158,FALSE))*-0.5,VLOOKUP($C5,'Indicateurs Cumulés'!$C$3:$HJ$560,186,FALSE)))),VLOOKUP($C5,'Indicateurs Cumulés'!$C$3:$HJ$560,186,FALSE),IF(VLOOKUP($C5,'Indicateurs Cumulés'!$C$3:$HJ$560,186,FALSE)/(VLOOKUP($C5,objectifs!$C$3:$AAB$559,158,FALSE))>=1.5,(VLOOKUP($C5,objectifs!$C$3:$AAB$559,158,FALSE))*1.5,IF(VLOOKUP($C5,'Indicateurs Cumulés'!$C$3:$HJ$560,186,FALSE)/(VLOOKUP($C5,objectifs!$C$3:$AAB$559,158,FALSE))<=-0.5,(VLOOKUP($C5,objectifs!$C$3:$AAB$559,158,FALSE))*-0.5,VLOOKUP($C5,'Indicateurs Cumulés'!$C$3:$HJ$560,186,FALSE)))) -> 67 | GH5: 1.00% | GI5: 5.37 | GJ5: =GG5*GH5*GI5 -> 4 | GK5: =(EO5+GE5+GJ5) -> 130 | GL5: -17 | GM5: 0.20% | GN5: 12 | GP5: 15 | GQ5: 1 | GR5: 394 | GS5: -18 | GT5: 305 | GU5: =IF(ISERROR(IF(VLOOKUP($C5,'Indicateurs Cumulés'!$C$3:$HJ$560,200,FALSE)/(VLOOKUP($C5,objectifs!$C$3:$AAB$559,162,FALSE))>=1.5,(VLOOKUP($C5,objectifs!$C$3:$AAB$559,162,FALSE))*1.5,IF(VLOOKUP($C5,'Indicateurs Cumulés'!$C$3:$HJ$560,200,FALSE)/(VLOOKUP($C5,objectifs!$C$3:$AAB$559,162,FALSE))<=-0.5,(VLOOKUP($C5,objectifs!$C$3:$AAB$559,162,FALSE))*-0.5,VLOOKUP($C5,'Indicateurs Cumulés'!$C$3:$HJ$560,200,FALSE)))),VLOOKUP($C5,'Indicateurs Cumulés'!$C$3:$HJ$560,200,FALSE),IF(VLOOKUP($C5,'Indicateurs Cumulés'!$C$3:$HJ$560,200,FALSE)/(VLOOKUP($C5,objectifs!$C$3:$AAB$559,162,FALSE))>=1.5,(VLOOKUP($C5,objectifs!$C$3:$AAB$559,162,FALSE))*1.5,IF(VLOOKUP($C5,'Indicateurs Cumulés'!$C$3:$HJ$560,200,FALSE)/(VLOOKUP($C5,objectifs!$C$3:$AAB$559,162,FALSE))<=-0.5,(VLOOKUP($C5,objectifs!$C$3:$AAB$559,162,FALSE))*-0.5,VLOOKUP($C5,'Indicateurs Cumulés'!$C$3:$HJ$560,200,FALSE)))) -> 8 | GV5: -0 | GW5: 1 | GY5: 1 | GZ5: 0 | HA5: 13 | HB5: -1 | HC5: 0 | HD5: 13 | HE5: 70 | HF5: -55 | HG5: 5 | HH5: -40 | HI5: -8 | HJ5: 3 | HK5: 9 | HL5: 0 | HM5: 0 | HN5: 0 | HO5: 0 | HP5: 0 | HQ5: 35 | HR5: 11 | HS5: -1 | HT5: 2 | HU5: -32 | HV5: 14 | HW5: 15 | HX5: 0 | HY5: 0 | HZ5: 7 | IA5: 3 | IB5: 60 | IC5: -86 | ID5: -8 | IE5: -6 | IF5: 99 | IG5: 40 | IH5: 49 | II5: -24 | IJ5: 0 | IK5: -25 | IL5: -8 | IM5: 0 | IN5: 4 | IO5: 4 | IP5: 1 | IQ5: -0 | IR5: 0 | IS5: -1 | IT5: 1 | IU5: 2 | IV5: 0 | IW5: 0 | IX5: 7 | IY5: 2 | IZ5: 11 | JA5: 3 | JB5: 39 | JC5: -18 | JD5: -2 | JE5: -0 | JF5: 20 | JG5: 0 | JH5: 8.0 | JI5: 73 | JJ5: -1 | JK5: 0 | JL5: 0 | JM5: 0 | JO5: 0 | JP5: 0 | JQ5: 0 | JR5: 1 | JS5: -1 | JT5: 0 | JU5: 0 | JV5: 0 | JW5: 0 | JX5: -1 | JY5: 9 | JZ5: 1 | KA5: -1 | KB5: -1 | KC5: 1 | KD5: -1 | KE5: 2 | KF5: 0 | KG5: 2 | KH5: 13 | KI5: 1 | KJ5: -1 | KK5: -0 | KL5: 1 | KM5: -0 | KN5: 1 | KO5: 0 | KP5: 1 | KQ5: 20 | KR5: 35 | KS5: -43 | KT5: 530 | KU5: 165 | KV5: 18 | KW5: 0 | KX5: 0 | KY5: -35 | KZ5: 256 | LA5: 182 | LB5: 1420 | LC5: 244 | LD5: 93 | LE5: 107 | LF5: 19.2 | LG5: 1.8 | LH5: 4.3 | LI5: 12.2 | LJ5: 1.4 | LK5: 0.5 | LL5: 7 | LM5: 7.4 | LN5: 1,004 | LO5: =(AG5*AH5*AI5+AM5+AO5+AR5+AT5*AU5*AV5+AW5+AZ5+BB5*BC5*BD5+BE5+BH5+BI5)*1+SUM(GV5:HC5)*1+SUM(JS5:JW5)*1+SUM(KH5:KQ5)*1 -> 232 | LP5: 135.83 | LQ5: =LN5-JF5-IX5-IY5-JH5-AD5-(Z5-Z5/1.3) -> 902 | LR5: 122.0 | LS5: =LN5+SUM(LF5:LK5) -> 1,044 | MI5: =#REF!/U5 -> 
A6: 105101 | B6: 200262 | C6: 8 | D6: FEGERSHEIM | E6: 8 | F6: FEGERSHEIM | G6: 2019-11-30 | H6: 117 | I6: 4.32% | J6: 1.57 | K6: 2019-11-30 | L6: 1,313 | M6: 2.54% | N6: 2.77 | O6: 92 | P6: 94.05% | Q6: 126.43% | R6: 24 | S6: 7 | T6: 132 | U6: 6,355 | V6: 0.37% | W6: 7.70 | X6: 42.36% | Y6: 119.98% | Z6: 93 | AA6: 20 | AB6: 12.2 | AC6: 10 | AD6: 10 | AE6: -16 | AF6: 300 | AG6: 45 | AH6: 1.53% | AI6: 1.43 | AJ6: 176 | AK6: 1.10% | AL6: 2.06 | AM6: 4 | AN6: 0.7 | AO6: 1.65 | AP6: 83.33% | AQ6: 100.00% | AR6: 0 | AS6: 7 | AT6: 147 | AU6: 2.50% | AV6: 2.48 | AW6: 1 | AX6: 100.00% | AY6: 86.39% | AZ6: 2 | BA6: 12 | BB6: 91 | BC6: -0.36% | BD6: 7.56 | BE6: 0 | BF6: 0.00% | BG6: 0.00% | BH6: 0 | BI6: 0 | BJ6: -2 | BK6: 440 | BL6: 201911 | BM6: 62.02 | BN6: 0.14 | BO6: 0.23% | BP6: 409.05 | BQ6: 117.36 | BR6: 29% | BS6: 3.33 | BT6: 0.81% | BU6: 1,235.52 | BV6: 262.33 | BW6: 21.2% | BX6: 0.95 | BY6: 0.08% | BZ6: 129.60 | CA6: 28.84 | CB6: 22.25% | CC6: 1.32 | CD6: 1.02% | CE6: 1,837.79 | CF6: 408.53 | CG6: 22.2% | CH6: 5.78 | CI6: 0.31% | CJ6: -29 | CK6: 0.70% | CL6: 5.33 | CM6: -1 | CN6: 534 | CO6: 0.63% | CP6: 5.33 | CQ6: 18 | CR6: -74 | CS6: 0.71% | CT6: 5.33 | CU6: -3 | CV6: 367 | CW6: 0.40% | CX6: 1.05 | CY6: 2 | CZ6: -230 | DA6: 0.20% | DB6: 5.37 | DC6: -2 | DD6: 172 | DE6: 0.20% | DF6: 5.37 | DG6: 2 | DH6: -44 | DI6: 0.20% | DJ6: 5.37 | DK6: -0 | DL6: 44 | DM6: 0.19% | DN6: 5.33 | DO6: 0 | DP6: -4 | DQ6: 0.10% | DR6: 7.32 | DS6: -0 | DT6: -364 | DU6: 0.20% | DV6: 9.00 | DW6: -7 | DX6: 339 | DY6: 0.00% | DZ6: 8.59 | EA6: 0 | EB6: -1 | EC6: -0.26% | ED6: 0.74 | EE6: 0 | EF6: -777 | EG6: 0.20% | EH6: 8.00 | EI6: -12 | EJ6: 366 | EK6: 1.00% | EL6: 5.00 | EM6: 18 | EN6: 385 | EO6: 17 | EP6: 83 | EQ6: 0.45% | ER6: 8.00 | ES6: 3 | ET6: 136 | EU6: 0.45% | EV6: 8.00 | EW6: 5 | EX6: -81 | EY6: 0.65% | EZ6: 5.00 | FA6: -3 | FB6: 0 | FC6: 0.65% | FD6: 5.00 | FE6: 0 | FF6: 61 | FG6: 1.00% | FH6: 5.00 | FI6: 3 | FJ6: 1,590 | FK6: 0.31% | FL6: 1.00 | FM6: 5 | FN6: 200 | FO6: 0.31% | FP6: 1.00 | FQ6: 1 | FR6: 10 | FS6: 0.40% | FT6: 1.00 | FU6: 0 | FV6: 0 | FW6: 0.40% | FX6: 1.00 | FY6: 0 | FZ6: 127 | GA6: 3 | GB6: 313 | GC6: 9 | GD6: 198 | GE6: 25 | GF6: -77 | GG6: =IF(ISERROR(IF(VLOOKUP($C6,'Indicateurs Cumulés'!$C$3:$HJ$560,186,FALSE)/(VLOOKUP($C6,objectifs!$C$3:$AAB$559,158,FALSE))>=1.5,(VLOOKUP($C6,objectifs!$C$3:$AAB$559,158,FALSE))*1.5,IF(VLOOKUP($C6,'Indicateurs Cumulés'!$C$3:$HJ$560,186,FALSE)/(VLOOKUP($C6,objectifs!$C$3:$AAB$559,158,FALSE))<=-0.5,(VLOOKUP($C6,objectifs!$C$3:$AAB$559,158,FALSE))*-0.5,VLOOKUP($C6,'Indicateurs Cumulés'!$C$3:$HJ$560,186,FALSE)))),VLOOKUP($C6,'Indicateurs Cumulés'!$C$3:$HJ$560,186,FALSE),IF(VLOOKUP($C6,'Indicateurs Cumulés'!$C$3:$HJ$560,186,FALSE)/(VLOOKUP($C6,objectifs!$C$3:$AAB$559,158,FALSE))>=1.5,(VLOOKUP($C6,objectifs!$C$3:$AAB$559,158,FALSE))*1.5,IF(VLOOKUP($C6,'Indicateurs Cumulés'!$C$3:$HJ$560,186,FALSE)/(VLOOKUP($C6,objectifs!$C$3:$AAB$559,158,FALSE))<=-0.5,(VLOOKUP($C6,objectifs!$C$3:$AAB$559,158,FALSE))*-0.5,VLOOKUP($C6,'Indicateurs Cumulés'!$C$3:$HJ$560,186,FALSE)))) -> -77 | GH6: 1.00% | GI6: 5.37 | GJ6: -4 | GK6: 38 | GL6: -254 | GM6: 0.20% | GN6: 12 | GP6: 32 | GQ6: -30 | GR6: 87 | GS6: -366 | GT6: 51 | GU6: =IF(ISERROR(IF(VLOOKUP($C6,'Indicateurs Cumulés'!$C$3:$HJ$560,200,FALSE)/(VLOOKUP($C6,objectifs!$C$3:$AAB$559,162,FALSE))>=1.5,(VLOOKUP($C6,objectifs!$C$3:$AAB$559,162,FALSE))*1.5,IF(VLOOKUP($C6,'Indicateurs Cumulés'!$C$3:$HJ$560,200,FALSE)/(VLOOKUP($C6,objectifs!$C$3:$AAB$559,162,FALSE))<=-0.5,(VLOOKUP($C6,objectifs!$C$3:$AAB$559,162,FALSE))*-0.5,VLOOKUP($C6,'Indicateurs Cumulés'!$C$3:$HJ$560,200,FALSE)))),VLOOKUP($C6,'Indicateurs Cumulés'!$C$3:$HJ$560,200,FALSE),IF(VLOOKUP($C6,'Indicateurs Cumulés'!$C$3:$HJ$560,200,FALSE)/(VLOOKUP($C6,objectifs!$C$3:$AAB$559,162,FALSE))>=1.5,(VLOOKUP($C6,objectifs!$C$3:$AAB$559,162,FALSE))*1.5,IF(VLOOKUP($C6,'Indicateurs Cumulés'!$C$3:$HJ$560,200,FALSE)/(VLOOKUP($C6,objectifs!$C$3:$AAB$559,162,FALSE))<=-0.5,(VLOOKUP($C6,objectifs!$C$3:$AAB$559,162,FALSE))*-0.5,VLOOKUP($C6,'Indicateurs Cumulés'!$C$3:$HJ$560,200,FALSE)))) -> 8 | GV6: -5 | GW6: 1 | GY6: 1 | GZ6: 0 | HA6: 3 | HB6: -12 | HC6: 0 | HD6: -11 | HE6: 116 | HF6: -93 | HG6: -3 | HH6: -13 | HI6: -1 | HJ6: 1 | HK6: 4 | HL6: 0 | HM6: 0 | HN6: 0 | HO6: 0 | HP6: 0 | HQ6: -4 | HR6: 13 | HS6: 0 | HT6: 19 | HU6: -10 | HV6: -1 | HW6: 78 | HX6: 0 | HY6: 0 | HZ6: 0 | IA6: -2 | IB6: 118 | IC6: -98 | ID6: -12 | IE6: 2 | IF6: 25 | IG6: 6 | IH6: 81 | II6: -41 | IJ6: -0 | IK6: -8 | IL6: -1 | IM6: 0 | IN6: 2 | IO6: -0 | IP6: 1 | IQ6: 0 | IR6: 2 | IS6: -0 | IT6: -0 | IU6: 9 | IV6: 0 | IW6: 0 | IX6: -1 | IY6: 3 | IZ6: 0 | JA6: -2 | JB6: 77 | JC6: -21 | JD6: -3 | JE6: 0 | JF6: 5 | JG6: 0 | JH6: 1.2 | JI6: 103 | JJ6: 1 | JK6: 0 | JL6: 0 | JM6: 0 | JO6: 0 | JP6: 0 | JQ6: -1 | JR6: -3 | JS6: 1 | JT6: 0 | JU6: 0 | JV6: -1 | JW6: -0 | JX6: -1 | JY6: 5 | JZ6: 0 | KA6: 0 | KB6: 0 | KC6: 0 | KD6: 1 | KE6: 0 | KF6: 2 | KG6: -3 | KH6: 7 | KI6: 0 | KJ6: 0 | KK6: 0 | KL6: 0 | KM6: 0 | KN6: 0 | KO6: 0 | KP6: -2 | KQ6: 6 | KR6: 12 | KS6: -16 | KT6: 266 | KU6: 170 | KV6: 0 | KW6: 0 | KX6: 0 | KY6: -9 | KZ6: 177 | LA6: 19 | LB6: 909 | LC6: 92 | LD6: 58 | LE6: 46 | LF6: 13.3 | LG6: 0.2 | LH6: 2.7 | LI6: 4.6 | LJ6: 0.9 | LK6: 0.2 | LL6: 8 | LM6: 3.4 | LN6: 582 | LO6: 17 | LP6: 173.55 | LQ6: 543 | LR6: 161.8 | LS6: 604 | MI6: =#REF!/U6 -> 
A7: 105006 | B7: 200262 | C7: 10 | D7: STRASBOURG MEINAU | E7: 10 | F7: STRASBOURG MEINAU | G7: 2019-11-30 | H7: 142 | I7: 4.32% | J7: 1.57 | K7: 2019-11-30 | L7: 916 | M7: 3.47% | N7: 2.55 | O7: 81 | P7: 91.62% | Q7: 137.70% | R7: 19 | S7: 5 | T7: 115 | U7: 3,752 | V7: 0.13% | W7: 8.09 | X7: 54.92% | Y7: 141.03% | Z7: 62 | AA7: 15 | AB7: 6.6 | AC7: 11 | AD7: 11 | AE7: -5 | AF7: 129 | AG7: 0 | AH7: 0.00% | AI7: 0 | AJ7: 0 | AK7: 0.00% | AL7: 0 | AM7: 0 | AN7: 0 | AO7: 0.00 | AP7: 0.00% | AQ7: 0.00% | AR7: 0 | AS7: 0 | AT7: 36 | AU7: 2.47% | AV7: 3.12 | AW7: 0 | AX7: 41.67% | AY7: 200.00% | AZ7: 1 | BA7: 3 | BB7: 458 | BC7: 0.23% | BD7: 7.74 | BE7: 2 | BF7: 164.94% | BG7: 62.27% | BH7: 9 | BI7: 0 | BJ7: 20 | BK7: 244 | BL7: 201911 | BM7: 32.50 | BN7: 0.78 | BO7: 2.40% | BP7: 154.20 | BQ7: 17.95 | BR7: 12% | BS7: 2.85 | BT7: 1.85% | BU7: 881.84 | BV7: 92.86 | BW7: 10.5% | BX7: 2.05 | BY7: 0.23% | BZ7: 47.24 | CA7: 3.80 | CB7: 8.05% | CC7: 1.01 | CD7: 2.14% | CE7: 1,115.79 | CF7: 114.60 | CG7: 10.3% | CH7: 6.70 | CI7: 0.60% | CJ7: 104 | CK7: 0.70% | CL7: 5.33 | CM7: 4 | CN7: 373 | CO7: 0.63% | CP7: 5.33 | CQ7: 12 | CR7: -41 | CS7: 0.71% | CT7: 5.33 | CU7: -2 | CV7: -203 | CW7: 0.40% | CX7: 1.05 | CY7: -1 | CZ7: -220 | DA7: 0.20% | DB7: 5.37 | DC7: -2 | DD7: 156 | DE7: 0.20% | DF7: 5.37 | DG7: 2 | DH7: -38 | DI7: 0.20% | DJ7: 5.37 | DK7: -0 | DL7: -50 | DM7: 0.19% | DN7: 5.33 | DO7: -1 | DP7: -1 | DQ7: 0.10% | DR7: 8.65 | DS7: -0 | DT7: 84 | DU7: 0.20% | DV7: 9.00 | DW7: 2 | DX7: -333 | DY7: 0.00% | DZ7: 8.59 | EA7: 0 | EB7: 0 | EC7: -0.26% | ED7: 0.74 | EE7: 0 | EF7: -426 | EG7: 0.20% | EH7: 8.00 | EI7: -7 | EJ7: -19 | EK7: 1.00% | EL7: 5.00 | EM7: -1 | EN7: -570 | EO7: 8 | EP7: -595 | EQ7: 0.45% | ER7: 8.00 | ES7: -21 | ET7: -219 | EU7: 0.45% | EV7: 8.00 | EW7: -8 | EX7: -186 | EY7: 0.65% | EZ7: 5.00 | FA7: -6 | FB7: 0 | FC7: 0.65% | FD7: 5.00 | FE7: 0 | FF7: 46 | FG7: 1.00% | FH7: 5.00 | FI7: 2 | FJ7: 1,315 | FK7: 0.60% | FL7: 1.00 | FM7: 8 | FN7: 0 | FO7: 0.60% | FP7: 1.00 | FQ7: 0 | FR7: 17 | FS7: 0.40% | FT7: 1.00 | FU7: 0 | FV7: 0 | FW7: 0.40% | FX7: 1.00 | FY7: 0 | FZ7: 53 | GA7: 1 | GB7: 123 | GC7: 3 | GD7: -954 | GE7: -21 | GF7: 169 | GG7: =IF(ISERROR(IF(VLOOKUP($C7,'Indicateurs Cumulés'!$C$3:$HJ$560,186,FALSE)/(VLOOKUP($C7,objectifs!$C$3:$AAB$559,158,FALSE))>=1.5,(VLOOKUP($C7,objectifs!$C$3:$AAB$559,158,FALSE))*1.5,IF(VLOOKUP($C7,'Indicateurs Cumulés'!$C$3:$HJ$560,186,FALSE)/(VLOOKUP($C7,objectifs!$C$3:$AAB$559,158,FALSE))<=-0.5,(VLOOKUP($C7,objectifs!$C$3:$AAB$559,158,FALSE))*-0.5,VLOOKUP($C7,'Indicateurs Cumulés'!$C$3:$HJ$560,186,FALSE)))),VLOOKUP($C7,'Indicateurs Cumulés'!$C$3:$HJ$560,186,FALSE),IF(VLOOKUP($C7,'Indicateurs Cumulés'!$C$3:$HJ$560,186,FALSE)/(VLOOKUP($C7,objectifs!$C$3:$AAB$559,158,FALSE))>=1.5,(VLOOKUP($C7,objectifs!$C$3:$AAB$559,158,FALSE))*1.5,IF(VLOOKUP($C7,'Indicateurs Cumulés'!$C$3:$HJ$560,186,FALSE)/(VLOOKUP($C7,objectifs!$C$3:$AAB$559,158,FALSE))<=-0.5,(VLOOKUP($C7,objectifs!$C$3:$AAB$559,158,FALSE))*-0.5,VLOOKUP($C7,'Indicateurs Cumulés'!$C$3:$HJ$560,186,FALSE)))) -> 169 | GH7: 1.00% | GI7: 5.37 | GJ7: 9 | GK7: -4 | GL7: -1 | GM7: 0.20% | GN7: 1 | GP7: 1 | GQ7: 17 | GR7: 45 | GS7: -127 | GT7: 50 | GU7: =IF(ISERROR(IF(VLOOKUP($C7,'Indicateurs Cumulés'!$C$3:$HJ$560,200,FALSE)/(VLOOKUP($C7,objectifs!$C$3:$AAB$559,162,FALSE))>=1.5,(VLOOKUP($C7,objectifs!$C$3:$AAB$559,162,FALSE))*1.5,IF(VLOOKUP($C7,'Indicateurs Cumulés'!$C$3:$HJ$560,200,FALSE)/(VLOOKUP($C7,objectifs!$C$3:$AAB$559,162,FALSE))<=-0.5,(VLOOKUP($C7,objectifs!$C$3:$AAB$559,162,FALSE))*-0.5,VLOOKUP($C7,'Indicateurs Cumulés'!$C$3:$HJ$560,200,FALSE)))),VLOOKUP($C7,'Indicateurs Cumulés'!$C$3:$HJ$560,200,FALSE),IF(VLOOKUP($C7,'Indicateurs Cumulés'!$C$3:$HJ$560,200,FALSE)/(VLOOKUP($C7,objectifs!$C$3:$AAB$559,162,FALSE))>=1.5,(VLOOKUP($C7,objectifs!$C$3:$AAB$559,162,FALSE))*1.5,IF(VLOOKUP($C7,'Indicateurs Cumulés'!$C$3:$HJ$560,200,FALSE)/(VLOOKUP($C7,objectifs!$C$3:$AAB$559,162,FALSE))<=-0.5,(VLOOKUP($C7,objectifs!$C$3:$AAB$559,162,FALSE))*-0.5,VLOOKUP($C7,'Indicateurs Cumulés'!$C$3:$HJ$560,200,FALSE)))) -> 8 | GV7: -0 | GW7: 0 | GY7: 0 | GZ7: 0 | HA7: 1 | HB7: -4 | HC7: 0 | HD7: -2 | HE7: 41 | HF7: -24 | HG7: 8 | HH7: -11 | HI7: -1 | HJ7: 1 | HK7: 3 | HL7: 0 | HM7: 0 | HN7: 1 | HO7: 0 | HP7: 0 | HQ7: -6 | HR7: 4 | HS7: 1 | HT7: -2 | HU7: -4 | HV7: 0 | HW7: 24 | HX7: 0 | HY7: 1 | HZ7: 4 | IA7: 0 | IB7: 37 | IC7: -29 | ID7: -8 | IE7: -2 | IF7: 32 | IG7: 18 | IH7: 29 | II7: -10 | IJ7: 0 | IK7: -7 | IL7: -1 | IM7: 1 | IN7: 1 | IO7: -1 | IP7: 0 | IQ7: 0 | IR7: -0 | IS7: -0 | IT7: 0 | IU7: 3 | IV7: 0 | IW7: 0 | IX7: -1 | IY7: 1 | IZ7: 6 | JA7: 0 | JB7: 24 | JC7: -6 | JD7: -2 | JE7: -0 | JF7: 6 | JG7: 0 | JH7: 3.6 | JI7: 47 | JJ7: 1 | JK7: 0 | JL7: 0 | JM7: 0 | JO7: 0 | JP7: 0 | JQ7: 1 | JR7: 0 | JS7: 1 | JT7: 0 | JU7: 0 | JV7: 1 | JW7: 0 | JX7: 2 | JY7: -2 | JZ7: 0 | KA7: 0 | KB7: 0 | KC7: -1 | KD7: 0 | KE7: 0 | KF7: 0 | KG7: -1 | KH7: -3 | KI7: 0 | KJ7: 0 | KK7: 0 | KL7: -1 | KM7: 0 | KN7: 0 | KO7: 0 | KP7: -1 | KQ7: 2 | KR7: -2 | KS7: -15 | KT7: 337 | KU7: 360 | KV7: 0 | KW7: 0 | KX7: 0 | KY7: -1 | KZ7: 107 | LA7: 126 | LB7: 774 | LC7: 132 | LD7: -41 | LE7: 83 | LF7: 8.0 | LG7: 1.3 | LH7: 2.3 | LI7: 6.6 | LJ7: 0.0 | LK7: 0.4 | LL7: 10 | LM7: 3.4 | LN7: 287 | LO7: 21 | LP7: 85.69 | LQ7: 252 | LR7: 75.3 | LS7: 306 | MI7: =#REF!/U7 -> 
A8: 105006 | B8: 200262 | C8: 12 | D8: STRASBOURG STOCKFELD | E8: 12 | F8: STRASBOURG STOCKFELD | G8: 2019-11-30 | H8: 103 | I8: 4.32% | J8: 1.57 | K8: 2019-11-30 | L8: 610 | M8: 3.70% | N8: 2.32 | O8: 52 | P8: 87.85% | Q8: 140.79% | R8: 13 | S8: 3 | T8: 75 | U8: 949 | V8: 0.44% | W8: 8.08 | X8: 100.00% | Y8: 152.30% | Z8: 28 | AA8: 3 | AB8: 1.7 | AC8: 2 | AD8: 2 | AE8: -10 | AF8: 58 | AG8: 15 | AH8: 1.33% | AI8: 2.38 | AJ8: 0 | AK8: 0.00% | AL8: 0 | AM8: 0 | AN8: 0.2 | AO8: 0.00 | AP8: 0.00% | AQ8: 0.00% | AR8: 0 | AS8: 1 | AT8: 41 | AU8: 3.67% | AV8: 2.40 | AW8: 0 | AX8: 100.00% | AY8: 100.00% | AZ8: 1 | BA8: 4 | BB8: 0 | BC8: 0.00% | BD8: 0 | BE8: 0 | BF8: 0.00% | BG8: 0.00% | BH8: 0 | BI8: 0 | BJ8: 0 | BK8: 133 | BL8: 201911 | BM8: 24.94 | BN8: 0.60 | BO8: 2.40% | BP8: 298.02 | BQ8: 92.46 | BR8: 31% | BS8: 4.18 | BT8: 1.40% | BU8: 526.39 | BV8: 3.96 | BW8: 0.8% | BX8: 0.27 | BY8: 0.05% | BZ8: 61.28 | CA8: 2.01 | CB8: 3.27% | CC8: 0.65 | CD8: 1.05% | CE8: 910.63 | CF8: 98.42 | CG8: 10.8% | CH8: 5.70 | CI8: 0.63% | CJ8: -124 | CK8: 0.70% | CL8: 5.33 | CM8: -5 | CN8: 170 | CO8: 0.63% | CP8: 5.33 | CQ8: 6 | CR8: 33 | CS8: 0.71% | CT8: 5.33 | CU8: 1 | CV8: -5 | CW8: 0.40% | CX8: 1.05 | CY8: -0 | CZ8: -150 | DA8: 0.20% | DB8: 5.37 | DC8: -2 | DD8: 39 | DE8: 0.20% | DF8: 5.37 | DG8: 0 | DH8: -13 | DI8: 0.20% | DJ8: 5.37 | DK8: -0 | DL8: 13 | DM8: 0.19% | DN8: 5.33 | DO8: 0 | DP8: 12 | DQ8: 0.10% | DR8: 7.64 | DS8: 0 | DT8: -34 | DU8: 0.20% | DV8: 9.00 | DW8: -1 | DX8: -568 | DY8: 0.00% | DZ8: 8.59 | EA8: 0 | EB8: 0 | EC8: -0.26% | ED8: 0.74 | EE8: 0 | EF8: -304 | EG8: 0.20% | EH8: 8.00 | EI8: -5 | EJ8: 256 | EK8: 1.00% | EL8: 5.00 | EM8: 13 | EN8: -744 | EO8: 6 | EP8: 76 | EQ8: 0.45% | ER8: 8.00 | ES8: 3 | ET8: 0 | EU8: 0.45% | EV8: 8.00 | EW8: 0 | EX8: -53 | EY8: 0.65% | EZ8: 5.00 | FA8: -2 | FB8: 0 | FC8: 0.65% | FD8: 5.00 | FE8: 0 | FF8: 11 | FG8: 1.00% | FH8: 5.00 | FI8: 1 | FJ8: 922 | FK8: 0.63% | FL8: 1.00 | FM8: 6 | FN8: 0 | FO8: 0.63% | FP8: 1.00 | FQ8: 0 | FR8: 7 | FS8: 0.40% | FT8: 1.00 | FU8: 0 | FV8: 0 | FW8: 0.40% | FX8: 1.00 | FY8: 0 | FZ8: 58 | GA8: 1 | GB8: 122 | GC8: 3 | GD8: 34 | GE8: 12 | GF8: 25 | GG8: =IF(ISERROR(IF(VLOOKUP($C8,'Indicateurs Cumulés'!$C$3:$HJ$560,186,FALSE)/(VLOOKUP($C8,objectifs!$C$3:$AAB$559,158,FALSE))>=1.5,(VLOOKUP($C8,objectifs!$C$3:$AAB$559,158,FALSE))*1.5,IF(VLOOKUP($C8,'Indicateurs Cumulés'!$C$3:$HJ$560,186,FALSE)/(VLOOKUP($C8,objectifs!$C$3:$AAB$559,158,FALSE))<=-0.5,(VLOOKUP($C8,objectifs!$C$3:$AAB$559,158,FALSE))*-0.5,VLOOKUP($C8,'Indicateurs Cumulés'!$C$3:$HJ$560,186,FALSE)))),VLOOKUP($C8,'Indicateurs Cumulés'!$C$3:$HJ$560,186,FALSE),IF(VLOOKUP($C8,'Indicateurs Cumulés'!$C$3:$HJ$560,186,FALSE)/(VLOOKUP($C8,objectifs!$C$3:$AAB$559,158,FALSE))>=1.5,(VLOOKUP($C8,objectifs!$C$3:$AAB$559,158,FALSE))*1.5,IF(VLOOKUP($C8,'Indicateurs Cumulés'!$C$3:$HJ$560,186,FALSE)/(VLOOKUP($C8,objectifs!$C$3:$AAB$559,158,FALSE))<=-0.5,(VLOOKUP($C8,objectifs!$C$3:$AAB$559,158,FALSE))*-0.5,VLOOKUP($C8,'Indicateurs Cumulés'!$C$3:$HJ$560,186,FALSE)))) -> 25 | GH8: 1.00% | GI8: 5.37 | GJ8: 1 | GK8: 20 | GL8: -20 | GM8: 0.20% | GN8: -0 | GP8: 0 | GQ8: -28 | GR8: -70 | GS8: -65 | GT8: 23 | GU8: =IF(ISERROR(IF(VLOOKUP($C8,'Indicateurs Cumulés'!$C$3:$HJ$560,200,FALSE)/(VLOOKUP($C8,objectifs!$C$3:$AAB$559,162,FALSE))>=1.5,(VLOOKUP($C8,objectifs!$C$3:$AAB$559,162,FALSE))*1.5,IF(VLOOKUP($C8,'Indicateurs Cumulés'!$C$3:$HJ$560,200,FALSE)/(VLOOKUP($C8,objectifs!$C$3:$AAB$559,162,FALSE))<=-0.5,(VLOOKUP($C8,objectifs!$C$3:$AAB$559,162,FALSE))*-0.5,VLOOKUP($C8,'Indicateurs Cumulés'!$C$3:$HJ$560,200,FALSE)))),VLOOKUP($C8,'Indicateurs Cumulés'!$C$3:$HJ$560,200,FALSE),IF(VLOOKUP($C8,'Indicateurs Cumulés'!$C$3:$HJ$560,200,FALSE)/(VLOOKUP($C8,objectifs!$C$3:$AAB$559,162,FALSE))>=1.5,(VLOOKUP($C8,objectifs!$C$3:$AAB$559,162,FALSE))*1.5,IF(VLOOKUP($C8,'Indicateurs Cumulés'!$C$3:$HJ$560,200,FALSE)/(VLOOKUP($C8,objectifs!$C$3:$AAB$559,162,FALSE))<=-0.5,(VLOOKUP($C8,objectifs!$C$3:$AAB$559,162,FALSE))*-0.5,VLOOKUP($C8,'Indicateurs Cumulés'!$C$3:$HJ$560,200,FALSE)))) -> 8 | GV8: -0 | GW8: -0 | GY8: 0 | GZ8: 0 | HA8: -2 | HB8: -2 | HC8: 0 | HD8: -4 | HE8: 45 | HF8: -9 | HG8: 2 | HH8: -20 | HI8: -2 | HJ8: 1 | HK8: 6 | HL8: 0 | HM8: 0 | HN8: 1 | HO8: 0 | HP8: 0 | HQ8: 2 | HR8: -9 | HS8: -1 | HT8: 27 | HU8: -5 | HV8: 9 | HW8: 11 | HX8: 0 | HY8: -1 | HZ8: 0 | IA8: -2 | IB8: 47 | IC8: -29 | ID8: -12 | IE8: -5 | IF8: 40 | IG8: 8 | IH8: 31 | II8: -4 | IJ8: 0 | IK8: -12 | IL8: -2 | IM8: 1 | IN8: 3 | IO8: 0 | IP8: -1 | IQ8: -0 | IR8: 2 | IS8: -0 | IT8: 1 | IU8: 1 | IV8: 0 | IW8: -0 | IX8: 0 | IY8: -2 | IZ8: 0 | JA8: -2 | JB8: 31 | JC8: -6 | JD8: -3 | JE8: -0 | JF8: 8 | JG8: 0 | JH8: 1.6 | JI8: 47 | JJ8: -3 | JK8: 0 | JL8: 0 | JM8: 0 | JO8: 0 | JP8: 0 | JQ8: -4 | JR8: 0 | JS8: -2 | JT8: 0 | JU8: 0 | JV8: -6 | JW8: 0 | JX8: -8 | JY8: 0 | JZ8: 0 | KA8: 0 | KB8: -2 | KC8: 0 | KD8: 0 | KE8: 0 | KF8: 0 | KG8: -6 | KH8: 0 | KI8: 0 | KJ8: 0 | KK8: -0 | KL8: 0 | KM8: 0 | KN8: 0 | KO8: 0 | KP8: -3 | KQ8: 2 | KR8: -2 | KS8: -10 | KT8: 284 | KU8: 0 | KV8: 0 | KW8: 0 | KX8: 0 | KY8: -10 | KZ8: 100 | LA8: 69 | LB8: 858 | LC8: 43 | LD8: 18 | LE8: 49 | LF8: 7.5 | LG8: 0.7 | LH8: 2.6 | LI8: 2.2 | LJ8: 0.3 | LK8: 0.2 | LL8: 12 | LM8: 3.0 | LN8: 181 | LO8: -9 | LP8: 59.92 | LQ8: 164 | LR8: 54.4 | LS8: 194 | MI8: =#REF!/U8 -> 
A9: 105101 | B9: 200262 | C9: 13 | D9: ILLKIRCH NORD | E9: 7 | F9: ILLKIRCH CENTRE | G9: 2019-11-30 | H9: 88 | I9: 4.32% | J9: 1.57 | K9: 2019-11-30 | L9: 795 | M9: 3.10% | N9: 2.37 | O9: 58 | P9: 83.43% | Q9: 144.73% | R9: 14 | S9: 4 | T9: 83 | U9: 6,662 | V9: 0.20% | W9: 7.49 | X9: 37.76% | Y9: 133.85% | Z9: 89 | AA9: 16 | AB9: 13.6 | AC9: 13 | AD9: 13 | AE9: -21 | AF9: 211 | AG9: 0 | AH9: 0.00% | AI9: 0 | AJ9: 0 | AK9: 0.00% | AL9: 0 | AM9: 0 | AN9: 0 | AO9: 0.00 | AP9: 0.00% | AQ9: 0.00% | AR9: 0 | AS9: 0 | AT9: 57 | AU9: 2.81% | AV9: 3.04 | AW9: 0 | AX9: 100.00% | AY9: 129.20% | AZ9: 1 | BA9: 6 | BB9: 191 | BC9: -0.15% | BD9: 7.56 | BE9: 1 | BF9: 0.00% | BG9: 0.00% | BH9: 0 | BI9: 0 | BJ9: -1 | BK9: 294 | BL9: 201911 | BM9: 4.60 | BN9: 0 | BO9: 0.00% | BP9: 365.00 | BQ9: 107.91 | BR9: 30% | BS9: 2.14 | BT9: 0.59% | BU9: 714.79 | BV9: 103.02 | BW9: 14.4% | BX9: 0.89 | BY9: 0.12% | BZ9: 92.15 | CA9: 4.70 | CB9: 5.10% | CC9: 1.57 | CD9: 1.71% | CE9: 1,176.54 | CF9: 215.63 | CG9: 18.3% | CH9: 4.61 | CI9: 0.39% | CJ9: 55 | CK9: 0.70% | CL9: 5.33 | CM9: 2 | CN9: -105 | CO9: 0.63% | CP9: 5.33 | CQ9: -4 | CR9: -17 | CS9: 0.71% | CT9: 5.33 | CU9: -1 | CV9: 12 | CW9: 0.40% | CX9: 1.05 | CY9: 0 | CZ9: -78 | DA9: 0.20% | DB9: 5.37 | DC9: -1 | DD9: 26 | DE9: 0.20% | DF9: 5.37 | DG9: 0 | DH9: -14 | DI9: 0.20% | DJ9: 5.37 | DK9: -0 | DL9: -72 | DM9: 0.19% | DN9: 5.33 | DO9: -1 | DP9: -2 | DQ9: 0.10% | DR9: 6.70 | DS9: -0 | DT9: -5 | DU9: 0.20% | DV9: 9.00 | DW9: -0 | DX9: -210 | DY9: 0.00% | DZ9: 7.05 | EA9: 0 | EB9: 0 | EC9: -0.26% | ED9: 0.74 | EE9: 0 | EF9: -219 | EG9: 0.20% | EH9: 8.00 | EI9: -4 | EJ9: 136 | EK9: 1.00% | EL9: 5.00 | EM9: 7 | EN9: -453 | EO9: 1 | EP9: -297 | EQ9: 0.45% | ER9: 8.00 | ES9: -11 | ET9: 138 | EU9: 0.45% | EV9: 8.00 | EW9: 5 | EX9: -76 | EY9: 0.65% | EZ9: 5.00 | FA9: -2 | FB9: 0 | FC9: 0.65% | FD9: 5.00 | FE9: 0 | FF9: 25 | FG9: 1.00% | FH9: 5.00 | FI9: 1 | FJ9: 1,100 | FK9: 0.39% | FL9: 1.00 | FM9: 4 | FN9: 200 | FO9: 0.39% | FP9: 1.00 | FQ9: 1 | FR9: 19 | FS9: 0.40% | FT9: 1.00 | FU9: 0 | FV9: 0 | FW9: 0.40% | FX9: 1.00 | FY9: 0 | FZ9: 53 | GA9: 1 | GB9: 180 | GC9: 5 | GD9: -210 | GE9: 4 | GF9: -303 | GG9: =IF(ISERROR(IF(VLOOKUP($C9,'Indicateurs Cumulés'!$C$3:$HJ$560,186,FALSE)/(VLOOKUP($C9,objectifs!$C$3:$AAB$559,158,FALSE))>=1.5,(VLOOKUP($C9,objectifs!$C$3:$AAB$559,158,FALSE))*1.5,IF(VLOOKUP($C9,'Indicateurs Cumulés'!$C$3:$HJ$560,186,FALSE)/(VLOOKUP($C9,objectifs!$C$3:$AAB$559,158,FALSE))<=-0.5,(VLOOKUP($C9,objectifs!$C$3:$AAB$559,158,FALSE))*-0.5,VLOOKUP($C9,'Indicateurs Cumulés'!$C$3:$HJ$560,186,FALSE)))),VLOOKUP($C9,'Indicateurs Cumulés'!$C$3:$HJ$560,186,FALSE),IF(VLOOKUP($C9,'Indicateurs Cumulés'!$C$3:$HJ$560,186,FALSE)/(VLOOKUP($C9,objectifs!$C$3:$AAB$559,158,FALSE))>=1.5,(VLOOKUP($C9,objectifs!$C$3:$AAB$559,158,FALSE))*1.5,IF(VLOOKUP($C9,'Indicateurs Cumulés'!$C$3:$HJ$560,186,FALSE)/(VLOOKUP($C9,objectifs!$C$3:$AAB$559,158,FALSE))<=-0.5,(VLOOKUP($C9,objectifs!$C$3:$AAB$559,158,FALSE))*-0.5,VLOOKUP($C9,'Indicateurs Cumulés'!$C$3:$HJ$560,186,FALSE)))) -> -140 | GH9: 1.00% | GI9: 5.37 | GJ9: -7 | GK9: -2 | GL9: -1 | GM9: 0.20% | GN9: 0 | GP9: 4 | GQ9: -0 | GR9: 41 | GS9: 10 | GT9: 9 | GU9: =IF(ISERROR(IF(VLOOKUP($C9,'Indicateurs Cumulés'!$C$3:$HJ$560,200,FALSE)/(VLOOKUP($C9,objectifs!$C$3:$AAB$559,162,FALSE))>=1.5,(VLOOKUP($C9,objectifs!$C$3:$AAB$559,162,FALSE))*1.5,IF(VLOOKUP($C9,'Indicateurs Cumulés'!$C$3:$HJ$560,200,FALSE)/(VLOOKUP($C9,objectifs!$C$3:$AAB$559,162,FALSE))<=-0.5,(VLOOKUP($C9,objectifs!$C$3:$AAB$559,162,FALSE))*-0.5,VLOOKUP($C9,'Indicateurs Cumulés'!$C$3:$HJ$560,200,FALSE)))),VLOOKUP($C9,'Indicateurs Cumulés'!$C$3:$HJ$560,200,FALSE),IF(VLOOKUP($C9,'Indicateurs Cumulés'!$C$3:$HJ$560,200,FALSE)/(VLOOKUP($C9,objectifs!$C$3:$AAB$559,162,FALSE))>=1.5,(VLOOKUP($C9,objectifs!$C$3:$AAB$559,162,FALSE))*1.5,IF(VLOOKUP($C9,'Indicateurs Cumulés'!$C$3:$HJ$560,200,FALSE)/(VLOOKUP($C9,objectifs!$C$3:$AAB$559,162,FALSE))<=-0.5,(VLOOKUP($C9,objectifs!$C$3:$AAB$559,162,FALSE))*-0.5,VLOOKUP($C9,'Indicateurs Cumulés'!$C$3:$HJ$560,200,FALSE)))) -> 8 | GV9: -0 | GW9: 0 | GY9: 0 | GZ9: 0 | HA9: 1 | HB9: 0 | HC9: 0 | HD9: 2 | HE9: 32 | HF9: -16 | HG9: -2 | HH9: -8 | HI9: -5 | HJ9: 2 | HK9: 8 | HL9: 0 | HM9: 0 | HN9: 1 | HO9: 0 | HP9: 0 | HQ9: 16 | HR9: 30 | HS9: 3 | HT9: -1 | HU9: -8 | HV9: -1 | HW9: 8 | HX9: 0 | HY9: 0 | HZ9: 2 | IA9: -3 | IB9: 33 | IC9: -19 | ID9: -1 | IE9: -3 | IF9: 7 | IG9: 26 | IH9: 22 | II9: -7 | IJ9: -0 | IK9: -5 | IL9: -5 | IM9: 1 | IN9: 4 | IO9: 2 | IP9: 3 | IQ9: 1 | IR9: -0 | IS9: -0 | IT9: -0 | IU9: 1 | IV9: 0 | IW9: 0 | IX9: 3 | IY9: 6 | IZ9: 3 | JA9: -3 | JB9: 21 | JC9: -4 | JD9: -0 | JE9: -0 | JF9: 1 | JG9: 0 | JH9: 5.2 | JI9: 49 | JJ9: -2 | JK9: 0 | JL9: 0 | JM9: 0 | JO9: 0 | JP9: 0 | JQ9: -2 | JR9: 6 | JS9: -1 | JT9: 0 | JU9: 0 | JV9: -3 | JW9: 1 | JX9: -4 | JY9: 2 | JZ9: 0 | KA9: 2 | KB9: 2 | KC9: 0 | KD9: 0 | KE9: 0 | KF9: -2 | KG9: 0 | KH9: 3 | KI9: 0 | KJ9: 1 | KK9: 0 | KL9: 0 | KM9: 0 | KN9: 0 | KO9: -0 | KP9: 0 | KQ9: 0 | KR9: 5 | KS9: -12 | KT9: 165 | KU9: 0 | KV9: 0 | KW9: 0 | KX9: 0 | KY9: -12 | KZ9: 100 | LA9: 135 | LB9: 514 | LC9: 76 | LD9: 269 | LE9: 36 | LF9: 7.5 | LG9: 1.4 | LH9: 1.5 | LI9: 3.8 | LJ9: 4.0 | LK9: 0.2 | LL9: 13 | LM9: 0.7 | LN9: 330 | LO9: 9 | LP9: 455.06 | LQ9: 280 | LR9: 387.1 | LS9: 348 | MI9: =#REF!/U9 -> 
A10: 105101 | B10: 200262 | C10: 14 | D10: OSTWALD | E10: 15 | F10: LINGOLSHEIM | G10: 2019-11-30 | H10: 90 | I10: 4.32% | J10: 1.57 | K10: 2019-11-30 | L10: 878 | M10: 3.03% | N10: 2.45 | O10: 65 | P10: 95.90% | Q10: 127.15% | R10: 17 | S10: 3 | T10: 91 | U10: 3,308 | V10: 0.32% | W10: 6.15 | X10: 56.01% | Y10: 129.91% | Z10: 45 | AA10: 9 | AB10: 5.9 | AC10: 5 | AD10: 5 | AE10: -14 | AF10: 115 | AG10: 538 | AH10: -0.08% | AI10: 4.38 | AJ10: 0 | AK10: 0.00% | AL10: 0 | AM10: 0 | AN10: 1.0 | AO10: 0.00 | AP10: 10.09% | AQ10: 100.00% | AR10: 1 | AS10: -0 | AT10: 10 | AU10: 2.18% | AV10: 0.96 | AW10: 0 | AX10: 100.00% | AY10: 100.00% | AZ10: 0 | BA10: 0 | BB10: 204 | BC10: -0.07% | BD10: 6.32 | BE10: 1 | BF10: 0.00% | BG10: 0.00% | BH10: 1 | BI10: 0 | BJ10: 1 | BK10: 206 | BL10: 201911 | BM10: 0 | BN10: 0 | BO10: 0.00% | BP10: 129.39 | BQ10: 36.85 | BR10: 28% | BS10: 1.23 | BT10: 0.95% | BU10: 737.14 | BV10: 119.78 | BW10: 16.2% | BX10: 0.17 | BY10: 0.02% | BZ10: 56.08 | CA10: 2.12 | CB10: 3.78% | CC10: 0.59 | CD10: 1.05% | CE10: 922.61 | CF10: 158.75 | CG10: 17.2% | CH10: 1.99 | CI10: 0.22% | CJ10: 123 | CK10: 0.70% | CL10: 5.33 | CM10: 5 | CN10: 158 | CO10: 0.63% | CP10: 5.33 | CQ10: 5 | CR10: -85 | CS10: 0.71% | CT10: 5.33 | CU10: -3 | CV10: 121 | CW10: 0.40% | CX10: 1.05 | CY10: 1 | CZ10: -270 | DA10: 0.20% | DB10: 5.37 | DC10: -3 | DD10: 99 | DE10: 0.20% | DF10: 5.37 | DG10: 1 | DH10: -12 | DI10: 0.20% | DJ10: 5.37 | DK10: -0 | DL10: -2 | DM10: 0.19% | DN10: 5.33 | DO10: -0 | DP10: -10 | DQ10: 0.10% | DR10: 8.23 | DS10: -0 | DT10: 98 | DU10: 0.20% | DV10: 9.00 | DW10: 2 | DX10: -262 | DY10: 0.00% | DZ10: 2.99 | EA10: 0 | EB10: 0 | EC10: -0.26% | ED10: 0.74 | EE10: 0 | EF10: -220 | EG10: 0.20% | EH10: 8.00 | EI10: -4 | EJ10: -69 | EK10: 1.00% | EL10: 5.00 | EM10: -3 | EN10: -356 | EO10: -1 | EP10: 347 | EQ10: 0.45% | ER10: 8.00 | ES10: 13 | ET10: 403 | EU10: 0.45% | EV10: 8.00 | EW10: 14 | EX10: -32 | EY10: 0.65% | EZ10: 5.00 | FA10: -1 | FB10: 0 | FC10: 0.65% | FD10: 5.00 | FE10: 0 | FF10: -4 | FG10: 1.00% | FH10: 5.00 | FI10: -0 | FJ10: 850 | FK10: 0.22% | FL10: 1.00 | FM10: 2 | FN10: 403 | FO10: 0.22% | FP10: 1.00 | FQ10: 1 | FR10: 15 | FS10: 0.40% | FT10: 1.00 | FU10: 0 | FV10: 0 | FW10: 0.40% | FX10: 1.00 | FY10: 0 | FZ10: 86 | GA10: 2 | GB10: 76 | GC10: 2 | GD10: 714 | GE10: 32 | GF10: -73 | GG10: =IF(ISERROR(IF(VLOOKUP($C10,'Indicateurs Cumulés'!$C$3:$HJ$560,186,FALSE)/(VLOOKUP($C10,objectifs!$C$3:$AAB$559,158,FALSE))>=1.5,(VLOOKUP($C10,objectifs!$C$3:$AAB$559,158,FALSE))*1.5,IF(VLOOKUP($C10,'Indicateurs Cumulés'!$C$3:$HJ$560,186,FALSE)/(VLOOKUP($C10,objectifs!$C$3:$AAB$559,158,FALSE))<=-0.5,(VLOOKUP($C10,objectifs!$C$3:$AAB$559,158,FALSE))*-0.5,VLOOKUP($C10,'Indicateurs Cumulés'!$C$3:$HJ$560,186,FALSE)))),VLOOKUP($C10,'Indicateurs Cumulés'!$C$3:$HJ$560,186,FALSE),IF(VLOOKUP($C10,'Indicateurs Cumulés'!$C$3:$HJ$560,186,FALSE)/(VLOOKUP($C10,objectifs!$C$3:$AAB$559,158,FALSE))>=1.5,(VLOOKUP($C10,objectifs!$C$3:$AAB$559,158,FALSE))*1.5,IF(VLOOKUP($C10,'Indicateurs Cumulés'!$C$3:$HJ$560,186,FALSE)/(VLOOKUP($C10,objectifs!$C$3:$AAB$559,158,FALSE))<=-0.5,(VLOOKUP($C10,objectifs!$C$3:$AAB$559,158,FALSE))*-0.5,VLOOKUP($C10,'Indicateurs Cumulés'!$C$3:$HJ$560,186,FALSE)))) -> -73 | GH10: 1.00% | GI10: 5.37 | GJ10: -4 | GK10: 28 | GL10: 0 | GM10: 0.20% | GN10: 0 | GP10: -0 | GQ10: -16 | GR10: -25 | GS10: -53 | GT10: -207 | GU10: =IF(ISERROR(IF(VLOOKUP($C10,'Indicateurs Cumulés'!$C$3:$HJ$560,200,FALSE)/(VLOOKUP($C10,objectifs!$C$3:$AAB$559,162,FALSE))>=1.5,(VLOOKUP($C10,objectifs!$C$3:$AAB$559,162,FALSE))*1.5,IF(VLOOKUP($C10,'Indicateurs Cumulés'!$C$3:$HJ$560,200,FALSE)/(VLOOKUP($C10,objectifs!$C$3:$AAB$559,162,FALSE))<=-0.5,(VLOOKUP($C10,objectifs!$C$3:$AAB$559,162,FALSE))*-0.5,VLOOKUP($C10,'Indicateurs Cumulés'!$C$3:$HJ$560,200,FALSE)))),VLOOKUP($C10,'Indicateurs Cumulés'!$C$3:$HJ$560,200,FALSE),IF(VLOOKUP($C10,'Indicateurs Cumulés'!$C$3:$HJ$560,200,FALSE)/(VLOOKUP($C10,objectifs!$C$3:$AAB$559,162,FALSE))>=1.5,(VLOOKUP($C10,objectifs!$C$3:$AAB$559,162,FALSE))*1.5,IF(VLOOKUP($C10,'Indicateurs Cumulés'!$C$3:$HJ$560,200,FALSE)/(VLOOKUP($C10,objectifs!$C$3:$AAB$559,162,FALSE))<=-0.5,(VLOOKUP($C10,objectifs!$C$3:$AAB$559,162,FALSE))*-0.5,VLOOKUP($C10,'Indicateurs Cumulés'!$C$3:$HJ$560,200,FALSE)))) -> -3 | GV10: 0 | GW10: 0 | GY10: -0 | GZ10: 0 | HA10: -1 | HB10: -2 | HC10: -0 | HD10: -3 | HE10: 18 | HF10: 0 | HG10: -3 | HH10: -6 | HI10: -7 | HJ10: 4 | HK10: 1 | HL10: 0 | HM10: 0 | HN10: 0 | HO10: 0 | HP10: 0 | HQ10: 7 | HR10: 5 | HS10: 0 | HT10: 0 | HU10: -4 | HV10: -1 | HW10: -5 | HX10: 0 | HY10: 0 | HZ10: 2 | IA10: 2 | IB10: 14 | IC10: -9 | ID10: -13 | IE10: -2 | IF10: 9 | IG10: 11 | IH10: 13 | II10: 0 | IJ10: -0 | IK10: -4 | IL10: -7 | IM10: 0 | IN10: 1 | IO10: 1 | IP10: 0 | IQ10: 0 | IR10: 0 | IS10: -0 | IT10: -0 | IU10: -1 | IV10: 0 | IW10: 0 | IX10: 1 | IY10: 1 | IZ10: 3 | JA10: 2 | JB10: 9 | JC10: -2 | JD10: -3 | JE10: -0 | JF10: 2 | JG10: 0 | JH10: 2.2 | JI10: 19 | JJ10: -2 | JK10: 0 | JL10: 0 | JM10: 0 | JO10: 0 | JP10: 0 | JQ10: -4 | JR10: 1 | JS10: -1 | JT10: 0 | JU10: 0 | JV10: -6 | JW10: 0 | JX10: -7 | JY10: 0 | JZ10: 0 | KA10: -1 | KB10: -3 | KC10: 3 | KD10: 0 | KE10: 0 | KF10: 0 | KG10: -6 | KH10: 0 | KI10: 0 | KJ10: -1 | KK10: -1 | KL10: 2 | KM10: 0 | KN10: 0 | KO10: 0 | KP10: -3 | KQ10: 2 | KR10: -0 | KS10: -11 | KT10: 162 | KU10: 0 | KV10: 0 | KW10: 0 | KX10: 0 | KY10: -11 | KZ10: 78 | LA10: 75 | LB10: 527 | LC10: 51 | LD10: 50 | LE10: 33 | LF10: 5.9 | LG10: 0.8 | LH10: 1.6 | LI10: 2.6 | LJ10: 0.8 | LK10: 0.2 | LL10: 14 | LM10: 0.7 | LN10: 234 | LO10: -10 | LP10: 325.74 | LQ10: 212 | LR10: 295.4 | LS10: 246 | MI10: =#REF!/U10 -> 
A11: 105101 | B11: 200262 | C11: 15 | D11: LINGOLSHEIM | E11: 15 | F11: LINGOLSHEIM | G11: 2019-11-30 | H11: 143 | I11: 4.32% | J11: 1.57 | K11: 2019-11-30 | L11: 1,184 | M11: 3.01% | N11: 2.40 | O11: 85 | P11: 95.33% | Q11: 132.16% | R11: 24 | S11: 5 | T11: 125 | U11: 5,305 | V11: 0.45% | W11: 7.70 | X11: 47.98% | Y11: 151.84% | Z11: 111 | AA11: 16 | AB11: 10.9 | AC11: 13 | AD11: 13 | AE11: -35 | AF11: 300 | AG11: 312 | AH11: 1.32% | AI11: 2.58 | AJ11: 25 | AK11: 1.02% | AL11: 2.37 | AM11: 1 | AN11: 1.9 | AO11: 0.12 | AP11: 47.84% | AQ11: 140.82% | AR11: 1 | AS11: 15 | AT11: 30 | AU11: 2.87% | AV11: 1.78 | AW11: 0 | AX11: 100.00% | AY11: 100.00% | AZ11: 0 | BA11: 2 | BB11: 436 | BC11: 0.46% | BD11: 7.24 | BE11: 1 | BF11: 0.00% | BG11: 0.00% | BH11: 0 | BI11: 1 | BJ11: 17 | BK11: 439 | BL11: 201911 | BM11: 0 | BN11: 0 | BO11: 0.00% | BP11: 385.20 | BQ11: 158.43 | BR11: 41% | BS11: 2.63 | BT11: 0.68% | BU11: 1,340.58 | BV11: 175.70 | BW11: 13.1% | BX11: 1.29 | BY11: 0.10% | BZ11: 89.78 | CA11: 1.46 | CB11: 1.63% | CC11: 1.69 | CD11: 1.88% | CE11: 1,815.55 | CF11: 335.59 | CG11: 18.5% | CH11: 5.61 | CI11: 0.31% | CJ11: 212 | CK11: 0.70% | CL11: 5.33 | CM11: 8 | CN11: 114 | CO11: 0.63% | CP11: 5.33 | CQ11: 4 | CR11: 29 | CS11: 0.71% | CT11: 5.33 | CU11: 1 | CV11: 375 | CW11: 0.40% | CX11: 1.05 | CY11: 2 | CZ11: -223 | DA11: 0.20% | DB11: 5.37 | DC11: -2 | DD11: -10 | DE11: 0.20% | DF11: 5.37 | DG11: -0 | DH11: -52 | DI11: 0.20% | DJ11: 5.37 | DK11: -1 | DL11: -28 | DM11: 0.19% | DN11: 5.33 | DO11: -0 | DP11: -3 | DQ11: 0.10% | DR11: 8.37 | DS11: -0 | DT11: -40 | DU11: 0.20% | DV11: 9.00 | DW11: -1 | DX11: -334 | DY11: 0.00% | DZ11: 8.59 | EA11: 0 | EB11: 0 | EC11: -0.26% | ED11: 0.74 | EE11: 0 | EF11: -382 | EG11: 0.20% | EH11: 8.00 | EI11: -6 | EJ11: -86 | EK11: 1.00% | EL11: 5.00 | EM11: -4 | EN11: -559 | EO11: -4 | EP11: 443 | EQ11: 0.45% | ER11: 8.00 | ES11: 16 | ET11: 12 | EU11: 0.45% | EV11: 8.00 | EW11: 0 | EX11: -44 | EY11: 0.65% | EZ11: 5.00 | FA11: -1 | FB11: 0 | FC11: 0.65% | FD11: 5.00 | FE11: 0 | FF11: 91 | FG11: 1.00% | FH11: 5.00 | FI11: 5 | FJ11: 1,743 | FK11: 0.31% | FL11: 1.00 | FM11: 5 | FN11: 20 | FO11: 0.31% | FP11: 1.00 | FQ11: 0 | FR11: 43 | FS11: 0.40% | FT11: 1.00 | FU11: 0 | FV11: 0 | FW11: 0.40% | FX11: 1.00 | FY11: 0 | FZ11: 234 | GA11: 5 | GB11: 174 | GC11: 5 | GD11: 502 | GE11: 35 | GF11: 156 | GG11: =IF(ISERROR(IF(VLOOKUP($C11,'Indicateurs Cumulés'!$C$3:$HJ$560,186,FALSE)/(VLOOKUP($C11,objectifs!$C$3:$AAB$559,158,FALSE))>=1.5,(VLOOKUP($C11,objectifs!$C$3:$AAB$559,158,FALSE))*1.5,IF(VLOOKUP($C11,'Indicateurs Cumulés'!$C$3:$HJ$560,186,FALSE)/(VLOOKUP($C11,objectifs!$C$3:$AAB$559,158,FALSE))<=-0.5,(VLOOKUP($C11,objectifs!$C$3:$AAB$559,158,FALSE))*-0.5,VLOOKUP($C11,'Indicateurs Cumulés'!$C$3:$HJ$560,186,FALSE)))),VLOOKUP($C11,'Indicateurs Cumulés'!$C$3:$HJ$560,186,FALSE),IF(VLOOKUP($C11,'Indicateurs Cumulés'!$C$3:$HJ$560,186,FALSE)/(VLOOKUP($C11,objectifs!$C$3:$AAB$559,158,FALSE))>=1.5,(VLOOKUP($C11,objectifs!$C$3:$AAB$559,158,FALSE))*1.5,IF(VLOOKUP($C11,'Indicateurs Cumulés'!$C$3:$HJ$560,186,FALSE)/(VLOOKUP($C11,objectifs!$C$3:$AAB$559,158,FALSE))<=-0.5,(VLOOKUP($C11,objectifs!$C$3:$AAB$559,158,FALSE))*-0.5,VLOOKUP($C11,'Indicateurs Cumulés'!$C$3:$HJ$560,186,FALSE)))) -> 156 | GH11: 1.00% | GI11: 5.37 | GJ11: 8 | GK11: 39 | GL11: -4 | GM11: 0.20% | GN11: 1 | GP11: 5 | GQ11: 8 | GR11: -130 | GS11: -86 | GT11: -161 | GU11: =IF(ISERROR(IF(VLOOKUP($C11,'Indicateurs Cumulés'!$C$3:$HJ$560,200,FALSE)/(VLOOKUP($C11,objectifs!$C$3:$AAB$559,162,FALSE))>=1.5,(VLOOKUP($C11,objectifs!$C$3:$AAB$559,162,FALSE))*1.5,IF(VLOOKUP($C11,'Indicateurs Cumulés'!$C$3:$HJ$560,200,FALSE)/(VLOOKUP($C11,objectifs!$C$3:$AAB$559,162,FALSE))<=-0.5,(VLOOKUP($C11,objectifs!$C$3:$AAB$559,162,FALSE))*-0.5,VLOOKUP($C11,'Indicateurs Cumulés'!$C$3:$HJ$560,200,FALSE)))),VLOOKUP($C11,'Indicateurs Cumulés'!$C$3:$HJ$560,200,FALSE),IF(VLOOKUP($C11,'Indicateurs Cumulés'!$C$3:$HJ$560,200,FALSE)/(VLOOKUP($C11,objectifs!$C$3:$AAB$559,162,FALSE))>=1.5,(VLOOKUP($C11,objectifs!$C$3:$AAB$559,162,FALSE))*1.5,IF(VLOOKUP($C11,'Indicateurs Cumulés'!$C$3:$HJ$560,200,FALSE)/(VLOOKUP($C11,objectifs!$C$3:$AAB$559,162,FALSE))<=-0.5,(VLOOKUP($C11,objectifs!$C$3:$AAB$559,162,FALSE))*-0.5,VLOOKUP($C11,'Indicateurs Cumulés'!$C$3:$HJ$560,200,FALSE)))) -> -3 | GV11: -0 | GW11: 0 | GY11: 0 | GZ11: 0 | HA11: -4 | HB11: -3 | HC11: -0 | HD11: -7 | HE11: 94 | HF11: -58 | HG11: -6 | HH11: -16 | HI11: -1 | HJ11: 1 | HK11: 3 | HL11: 7 | HM11: 0 | HN11: 1 | HO11: 1 | HP11: 0 | HQ11: 8 | HR11: 29 | HS11: -2 | HT11: 0 | HU11: 8 | HV11: 6 | HW11: 10 | HX11: 0 | HY11: 3 | HZ11: 2 | IA11: 5 | IB11: 87 | IC11: -69 | ID11: -18 | IE11: -1 | IF11: 83 | IG11: 22 | IH11: 66 | II11: -25 | IJ11: -0 | IK11: -10 | IL11: -1 | IM11: 2 | IN11: 9 | IO11: 1 | IP11: 3 | IQ11: -1 | IR11: 0 | IS11: 0 | IT11: 1 | IU11: 1 | IV11: 0 | IW11: 0 | IX11: 2 | IY11: 6 | IZ11: 3 | JA11: 5 | JB11: 57 | JC11: -15 | JD11: -4 | JE11: -0 | JF11: 17 | JG11: 0 | JH11: 4.4 | JI11: 120 | JJ11: 1 | JK11: 1 | JL11: 0 | JM11: 0 | JO11: 0 | JP11: 0 | JQ11: -3 | JR11: 2 | JS11: 1 | JT11: 0 | JU11: 0 | JV11: -4 | JW11: 0 | JX11: -3 | JY11: 1 | JZ11: 0 | KA11: 0 | KB11: 1 | KC11: 0 | KD11: 0 | KE11: 0 | KF11: 2 | KG11: 1 | KH11: 1 | KI11: 0 | KJ11: 0 | KK11: 0 | KL11: 0 | KM11: 0 | KN11: 0 | KO11: 0 | KP11: 1 | KQ11: 8 | KR11: 10 | KS11: -14 | KT11: 312 | KU11: 0 | KV11: 0 | KW11: 0 | KX11: 0 | KY11: -14 | KZ11: 159 | LA11: 205 | LB11: 1105 | LC11: 183 | LD11: 143 | LE11: 65 | LF11: 11.9 | LG11: 2.1 | LH11: 3.3 | LI11: 9.2 | LJ11: 2.1 | LK11: 0.3 | LL11: 15 | LM11: 4.8 | LN11: 591 | LO11: 32 | LP11: 122.35 | LQ11: 524 | LR11: 108.5 | LS11: 620 | MI11: =#REF!/U11 -> 
A12: 105006 | B12: 200262 | C12: 19 | D12: STRASBOURG ANVERS | E12: 19 | F12: STRASBOURG ANVERS | G12: 2019-11-30 | H12: 120 | I12: 4.32% | J12: 1.57 | K12: 2019-11-30 | L12: 1,752 | M12: 3.02% | N12: 2.61 | O12: 138 | P12: 76.05% | Q12: 148.96% | R12: 33 | S12: 8 | T12: 187 | U12: 12,280 | V12: 0.23% | W12: 8.01 | X12: 48.45% | Y12: 134.81% | Z12: 209 | AA12: 29 | AB12: 20.1 | AC12: 21 | AD12: 21 | AE12: -36 | AF12: 473 | AG12: 3,237 | AH12: 1.50% | AI12: 6.52 | AJ12: 72 | AK12: 1.05% | AL12: 1.62 | AM12: 1 | AN12: 9.8 | AO12: 0.43 | AP12: 29.17% | AQ12: 100.00% | AR12: 10 | AS12: 338 | AT12: 264 | AU12: 3.13% | AV12: 2.64 | AW12: 1 | AX12: 89.77% | AY12: 129.96% | AZ12: 5 | BA12: 28 | BB12: 1,857 | BC12: 0.13% | BD12: 8.11 | BE12: 7 | BF12: 137.78% | BG12: 38.28% | BH12: 23 | BI12: 3 | BJ12: 53 | BK12: 999 | BL12: 201911 | BM12: 25.00 | BN12: 0.60 | BO12: 2.40% | BP12: 565.16 | BQ12: 84.94 | BR12: 15% | BS12: 4.86 | BT12: 0.86% | BU12: 2,129.33 | BV12: 96.52 | BW12: 4.5% | BX12: 3.36 | BY12: 0.16% | BZ12: 114.34 | CA12: 10.40 | CB12: 9.09% | CC12: 1.68 | CD12: 1.47% | CE12: 2,833.83 | CF12: 191.86 | CG12: 6.8% | CH12: 10.49 | CI12: 0.37% | CJ12: -246 | CK12: 0.70% | CL12: 5.33 | CM12: -9 | CN12: 915 | CO12: 0.63% | CP12: 5.33 | CQ12: 31 | CR12: -112 | CS12: 0.71% | CT12: 5.33 | CU12: -4 | CV12: 1,026 | CW12: 0.40% | CX12: 1.05 | CY12: 4 | CZ12: -393 | DA12: 0.20% | DB12: 5.37 | DC12: -4 | DD12: 45 | DE12: 0.20% | DF12: 5.37 | DG12: 0 | DH12: -29 | DI12: 0.20% | DJ12: 5.37 | DK12: -0 | DL12: 13 | DM12: 0.19% | DN12: 5.33 | DO12: 0 | DP12: -27 | DQ12: 0.10% | DR12: 7.74 | DS12: -0 | DT12: -133 | DU12: 0.20% | DV12: 9.00 | DW12: -2 | DX12: -492 | DY12: 0.00% | DZ12: 8.59 | EA12: 0 | EB12: 0 | EC12: -0.26% | ED12: 0.74 | EE12: 0 | EF12: -918 | EG12: 0.20% | EH12: 8.00 | EI12: -15 | EJ12: 549 | EK12: 1.00% | EL12: 5.00 | EM12: 27 | EN12: 685 | EO12: 43 | EP12: 134 | EQ12: 0.45% | ER12: 8.00 | ES12: 5 | ET12: -42 | EU12: 0.45% | EV12: 8.00 | EW12: -2 | EX12: -177 | EY12: 0.65% | EZ12: 5.00 | FA12: -6 | FB12: 12 | FC12: 0.65% | FD12: 5.00 | FE12: 0 | FF12: 97 | FG12: 1.00% | FH12: 5.00 | FI12: 5 | FJ12: 3,070 | FK12: 0.37% | FL12: 1.00 | FM12: 11 | FN12: 0 | FO12: 0.37% | FP12: 1.00 | FQ12: 0 | FR12: 249 | FS12: 0.40% | FT12: 1.00 | FU12: 1 | FV12: 12 | FW12: 0.40% | FX12: 1.00 | FY12: 0 | FZ12: 382 | GA12: 8 | GB12: 298 | GC12: 8 | GD12: 24 | GE12: 31 | GF12: -105 | GG12: =IF(ISERROR(IF(VLOOKUP($C12,'Indicateurs Cumulés'!$C$3:$HJ$560,186,FALSE)/(VLOOKUP($C12,objectifs!$C$3:$AAB$559,158,FALSE))>=1.5,(VLOOKUP($C12,objectifs!$C$3:$AAB$559,158,FALSE))*1.5,IF(VLOOKUP($C12,'Indicateurs Cumulés'!$C$3:$HJ$560,186,FALSE)/(VLOOKUP($C12,objectifs!$C$3:$AAB$559,158,FALSE))<=-0.5,(VLOOKUP($C12,objectifs!$C$3:$AAB$559,158,FALSE))*-0.5,VLOOKUP($C12,'Indicateurs Cumulés'!$C$3:$HJ$560,186,FALSE)))),VLOOKUP($C12,'Indicateurs Cumulés'!$C$3:$HJ$560,186,FALSE),IF(VLOOKUP($C12,'Indicateurs Cumulés'!$C$3:$HJ$560,186,FALSE)/(VLOOKUP($C12,objectifs!$C$3:$AAB$559,158,FALSE))>=1.5,(VLOOKUP($C12,objectifs!$C$3:$AAB$559,158,FALSE))*1.5,IF(VLOOKUP($C12,'Indicateurs Cumulés'!$C$3:$HJ$560,186,FALSE)/(VLOOKUP($C12,objectifs!$C$3:$AAB$559,158,FALSE))<=-0.5,(VLOOKUP($C12,objectifs!$C$3:$AAB$559,158,FALSE))*-0.5,VLOOKUP($C12,'Indicateurs Cumulés'!$C$3:$HJ$560,186,FALSE)))) -> -105 | GH12: 1.00% | GI12: 5.37 | GJ12: -6 | GK12: 69 | GL12: -38 | GM12: 0.20% | GN12: -0 | GP12: -14 | GQ12: -34 | GR12: 487 | GS12: 231 | GT12: -654 | GU12: =IF(ISERROR(IF(VLOOKUP($C12,'Indicateurs Cumulés'!$C$3:$HJ$560,200,FALSE)/(VLOOKUP($C12,objectifs!$C$3:$AAB$559,162,FALSE))>=1.5,(VLOOKUP($C12,objectifs!$C$3:$AAB$559,162,FALSE))*1.5,IF(VLOOKUP($C12,'Indicateurs Cumulés'!$C$3:$HJ$560,200,FALSE)/(VLOOKUP($C12,objectifs!$C$3:$AAB$559,162,FALSE))<=-0.5,(VLOOKUP($C12,objectifs!$C$3:$AAB$559,162,FALSE))*-0.5,VLOOKUP($C12,'Indicateurs Cumulés'!$C$3:$HJ$560,200,FALSE)))),VLOOKUP($C12,'Indicateurs Cumulés'!$C$3:$HJ$560,200,FALSE),IF(VLOOKUP($C12,'Indicateurs Cumulés'!$C$3:$HJ$560,200,FALSE)/(VLOOKUP($C12,objectifs!$C$3:$AAB$559,162,FALSE))>=1.5,(VLOOKUP($C12,objectifs!$C$3:$AAB$559,162,FALSE))*1.5,IF(VLOOKUP($C12,'Indicateurs Cumulés'!$C$3:$HJ$560,200,FALSE)/(VLOOKUP($C12,objectifs!$C$3:$AAB$559,162,FALSE))<=-0.5,(VLOOKUP($C12,objectifs!$C$3:$AAB$559,162,FALSE))*-0.5,VLOOKUP($C12,'Indicateurs Cumulés'!$C$3:$HJ$560,200,FALSE)))) -> -3 | GV12: -1 | GW12: -0 | GY12: -1 | GZ12: 0 | HA12: 16 | HB12: 7 | HC12: -0 | HD12: 22 | HE12: 93 | HF12: -60 | HG12: -4 | HH12: -10 | HI12: -2 | HJ12: 2 | HK12: 11 | HL12: 3 | HM12: 0 | HN12: 2 | HO12: 1 | HP12: 0 | HQ12: 30 | HR12: 36 | HS12: 5 | HT12: 14 | HU12: 10 | HV12: 4 | HW12: 39 | HX12: 0 | HY12: 0 | HZ12: 1 | IA12: 37 | IB12: 55 | IC12: -64 | ID12: -16 | IE12: -2 | IF12: 131 | IG12: 39 | IH12: 65 | II12: -26 | IJ12: -0 | IK12: -6 | IL12: -2 | IM12: 3 | IN12: 8 | IO12: 4 | IP12: 4 | IQ12: 1 | IR12: 1 | IS12: 0 | IT12: 0 | IU12: 4 | IV12: 0 | IW12: 0 | IX12: 6 | IY12: 7 | IZ12: 2 | JA12: 37 | JB12: 36 | JC12: -14 | JD12: -3 | JE12: -0 | JF12: 26 | JG12: 0 | JH12: 7.8 | JI12: 160 | JJ12: -2 | JK12: 0 | JL12: 0 | JM12: 0 | JO12: 0 | JP12: 0 | JQ12: -1 | JR12: 0 | JS12: -1 | JT12: 0 | JU12: 0 | JV12: -1 | JW12: 0 | JX12: -3 | JY12: 0 | JZ12: 1 | KA12: -2 | KB12: 0 | KC12: -1 | KD12: 2 | KE12: 1 | KF12: -1 | KG12: -12 | KH12: 0 | KI12: 1 | KJ12: -1 | KK12: 0 | KL12: -1 | KM12: 0 | KN12: 0 | KO12: -0 | KP12: -6 | KQ12: 14 | KR12: 8 | KS12: -32 | KT12: 439 | KU12: 0 | KV12: 0 | KW12: 0 | KX12: 0 | KY12: -32 | KZ12: 239 | LA12: 179 | LB12: 984 | LC12: 138 | LD12: 184 | LE12: 49 | LF12: 17.9 | LG12: 1.8 | LH12: 3.0 | LI12: 6.9 | LJ12: 2.8 | LK12: 0.2 | LL12: 19 | LM12: 5.0 | LN12: 1,201 | LO12: 436 | LP12: 238.85 | LQ12: 1,085 | LR12: 215.7 | LS12: 1,234 | MI12: =#REF!/U12 -> 
A13: 105006 | B13: 200262 | C13: 20 | D13: STRASBOURG ROBERTSAU | E13: 20 | F13: STRASBOURG ROBERTSAU | G13: 2019-11-30 | H13: 146 | I13: 4.32% | J13: 1.57 | K13: 2019-11-30 | L13: 2,414 | M13: 2.96% | N13: 2.59 | O13: 185 | P13: 92.64% | Q13: 139.13% | R13: 51 | S13: 7 | T13: 253 | U13: 9,317 | V13: 0.18% | W13: 7.19 | X13: 44.12% | Y13: 136.31% | Z13: 145 | AA13: 22 | AB13: 16.0 | AC13: 5 | AD13: 5 | AE13: -9 | AF13: 299 | AG13: 1,104 | AH13: 0.74% | AI13: 3.19 | AJ13: 293 | AK13: 0.86% | AL13: 1.48 | AM13: 4 | AN13: 3.7 | AO13: 0.40 | AP13: 100.00% | AQ13: 100.00% | AR13: 2 | AS13: 36 | AT13: 97 | AU13: 3.99% | AV13: 2.00 | AW13: 0 | AX13: 100.00% | AY13: 203.54% | AZ13: 3 | BA13: 11 | BB13: 2,128 | BC13: 0.29% | BD13: 7.77 | BE13: 3 | BF13: 172.00% | BG13: 61.64% | BH13: 49 | BI13: 4 | BJ13: 105 | BK13: 588 | BL13: 201911 | BM13: 0 | BN13: 0 | BO13: 0.00% | BP13: 266.10 | BQ13: 49.06 | BR13: 18% | BS13: 3.17 | BT13: 1.19% | BU13: 3,693.85 | BV13: 696.77 | BW13: 18.9% | BX13: 6.25 | BY13: 0.17% | BZ13: 101.82 | CA13: 16.43 | CB13: 16.14% | CC13: 1.54 | CD13: 1.51% | CE13: 4,061.78 | CF13: 762.25 | CG13: 18.8% | CH13: 10.95 | CI13: 0.27% | CJ13: -402 | CK13: 0.70% | CL13: 5.33 | CM13: -15 | CN13: -1,906 | CO13: 0.63% | CP13: 5.33 | CQ13: -64 | CR13: -58 | CS13: 0.71% | CT13: 5.33 | CU13: -2 | CV13: 34 | CW13: 0.40% | CX13: 1.05 | CY13: 0 | CZ13: -367 | DA13: 0.20% | DB13: 5.37 | DC13: -4 | DD13: -143 | DE13: 0.20% | DF13: 5.37 | DG13: -2 | DH13: -45 | DI13: 0.20% | DJ13: 5.37 | DK13: -0 | DL13: -70 | DM13: 0.19% | DN13: 5.33 | DO13: -1 | DP13: -9 | DQ13: 0.10% | DR13: 8.94 | DS13: -0 | DT13: -122 | DU13: 0.20% | DV13: 9.00 | DW13: -2 | DX13: -658 | DY13: 0.00% | DZ13: 8.59 | EA13: 0 | EB13: 0 | EC13: -0.26% | ED13: 0.74 | EE13: 0 | EF13: -806 | EG13: 0.20% | EH13: 8.00 | EI13: -13 | EJ13: -8 | EK13: 1.00% | EL13: 5.00 | EM13: -0 | EN13: -4,320 | EO13: -95 | EP13: 731 | EQ13: 0.45% | ER13: 8.00 | ES13: 26 | ET13: 0 | EU13: 0.45% | EV13: 8.00 | EW13: 0 | EX13: -153 | EY13: 0.65% | EZ13: 5.00 | FA13: -5 | FB13: 4 | FC13: 0.65% | FD13: 5.00 | FE13: 0 | FF13: -51 | FG13: 1.00% | FH13: 5.00 | FI13: -3 | FJ13: 3,759 | FK13: 0.27% | FL13: 1.00 | FM13: 10 | FN13: 0 | FO13: 0.27% | FP13: 1.00 | FQ13: 0 | FR13: 113 | FS13: 0.40% | FT13: 1.00 | FU13: 0 | FV13: 4 | FW13: 0.40% | FX13: 1.00 | FY13: 0 | FZ13: 249 | GA13: 5 | GB13: 174 | GC13: 5 | GD13: 530 | GE13: 39 | GF13: 104 | GG13: =IF(ISERROR(IF(VLOOKUP($C13,'Indicateurs Cumulés'!$C$3:$HJ$560,186,FALSE)/(VLOOKUP($C13,objectifs!$C$3:$AAB$559,158,FALSE))>=1.5,(VLOOKUP($C13,objectifs!$C$3:$AAB$559,158,FALSE))*1.5,IF(VLOOKUP($C13,'Indicateurs Cumulés'!$C$3:$HJ$560,186,FALSE)/(VLOOKUP($C13,objectifs!$C$3:$AAB$559,158,FALSE))<=-0.5,(VLOOKUP($C13,objectifs!$C$3:$AAB$559,158,FALSE))*-0.5,VLOOKUP($C13,'Indicateurs Cumulés'!$C$3:$HJ$560,186,FALSE)))),VLOOKUP($C13,'Indicateurs Cumulés'!$C$3:$HJ$560,186,FALSE),IF(VLOOKUP($C13,'Indicateurs Cumulés'!$C$3:$HJ$560,186,FALSE)/(VLOOKUP($C13,objectifs!$C$3:$AAB$559,158,FALSE))>=1.5,(VLOOKUP($C13,objectifs!$C$3:$AAB$559,158,FALSE))*1.5,IF(VLOOKUP($C13,'Indicateurs Cumulés'!$C$3:$HJ$560,186,FALSE)/(VLOOKUP($C13,objectifs!$C$3:$AAB$559,158,FALSE))<=-0.5,(VLOOKUP($C13,objectifs!$C$3:$AAB$559,158,FALSE))*-0.5,VLOOKUP($C13,'Indicateurs Cumulés'!$C$3:$HJ$560,186,FALSE)))) -> 104 | GH13: 1.00% | GI13: 5.37 | GJ13: 6 | GK13: -50 | GL13: 0 | GM13: 0.20% | GN13: 40 | GP13: 324 | GQ13: -52 | GR13: 239 | GS13: -55 | GT13: -349 | GU13: =IF(ISERROR(IF(VLOOKUP($C13,'Indicateurs Cumulés'!$C$3:$HJ$560,200,FALSE)/(VLOOKUP($C13,objectifs!$C$3:$AAB$559,162,FALSE))>=1.5,(VLOOKUP($C13,objectifs!$C$3:$AAB$559,162,FALSE))*1.5,IF(VLOOKUP($C13,'Indicateurs Cumulés'!$C$3:$HJ$560,200,FALSE)/(VLOOKUP($C13,objectifs!$C$3:$AAB$559,162,FALSE))<=-0.5,(VLOOKUP($C13,objectifs!$C$3:$AAB$559,162,FALSE))*-0.5,VLOOKUP($C13,'Indicateurs Cumulés'!$C$3:$HJ$560,200,FALSE)))),VLOOKUP($C13,'Indicateurs Cumulés'!$C$3:$HJ$560,200,FALSE),IF(VLOOKUP($C13,'Indicateurs Cumulés'!$C$3:$HJ$560,200,FALSE)/(VLOOKUP($C13,objectifs!$C$3:$AAB$559,162,FALSE))>=1.5,(VLOOKUP($C13,objectifs!$C$3:$AAB$559,162,FALSE))*1.5,IF(VLOOKUP($C13,'Indicateurs Cumulés'!$C$3:$HJ$560,200,FALSE)/(VLOOKUP($C13,objectifs!$C$3:$AAB$559,162,FALSE))<=-0.5,(VLOOKUP($C13,objectifs!$C$3:$AAB$559,162,FALSE))*-0.5,VLOOKUP($C13,'Indicateurs Cumulés'!$C$3:$HJ$560,200,FALSE)))) -> -3 | GV13: 0 | GW13: 2 | GY13: 12 | GZ13: 0 | HA13: 8 | HB13: -2 | HC13: -0 | HD13: 19 | HE13: 144 | HF13: -102 | HG13: 4 | HH13: -12 | HI13: -8 | HJ13: 2 | HK13: 3 | HL13: 0 | HM13: 0 | HN13: 0 | HO13: 0 | HP13: 0 | HQ13: 8 | HR13: -10 | HS13: -1 | HT13: -12 | HU13: -9 | HV13: 4 | HW13: 25 | HX13: 0 | HY13: 0 | HZ13: 0 | IA13: 6 | IB13: 138 | IC13: -103 | ID13: -19 | IE13: -10 | IF13: 65 | IG13: 12 | IH13: 100 | II13: -44 | IJ13: 0 | IK13: -7 | IL13: -8 | IM13: 0 | IN13: 2 | IO13: 1 | IP13: -1 | IQ13: -0 | IR13: -1 | IS13: -0 | IT13: 0 | IU13: 3 | IV13: 0 | IW13: 0 | IX13: 2 | IY13: -2 | IZ13: 0 | JA13: 6 | JB13: 90 | JC13: -22 | JD13: -4 | JE13: -1 | JF13: 13 | JG13: 0 | JH13: 2.4 | JI13: 128 | JJ13: -1 | JK13: 0 | JL13: 0 | JM13: 0 | JO13: 0 | JP13: 0 | JQ13: -1 | JR13: 6 | JS13: -1 | JT13: 0 | JU13: 0 | JV13: -1 | JW13: 1 | JX13: -2 | JY13: 5 | JZ13: 2 | KA13: -1 | KB13: -2 | KC13: 1 | KD13: 1 | KE13: 0 | KF13: 1 | KG13: -5 | KH13: 7 | KI13: 2 | KJ13: -1 | KK13: -0 | KL13: 1 | KM13: 0 | KN13: 0 | KO13: 0 | KP13: -3 | KQ13: 11 | KR13: 17 | KS13: -28 | KT13: 426 | KU13: 0 | KV13: 0 | KW13: 0 | KX13: 0 | KY13: -28 | KZ13: 151 | LA13: 208 | LB13: 735 | LC13: 160 | LD13: 48 | LE13: 78 | LF13: 11.3 | LG13: 2.1 | LH13: 2.2 | LI13: 8.0 | LJ13: 0.7 | LK13: 0.4 | LL13: 20 | LM13: 5.2 | LN13: 653 | LO13: 184 | LP13: 126.74 | LQ13: 600 | LR13: 116.4 | LS13: 678 | MI13: =#REF!/U13 -> 
A14: 105006 | B14: 200262 | C14: 23 | D14: STRASBOURG VOSGES | E14: 23 | F14: STRASBOURG VOSGES | G14: 2019-11-30 | H14: 94 | I14: 4.32% | J14: 1.57 | K14: 2019-11-30 | L14: 783 | M14: 2.63% | N14: 2.64 | O14: 54 | P14: 97.45% | Q14: 146.83% | R14: 19 | S14: 4 | T14: 84 | U14: 1,230 | V14: 0.20% | W14: 8.12 | X14: 73.60% | Y14: 158.98% | Z14: 36 | AA14: 4 | AB14: 1.7 | AC14: 2 | AD14: 2 | AE14: -10 | AF14: 54 | AG14: 712 | AH14: 0.42% | AI14: 6.16 | AJ14: 0 | AK14: 0.00% | AL14: 0 | AM14: 0 | AN14: 1.9 | AO14: 0.00 | AP14: 40.24% | AQ14: 100.00% | AR14: 1 | AS14: 21 | AT14: 112 | AU14: 0.87% | AV14: 3.59 | AW14: 0 | AX14: 78.17% | AY14: 216.36% | AZ14: 3 | BA14: 7 | BB14: 243 | BC14: 0.70% | BD14: 8.80 | BE14: 0 | BF14: 200.00% | BG14: 100.00% | BH14: 9 | BI14: 1 | BJ14: 25 | BK14: 159 | BL14: 201911 | BM14: 3.00 | BN14: 0.07 | BO14: 2.40% | BP14: 224.97 | BQ14: 26.61 | BR14: 12% | BS14: 2.10 | BT14: 0.93% | BU14: 859.43 | BV14: 83.19 | BW14: 9.7% | BX14: 0.42 | BY14: 0.05% | BZ14: 67.49 | CA14: 2.41 | CB14: 3.57% | CC14: 1.06 | CD14: 1.56% | CE14: 1,154.89 | CF14: 112.21 | CG14: 9.7% | CH14: 3.64 | CI14: 0.32% | CJ14: 462 | CK14: 0.70% | CL14: 5.33 | CM14: 17 | CN14: 1,011 | CO14: 0.63% | CP14: 5.33 | CQ14: 34 | CR14: -8 | CS14: 0.71% | CT14: 5.33 | CU14: -0 | CV14: 661 | CW14: 0.40% | CX14: 1.05 | CY14: 3 | CZ14: -321 | DA14: 0.20% | DB14: 5.37 | DC14: -3 | DD14: 128 | DE14: 0.20% | DF14: 5.37 | DG14: 1 | DH14: -47 | DI14: 0.20% | DJ14: 5.37 | DK14: -0 | DL14: 2 | DM14: 0.19% | DN14: 5.33 | DO14: 0 | DP14: -17 | DQ14: 0.10% | DR14: 7.23 | DS14: -0 | DT14: -286 | DU14: 0.20% | DV14: 9.00 | DW14: -5 | DX14: -98 | DY14: 0.00% | DZ14: 8.59 | EA14: 0 | EB14: 0 | EC14: -0.26% | ED14: 0.74 | EE14: 0 | EF14: -600 | EG14: 0.20% | EH14: 8.00 | EI14: -10 | EJ14: 140 | EK14: 1.00% | EL14: 5.00 | EM14: 7 | EN14: 938 | EO14: 40 | EP14: 122 | EQ14: 0.45% | ER14: 8.00 | ES14: 4 | ET14: 800 | EU14: 0.45% | EV14: 8.00 | EW14: 29 | EX14: -154 | EY14: 0.65% | EZ14: 5.00 | FA14: -5 | FB14: 0 | FC14: 0.65% | FD14: 5.00 | FE14: 0 | FF14: -114 | FG14: 1.00% | FH14: 5.00 | FI14: -6 | FJ14: 1,509 | FK14: 0.32% | FL14: 1.00 | FM14: 5 | FN14: 800 | FO14: 0.32% | FP14: 1.00 | FQ14: 3 | FR14: 44 | FS14: 0.40% | FT14: 1.00 | FU14: 0 | FV14: 0 | FW14: 0.40% | FX14: 1.00 | FY14: 0 | FZ14: 137 | GA14: 3 | GB14: 97 | GC14: 3 | GD14: 654 | GE14: 35 | GF14: -293 | GG14: =IF(ISERROR(IF(VLOOKUP($C14,'Indicateurs Cumulés'!$C$3:$HJ$560,186,FALSE)/(VLOOKUP($C14,objectifs!$C$3:$AAB$559,158,FALSE))>=1.5,(VLOOKUP($C14,objectifs!$C$3:$AAB$559,158,FALSE))*1.5,IF(VLOOKUP($C14,'Indicateurs Cumulés'!$C$3:$HJ$560,186,FALSE)/(VLOOKUP($C14,objectifs!$C$3:$AAB$559,158,FALSE))<=-0.5,(VLOOKUP($C14,objectifs!$C$3:$AAB$559,158,FALSE))*-0.5,VLOOKUP($C14,'Indicateurs Cumulés'!$C$3:$HJ$560,186,FALSE)))),VLOOKUP($C14,'Indicateurs Cumulés'!$C$3:$HJ$560,186,FALSE),IF(VLOOKUP($C14,'Indicateurs Cumulés'!$C$3:$HJ$560,186,FALSE)/(VLOOKUP($C14,objectifs!$C$3:$AAB$559,158,FALSE))>=1.5,(VLOOKUP($C14,objectifs!$C$3:$AAB$559,158,FALSE))*1.5,IF(VLOOKUP($C14,'Indicateurs Cumulés'!$C$3:$HJ$560,186,FALSE)/(VLOOKUP($C14,objectifs!$C$3:$AAB$559,158,FALSE))<=-0.5,(VLOOKUP($C14,objectifs!$C$3:$AAB$559,158,FALSE))*-0.5,VLOOKUP($C14,'Indicateurs Cumulés'!$C$3:$HJ$560,186,FALSE)))) -> -262 | GH14: 1.00% | GI14: 5.37 | GJ14: -14 | GK14: 62 | GL14: -89 | GM14: 0.20% | GN14: 0 | GP14: 193 | GQ14: 6 | GR14: -92 | GS14: -80 | GT14: 161 | GU14: =IF(ISERROR(IF(VLOOKUP($C14,'Indicateurs Cumulés'!$C$3:$HJ$560,200,FALSE)/(VLOOKUP($C14,objectifs!$C$3:$AAB$559,162,FALSE))>=1.5,(VLOOKUP($C14,objectifs!$C$3:$AAB$559,162,FALSE))*1.5,IF(VLOOKUP($C14,'Indicateurs Cumulés'!$C$3:$HJ$560,200,FALSE)/(VLOOKUP($C14,objectifs!$C$3:$AAB$559,162,FALSE))<=-0.5,(VLOOKUP($C14,objectifs!$C$3:$AAB$559,162,FALSE))*-0.5,VLOOKUP($C14,'Indicateurs Cumulés'!$C$3:$HJ$560,200,FALSE)))),VLOOKUP($C14,'Indicateurs Cumulés'!$C$3:$HJ$560,200,FALSE),IF(VLOOKUP($C14,'Indicateurs Cumulés'!$C$3:$HJ$560,200,FALSE)/(VLOOKUP($C14,objectifs!$C$3:$AAB$559,162,FALSE))>=1.5,(VLOOKUP($C14,objectifs!$C$3:$AAB$559,162,FALSE))*1.5,IF(VLOOKUP($C14,'Indicateurs Cumulés'!$C$3:$HJ$560,200,FALSE)/(VLOOKUP($C14,objectifs!$C$3:$AAB$559,162,FALSE))<=-0.5,(VLOOKUP($C14,objectifs!$C$3:$AAB$559,162,FALSE))*-0.5,VLOOKUP($C14,'Indicateurs Cumulés'!$C$3:$HJ$560,200,FALSE)))) -> 8 | GV14: -2 | GW14: 0 | GY14: 7 | GZ14: 0 | HA14: -3 | HB14: -3 | HC14: 0 | HD14: 0 | HE14: -24 | HF14: 0 | HG14: 0 | HH14: -4 | HI14: 0 | HJ14: 0 | HK14: 1 | HL14: 0 | HM14: 0 | HN14: 0 | HO14: 0 | HP14: 0 | HQ14: -2 | HR14: -2 | HS14: -3 | HT14: -10 | HU14: -25 | HV14: -1 | HW14: -22 | HX14: 0 | HY14: 0 | HZ14: -1 | IA14: -2 | IB14: -21 | IC14: -19 | ID14: -2 | IE14: -2 | IF14: 8 | IG14: 8 | IH14: -17 | II14: 0 | IJ14: 0 | IK14: -2 | IL14: 0 | IM14: 0 | IN14: 0 | IO14: -0 | IP14: -0 | IQ14: -1 | IR14: -1 | IS14: -1 | IT14: -0 | IU14: -3 | IV14: 0 | IW14: 0 | IX14: -0 | IY14: -0 | IZ14: -2 | JA14: -2 | JB14: -14 | JC14: -4 | JD14: -0 | JE14: -0 | JF14: 2 | JG14: 0 | JH14: 1.6 | JI14: -43 | JJ14: 0 | JK14: 0 | JL14: 0 | JM14: 0 | JO14: 0 | JP14: 0 | JQ14: 1 | JR14: 3 | JS14: 0 | JT14: 0 | JU14: 0 | JV14: 1 | JW14: 0 | JX14: 2 | JY14: 6 | JZ14: -2 | KA14: 0 | KB14: 3 | KC14: 0 | KD14: 0 | KE14: 1 | KF14: 0 | KG14: 0 | KH14: 9 | KI14: -2 | KJ14: 0 | KK14: 1 | KL14: 0 | KM14: 0 | KN14: 0 | KO14: 0 | KP14: 0 | KQ14: 4 | KR14: 12 | KS14: -14 | KT14: 281 | KU14: 0 | KV14: 0 | KW14: 0 | KX14: 0 | KY14: -14 | KZ14: 138 | LA14: 108 | LB14: 557 | LC14: 102 | LD14: 74 | LE14: 43 | LF14: 10.4 | LG14: 1.1 | LH14: 1.7 | LI14: 5.1 | LJ14: 1.1 | LK14: 0.2 | LL14: 23 | LM14: 3.4 | LN14: 176 | LO14: 64 | LP14: 51.83 | LQ14: 164 | LR14: 48.1 | LS14: 196 | MI14: =#REF!/U14 -> 
A15: 105006 | B15: 200262 | C15: 24 | D15: STRASBOURG AUSTERLITZ | E15: 24 | F15: STRASBOURG AUSTERLITZ | G15: 2019-11-30 | H15: 127 | I15: 4.32% | J15: 1.57 | K15: 2019-11-30 | L15: 820 | M15: 3.15% | N15: 2.65 | O15: 68 | P15: 99.58% | Q15: 142.87% | R15: 20 | S15: 5 | T15: 102 | U15: 4,140 | V15: 0.36% | W15: 8.03 | X15: 45.48% | Y15: 130.45% | Z15: 70 | AA15: 11 | AB15: 5.7 | AC15: 4 | AD15: 4 | AE15: -24 | AF15: 186 | AG15: 229 | AH15: 1.01% | AI15: 3.22 | AJ15: 0 | AK15: 0.00% | AL15: 0 | AM15: 0 | AN15: 1.0 | AO15: 0.00 | AP15: 0.00% | AQ15: 0.00% | AR15: 0 | AS15: 8 | AT15: 28 | AU15: 5.22% | AV15: 2.08 | AW15: 0 | AX15: 100.00% | AY15: 157.14% | AZ15: 1 | BA15: 4 | BB15: 113 | BC15: 0.06% | BD15: 4.38 | BE15: 1 | BF15: 0.00% | BG15: 0.00% | BH15: 0 | BI15: 0 | BJ15: 1 | BK15: 296 | BL15: 201911 | BM15: 0 | BN15: 0 | BO15: 0.00% | BP15: 208.06 | BQ15: 34.74 | BR15: 17% | BS15: 2.43 | BT15: 1.17% | BU15: 1,124.90 | BV15: 179.99 | BW15: 16.0% | BX15: 1.53 | BY15: 0.14% | BZ15: 53.02 | CA15: 1.64 | CB15: 3.09% | CC15: 0.88 | CD15: 1.66% | CE15: 1,385.97 | CF15: 216.36 | CG15: 15.6% | CH15: 4.84 | CI15: 0.35% | CJ15: -11 | CK15: 0.70% | CL15: 5.33 | CM15: -0 | CN15: -45 | CO15: 0.63% | CP15: 5.33 | CQ15: -2 | CR15: 62 | CS15: 0.71% | CT15: 5.33 | CU15: 2 | CV15: -41 | CW15: 0.40% | CX15: 1.05 | CY15: -0 | CZ15: -214 | DA15: 0.20% | DB15: 5.37 | DC15: -2 | DD15: 144 | DE15: 0.20% | DF15: 5.37 | DG15: 2 | DH15: -29 | DI15: 0.20% | DJ15: 5.37 | DK15: -0 | DL15: 34 | DM15: 0.19% | DN15: 5.33 | DO15: 0 | DP15: -1 | DQ15: 0.10% | DR15: 9.51 | DS15: -0 | DT15: -116 | DU15: 0.20% | DV15: 9.00 | DW15: -2 | DX15: -800 | DY15: 0.00% | DZ15: 8.59 | EA15: 0 | EB15: 0 | EC15: -0.26% | ED15: 0.74 | EE15: 0 | EF15: -302 | EG15: 0.20% | EH15: 8.00 | EI15: -5 | EJ15: -219 | EK15: 1.00% | EL15: 5.00 | EM15: -11 | EN15: -2,032 | EO15: -34 | EP15: 213 | EQ15: 0.45% | ER15: 8.00 | ES15: 8 | ET15: 445 | EU15: 0.45% | EV15: 8.00 | EW15: 16 | EX15: 1 | EY15: 0.65% | EZ15: 5.00 | FA15: 0 | FB15: 0 | FC15: 0.65% | FD15: 5.00 | FE15: 0 | FF15: 26 | FG15: 1.00% | FH15: 5.00 | FI15: 1 | FJ15: 1,315 | FK15: 0.35% | FL15: 1.00 | FM15: 5 | FN15: 445 | FO15: 0.35% | FP15: 1.00 | FQ15: 2 | FR15: 21 | FS15: 0.40% | FT15: 1.00 | FU15: 0 | FV15: 0 | FW15: 0.40% | FX15: 1.00 | FY15: 0 | FZ15: 53 | GA15: 1 | GB15: 130 | GC15: 4 | GD15: 685 | GE15: 36 | GF15: 429 | GG15: =IF(ISERROR(IF(VLOOKUP($C15,'Indicateurs Cumulés'!$C$3:$HJ$560,186,FALSE)/(VLOOKUP($C15,objectifs!$C$3:$AAB$559,158,FALSE))>=1.5,(VLOOKUP($C15,objectifs!$C$3:$AAB$559,158,FALSE))*1.5,IF(VLOOKUP($C15,'Indicateurs Cumulés'!$C$3:$HJ$560,186,FALSE)/(VLOOKUP($C15,objectifs!$C$3:$AAB$559,158,FALSE))<=-0.5,(VLOOKUP($C15,objectifs!$C$3:$AAB$559,158,FALSE))*-0.5,VLOOKUP($C15,'Indicateurs Cumulés'!$C$3:$HJ$560,186,FALSE)))),VLOOKUP($C15,'Indicateurs Cumulés'!$C$3:$HJ$560,186,FALSE),IF(VLOOKUP($C15,'Indicateurs Cumulés'!$C$3:$HJ$560,186,FALSE)/(VLOOKUP($C15,objectifs!$C$3:$AAB$559,158,FALSE))>=1.5,(VLOOKUP($C15,objectifs!$C$3:$AAB$559,158,FALSE))*1.5,IF(VLOOKUP($C15,'Indicateurs Cumulés'!$C$3:$HJ$560,186,FALSE)/(VLOOKUP($C15,objectifs!$C$3:$AAB$559,158,FALSE))<=-0.5,(VLOOKUP($C15,objectifs!$C$3:$AAB$559,158,FALSE))*-0.5,VLOOKUP($C15,'Indicateurs Cumulés'!$C$3:$HJ$560,186,FALSE)))) -> 429 | GH15: 1.00% | GI15: 5.37 | GJ15: 23 | GK15: 25 | GL15: 0 | GM15: 0.20% | GN15: 5 | GP15: -21 | GQ15: -57 | GR15: -494 | GS15: -2 | GT15: -124 | GU15: =IF(ISERROR(IF(VLOOKUP($C15,'Indicateurs Cumulés'!$C$3:$HJ$560,200,FALSE)/(VLOOKUP($C15,objectifs!$C$3:$AAB$559,162,FALSE))>=1.5,(VLOOKUP($C15,objectifs!$C$3:$AAB$559,162,FALSE))*1.5,IF(VLOOKUP($C15,'Indicateurs Cumulés'!$C$3:$HJ$560,200,FALSE)/(VLOOKUP($C15,objectifs!$C$3:$AAB$559,162,FALSE))<=-0.5,(VLOOKUP($C15,objectifs!$C$3:$AAB$559,162,FALSE))*-0.5,VLOOKUP($C15,'Indicateurs Cumulés'!$C$3:$HJ$560,200,FALSE)))),VLOOKUP($C15,'Indicateurs Cumulés'!$C$3:$HJ$560,200,FALSE),IF(VLOOKUP($C15,'Indicateurs Cumulés'!$C$3:$HJ$560,200,FALSE)/(VLOOKUP($C15,objectifs!$C$3:$AAB$559,162,FALSE))>=1.5,(VLOOKUP($C15,objectifs!$C$3:$AAB$559,162,FALSE))*1.5,IF(VLOOKUP($C15,'Indicateurs Cumulés'!$C$3:$HJ$560,200,FALSE)/(VLOOKUP($C15,objectifs!$C$3:$AAB$559,162,FALSE))<=-0.5,(VLOOKUP($C15,objectifs!$C$3:$AAB$559,162,FALSE))*-0.5,VLOOKUP($C15,'Indicateurs Cumulés'!$C$3:$HJ$560,200,FALSE)))) -> -3 | GV15: 0 | GW15: 0 | GY15: -1 | GZ15: 0 | HA15: -16 | HB15: -0 | HC15: -0 | HD15: -17 | HE15: 29 | HF15: 0 | HG15: 3 | HH15: -17 | HI15: -4 | HJ15: 0 | HK15: 6 | HL15: 3 | HM15: 0 | HN15: 2 | HO15: 1 | HP15: 0 | HQ15: 0 | HR15: 9 | HS15: -2 | HT15: -2 | HU15: 5 | HV15: 5 | HW15: 13 | HX15: 0 | HY15: 0 | HZ15: 1 | IA15: 4 | IB15: 24 | IC15: -11 | ID15: -17 | IE15: 0 | IF15: 62 | IG15: 24 | IH15: 20 | II15: 0 | IJ15: 0 | IK15: -11 | IL15: -4 | IM15: 3 | IN15: 6 | IO15: 0 | IP15: 1 | IQ15: -1 | IR15: -0 | IS15: 0 | IT15: 0 | IU15: 1 | IV15: 0 | IW15: 0 | IX15: 0 | IY15: 2 | IZ15: 2 | JA15: 4 | JB15: 16 | JC15: -2 | JD15: -4 | JE15: 0 | JF15: 12 | JG15: 0 | JH15: 4.8 | JI15: 51 | JJ15: -4 | JK15: 0 | JL15: 0 | JM15: 0 | JO15: 0 | JP15: 0 | JQ15: -4 | JR15: -1 | JS15: -3 | JT15: 0 | JU15: 0 | JV15: -6 | JW15: -0 | JX15: -9 | JY15: -2 | JZ15: 0 | KA15: 1 | KB15: -2 | KC15: 1 | KD15: 0 | KE15: 0 | KF15: 0 | KG15: -1 | KH15: -3 | KI15: 0 | KJ15: 1 | KK15: -0 | KL15: 1 | KM15: 0 | KN15: 0 | KO15: 0 | KP15: -1 | KQ15: 4 | KR15: 1 | KS15: -8 | KT15: 299 | KU15: 0 | KV15: 0 | KW15: 0 | KX15: 0 | KY15: -8 | KZ15: 122 | LA15: 102 | LB15: 910 | LC15: 106 | LD15: 110 | LE15: 65 | LF15: 9.2 | LG15: 1.0 | LH15: 2.7 | LI15: 5.3 | LJ15: 1.7 | LK15: 0.3 | LL15: 24 | LM15: 2.7 | LN15: 356 | LO15: -12 | LP15: 129.66 | LQ15: 317 | LR15: 115.4 | LS15: 376 | MI15: =#REF!/U15 -> 
A16: 105006 | B16: 200262 | C16: 25 | D16: STRASBOURG ESPLANADE | E16: 25 | F16: STRASBOURG ESPLANADE | G16: 2019-11-30 | H16: 140 | I16: 4.32% | J16: 1.57 | K16: 2019-11-30 | L16: 1,032 | M16: 3.81% | N16: 2.33 | O16: 92 | P16: 91.09% | Q16: 151.02% | R16: 22 | S16: 6 | T16: 130 | U16: 5,933 | V16: 0.34% | W16: 6.41 | X16: 53.78% | Y16: 135.58% | Z16: 84 | AA16: 13 | AB16: 7.7 | AC16: 6 | AD16: 6 | AE16: -7 | AF16: 235 | AG16: 1,532 | AH16: 0.69% | AI16: 5.25 | AJ16: 0 | AK16: 0.00% | AL16: 0 | AM16: 0 | AN16: 3.9 | AO16: 0.00 | AP16: 12.67% | AQ16: 137.19% | AR16: 2 | AS16: 61 | AT16: 16 | AU16: 2.82% | AV16: 2.05 | AW16: 0 | AX16: 100.00% | AY16: 200.00% | AZ16: 0 | BA16: 1 | BB16: 571 | BC16: 0.03% | BD16: 6.09 | BE16: 1 | BF16: 125.47% | BG16: 100.00% | BH16: 13 | BI16: 1 | BJ16: 16 | BK16: 425 | BL16: 201911 | BM16: 0 | BN16: 0 | BO16: 0.00% | BP16: 301.95 | BQ16: 99.14 | BR16: 33% | BS16: 2.24 | BT16: 0.74% | BU16: 791.86 | BV16: 200.96 | BW16: 25.4% | BX16: 1.68 | BY16: 0.21% | BZ16: 47.93 | CA16: 11.57 | CB16: 24.15% | CC16: 0.85 | CD16: 1.78% | CE16: 1,141.73 | CF16: 311.68 | CG16: 27.3% | CH16: 4.77 | CI16: 0.42% | CJ16: 72 | CK16: 0.70% | CL16: 5.33 | CM16: 3 | CN16: 777 | CO16: 0.63% | CP16: 5.33 | CQ16: 26 | CR16: -28 | CS16: 0.71% | CT16: 5.33 | CU16: -1 | CV16: 28 | CW16: 0.40% | CX16: 1.05 | CY16: 0 | CZ16: -287 | DA16: 0.20% | DB16: 5.37 | DC16: -3 | DD16: -86 | DE16: 0.20% | DF16: 5.37 | DG16: -1 | DH16: -28 | DI16: 0.20% | DJ16: 5.37 | DK16: -0 | DL16: 29 | DM16: 0.19% | DN16: 5.33 | DO16: 0 | DP16: 4 | DQ16: 0.10% | DR16: 8.51 | DS16: 0 | DT16: -56 | DU16: 0.20% | DV16: 9.00 | DW16: -1 | DX16: -140 | DY16: 0.00% | DZ16: 8.59 | EA16: 0 | EB16: 0 | EC16: -0.26% | ED16: 0.74 | EE16: 0 | EF16: -606 | EG16: 0.20% | EH16: 8.00 | EI16: -10 | EJ16: -60 | EK16: 1.00% | EL16: 5.00 | EM16: -3 | EN16: -433 | EO16: 8 | EP16: -104 | EQ16: 0.45% | ER16: 8.00 | ES16: -4 | ET16: 571 | EU16: 0.45% | EV16: 8.00 | EW16: 21 | EX16: -188 | EY16: 0.65% | EZ16: 5.00 | FA16: -6 | FB16: 3 | FC16: 0.65% | FD16: 5.00 | FE16: 0 | FF16: -124 | FG16: 1.00% | FH16: 5.00 | FI16: -6 | FJ16: 1,098 | FK16: 0.42% | FL16: 1.00 | FM16: 5 | FN16: 577 | FO16: 0.42% | FP16: 1.00 | FQ16: 2 | FR16: 11 | FS16: 0.40% | FT16: 1.00 | FU16: 0 | FV16: 3 | FW16: 0.40% | FX16: 1.00 | FY16: 0 | FZ16: 188 | GA16: 4 | GB16: 103 | GC16: 3 | GD16: 158 | GE16: 18 | GF16: 107 | GG16: =IF(ISERROR(IF(VLOOKUP($C16,'Indicateurs Cumulés'!$C$3:$HJ$560,186,FALSE)/(VLOOKUP($C16,objectifs!$C$3:$AAB$559,158,FALSE))>=1.5,(VLOOKUP($C16,objectifs!$C$3:$AAB$559,158,FALSE))*1.5,IF(VLOOKUP($C16,'Indicateurs Cumulés'!$C$3:$HJ$560,186,FALSE)/(VLOOKUP($C16,objectifs!$C$3:$AAB$559,158,FALSE))<=-0.5,(VLOOKUP($C16,objectifs!$C$3:$AAB$559,158,FALSE))*-0.5,VLOOKUP($C16,'Indicateurs Cumulés'!$C$3:$HJ$560,186,FALSE)))),VLOOKUP($C16,'Indicateurs Cumulés'!$C$3:$HJ$560,186,FALSE),IF(VLOOKUP($C16,'Indicateurs Cumulés'!$C$3:$HJ$560,186,FALSE)/(VLOOKUP($C16,objectifs!$C$3:$AAB$559,158,FALSE))>=1.5,(VLOOKUP($C16,objectifs!$C$3:$AAB$559,158,FALSE))*1.5,IF(VLOOKUP($C16,'Indicateurs Cumulés'!$C$3:$HJ$560,186,FALSE)/(VLOOKUP($C16,objectifs!$C$3:$AAB$559,158,FALSE))<=-0.5,(VLOOKUP($C16,objectifs!$C$3:$AAB$559,158,FALSE))*-0.5,VLOOKUP($C16,'Indicateurs Cumulés'!$C$3:$HJ$560,186,FALSE)))) -> 107 | GH16: 1.00% | GI16: 5.37 | GJ16: 6 | GK16: 32 | GL16: -1 | GM16: 0.20% | GN16: 1 | GP16: -65 | GQ16: 27 | GR16: -52 | GS16: 7 | GT16: -71 | GU16: =IF(ISERROR(IF(VLOOKUP($C16,'Indicateurs Cumulés'!$C$3:$HJ$560,200,FALSE)/(VLOOKUP($C16,objectifs!$C$3:$AAB$559,162,FALSE))>=1.5,(VLOOKUP($C16,objectifs!$C$3:$AAB$559,162,FALSE))*1.5,IF(VLOOKUP($C16,'Indicateurs Cumulés'!$C$3:$HJ$560,200,FALSE)/(VLOOKUP($C16,objectifs!$C$3:$AAB$559,162,FALSE))<=-0.5,(VLOOKUP($C16,objectifs!$C$3:$AAB$559,162,FALSE))*-0.5,VLOOKUP($C16,'Indicateurs Cumulés'!$C$3:$HJ$560,200,FALSE)))),VLOOKUP($C16,'Indicateurs Cumulés'!$C$3:$HJ$560,200,FALSE),IF(VLOOKUP($C16,'Indicateurs Cumulés'!$C$3:$HJ$560,200,FALSE)/(VLOOKUP($C16,objectifs!$C$3:$AAB$559,162,FALSE))>=1.5,(VLOOKUP($C16,objectifs!$C$3:$AAB$559,162,FALSE))*1.5,IF(VLOOKUP($C16,'Indicateurs Cumulés'!$C$3:$HJ$560,200,FALSE)/(VLOOKUP($C16,objectifs!$C$3:$AAB$559,162,FALSE))<=-0.5,(VLOOKUP($C16,objectifs!$C$3:$AAB$559,162,FALSE))*-0.5,VLOOKUP($C16,'Indicateurs Cumulés'!$C$3:$HJ$560,200,FALSE)))) -> -3 | GV16: -0 | GW16: 0 | GY16: -2 | GZ16: 0 | HA16: -2 | HB16: 0 | HC16: -0 | HD16: -4 | HE16: -3 | HF16: -16 | HG16: 0 | HH16: -15 | HI16: -3 | HJ16: 2 | HK16: 3 | HL16: 0 | HM16: 0 | HN16: 0 | HO16: 0 | HP16: 0 | HQ16: -9 | HR16: -27 | HS16: -3 | HT16: -11 | HU16: -24 | HV16: -2 | HW16: -16 | HX16: 0 | HY16: 0 | HZ16: 0 | IA16: 1 | IB16: -4 | IC16: -22 | ID16: -7 | IE16: 1 | IF16: -8 | IG16: 7 | IH16: -2 | II16: -7 | IJ16: 0 | IK16: -9 | IL16: -3 | IM16: 0 | IN16: 2 | IO16: -1 | IP16: -3 | IQ16: -1 | IR16: -1 | IS16: -0 | IT16: -0 | IU16: -2 | IV16: 0 | IW16: 0 | IX16: -2 | IY16: -5 | IZ16: 0 | JA16: 1 | JB16: -3 | JC16: -5 | JD16: -1 | JE16: 0 | JF16: -2 | JG16: 0 | JH16: 1.4 | JI16: -43 | JJ16: -7 | JK16: 0 | JL16: 0 | JM16: 0 | JO16: 0 | JP16: 0 | JQ16: -9 | JR16: -5 | JS16: -5 | JT16: 0 | JU16: 0 | JV16: -13 | JW16: -1 | JX16: -18 | JY16: -3 | JZ16: -5 | KA16: 2 | KB16: -1 | KC16: -1 | KD16: 0 | KE16: 2 | KF16: 0 | KG16: -10 | KH16: -4 | KI16: -5 | KJ16: 1 | KK16: -0 | KL16: -1 | KM16: 0 | KN16: 1 | KO16: 0 | KP16: -5 | KQ16: 7 | KR16: -6 | KS16: -22 | KT16: 399 | KU16: 0 | KV16: 0 | KW16: 0 | KX16: 0 | KY16: -22 | KZ16: 118 | LA16: 100 | LB16: 839 | LC16: 72 | LD16: 32 | LE16: 49 | LF16: 8.9 | LG16: 1.0 | LH16: 2.5 | LI16: 3.6 | LJ16: 0.5 | LK16: 0.2 | LL16: 25 | LM16: 3.8 | LN16: 369 | LO16: 47 | LP16: 97.01 | LQ16: 351 | LR16: 92.3 | LS16: 386 | MI16: =#REF!/U16 -> 
A17: 105006 | B17: 200262 | C17: 26 | D17: STRASBOURG DANUBE | E17: 26 | F17: STRASBOURG DANUBE | G17: 2019-11-30 | H17: 84 | I17: 4.32% | J17: 1.57 | K17: 2019-11-30 | L17: 606 | M17: 2.59% | N17: 2.33 | O17: 37 | P17: 65.88% | Q17: 196.12% | R17: 15 | S17: 3 | T17: 60 | U17: 4,611 | V17: 0.42% | W17: 7.81 | X17: 70.57% | Y17: 141.23% | Z17: 106 | AA17: 14 | AB17: 7.4 | AC17: 6 | AD17: 6 | AE17: -3 | AF17: 283 | AG17: 0 | AH17: 0.00% | AI17: 0 | AJ17: 0 | AK17: 0.00% | AL17: 0 | AM17: 0 | AN17: 0 | AO17: 0.00 | AP17: 0.00% | AQ17: 0.00% | AR17: 0 | AS17: 0 | AT17: 16 | AU17: 2.82% | AV17: 3.43 | AW17: 0 | AX17: 100.00% | AY17: 300.00% | AZ17: 1 | BA17: 3 | BB17: 222 | BC17: -0.04% | BD17: 7.56 | BE17: 0 | BF17: 200.00% | BG17: 100.00% | BH17: 11 | BI17: 0 | BJ17: 10 | BK17: 343 | BL17: 201911 | BM17: 0 | BN17: 0 | BO17: 0.00% | BP17: 143.82 | BQ17: 30.10 | BR17: 21% | BS17: 1.32 | BT17: 0.92% | BU17: 192.69 | BV17: 49.10 | BW17: 25.5% | BX17: 0.12 | BY17: 0.06% | BZ17: 36.67 | CA17: 5.05 | CB17: 13.77% | CC17: 0.69 | CD17: 1.89% | CE17: 373.18 | CF17: 84.25 | CG17: 22.6% | CH17: 2.13 | CI17: 0.57% | CJ17: 97 | CK17: 0.70% | CL17: 5.33 | CM17: 4 | CN17: 27 | CO17: 0.63% | CP17: 5.33 | CQ17: 1 | CR17: -36 | CS17: 0.71% | CT17: 5.33 | CU17: -1 | CV17: 96 | CW17: 0.40% | CX17: 1.05 | CY17: 0 | CZ17: -103 | DA17: 0.20% | DB17: 5.37 | DC17: -1 | DD17: 29 | DE17: 0.20% | DF17: 5.37 | DG17: 0 | DH17: -13 | DI17: 0.20% | DJ17: 5.37 | DK17: -0 | DL17: 71 | DM17: 0.19% | DN17: 5.33 | DO17: 1 | DP17: 6 | DQ17: 0.10% | DR17: 8.19 | DS17: 0 | DT17: -58 | DU17: 0.20% | DV17: 9.00 | DW17: -1 | DX17: 297 | DY17: 0.00% | DZ17: 3.56 | EA17: 0 | EB17: 0 | EC17: -0.26% | ED17: 0.74 | EE17: 0 | EF17: -93 | EG17: 0.20% | EH17: 8.00 | EI17: -1 | EJ17: 82 | EK17: 1.00% | EL17: 5.00 | EM17: 4 | EN17: 392 | EO17: 5 | EP17: -49 | EQ17: 0.45% | ER17: 8.00 | ES17: -2 | ET17: 0 | EU17: 0.45% | EV17: 8.00 | EW17: 0 | EX17: -28 | EY17: 0.65% | EZ17: 5.00 | FA17: -1 | FB17: 0 | FC17: 0.65% | FD17: 5.00 | FE17: 0 | FF17: -3 | FG17: 1.00% | FH17: 5.00 | FI17: -0 | FJ17: 385 | FK17: 0.57% | FL17: 1.00 | FM17: 2 | FN17: 0 | FO17: 0.57% | FP17: 1.00 | FQ17: 0 | FR17: 15 | FS17: 0.40% | FT17: 1.00 | FU17: 0 | FV17: 0 | FW17: 0.40% | FX17: 1.00 | FY17: 0 | FZ17: 81 | GA17: 2 | GB17: 19 | GC17: 1 | GD17: -80 | GE17: 2 | GF17: -299 | GG17: =IF(ISERROR(IF(VLOOKUP($C17,'Indicateurs Cumulés'!$C$3:$HJ$560,186,FALSE)/(VLOOKUP($C17,objectifs!$C$3:$AAB$559,158,FALSE))>=1.5,(VLOOKUP($C17,objectifs!$C$3:$AAB$559,158,FALSE))*1.5,IF(VLOOKUP($C17,'Indicateurs Cumulés'!$C$3:$HJ$560,186,FALSE)/(VLOOKUP($C17,objectifs!$C$3:$AAB$559,158,FALSE))<=-0.5,(VLOOKUP($C17,objectifs!$C$3:$AAB$559,158,FALSE))*-0.5,VLOOKUP($C17,'Indicateurs Cumulés'!$C$3:$HJ$560,186,FALSE)))),VLOOKUP($C17,'Indicateurs Cumulés'!$C$3:$HJ$560,186,FALSE),IF(VLOOKUP($C17,'Indicateurs Cumulés'!$C$3:$HJ$560,186,FALSE)/(VLOOKUP($C17,objectifs!$C$3:$AAB$559,158,FALSE))>=1.5,(VLOOKUP($C17,objectifs!$C$3:$AAB$559,158,FALSE))*1.5,IF(VLOOKUP($C17,'Indicateurs Cumulés'!$C$3:$HJ$560,186,FALSE)/(VLOOKUP($C17,objectifs!$C$3:$AAB$559,158,FALSE))<=-0.5,(VLOOKUP($C17,objectifs!$C$3:$AAB$559,158,FALSE))*-0.5,VLOOKUP($C17,'Indicateurs Cumulés'!$C$3:$HJ$560,186,FALSE)))) -> -131 | GH17: 1.00% | GI17: 5.37 | GJ17: -7 | GK17: -1 | GL17: 0 | GM17: 0.20% | GN17: -0 | GP17: 1 | GQ17: 2 | GR17: -10 | GS17: -121 | GT17: -30 | GU17: =IF(ISERROR(IF(VLOOKUP($C17,'Indicateurs Cumulés'!$C$3:$HJ$560,200,FALSE)/(VLOOKUP($C17,objectifs!$C$3:$AAB$559,162,FALSE))>=1.5,(VLOOKUP($C17,objectifs!$C$3:$AAB$559,162,FALSE))*1.5,IF(VLOOKUP($C17,'Indicateurs Cumulés'!$C$3:$HJ$560,200,FALSE)/(VLOOKUP($C17,objectifs!$C$3:$AAB$559,162,FALSE))<=-0.5,(VLOOKUP($C17,objectifs!$C$3:$AAB$559,162,FALSE))*-0.5,VLOOKUP($C17,'Indicateurs Cumulés'!$C$3:$HJ$560,200,FALSE)))),VLOOKUP($C17,'Indicateurs Cumulés'!$C$3:$HJ$560,200,FALSE),IF(VLOOKUP($C17,'Indicateurs Cumulés'!$C$3:$HJ$560,200,FALSE)/(VLOOKUP($C17,objectifs!$C$3:$AAB$559,162,FALSE))>=1.5,(VLOOKUP($C17,objectifs!$C$3:$AAB$559,162,FALSE))*1.5,IF(VLOOKUP($C17,'Indicateurs Cumulés'!$C$3:$HJ$560,200,FALSE)/(VLOOKUP($C17,objectifs!$C$3:$AAB$559,162,FALSE))<=-0.5,(VLOOKUP($C17,objectifs!$C$3:$AAB$559,162,FALSE))*-0.5,VLOOKUP($C17,'Indicateurs Cumulés'!$C$3:$HJ$560,200,FALSE)))) -> -3 | GV17: 0 | GW17: -0 | GY17: 0 | GZ17: 0 | HA17: -0 | HB17: -4 | HC17: -0 | HD17: -4 | HE17: 21 | HF17: -30 | HG17: -2 | HH17: -2 | HI17: 0 | HJ17: 4 | HK17: 5 | HL17: 1 | HM17: 0 | HN17: 0 | HO17: 0 | HP17: 0 | HQ17: 19 | HR17: 11 | HS17: 0 | HT17: -3 | HU17: -4 | HV17: 0 | HW17: -4 | HX17: 0 | HY17: 0 | HZ17: 1 | IA17: 0 | IB17: 20 | IC17: -24 | ID17: -8 | IE17: 3 | IF17: 9 | IG17: 17 | IH17: 15 | II17: -13 | IJ17: -0 | IK17: -1 | IL17: 0 | IM17: 0 | IN17: 4 | IO17: 2 | IP17: 1 | IQ17: 0 | IR17: -0 | IS17: -0 | IT17: 0 | IU17: -0 | IV17: 0 | IW17: 0 | IX17: 4 | IY17: 2 | IZ17: 2 | JA17: 0 | JB17: 13 | JC17: -5 | JD17: -2 | JE17: 0 | JF17: 2 | JG17: 0 | JH17: 3.4 | JI17: 26 | JJ17: -1 | JK17: 0 | JL17: 0 | JM17: 0 | JO17: 0 | JP17: 0 | JQ17: -2 | JR17: -2 | JS17: -1 | JT17: 0 | JU17: 0 | JV17: -3 | JW17: -0 | JX17: -4 | JY17: 1 | JZ17: 0 | KA17: -2 | KB17: 0 | KC17: 0 | KD17: 0 | KE17: 0 | KF17: 1 | KG17: 0 | KH17: 1 | KI17: 0 | KJ17: -1 | KK17: 0 | KL17: 0 | KM17: 0 | KN17: 0 | KO17: 0 | KP17: 0 | KQ17: 0 | KR17: 1 | KS17: -11 | KT17: 161 | KU17: 0 | KV17: 0 | KW17: 0 | KX17: 0 | KY17: -11 | KZ17: 105 | LA17: 96 | LB17: 274 | LC17: 70 | LD17: -35 | LE17: 35 | LF17: 7.9 | LG17: 1.0 | LH17: 0.8 | LI17: 3.5 | LJ17: 0.0 | LK17: 0.2 | LL17: 26 | LM17: 2.0 | LN17: 354 | LO17: 6 | LP17: 179.75 | LQ17: 313 | LR17: 158.6 | LS17: 368 | MI17: =#REF!/U17 -> 
A18: 105006 | B18: 200262 | C18: 27 | D18: SCHILTIGHEIM CENTRE | E18: 27 | F18: SCHILTIGHEIM CENTRE | G18: 2019-11-30 | H18: 180 | I18: 4.32% | J18: 1.57 | K18: 2019-11-30 | L18: 2,112 | M18: 3.25% | N18: 2.42 | O18: 166 | P18: 92.40% | Q18: 121.75% | R18: 37 | S18: 7 | T18: 223 | U18: 7,462 | V18: 0.31% | W18: 7.87 | X18: 68.80% | Y18: 138.99% | Z18: 169 | AA18: 25 | AB18: 15.7 | AC18: 19 | AD18: 19 | AE18: -32 | AF18: 380 | AG18: 1,693 | AH18: 0.99% | AI18: 4.70 | AJ18: 25 | AK18: 2.61% | AL18: 1.93 | AM18: 1 | AN18: 7.8 | AO18: 0.25 | AP18: 100.00% | AQ18: 100.00% | AR18: 9 | AS18: 97 | AT18: 344 | AU18: 2.76% | AV18: 2.66 | AW18: 1 | AX18: 91.18% | AY18: 112.09% | AZ18: 5 | BA18: 31 | BB18: 594 | BC18: 0.30% | BD18: 7.94 | BE18: 1 | BF18: 100.00% | BG18: 11.34% | BH18: 1 | BI18: 1 | BJ18: 18 | BK18: 700 | BL18: 201911 | BM18: 40.00 | BN18: 0.48 | BO18: 1.20% | BP18: 542.74 | BQ18: 193.47 | BR18: 36% | BS18: 3.16 | BT18: 0.58% | BU18: 1,864.38 | BV18: 202.55 | BW18: 10.9% | BX18: 3.12 | BY18: 0.17% | BZ18: 76.77 | CA18: 3.17 | CB18: 4.13% | CC18: 1.02 | CD18: 1.32% | CE18: 2,523.89 | CF18: 399.19 | CG18: 15.8% | CH18: 7.77 | CI18: 0.31% | CJ18: 90 | CK18: 0.70% | CL18: 5.33 | CM18: 3 | CN18: 293 | CO18: 0.63% | CP18: 5.33 | CQ18: 10 | CR18: -4 | CS18: 0.71% | CT18: 5.33 | CU18: -0 | CV18: 127 | CW18: 0.40% | CX18: 1.05 | CY18: 1 | CZ18: -346 | DA18: 0.20% | DB18: 5.37 | DC18: -4 | DD18: -53 | DE18: 0.20% | DF18: 5.37 | DG18: -1 | DH18: -27 | DI18: 0.20% | DJ18: 5.37 | DK18: -0 | DL18: -10 | DM18: 0.19% | DN18: 5.33 | DO18: -0 | DP18: -43 | DQ18: 0.10% | DR18: 9.30 | DS18: -0 | DT18: -19 | DU18: 0.20% | DV18: 9.00 | DW18: -0 | DX18: -156 | DY18: 0.00% | DZ18: 8.59 | EA18: 0 | EB18: 0 | EC18: -0.26% | ED18: 0.74 | EE18: 0 | EF18: -511 | EG18: 0.20% | EH18: 8.00 | EI18: -8 | EJ18: 133 | EK18: 1.00% | EL18: 5.00 | EM18: 7 | EN18: -221 | EO18: 16 | EP18: 842 | EQ18: 0.45% | ER18: 8.00 | ES18: 30 | ET18: 100 | EU18: 0.45% | EV18: 8.00 | EW18: 4 | EX18: -37 | EY18: 0.65% | EZ18: 5.00 | FA18: -1 | FB18: 0 | FC18: 0.65% | FD18: 5.00 | FE18: 0 | FF18: -63 | FG18: 1.00% | FH18: 5.00 | FI18: -3 | FJ18: 2,847 | FK18: 0.31% | FL18: 1.00 | FM18: 9 | FN18: 100 | FO18: 0.31% | FP18: 1.00 | FQ18: 0 | FR18: 6 | FS18: 0.40% | FT18: 1.00 | FU18: 0 | FV18: 0 | FW18: 0.40% | FX18: 1.00 | FY18: 0 | FZ18: 85 | GA18: 2 | GB18: 221 | GC18: 6 | GD18: 842 | GE18: 47 | GF18: 130 | GG18: =IF(ISERROR(IF(VLOOKUP($C18,'Indicateurs Cumulés'!$C$3:$HJ$560,186,FALSE)/(VLOOKUP($C18,objectifs!$C$3:$AAB$559,158,FALSE))>=1.5,(VLOOKUP($C18,objectifs!$C$3:$AAB$559,158,FALSE))*1.5,IF(VLOOKUP($C18,'Indicateurs Cumulés'!$C$3:$HJ$560,186,FALSE)/(VLOOKUP($C18,objectifs!$C$3:$AAB$559,158,FALSE))<=-0.5,(VLOOKUP($C18,objectifs!$C$3:$AAB$559,158,FALSE))*-0.5,VLOOKUP($C18,'Indicateurs Cumulés'!$C$3:$HJ$560,186,FALSE)))),VLOOKUP($C18,'Indicateurs Cumulés'!$C$3:$HJ$560,186,FALSE),IF(VLOOKUP($C18,'Indicateurs Cumulés'!$C$3:$HJ$560,186,FALSE)/(VLOOKUP($C18,objectifs!$C$3:$AAB$559,158,FALSE))>=1.5,(VLOOKUP($C18,objectifs!$C$3:$AAB$559,158,FALSE))*1.5,IF(VLOOKUP($C18,'Indicateurs Cumulés'!$C$3:$HJ$560,186,FALSE)/(VLOOKUP($C18,objectifs!$C$3:$AAB$559,158,FALSE))<=-0.5,(VLOOKUP($C18,objectifs!$C$3:$AAB$559,158,FALSE))*-0.5,VLOOKUP($C18,'Indicateurs Cumulés'!$C$3:$HJ$560,186,FALSE)))) -> 130 | GH18: 1.00% | GI18: 5.37 | GJ18: 7 | GK18: 70 | GL18: 0 | GM18: 0.20% | GN18: 27 | GP18: 64 | GQ18: 16 | GR18: 306 | GS18: -30 | GT18: 383 | GU18: =IF(ISERROR(IF(VLOOKUP($C18,'Indicateurs Cumulés'!$C$3:$HJ$560,200,FALSE)/(VLOOKUP($C18,objectifs!$C$3:$AAB$559,162,FALSE))>=1.5,(VLOOKUP($C18,objectifs!$C$3:$AAB$559,162,FALSE))*1.5,IF(VLOOKUP($C18,'Indicateurs Cumulés'!$C$3:$HJ$560,200,FALSE)/(VLOOKUP($C18,objectifs!$C$3:$AAB$559,162,FALSE))<=-0.5,(VLOOKUP($C18,objectifs!$C$3:$AAB$559,162,FALSE))*-0.5,VLOOKUP($C18,'Indicateurs Cumulés'!$C$3:$HJ$560,200,FALSE)))),VLOOKUP($C18,'Indicateurs Cumulés'!$C$3:$HJ$560,200,FALSE),IF(VLOOKUP($C18,'Indicateurs Cumulés'!$C$3:$HJ$560,200,FALSE)/(VLOOKUP($C18,objectifs!$C$3:$AAB$559,162,FALSE))>=1.5,(VLOOKUP($C18,objectifs!$C$3:$AAB$559,162,FALSE))*1.5,IF(VLOOKUP($C18,'Indicateurs Cumulés'!$C$3:$HJ$560,200,FALSE)/(VLOOKUP($C18,objectifs!$C$3:$AAB$559,162,FALSE))<=-0.5,(VLOOKUP($C18,objectifs!$C$3:$AAB$559,162,FALSE))*-0.5,VLOOKUP($C18,'Indicateurs Cumulés'!$C$3:$HJ$560,200,FALSE)))) -> 8 | GV18: 0 | GW18: 1 | GY18: 2 | GZ18: 0 | HA18: 10 | HB18: -1 | HC18: 0 | HD18: 13 | HE18: 47 | HF18: -35 | HG18: 11 | HH18: -7 | HI18: 0 | HJ18: 4 | HK18: 12 | HL18: 0 | HM18: 0 | HN18: 3 | HO18: 0 | HP18: 0 | HQ18: 1 | HR18: 5 | HS18: -2 | HT18: -15 | HU18: -26 | HV18: 5 | HW18: 5 | HX18: 0 | HY18: 0 | HZ18: 1 | IA18: -6 | IB18: 52 | IC18: -13 | ID18: -15 | IE18: 1 | IF18: 54 | IG18: 30 | IH18: 33 | II18: -15 | IJ18: 1 | IK18: -4 | IL18: 0 | IM18: 3 | IN18: 6 | IO18: 0 | IP18: 0 | IQ18: -1 | IR18: -1 | IS18: -1 | IT18: 0 | IU18: 1 | IV18: 0 | IW18: 0 | IX18: 0 | IY18: 1 | IZ18: 2 | JA18: -6 | JB18: 34 | JC18: -3 | JD18: -3 | JE18: 0 | JF18: 11 | JG18: 0 | JH18: 6.0 | JI18: 63 | JJ18: 9 | JK18: 0 | JL18: 0 | JM18: 0 | JO18: 0 | JP18: 0 | JQ18: 8 | JR18: 6 | JS18: 6 | JT18: 0 | JU18: 0 | JV18: 12 | JW18: 1 | JX18: 18 | JY18: 13 | JZ18: 0 | KA18: 1 | KB18: 2 | KC18: 2 | KD18: 1 | KE18: 2 | KF18: 4 | KG18: 2 | KH18: 19 | KI18: 0 | KJ18: 1 | KK18: 0 | KL18: 1 | KM18: 0 | KN18: 1 | KO18: 0 | KP18: 1 | KQ18: 18 | KR18: 42 | KS18: -22 | KT18: 470 | KU18: 0 | KV18: 0 | KW18: 0 | KX18: 0 | KY18: -22 | KZ18: 208 | LA18: 132 | LB18: 1010 | LC18: 193 | LD18: 144 | LE18: 96 | LF18: 15.6 | LG18: 1.3 | LH18: 3.0 | LI18: 9.7 | LJ18: 2.2 | LK18: 0.5 | LL18: 27 | LM18: 4.6 | LN18: 871 | LO18: 211 | LP18: 187.62 | LQ18: 794 | LR18: 171.2 | LS18: 903 | MI18: =#REF!/U18 -> 
A19: 105006 | B19: 200262 | C19: 28 | D19: BISCHHEIM | E19: 28 | F19: BISCHHEIM | G19: 2019-11-30 | H19: 197 | I19: 4.32% | J19: 1.57 | K19: 2019-11-30 | L19: 1,182 | M19: 3.36% | N19: 2.33 | O19: 92 | P19: 96.04% | Q19: 137.58% | R19: 24 | S19: 6 | T19: 136 | U19: 3,425 | V19: 0.22% | W19: 7.41 | X19: 76.96% | Y19: 165.08% | Z19: 102 | AA19: 11 | AB19: 6.3 | AC19: 8 | AD19: 8 | AE19: -8 | AF19: 174 | AG19: 160 | AH19: 0.85% | AI19: 3.01 | AJ19: 18 | AK19: 1.95% | AL19: 1.93 | AM19: 1 | AN19: 0.9 | AO19: 0.20 | AP19: 100.00% | AQ19: 100.00% | AR19: 0 | AS19: 6 | AT19: 33 | AU19: 2.33% | AV19: 3.43 | AW19: 0 | AX19: 100.00% | AY19: 200.00% | AZ19: 1 | BA19: 4 | BB19: 283 | BC19: 0.55% | BD19: 7.78 | BE19: 1 | BF19: 200.00% | BG19: 99.65% | BH19: 15 | BI19: 1 | BJ19: 29 | BK19: 317 | BL19: 201911 | BM19: 11.50 | BN19: 0.28 | BO19: 2.40% | BP19: 332.88 | BQ19: 91.29 | BR19: 27% | BS19: 3.65 | BT19: 1.10% | BU19: 1,424.19 | BV19: 179.11 | BW19: 12.6% | BX19: 1.80 | BY19: 0.13% | BZ19: 149.53 | CA19: 28.62 | CB19: 19.14% | CC19: 2.65 | CD19: 1.77% | CE19: 1,918.11 | CF19: 299.01 | CG19: 15.6% | CH19: 8.38 | CI19: 0.44% | CJ19: 3 | CK19: 0.70% | CL19: 5.33 | CM19: 0 | CN19: 2 | CO19: 0.63% | CP19: 5.33 | CQ19: 0 | CR19: 5 | CS19: 0.71% | CT19: 5.33 | CU19: 0 | CV19: 20 | CW19: 0.40% | CX19: 1.05 | CY19: 0 | CZ19: -238 | DA19: 0.20% | DB19: 5.37 | DC19: -3 | DD19: 180 | DE19: 0.20% | DF19: 5.37 | DG19: 2 | DH19: -54 | DI19: 0.20% | DJ19: 5.37 | DK19: -1 | DL19: 17 | DM19: 0.19% | DN19: 5.33 | DO19: 0 | DP19: 5 | DQ19: 0.10% | DR19: 6.29 | DS19: 0 | DT19: -70 | DU19: 0.20% | DV19: 9.00 | DW19: -1 | DX19: 249 | DY19: 0.00% | DZ19: 8.59 | EA19: 0 | EB19: -5 | EC19: -0.26% | ED19: 0.74 | EE19: 0 | EF19: -620 | EG19: 0.20% | EH19: 8.00 | EI19: -10 | EJ19: -48 | EK19: 1.00% | EL19: 5.00 | EM19: -2 | EN19: -414 | EO19: -10 | EP19: 372 | EQ19: 0.45% | ER19: 8.00 | ES19: 13 | ET19: 0 | EU19: 0.45% | EV19: 8.00 | EW19: 0 | EX19: -177 | EY19: 0.65% | EZ19: 5.00 | FA19: -6 | FB19: 0 | FC19: 0.65% | FD19: 5.00 | FE19: 0 | FF19: 34 | FG19: 1.00% | FH19: 5.00 | FI19: 2 | FJ19: 1,981 | FK19: 0.44% | FL19: 1.00 | FM19: 9 | FN19: 0 | FO19: 0.44% | FP19: 1.00 | FQ19: 0 | FR19: 25 | FS19: 0.40% | FT19: 1.00 | FU19: 0 | FV19: 0 | FW19: 0.40% | FX19: 1.00 | FY19: 0 | FZ19: 229 | GA19: 5 | GB19: 107 | GC19: 3 | GD19: 229 | GE19: 26 | GF19: 526 | GG19: =IF(ISERROR(IF(VLOOKUP($C19,'Indicateurs Cumulés'!$C$3:$HJ$560,186,FALSE)/(VLOOKUP($C19,objectifs!$C$3:$AAB$559,158,FALSE))>=1.5,(VLOOKUP($C19,objectifs!$C$3:$AAB$559,158,FALSE))*1.5,IF(VLOOKUP($C19,'Indicateurs Cumulés'!$C$3:$HJ$560,186,FALSE)/(VLOOKUP($C19,objectifs!$C$3:$AAB$559,158,FALSE))<=-0.5,(VLOOKUP($C19,objectifs!$C$3:$AAB$559,158,FALSE))*-0.5,VLOOKUP($C19,'Indicateurs Cumulés'!$C$3:$HJ$560,186,FALSE)))),VLOOKUP($C19,'Indicateurs Cumulés'!$C$3:$HJ$560,186,FALSE),IF(VLOOKUP($C19,'Indicateurs Cumulés'!$C$3:$HJ$560,186,FALSE)/(VLOOKUP($C19,objectifs!$C$3:$AAB$559,158,FALSE))>=1.5,(VLOOKUP($C19,objectifs!$C$3:$AAB$559,158,FALSE))*1.5,IF(VLOOKUP($C19,'Indicateurs Cumulés'!$C$3:$HJ$560,186,FALSE)/(VLOOKUP($C19,objectifs!$C$3:$AAB$559,158,FALSE))<=-0.5,(VLOOKUP($C19,objectifs!$C$3:$AAB$559,158,FALSE))*-0.5,VLOOKUP($C19,'Indicateurs Cumulés'!$C$3:$HJ$560,186,FALSE)))) -> 526 | GH19: 1.00% | GI19: 5.37 | GJ19: 28 | GK19: 44 | GL19: -45 | GM19: 0.20% | GN19: 21 | GP19: 1 | GQ19: 3 | GR19: 140 | GS19: -33 | GT19: 87 | GU19: =IF(ISERROR(IF(VLOOKUP($C19,'Indicateurs Cumulés'!$C$3:$HJ$560,200,FALSE)/(VLOOKUP($C19,objectifs!$C$3:$AAB$559,162,FALSE))>=1.5,(VLOOKUP($C19,objectifs!$C$3:$AAB$559,162,FALSE))*1.5,IF(VLOOKUP($C19,'Indicateurs Cumulés'!$C$3:$HJ$560,200,FALSE)/(VLOOKUP($C19,objectifs!$C$3:$AAB$559,162,FALSE))<=-0.5,(VLOOKUP($C19,objectifs!$C$3:$AAB$559,162,FALSE))*-0.5,VLOOKUP($C19,'Indicateurs Cumulés'!$C$3:$HJ$560,200,FALSE)))),VLOOKUP($C19,'Indicateurs Cumulés'!$C$3:$HJ$560,200,FALSE),IF(VLOOKUP($C19,'Indicateurs Cumulés'!$C$3:$HJ$560,200,FALSE)/(VLOOKUP($C19,objectifs!$C$3:$AAB$559,162,FALSE))>=1.5,(VLOOKUP($C19,objectifs!$C$3:$AAB$559,162,FALSE))*1.5,IF(VLOOKUP($C19,'Indicateurs Cumulés'!$C$3:$HJ$560,200,FALSE)/(VLOOKUP($C19,objectifs!$C$3:$AAB$559,162,FALSE))<=-0.5,(VLOOKUP($C19,objectifs!$C$3:$AAB$559,162,FALSE))*-0.5,VLOOKUP($C19,'Indicateurs Cumulés'!$C$3:$HJ$560,200,FALSE)))) -> 8 | GV19: -1 | GW19: 1 | GY19: 0 | GZ19: 0 | HA19: 5 | HB19: -1 | HC19: 0 | HD19: 4 | HE19: 40 | HF19: -28 | HG19: 9 | HH19: -22 | HI19: -5 | HJ19: 6 | HK19: 3 | HL19: 0 | HM19: 0 | HN19: 0 | HO19: 0 | HP19: 0 | HQ19: 18 | HR19: 11 | HS19: 0 | HT19: -1 | HU19: -14 | HV19: 5 | HW19: 28 | HX19: 0 | HY19: 0 | HZ19: 0 | IA19: 4 | IB19: 36 | IC19: -44 | ID19: -15 | IE19: -1 | IF19: 7 | IG19: 9 | IH19: 28 | II19: -12 | IJ19: 1 | IK19: -14 | IL19: -5 | IM19: 0 | IN19: 2 | IO19: 2 | IP19: 1 | IQ19: 0 | IR19: -0 | IS19: -0 | IT19: 0 | IU19: 3 | IV19: 0 | IW19: 0 | IX19: 4 | IY19: 2 | IZ19: 0 | JA19: 4 | JB19: 23 | JC19: -9 | JD19: -3 | JE19: -0 | JF19: 1 | JG19: 0 | JH19: 1.8 | JI19: 30 | JJ19: -5 | JK19: 0 | JL19: 0 | JM19: 0 | JO19: 0 | JP19: 0 | JQ19: -5 | JR19: 0 | JS19: -3 | JT19: 0 | JU19: 0 | JV19: -7 | JW19: 0 | JX19: -11 | JY19: -4 | JZ19: 0 | KA19: -2 | KB19: -2 | KC19: -1 | KD19: 0 | KE19: 2 | KF19: -1 | KG19: 0 | KH19: -6 | KI19: 0 | KJ19: -1 | KK19: -0 | KL19: -1 | KM19: 0 | KN19: 1 | KO19: -0 | KP19: 0 | KQ19: 7 | KR19: -0 | KS19: -15 | KT19: 391 | KU19: 0 | KV19: 0 | KW19: 0 | KX19: 0 | KY19: -15 | KZ19: 171 | LA19: 121 | LB19: 1025 | LC19: 138 | LD19: 161 | LE19: 79 | LF19: 12.8 | LG19: 1.2 | LH19: 3.1 | LI19: 6.9 | LJ19: 2.4 | LK19: 0.4 | LL19: 28 | LM19: 3.6 | LN19: 364 | LO19: 31 | LP19: 101.15 | LQ19: 324 | LR19: 89.9 | LS19: 391 | MI19: =#REF!/U19 -> 
A20: 105006 | B20: 200262 | C20: 29 | D20: SCHILTIGHEIM KLEBER | E20: 29 | F20: SCHILTIGHEIM KLEBER | G20: 2019-11-30 | H20: 153 | I20: 4.32% | J20: 1.57 | K20: 2019-11-30 | L20: 1,133 | M20: 3.19% | N20: 2.28 | O20: 83 | P20: 98.43% | Q20: 127.75% | R20: 22 | S20: 0 | T20: 115 | U20: 1,995 | V20: 0.21% | W20: 7.86 | X20: 82.91% | Y20: 149.44% | Z20: 44 | AA20: 8 | AB20: 4.5 | AC20: 7 | AD20: 7 | AE20: -2 | AF20: 96 | AG20: 73 | AH20: 2.04% | AI20: 2.90 | AJ20: 0 | AK20: 0.00% | AL20: 0 | AM20: 0 | AN20: 1.2 | AO20: 0.00 | AP20: 100.00% | AQ20: 100.00% | AR20: 0 | AS20: 6 | AT20: 32 | AU20: 3.23% | AV20: 2.18 | AW20: 0 | AX20: 100.00% | AY20: 131.75% | AZ20: 1 | BA20: 3 | BB20: 0 | BC20: 0.00% | BD20: 0 | BE20: 0 | BF20: 0.00% | BG20: 0.00% | BH20: 0 | BI20: 0 | BJ20: 0 | BK20: 217 | BL20: 201911 | BM20: 32.00 | BN20: 0.48 | BO20: 1.50% | BP20: 272.38 | BQ20: 44.35 | BR20: 16% | BS20: 1.39 | BT20: 0.51% | BU20: 1,402.08 | BV20: 157.26 | BW20: 11.2% | BX20: 0.89 | BY20: 0.06% | BZ20: 31.98 | CA20: 4.58 | CB20: 14.33% | CC20: 0.63 | CD20: 1.99% | CE20: 1,738.44 | CF20: 206.19 | CG20: 11.9% | CH20: 3.40 | CI20: 0.20% | CJ20: -108 | CK20: 0.70% | CL20: 5.33 | CM20: -4 | CN20: 117 | CO20: 0.63% | CP20: 5.33 | CQ20: 4 | CR20: -13 | CS20: 0.71% | CT20: 5.33 | CU20: -0 | CV20: 295 | CW20: 0.40% | CX20: 1.05 | CY20: 1 | CZ20: -172 | DA20: 0.20% | DB20: 5.37 | DC20: -2 | DD20: -9 | DE20: 0.20% | DF20: 5.37 | DG20: -0 | DH20: -17 | DI20: 0.20% | DJ20: 5.37 | DK20: -0 | DL20: 49 | DM20: 0.19% | DN20: 5.33 | DO20: 0 | DP20: -4 | DQ20: 0.10% | DR20: 8.41 | DS20: -0 | DT20: -6 | DU20: 0.20% | DV20: 9.00 | DW20: -0 | DX20: -386 | DY20: 0.00% | DZ20: 8.59 | EA20: 0 | EB20: 0 | EC20: -0.26% | ED20: 0.74 | EE20: 0 | EF20: -537 | EG20: 0.20% | EH20: 8.00 | EI20: -9 | EJ20: 66 | EK20: 1.00% | EL20: 5.00 | EM20: 3 | EN20: -631 | EO20: -3 | EP20: 722 | EQ20: 0.45% | ER20: 8.00 | ES20: 26 | ET20: 100 | EU20: 0.45% | EV20: 8.00 | EW20: 4 | EX20: -84 | EY20: 0.65% | EZ20: 5.00 | FA20: -3 | FB20: 0 | FC20: 0.65% | FD20: 5.00 | FE20: 0 | FF20: 25 | FG20: 1.00% | FH20: 5.00 | FI20: 1 | FJ20: 1,768 | FK20: 0.20% | FL20: 1.00 | FM20: 3 | FN20: 100 | FO20: 0.20% | FP20: 1.00 | FQ20: 0 | FR20: 9 | FS20: 0.40% | FT20: 1.00 | FU20: 0 | FV20: 0 | FW20: 0.40% | FX20: 1.00 | FY20: 0 | FZ20: 148 | GA20: 3 | GB20: 107 | GC20: 3 | GD20: 763 | GE20: 38 | GF20: 10 | GG20: =IF(ISERROR(IF(VLOOKUP($C20,'Indicateurs Cumulés'!$C$3:$HJ$560,186,FALSE)/(VLOOKUP($C20,objectifs!$C$3:$AAB$559,158,FALSE))>=1.5,(VLOOKUP($C20,objectifs!$C$3:$AAB$559,158,FALSE))*1.5,IF(VLOOKUP($C20,'Indicateurs Cumulés'!$C$3:$HJ$560,186,FALSE)/(VLOOKUP($C20,objectifs!$C$3:$AAB$559,158,FALSE))<=-0.5,(VLOOKUP($C20,objectifs!$C$3:$AAB$559,158,FALSE))*-0.5,VLOOKUP($C20,'Indicateurs Cumulés'!$C$3:$HJ$560,186,FALSE)))),VLOOKUP($C20,'Indicateurs Cumulés'!$C$3:$HJ$560,186,FALSE),IF(VLOOKUP($C20,'Indicateurs Cumulés'!$C$3:$HJ$560,186,FALSE)/(VLOOKUP($C20,objectifs!$C$3:$AAB$559,158,FALSE))>=1.5,(VLOOKUP($C20,objectifs!$C$3:$AAB$559,158,FALSE))*1.5,IF(VLOOKUP($C20,'Indicateurs Cumulés'!$C$3:$HJ$560,186,FALSE)/(VLOOKUP($C20,objectifs!$C$3:$AAB$559,158,FALSE))<=-0.5,(VLOOKUP($C20,objectifs!$C$3:$AAB$559,158,FALSE))*-0.5,VLOOKUP($C20,'Indicateurs Cumulés'!$C$3:$HJ$560,186,FALSE)))) -> 10 | GH20: 1.00% | GI20: 5.37 | GJ20: 1 | GK20: 35 | GL20: 0 | GM20: 0.20% | GN20: 65 | GP20: 100 | GQ20: 12 | GR20: 94 | GS20: 31 | GT20: 62 | GU20: =IF(ISERROR(IF(VLOOKUP($C20,'Indicateurs Cumulés'!$C$3:$HJ$560,200,FALSE)/(VLOOKUP($C20,objectifs!$C$3:$AAB$559,162,FALSE))>=1.5,(VLOOKUP($C20,objectifs!$C$3:$AAB$559,162,FALSE))*1.5,IF(VLOOKUP($C20,'Indicateurs Cumulés'!$C$3:$HJ$560,200,FALSE)/(VLOOKUP($C20,objectifs!$C$3:$AAB$559,162,FALSE))<=-0.5,(VLOOKUP($C20,objectifs!$C$3:$AAB$559,162,FALSE))*-0.5,VLOOKUP($C20,'Indicateurs Cumulés'!$C$3:$HJ$560,200,FALSE)))),VLOOKUP($C20,'Indicateurs Cumulés'!$C$3:$HJ$560,200,FALSE),IF(VLOOKUP($C20,'Indicateurs Cumulés'!$C$3:$HJ$560,200,FALSE)/(VLOOKUP($C20,objectifs!$C$3:$AAB$559,162,FALSE))>=1.5,(VLOOKUP($C20,objectifs!$C$3:$AAB$559,162,FALSE))*1.5,IF(VLOOKUP($C20,'Indicateurs Cumulés'!$C$3:$HJ$560,200,FALSE)/(VLOOKUP($C20,objectifs!$C$3:$AAB$559,162,FALSE))<=-0.5,(VLOOKUP($C20,objectifs!$C$3:$AAB$559,162,FALSE))*-0.5,VLOOKUP($C20,'Indicateurs Cumulés'!$C$3:$HJ$560,200,FALSE)))) -> 8 | GV20: 0 | GW20: 3 | GY20: 4 | GZ20: 0 | HA20: 3 | HB20: 1 | HC20: 0 | HD20: 11 | HE20: 42 | HF20: 6 | HG20: 3 | HH20: -8 | HI20: 0 | HJ20: 1 | HK20: 4 | HL20: 0 | HM20: 0 | HN20: 0 | HO20: 0 | HP20: 0 | HQ20: 21 | HR20: 7 | HS20: 1 | HT20: -7 | HU20: -2 | HV20: 3 | HW20: 24 | HX20: 0 | HY20: 0 | HZ20: 0 | IA20: 2 | IB20: 40 | IC20: -5 | ID20: 13 | IE20: -6 | IF20: 58 | IG20: 17 | IH20: 29 | II20: 3 | IJ20: 0 | IK20: -5 | IL20: 0 | IM20: 0 | IN20: 2 | IO20: 2 | IP20: 1 | IQ20: 0 | IR20: -1 | IS20: -0 | IT20: 0 | IU20: 3 | IV20: 0 | IW20: 0 | IX20: 4 | IY20: 1 | IZ20: 0 | JA20: 2 | JB20: 26 | JC20: -1 | JD20: 3 | JE20: -0 | JF20: 12 | JG20: 0 | JH20: 3.4 | JI20: 85 | JJ20: -2 | JK20: 0 | JL20: 0 | JM20: 0 | JO20: 0 | JP20: 0 | JQ20: -3 | JR20: -1 | JS20: -1 | JT20: 0 | JU20: 0 | JV20: -4 | JW20: -0 | JX20: -6 | JY20: 0 | JZ20: 3 | KA20: 1 | KB20: 2 | KC20: -1 | KD20: 1 | KE20: 0 | KF20: 1 | KG20: 1 | KH20: 0 | KI20: 3 | KJ20: 1 | KK20: 0 | KL20: -1 | KM20: 0 | KN20: 0 | KO20: 0 | KP20: 1 | KQ20: 6 | KR20: 10 | KS20: -11 | KT20: 258 | KU20: 0 | KV20: 0 | KW20: 0 | KX20: 0 | KY20: -11 | KZ20: 141 | LA20: 152 | LB20: 758 | LC20: 95 | LD20: 57 | LE20: 52 | LF20: 10.6 | LG20: 1.5 | LH20: 2.3 | LI20: 4.8 | LJ20: 0.9 | LK20: 0.3 | LL20: 29 | LM20: 2.8 | LN20: 330 | LO20: 23 | LP20: 117.49 | LQ20: 292 | LR20: 104.0 | LS20: 350 | MI20: =#REF!/U20 -> 
A21: 105060 | B21: 200262 | C21: 30 | D21: BRUMATH | E21: 30 | F21: BRUMATH | G21: 2019-11-30 | H21: 182 | I21: 4.32% | J21: 1.57 | K21: 2019-11-30 | L21: 2,242 | M21: 3.16% | N21: 2.57 | O21: 182 | P21: 95.35% | Q21: 140.90% | R21: 51 | S21: 11 | T21: 256 | U21: 8,156 | V21: 0.28% | W21: 7.85 | X21: 55.69% | Y21: 147.44% | Z21: 168 | AA21: 29 | AB21: 14.9 | AC21: 15 | AD21: 15 | AE21: -46 | AF21: 359 | AG21: 1,925 | AH21: 0.61% | AI21: 3.95 | AJ21: 151 | AK21: 0.77% | AL21: 2.37 | AM21: 3 | AN21: 6.6 | AO21: 0.43 | AP21: 70.94% | AQ21: 114.49% | AR21: 10 | AS21: 67 | AT21: 177 | AU21: 3.15% | AV21: 2.57 | AW21: 1 | AX21: 100.00% | AY21: 180.95% | AZ21: 4 | BA21: 20 | BB21: 518 | BC21: 0.08% | BD21: 7.42 | BE21: 2 | BF21: 151.51% | BG21: 63.91% | BH21: 11 | BI21: 1 | BJ21: 18 | BK21: 682 | BL21: 201911 | BM21: 24.00 | BN21: 0.36 | BO21: 1.50% | BP21: 536.34 | BQ21: 79.41 | BR21: 15% | BS21: 6.23 | BT21: 1.16% | BU21: 2,464.50 | BV21: 149.33 | BW21: 6.1% | BX21: 5.05 | BY21: 0.21% | BZ21: 161.60 | CA21: 9.97 | CB21: 6.17% | CC21: 2.59 | CD21: 1.60% | CE21: 3,186.44 | CF21: 238.72 | CG21: 7.5% | CH21: 14.23 | CI21: 0.45% | CJ21: 476 | CK21: 0.70% | CL21: 5.33 | CM21: 18 | CN21: 267 | CO21: 0.63% | CP21: 5.33 | CQ21: 9 | CR21: 0 | CS21: 0.71% | CT21: 5.33 | CU21: 0 | CV21: 338 | CW21: 0.40% | CX21: 1.05 | CY21: 1 | CZ21: -340 | DA21: 0.20% | DB21: 5.37 | DC21: -4 | DD21: 122 | DE21: 0.20% | DF21: 5.37 | DG21: 1 | DH21: -58 | DI21: 0.20% | DJ21: 5.37 | DK21: -1 | DL21: -58 | DM21: 0.19% | DN21: 5.33 | DO21: -1 | DP21: -40 | DQ21: 0.10% | DR21: 8.39 | DS21: -0 | DT21: 8 | DU21: 0.20% | DV21: 9.00 | DW21: 0 | DX21: -334 | DY21: 0.00% | DZ21: 8.59 | EA21: 0 | EB21: -5 | EC21: -0.26% | ED21: 0.74 | EE21: 0 | EF21: -729 | EG21: 0.20% | EH21: 8.00 | EI21: -12 | EJ21: 449 | EK21: 1.00% | EL21: 5.00 | EM21: 22 | EN21: 785 | EO21: 57 | EP21: 675 | EQ21: 0.45% | ER21: 8.00 | ES21: 24 | ET21: 0 | EU21: 0.45% | EV21: 8.00 | EW21: 0 | EX21: -160 | EY21: 0.65% | EZ21: 5.00 | FA21: -5 | FB21: 0 | FC21: 0.65% | FD21: 5.00 | FE21: 0 | FF21: 120 | FG21: 1.00% | FH21: 5.00 | FI21: 6 | FJ21: 2,863 | FK21: 0.45% | FL21: 1.00 | FM21: 13 | FN21: 0 | FO21: 0.45% | FP21: 1.00 | FQ21: 0 | FR21: 72 | FS21: 0.40% | FT21: 1.00 | FU21: 0 | FV21: 0 | FW21: 0.40% | FX21: 1.00 | FY21: 0 | FZ21: 136 | GA21: 3 | GB21: 293 | GC21: 8 | GD21: 634 | GE21: 49 | GF21: 262 | GG21: =IF(ISERROR(IF(VLOOKUP($C21,'Indicateurs Cumulés'!$C$3:$HJ$560,186,FALSE)/(VLOOKUP($C21,objectifs!$C$3:$AAB$559,158,FALSE))>=1.5,(VLOOKUP($C21,objectifs!$C$3:$AAB$559,158,FALSE))*1.5,IF(VLOOKUP($C21,'Indicateurs Cumulés'!$C$3:$HJ$560,186,FALSE)/(VLOOKUP($C21,objectifs!$C$3:$AAB$559,158,FALSE))<=-0.5,(VLOOKUP($C21,objectifs!$C$3:$AAB$559,158,FALSE))*-0.5,VLOOKUP($C21,'Indicateurs Cumulés'!$C$3:$HJ$560,186,FALSE)))),VLOOKUP($C21,'Indicateurs Cumulés'!$C$3:$HJ$560,186,FALSE),IF(VLOOKUP($C21,'Indicateurs Cumulés'!$C$3:$HJ$560,186,FALSE)/(VLOOKUP($C21,objectifs!$C$3:$AAB$559,158,FALSE))>=1.5,(VLOOKUP($C21,objectifs!$C$3:$AAB$559,158,FALSE))*1.5,IF(VLOOKUP($C21,'Indicateurs Cumulés'!$C$3:$HJ$560,186,FALSE)/(VLOOKUP($C21,objectifs!$C$3:$AAB$559,158,FALSE))<=-0.5,(VLOOKUP($C21,objectifs!$C$3:$AAB$559,158,FALSE))*-0.5,VLOOKUP($C21,'Indicateurs Cumulés'!$C$3:$HJ$560,186,FALSE)))) -> 262 | GH21: 1.00% | GI21: 5.37 | GJ21: 14 | GK21: 120 | GL21: -6 | GM21: 0.20% | GN21: 25 | GP21: 4 | GQ21: 7 | GR21: 687 | GS21: -134 | GT21: 11 | GU21: =IF(ISERROR(IF(VLOOKUP($C21,'Indicateurs Cumulés'!$C$3:$HJ$560,200,FALSE)/(VLOOKUP($C21,objectifs!$C$3:$AAB$559,162,FALSE))>=1.5,(VLOOKUP($C21,objectifs!$C$3:$AAB$559,162,FALSE))*1.5,IF(VLOOKUP($C21,'Indicateurs Cumulés'!$C$3:$HJ$560,200,FALSE)/(VLOOKUP($C21,objectifs!$C$3:$AAB$559,162,FALSE))<=-0.5,(VLOOKUP($C21,objectifs!$C$3:$AAB$559,162,FALSE))*-0.5,VLOOKUP($C21,'Indicateurs Cumulés'!$C$3:$HJ$560,200,FALSE)))),VLOOKUP($C21,'Indicateurs Cumulés'!$C$3:$HJ$560,200,FALSE),IF(VLOOKUP($C21,'Indicateurs Cumulés'!$C$3:$HJ$560,200,FALSE)/(VLOOKUP($C21,objectifs!$C$3:$AAB$559,162,FALSE))>=1.5,(VLOOKUP($C21,objectifs!$C$3:$AAB$559,162,FALSE))*1.5,IF(VLOOKUP($C21,'Indicateurs Cumulés'!$C$3:$HJ$560,200,FALSE)/(VLOOKUP($C21,objectifs!$C$3:$AAB$559,162,FALSE))<=-0.5,(VLOOKUP($C21,objectifs!$C$3:$AAB$559,162,FALSE))*-0.5,VLOOKUP($C21,'Indicateurs Cumulés'!$C$3:$HJ$560,200,FALSE)))) -> 8 | GV21: -0 | GW21: 1 | GY21: 0 | GZ21: 0 | HA21: 22 | HB21: -4 | HC21: 0 | HD21: 20 | HE21: 96 | HF21: -43 | HG21: 97 | HH21: -38 | HI21: -7 | HJ21: 1 | HK21: 7 | HL21: 0 | HM21: 0 | HN21: 1 | HO21: 0 | HP21: 0 | HQ21: 29 | HR21: 9 | HS21: -6 | HT21: 6 | HU21: -9 | HV21: 7 | HW21: 36 | HX21: 0 | HY21: 0 | HZ21: 1 | IA21: -1 | IB21: 96 | IC21: -80 | ID21: -12 | IE21: 2 | IF21: 22 | IG21: 18 | IH21: 67 | II21: -19 | IJ21: 6 | IK21: -24 | IL21: -7 | IM21: 1 | IN21: 3 | IO21: 3 | IP21: 1 | IQ21: -2 | IR21: 0 | IS21: -0 | IT21: 1 | IU21: 4 | IV21: 0 | IW21: 0 | IX21: 6 | IY21: 2 | IZ21: 2 | JA21: -1 | JB21: 62 | JC21: -17 | JD21: -3 | JE21: 0 | JF21: 4 | JG21: 0 | JH21: 3.6 | JI21: 94 | JJ21: 2 | JK21: 0 | JL21: 0 | JM21: 0 | JO21: 0 | JP21: 0 | JQ21: 2 | JR21: 8 | JS21: 1 | JT21: 0 | JU21: 0 | JV21: 3 | JW21: 1 | JX21: 5 | JY21: 11 | JZ21: 0 | KA21: -1 | KB21: 6 | KC21: -1 | KD21: 3 | KE21: -2 | KF21: -1 | KG21: 4 | KH21: 16 | KI21: 0 | KJ21: -1 | KK21: 1 | KL21: -1 | KM21: 0 | KN21: -1 | KO21: -0 | KP21: 2 | KQ21: 21 | KR21: 38 | KS21: -27 | KT21: 447 | KU21: 0 | KV21: 14 | KW21: 0 | KX21: 0 | KY21: -26 | KZ21: 213 | LA21: 313 | LB21: 1113 | LC21: 149 | LD21: 63 | LE21: 63 | LF21: 16.0 | LG21: 3.1 | LH21: 3.3 | LI21: 7.5 | LJ21: 0.9 | LK21: 0.3 | LL21: 30 | LM21: 7.7 | LN21: 913 | LO21: 160 | LP21: 119.23 | LQ21: 844 | LR21: 110.2 | LS21: 944 | MI21: =#REF!/U21 -> 
A22: 105060 | B22: 200262 | C22: 31 | D22: TRUCHTERSHEIM | E22: 31 | F22: TRUCHTERSHEIM | G22: 2019-11-30 | H22: 85 | I22: 4.32% | J22: 1.57 | K22: 2019-11-30 | L22: 1,134 | M22: 2.73% | N22: 2.32 | O22: 72 | P22: 89.29% | Q22: 129.69% | R22: 20 | S22: 4 | T22: 101 | U22: 9,540 | V22: 0.22% | W22: 7.11 | X22: 33.74% | Y22: 105.03% | Z22: 101 | AA22: 20 | AB22: 16.4 | AC22: 22 | AD22: 22 | AE22: -34 | AF22: 273 | AG22: 404 | AH22: 1.52% | AI22: 2.47 | AJ22: 0 | AK22: 0.00% | AL22: 0 | AM22: 0 | AN22: 2.7 | AO22: 0.00 | AP22: 78.14% | AQ22: 100.00% | AR22: 1 | AS22: 19 | AT22: 176 | AU22: 2.60% | AV22: 2.61 | AW22: 1 | AX22: 73.21% | AY22: 139.78% | AZ22: 3 | BA22: 15 | BB22: 646 | BC22: 0.30% | BD22: 3.96 | BE22: 2 | BF22: 100.00% | BG22: 81.51% | BH22: 8 | BI22: 1 | BJ22: 18 | BK22: 393 | BL22: 201911 | BM22: 0 | BN22: 0 | BO22: 0.00% | BP22: 296.75 | BQ22: 54.84 | BR22: 18% | BS22: 2.50 | BT22: 0.84% | BU22: 930.69 | BV22: 37.10 | BW22: 4.0% | BX22: 0.30 | BY22: 0.03% | BZ22: 31.58 | CA22: 4.73 | CB22: 14.97% | CC22: 0.70 | CD22: 2.23% | CE22: 1,259.02 | CF22: 96.67 | CG22: 7.7% | CH22: 3.50 | CI22: 0.28% | CJ22: 407 | CK22: 0.70% | CL22: 5.33 | CM22: 15 | CN22: 660 | CO22: 0.63% | CP22: 5.33 | CQ22: 22 | CR22: -62 | CS22: 0.71% | CT22: 5.33 | CU22: -2 | CV22: 110 | CW22: 0.40% | CX22: 1.05 | CY22: 0 | CZ22: -194 | DA22: 0.20% | DB22: 5.37 | DC22: -2 | DD22: 251 | DE22: 0.20% | DF22: 5.37 | DG22: 3 | DH22: -43 | DI22: 0.20% | DJ22: 5.37 | DK22: -0 | DL22: -47 | DM22: 0.19% | DN22: 5.33 | DO22: -0 | DP22: -1 | DQ22: 0.10% | DR22: 8.03 | DS22: -0 | DT22: -159 | DU22: 0.20% | DV22: 9.00 | DW22: -3 | DX22: 303 | DY22: 0.00% | DZ22: 8.59 | EA22: 0 | EB22: 0 | EC22: -0.26% | ED22: 0.74 | EE22: 0 | EF22: -363 | EG22: 0.20% | EH22: 8.00 | EI22: -6 | EJ22: 386 | EK22: 1.00% | EL22: 5.00 | EM22: 19 | EN22: 1,914 | EO22: 67 | EP22: -228 | EQ22: 0.45% | ER22: 8.00 | ES22: -8 | ET22: -40 | EU22: 0.45% | EV22: 8.00 | EW22: -1 | EX22: -135 | EY22: 0.65% | EZ22: 5.00 | FA22: -4 | FB22: 0 | FC22: 0.65% | FD22: 5.00 | FE22: 0 | FF22: 185 | FG22: 1.00% | FH22: 5.00 | FI22: 9 | FJ22: 1,222 | FK22: 0.28% | FL22: 1.00 | FM22: 3 | FN22: 0 | FO22: 0.28% | FP22: 1.00 | FQ22: 0 | FR22: 13 | FS22: 0.40% | FT22: 1.00 | FU22: 0 | FV22: 0 | FW22: 0.40% | FX22: 1.00 | FY22: 0 | FZ22: 61 | GA22: 1 | GB22: 271 | GC22: 8 | GD22: -219 | GE22: 7 | GF22: -445 | GG22: =IF(ISERROR(IF(VLOOKUP($C22,'Indicateurs Cumulés'!$C$3:$HJ$560,186,FALSE)/(VLOOKUP($C22,objectifs!$C$3:$AAB$559,158,FALSE))>=1.5,(VLOOKUP($C22,objectifs!$C$3:$AAB$559,158,FALSE))*1.5,IF(VLOOKUP($C22,'Indicateurs Cumulés'!$C$3:$HJ$560,186,FALSE)/(VLOOKUP($C22,objectifs!$C$3:$AAB$559,158,FALSE))<=-0.5,(VLOOKUP($C22,objectifs!$C$3:$AAB$559,158,FALSE))*-0.5,VLOOKUP($C22,'Indicateurs Cumulés'!$C$3:$HJ$560,186,FALSE)))),VLOOKUP($C22,'Indicateurs Cumulés'!$C$3:$HJ$560,186,FALSE),IF(VLOOKUP($C22,'Indicateurs Cumulés'!$C$3:$HJ$560,186,FALSE)/(VLOOKUP($C22,objectifs!$C$3:$AAB$559,158,FALSE))>=1.5,(VLOOKUP($C22,objectifs!$C$3:$AAB$559,158,FALSE))*1.5,IF(VLOOKUP($C22,'Indicateurs Cumulés'!$C$3:$HJ$560,186,FALSE)/(VLOOKUP($C22,objectifs!$C$3:$AAB$559,158,FALSE))<=-0.5,(VLOOKUP($C22,objectifs!$C$3:$AAB$559,158,FALSE))*-0.5,VLOOKUP($C22,'Indicateurs Cumulés'!$C$3:$HJ$560,186,FALSE)))) -> -242 | GH22: 1.00% | GI22: 5.37 | GJ22: -13 | GK22: 62 | GL22: -1 | GM22: 0.20% | GN22: 1 | GP22: 2 | GQ22: 23 | GR22: 665 | GS22: 12 | GT22: -105 | GU22: =IF(ISERROR(IF(VLOOKUP($C22,'Indicateurs Cumulés'!$C$3:$HJ$560,200,FALSE)/(VLOOKUP($C22,objectifs!$C$3:$AAB$559,162,FALSE))>=1.5,(VLOOKUP($C22,objectifs!$C$3:$AAB$559,162,FALSE))*1.5,IF(VLOOKUP($C22,'Indicateurs Cumulés'!$C$3:$HJ$560,200,FALSE)/(VLOOKUP($C22,objectifs!$C$3:$AAB$559,162,FALSE))<=-0.5,(VLOOKUP($C22,objectifs!$C$3:$AAB$559,162,FALSE))*-0.5,VLOOKUP($C22,'Indicateurs Cumulés'!$C$3:$HJ$560,200,FALSE)))),VLOOKUP($C22,'Indicateurs Cumulés'!$C$3:$HJ$560,200,FALSE),IF(VLOOKUP($C22,'Indicateurs Cumulés'!$C$3:$HJ$560,200,FALSE)/(VLOOKUP($C22,objectifs!$C$3:$AAB$559,162,FALSE))>=1.5,(VLOOKUP($C22,objectifs!$C$3:$AAB$559,162,FALSE))*1.5,IF(VLOOKUP($C22,'Indicateurs Cumulés'!$C$3:$HJ$560,200,FALSE)/(VLOOKUP($C22,objectifs!$C$3:$AAB$559,162,FALSE))<=-0.5,(VLOOKUP($C22,objectifs!$C$3:$AAB$559,162,FALSE))*-0.5,VLOOKUP($C22,'Indicateurs Cumulés'!$C$3:$HJ$560,200,FALSE)))) -> -3 | GV22: -0 | GW22: 0 | GY22: 0 | GZ22: 0 | HA22: 21 | HB22: 0 | HC22: -0 | HD22: 22 | HE22: 68 | HF22: -26 | HG22: -9 | HH22: -8 | HI22: -5 | HJ22: 0 | HK22: 11 | HL22: 1 | HM22: 0 | HN22: 2 | HO22: 0 | HP22: 0 | HQ22: 9 | HR22: 17 | HS22: 4 | HT22: 3 | HU22: -3 | HV22: 3 | HW22: 12 | HX22: 0 | HY22: 0 | HZ22: 1 | IA22: -2 | IB22: 69 | IC22: -47 | ID22: 0 | IE22: -3 | IF22: 66 | IG22: 30 | IH22: 47 | II22: -11 | IJ22: -1 | IK22: -5 | IL22: -5 | IM22: 2 | IN22: 5 | IO22: 1 | IP22: 2 | IQ22: 1 | IR22: 0 | IS22: -0 | IT22: 0 | IU22: 1 | IV22: 0 | IW22: 0 | IX22: 2 | IY22: 3 | IZ22: 2 | JA22: -2 | JB22: 45 | JC22: -10 | JD22: 0 | JE22: -0 | JF22: 13 | JG22: 0 | JH22: 6.0 | JI22: 97 | JJ22: 13 | JK22: 0 | JL22: 1 | JM22: 0 | JO22: 1 | JP22: 0 | JQ22: 12 | JR22: 1 | JS22: 9 | JT22: 1 | JU22: 0 | JV22: 17 | JW22: 0 | JX22: 28 | JY22: 7 | JZ22: 1 | KA22: 1 | KB22: 5 | KC22: 1 | KD22: 0 | KE22: 0 | KF22: 2 | KG22: -1 | KH22: 10 | KI22: 1 | KJ22: 1 | KK22: 1 | KL22: 1 | KM22: 0 | KN22: 0 | KO22: 0 | KP22: -1 | KQ22: 8 | KR22: 21 | KS22: -16 | KT22: 255 | KU22: 0 | KV22: 0 | KW22: 168 | KX22: 0 | KY22: -13 | KZ22: 167 | LA22: 141 | LB22: 765 | LC22: 119 | LD22: 116 | LE22: 40 | LF22: 12.5 | LG22: 1.4 | LH22: 2.3 | LI22: 6.0 | LJ22: 1.7 | LK22: 0.2 | LL22: 31 | LM22: 3.3 | LN22: 586 | LO22: 120 | LP22: 176.35 | LQ22: 517 | LR22: 155.4 | LS22: 611 | MI22: =#REF!/U22 -> 
A23: 105006 | B23: 200262 | C23: 33 | D23: LA WANTZENAU | E23: 33 | F23: LA WANTZENAU | G23: 2019-11-30 | H23: 52 | I23: 4.32% | J23: 1.57 | K23: 2019-11-30 | L23: 965 | M23: 3.08% | N23: 2.44 | O23: 72 | P23: 95.85% | Q23: 137.33% | R23: 21 | S23: 6 | T23: 102 | U23: 5,659 | V23: 0.34% | W23: 7.22 | X23: 42.17% | Y23: 104.34% | Z23: 61 | AA23: 13 | AB23: 7.5 | AC23: 7 | AD23: 7 | AE23: -14 | AF23: 216 | AG23: 65 | AH23: 1.01% | AI23: 2.73 | AJ23: 0 | AK23: 0.00% | AL23: 0 | AM23: 0 | AN23: 2.4 | AO23: 0.00 | AP23: 100.00% | AQ23: 102.13% | AR23: 1 | AS23: 5 | AT23: 134 | AU23: 2.76% | AV23: 2.86 | AW23: 1 | AX23: 100.00% | AY23: 170.15% | AZ23: 4 | BA23: 16 | BB23: 159 | BC23: 0.93% | BD23: 8.80 | BE23: 1 | BF23: 0.00% | BG23: 0.00% | BH23: 0 | BI23: 0 | BJ23: 14 | BK23: 323 | BL23: 201911 | BM23: 0 | BN23: 0 | BO23: 0.00% | BP23: 592.83 | BQ23: 134.42 | BR23: 23% | BS23: 2.95 | BT23: 0.50% | BU23: 1,123.49 | BV23: 22.20 | BW23: 2.0% | BX23: 1.39 | BY23: 0.12% | BZ23: 54.59 | CA23: 9.65 | CB23: 17.68% | CC23: 0.92 | CD23: 1.69% | CE23: 1,770.91 | CF23: 166.27 | CG23: 9.4% | CH23: 5.26 | CI23: 0.30% | CJ23: 214 | CK23: 0.70% | CL23: 5.33 | CM23: 8 | CN23: 631 | CO23: 0.63% | CP23: 5.33 | CQ23: 21 | CR23: -43 | CS23: 0.71% | CT23: 5.33 | CU23: -2 | CV23: 140 | CW23: 0.40% | CX23: 1.05 | CY23: 1 | CZ23: -86 | DA23: 0.20% | DB23: 5.37 | DC23: -1 | DD23: 135 | DE23: 0.20% | DF23: 5.37 | DG23: 1 | DH23: -34 | DI23: 0.20% | DJ23: 5.37 | DK23: -0 | DL23: -53 | DM23: 0.19% | DN23: 5.33 | DO23: -1 | DP23: -12 | DQ23: 0.10% | DR23: 7.02 | DS23: -0 | DT23: -194 | DU23: 0.20% | DV23: 9.00 | DW23: -3 | DX23: -67 | DY23: 0.00% | DZ23: 8.59 | EA23: 0 | EB23: 0 | EC23: -0.26% | ED23: 0.74 | EE23: 0 | EF23: -411 | EG23: 0.20% | EH23: 8.00 | EI23: -7 | EJ23: 439 | EK23: 1.00% | EL23: 5.00 | EM23: 22 | EN23: 712 | EO23: 41 | EP23: 248 | EQ23: 0.45% | ER23: 8.00 | ES23: 9 | ET23: 0 | EU23: 0.45% | EV23: 8.00 | EW23: 0 | EX23: -102 | EY23: 0.65% | EZ23: 5.00 | FA23: -3 | FB23: 0 | FC23: 0.65% | FD23: 5.00 | FE23: 0 | FF23: 46 | FG23: 1.00% | FH23: 5.00 | FI23: 2 | FJ23: 1,750 | FK23: 0.30% | FL23: 1.00 | FM23: 5 | FN23: 0 | FO23: 0.30% | FP23: 1.00 | FQ23: 0 | FR23: 32 | FS23: 0.40% | FT23: 1.00 | FU23: 0 | FV23: 0 | FW23: 0.40% | FX23: 1.00 | FY23: 0 | FZ23: 64 | GA23: 1 | GB23: 181 | GC23: 5 | GD23: 193 | GE23: 20 | GF23: -816 | GG23: =IF(ISERROR(IF(VLOOKUP($C23,'Indicateurs Cumulés'!$C$3:$HJ$560,186,FALSE)/(VLOOKUP($C23,objectifs!$C$3:$AAB$559,158,FALSE))>=1.5,(VLOOKUP($C23,objectifs!$C$3:$AAB$559,158,FALSE))*1.5,IF(VLOOKUP($C23,'Indicateurs Cumulés'!$C$3:$HJ$560,186,FALSE)/(VLOOKUP($C23,objectifs!$C$3:$AAB$559,158,FALSE))<=-0.5,(VLOOKUP($C23,objectifs!$C$3:$AAB$559,158,FALSE))*-0.5,VLOOKUP($C23,'Indicateurs Cumulés'!$C$3:$HJ$560,186,FALSE)))),VLOOKUP($C23,'Indicateurs Cumulés'!$C$3:$HJ$560,186,FALSE),IF(VLOOKUP($C23,'Indicateurs Cumulés'!$C$3:$HJ$560,186,FALSE)/(VLOOKUP($C23,objectifs!$C$3:$AAB$559,158,FALSE))>=1.5,(VLOOKUP($C23,objectifs!$C$3:$AAB$559,158,FALSE))*1.5,IF(VLOOKUP($C23,'Indicateurs Cumulés'!$C$3:$HJ$560,186,FALSE)/(VLOOKUP($C23,objectifs!$C$3:$AAB$559,158,FALSE))<=-0.5,(VLOOKUP($C23,objectifs!$C$3:$AAB$559,158,FALSE))*-0.5,VLOOKUP($C23,'Indicateurs Cumulés'!$C$3:$HJ$560,186,FALSE)))) -> -192 | GH23: 1.00% | GI23: 5.37 | GJ23: -10 | GK23: 51 | GL23: 0 | GM23: 0.20% | GN23: -2 | GP23: -150 | GQ23: 2 | GR23: 53 | GS23: 27 | GT23: 107 | GU23: =IF(ISERROR(IF(VLOOKUP($C23,'Indicateurs Cumulés'!$C$3:$HJ$560,200,FALSE)/(VLOOKUP($C23,objectifs!$C$3:$AAB$559,162,FALSE))>=1.5,(VLOOKUP($C23,objectifs!$C$3:$AAB$559,162,FALSE))*1.5,IF(VLOOKUP($C23,'Indicateurs Cumulés'!$C$3:$HJ$560,200,FALSE)/(VLOOKUP($C23,objectifs!$C$3:$AAB$559,162,FALSE))<=-0.5,(VLOOKUP($C23,objectifs!$C$3:$AAB$559,162,FALSE))*-0.5,VLOOKUP($C23,'Indicateurs Cumulés'!$C$3:$HJ$560,200,FALSE)))),VLOOKUP($C23,'Indicateurs Cumulés'!$C$3:$HJ$560,200,FALSE),IF(VLOOKUP($C23,'Indicateurs Cumulés'!$C$3:$HJ$560,200,FALSE)/(VLOOKUP($C23,objectifs!$C$3:$AAB$559,162,FALSE))>=1.5,(VLOOKUP($C23,objectifs!$C$3:$AAB$559,162,FALSE))*1.5,IF(VLOOKUP($C23,'Indicateurs Cumulés'!$C$3:$HJ$560,200,FALSE)/(VLOOKUP($C23,objectifs!$C$3:$AAB$559,162,FALSE))<=-0.5,(VLOOKUP($C23,objectifs!$C$3:$AAB$559,162,FALSE))*-0.5,VLOOKUP($C23,'Indicateurs Cumulés'!$C$3:$HJ$560,200,FALSE)))) -> 8 | GV23: 0 | GW23: -0 | GY23: -5 | GZ23: 0 | HA23: 2 | HB23: 1 | HC23: 0 | HD23: -2 | HE23: 68 | HF23: -59 | HG23: -2 | HH23: -5 | HI23: -3 | HJ23: 0 | HK23: 0 | HL23: 0 | HM23: 0 | HN23: 0 | HO23: 0 | HP23: 0 | HQ23: 3 | HR23: 9 | HS23: -4 | HT23: 2 | HU23: 6 | HV23: 0 | HW23: 16 | HX23: 0 | HY23: 0 | HZ23: 1 | IA23: -5 | IB23: 72 | IC23: -54 | ID23: -14 | IE23: 2 | IF23: 67 | IG23: 18 | IH23: 47 | II23: -26 | IJ23: -0 | IK23: -3 | IL23: -3 | IM23: 0 | IN23: 0 | IO23: 0 | IP23: 1 | IQ23: -1 | IR23: 0 | IS23: 0 | IT23: 0 | IU23: 2 | IV23: 0 | IW23: 0 | IX23: 1 | IY23: 2 | IZ23: 2 | JA23: -5 | JB23: 47 | JC23: -12 | JD23: -3 | JE23: 0 | JF23: 13 | JG23: 0 | JH23: 3.6 | JI23: 66 | JJ23: 2 | JK23: 0 | JL23: 0 | JM23: 0 | JO23: 0 | JP23: 0 | JQ23: 1 | JR23: 1 | JS23: 1 | JT23: 0 | JU23: 0 | JV23: 1 | JW23: 0 | JX23: 3 | JY23: 0 | JZ23: 0 | KA23: 1 | KB23: 3 | KC23: 0 | KD23: 0 | KE23: 0 | KF23: 0 | KG23: 4 | KH23: 0 | KI23: 0 | KJ23: 1 | KK23: 1 | KL23: 0 | KM23: 0 | KN23: 0 | KO23: 0 | KP23: 2 | KQ23: 3 | KR23: 7 | KS23: -8 | KT23: 179 | KU23: 0 | KV23: 0 | KW23: 0 | KX23: 0 | KY23: -8 | KZ23: 132 | LA23: 57 | LB23: 717 | LC23: 107 | LD23: 35 | LE23: 45 | LF23: 9.9 | LG23: 0.6 | LH23: 2.2 | LI23: 5.4 | LJ23: 0.5 | LK23: 0.2 | LL23: 33 | LM23: 2.7 | LN23: 442 | LO23: 40 | LP23: 163.73 | LQ23: 401 | LR23: 148.7 | LS23: 461 | MI23: =#REF!/U23 -> 
A24: 105006 | B24: 200262 | C24: 34 | D24: VENDENHEIM | E24: 37 | F24: MUNDOLSHEIM | G24: 2019-11-30 | H24: 52 | I24: 4.32% | J24: 1.57 | K24: 2019-11-30 | L24: 529 | M24: 3.87% | N24: 2.29 | O24: 47 | P24: 94.67% | Q24: 144.39% | R24: 12 | S24: 3 | T24: 65 | U24: 2,885 | V24: 0.25% | W24: 8.25 | X24: 50.96% | Y24: 117.98% | Z24: 53 | AA24: 12 | AB24: 6.9 | AC24: 6 | AD24: 6 | AE24: -10 | AF24: 128 | AG24: 605 | AH24: 1.65% | AI24: 3.73 | AJ24: 0 | AK24: 0.00% | AL24: 0 | AM24: 0 | AN24: 2.4 | AO24: 0.00 | AP24: 100.00% | AQ24: 100.00% | AR24: 0 | AS24: 40 | AT24: 16 | AU24: 3.57% | AV24: 1.23 | AW24: 0 | AX24: 100.00% | AY24: 137.50% | AZ24: 0 | BA24: 1 | BB24: 627 | BC24: 0.43% | BD24: 8.36 | BE24: 2 | BF24: 100.00% | BG24: 78.40% | BH24: 20 | BI24: 1 | BJ24: 46 | BK24: 233 | BL24: 201911 | BM24: 53.74 | BN24: 0 | BO24: 0.00% | BP24: 230.77 | BQ24: 43.92 | BR24: 19% | BS24: 1.47 | BT24: 0.64% | BU24: 403.88 | BV24: 0 | BW24: 0.0% | BX24: 0.87 | BY24: 0.22% | BZ24: 34.28 | CA24: 3.06 | CB24: 8.93% | CC24: 0.65 | CD24: 1.90% | CE24: 731.67 | CF24: 46.98 | CG24: 6.4% | CH24: 3.21 | CI24: 0.44% | CJ24: 56 | CK24: =CK$374 -> 0.70% | CL24: 5.33 | CM24: 2 | CN24: 195 | CO24: =CO$374 -> 0.63% | CP24: 5.33 | CQ24: 7 | CR24: -42 | CS24: =CS$374 -> 0.71% | CT24: 5.33 | CU24: -2 | CV24: 232 | CW24: =CW$374 -> 0.40% | CX24: 1.05 | CY24: 1 | CZ24: -188 | DA24: =DA$374 -> 0.20% | DB24: 5.37 | DC24: -2 | DD24: 4 | DE24: =DE$374 -> 0.20% | DF24: 5.37 | DG24: 0 | DH24: -37 | DI24: =DI$374 -> 0.20% | DJ24: 5.37 | DK24: -0 | DL24: 44 | DM24: =DM$374 -> 0.19% | DN24: 5.33 | DO24: 0 | DP24: -12 | DQ24: 0.10% | DR24: 4.74 | DS24: -0 | DT24: -78 | DU24: =DU$374 -> 0.20% | DV24: 9.00 | DW24: -1 | DX24: 608 | DY24: 0.00% | DZ24: 8.59 | EA24: 0 | EB24: 0 | EC24: =EC$374 -> -0.26% | ED24: 0.74 | EE24: 0 | EF24: -270 | EG24: =EG$374 -> 0.20% | EH24: 8.00 | EI24: -4 | EJ24: 372 | EK24: =EK$374 -> 1.00% | EL24: 5.00 | EM24: 19 | EN24: 1,203 | EO24: 29 | EP24: -435 | EQ24: =EQ$374 -> 0.45% | ER24: 8.00 | ES24: -16 | ET24: 0 | EU24: =EU$374 -> 0.45% | EV24: 8.00 | EW24: 0 | EX24: -137 | EY24: =EY$374 -> 0.65% | EZ24: 5.00 | FA24: -4 | FB24: 0 | FC24: =FC$374 -> 0.65% | FD24: 5.00 | FE24: 0 | FF24: -10 | FG24: =FG$374 -> 1.00% | FH24: 5.00 | FI24: -1 | FJ24: 695 | FK24: 0.44% | FL24: 1.00 | FM24: 3 | FN24: 0 | FO24: 0.44% | FP24: 1.00 | FQ24: 0 | FR24: 12 | FS24: =FS$374 -> 0.40% | FT24: 1.00 | FU24: 0 | FV24: 0 | FW24: 0.40% | FX24: 1.00 | FY24: 0 | FZ24: 60 | GA24: 1 | GB24: 76 | GC24: 2 | GD24: -583 | GE24: -14 | GF24: 64 | GG24: =IF(ISERROR(IF(VLOOKUP($C24,'Indicateurs Cumulés'!$C$3:$HJ$560,186,FALSE)/(VLOOKUP($C24,objectifs!$C$3:$AAB$559,158,FALSE))>=1.5,(VLOOKUP($C24,objectifs!$C$3:$AAB$559,158,FALSE))*1.5,IF(VLOOKUP($C24,'Indicateurs Cumulés'!$C$3:$HJ$560,186,FALSE)/(VLOOKUP($C24,objectifs!$C$3:$AAB$559,158,FALSE))<=-0.5,(VLOOKUP($C24,objectifs!$C$3:$AAB$559,158,FALSE))*-0.5,VLOOKUP($C24,'Indicateurs Cumulés'!$C$3:$HJ$560,186,FALSE)))),VLOOKUP($C24,'Indicateurs Cumulés'!$C$3:$HJ$560,186,FALSE),IF(VLOOKUP($C24,'Indicateurs Cumulés'!$C$3:$HJ$560,186,FALSE)/(VLOOKUP($C24,objectifs!$C$3:$AAB$559,158,FALSE))>=1.5,(VLOOKUP($C24,objectifs!$C$3:$AAB$559,158,FALSE))*1.5,IF(VLOOKUP($C24,'Indicateurs Cumulés'!$C$3:$HJ$560,186,FALSE)/(VLOOKUP($C24,objectifs!$C$3:$AAB$559,158,FALSE))<=-0.5,(VLOOKUP($C24,objectifs!$C$3:$AAB$559,158,FALSE))*-0.5,VLOOKUP($C24,'Indicateurs Cumulés'!$C$3:$HJ$560,186,FALSE)))) -> 64 | GH24: =GH$374 -> 1.00% | GI24: 5.37 | GJ24: 3 | GK24: 18 | GL24: -2 | GM24: 0.20% | GN24: 91 | GP24: -39 | GQ24: -22 | GR24: 317 | GS24: 105 | GT24: 109 | GU24: =IF(ISERROR(IF(VLOOKUP($C24,'Indicateurs Cumulés'!$C$3:$HJ$560,200,FALSE)/(VLOOKUP($C24,objectifs!$C$3:$AAB$559,162,FALSE))>=1.5,(VLOOKUP($C24,objectifs!$C$3:$AAB$559,162,FALSE))*1.5,IF(VLOOKUP($C24,'Indicateurs Cumulés'!$C$3:$HJ$560,200,FALSE)/(VLOOKUP($C24,objectifs!$C$3:$AAB$559,162,FALSE))<=-0.5,(VLOOKUP($C24,objectifs!$C$3:$AAB$559,162,FALSE))*-0.5,VLOOKUP($C24,'Indicateurs Cumulés'!$C$3:$HJ$560,200,FALSE)))),VLOOKUP($C24,'Indicateurs Cumulés'!$C$3:$HJ$560,200,FALSE),IF(VLOOKUP($C24,'Indicateurs Cumulés'!$C$3:$HJ$560,200,FALSE)/(VLOOKUP($C24,objectifs!$C$3:$AAB$559,162,FALSE))>=1.5,(VLOOKUP($C24,objectifs!$C$3:$AAB$559,162,FALSE))*1.5,IF(VLOOKUP($C24,'Indicateurs Cumulés'!$C$3:$HJ$560,200,FALSE)/(VLOOKUP($C24,objectifs!$C$3:$AAB$559,162,FALSE))<=-0.5,(VLOOKUP($C24,objectifs!$C$3:$AAB$559,162,FALSE))*-0.5,VLOOKUP($C24,'Indicateurs Cumulés'!$C$3:$HJ$560,200,FALSE)))) -> 8 | GV24: -0 | GW24: 5 | GY24: -1 | GZ24: 0 | HA24: 10 | HB24: 3 | HC24: 0 | HD24: 17 | HE24: 56 | HF24: -35 | HG24: -5 | HH24: -13 | HI24: -2 | HJ24: 3 | HK24: 4 | HL24: 0 | HM24: 0 | HN24: 0 | HO24: 0 | HP24: 0 | HQ24: 7 | HR24: 10 | HS24: -2 | HT24: -2 | HU24: -1 | HV24: 1 | HW24: 5 | HX24: 0 | HY24: 0 | HZ24: 0 | IA24: -1 | IB24: 57 | IC24: -42 | ID24: -14 | IE24: -3 | IF24: 14 | IG24: 8 | IH24: 39 | II24: -15 | IJ24: -0 | IK24: -8 | IL24: -2 | IM24: 0 | IN24: 2 | IO24: 1 | IP24: 1 | IQ24: -1 | IR24: -0 | IS24: -0 | IT24: 0 | IU24: 1 | IV24: 0 | IW24: 0 | IX24: 1 | IY24: 2 | IZ24: 0 | JA24: -1 | JB24: 37 | JC24: -9 | JD24: -3 | JE24: -0 | JF24: 3 | JG24: 0 | JH24: 1.6 | JI24: 49 | JJ24: 1 | JK24: 0 | JL24: 0 | JM24: 0 | JO24: 0 | JP24: 0 | JQ24: 0 | JR24: -4 | JS24: 1 | JT24: 0 | JU24: 0 | JV24: 0 | JW24: -0 | JX24: 0 | JY24: 3 | JZ24: 0 | KA24: 0 | KB24: 4 | KC24: -1 | KD24: 1 | KE24: 0 | KF24: 0 | KG24: 2 | KH24: 4 | KI24: 0 | KJ24: 0 | KK24: 1 | KL24: -1 | KM24: 0 | KN24: 0 | KO24: 0 | KP24: 1 | KQ24: 6 | KR24: 12 | KS24: -9 | KT24: 161 | KU24: 0 | KV24: 0 | KW24: 0 | KX24: 0 | KY24: -9 | KZ24: 109 | LA24: 56 | LB24: 547 | LC24: 95 | LD24: 122 | LE24: 37 | LF24: 8.2 | LG24: 0.6 | LH24: 1.6 | LI24: 4.8 | LJ24: 1.8 | LK24: 0.2 | LL24: 34 | LM24: 0.7 | LN24: 303 | LO24: 114 | LP24: 434.63 | LQ24: 277 | LR24: 397.2 | LS24: 320 | MI24: =#REF!/U24 -> 
A25: 105006 | B25: 200262 | C25: 37 | D25: MUNDOLSHEIM | E25: 37 | F25: MUNDOLSHEIM | G25: 2019-11-30 | H25: 67 | I25: 4.32% | J25: 1.57 | K25: 2019-11-30 | L25: 1,274 | M25: 3.33% | N25: 2.49 | O25: 106 | P25: 98.82% | Q25: 141.06% | R25: 29 | S25: 6 | T25: 145 | U25: 6,920 | V25: 0.33% | W25: 7.52 | X25: 46.18% | Y25: 158.06% | Z25: 115 | AA25: 30 | AB25: 15.0 | AC25: 18 | AD25: 18 | AE25: -10 | AF25: 342 | AG25: 418 | AH25: 0.52% | AI25: 3.96 | AJ25: 0 | AK25: 0.00% | AL25: 0 | AM25: 0 | AN25: 1.3 | AO25: 0.00 | AP25: 93.61% | AQ25: 100.00% | AR25: 2 | AS25: 12 | AT25: 200 | AU25: 3.55% | AV25: 2.76 | AW25: 1 | AX25: 100.00% | AY25: 140.63% | AZ25: 4 | BA25: 25 | BB25: 370 | BC25: 0.22% | BD25: 5.31 | BE25: 1 | BF25: 0.00% | BG25: 0.00% | BH25: 0 | BI25: 1 | BJ25: 6 | BK25: 499 | BL25: 201911 | BM25: 0 | BN25: 0 | BO25: 0.00% | BP25: 277.87 | BQ25: 75.43 | BR25: 27% | BS25: 1.27 | BT25: 0.46% | BU25: 1,300.22 | BV25: 86.86 | BW25: 6.7% | BX25: 1.31 | BY25: 0.10% | BZ25: 46.21 | CA25: 9.91 | CB25: 21.44% | CC25: 0.69 | CD25: 1.48% | CE25: 1,624.30 | CF25: 172.20 | CG25: 10.6% | CH25: 3.26 | CI25: 0.20% | CJ25: 224 | CK25: 0.70% | CL25: 5.33 | CM25: 8 | CN25: 81 | CO25: 0.63% | CP25: 5.33 | CQ25: 3 | CR25: -39 | CS25: 0.71% | CT25: 5.33 | CU25: -1 | CV25: -60 | CW25: 0.40% | CX25: 1.05 | CY25: -0 | CZ25: -196 | DA25: 0.20% | DB25: 5.37 | DC25: -2 | DD25: 204 | DE25: 0.20% | DF25: 5.37 | DG25: 2 | DH25: -24 | DI25: 0.20% | DJ25: 5.37 | DK25: -0 | DL25: 57 | DM25: 0.19% | DN25: 5.33 | DO25: 1 | DP25: 5 | DQ25: 0.10% | DR25: 7.98 | DS25: 0 | DT25: -146 | DU25: 0.20% | DV25: 9.00 | DW25: -3 | DX25: -156 | DY25: 0.00% | DZ25: 8.59 | EA25: 0 | EB25: 0 | EC25: -0.26% | ED25: 0.74 | EE25: 0 | EF25: -445 | EG25: 0.20% | EH25: 8.00 | EI25: -7 | EJ25: 106 | EK25: 1.00% | EL25: 5.00 | EM25: 5 | EN25: -368 | EO25: 6 | EP25: 736 | EQ25: 0.45% | ER25: 8.00 | ES25: 27 | ET25: 0 | EU25: 0.45% | EV25: 8.00 | EW25: 0 | EX25: -34 | EY25: 0.65% | EZ25: 5.00 | FA25: -1 | FB25: 0 | FC25: 0.65% | FD25: 5.00 | FE25: 0 | FF25: -126 | FG25: 1.00% | FH25: 5.00 | FI25: -6 | FJ25: 1,532 | FK25: 0.20% | FL25: 1.00 | FM25: 3 | FN25: 0 | FO25: 0.20% | FP25: 1.00 | FQ25: 0 | FR25: 6 | FS25: 0.40% | FT25: 1.00 | FU25: 0 | FV25: 0 | FW25: 0.40% | FX25: 1.00 | FY25: 0 | FZ25: 7 | GA25: 0 | GB25: 210 | GC25: 6 | GD25: 577 | GE25: 28 | GF25: 565 | GG25: =IF(ISERROR(IF(VLOOKUP($C25,'Indicateurs Cumulés'!$C$3:$HJ$560,186,FALSE)/(VLOOKUP($C25,objectifs!$C$3:$AAB$559,158,FALSE))>=1.5,(VLOOKUP($C25,objectifs!$C$3:$AAB$559,158,FALSE))*1.5,IF(VLOOKUP($C25,'Indicateurs Cumulés'!$C$3:$HJ$560,186,FALSE)/(VLOOKUP($C25,objectifs!$C$3:$AAB$559,158,FALSE))<=-0.5,(VLOOKUP($C25,objectifs!$C$3:$AAB$559,158,FALSE))*-0.5,VLOOKUP($C25,'Indicateurs Cumulés'!$C$3:$HJ$560,186,FALSE)))),VLOOKUP($C25,'Indicateurs Cumulés'!$C$3:$HJ$560,186,FALSE),IF(VLOOKUP($C25,'Indicateurs Cumulés'!$C$3:$HJ$560,186,FALSE)/(VLOOKUP($C25,objectifs!$C$3:$AAB$559,158,FALSE))>=1.5,(VLOOKUP($C25,objectifs!$C$3:$AAB$559,158,FALSE))*1.5,IF(VLOOKUP($C25,'Indicateurs Cumulés'!$C$3:$HJ$560,186,FALSE)/(VLOOKUP($C25,objectifs!$C$3:$AAB$559,158,FALSE))<=-0.5,(VLOOKUP($C25,objectifs!$C$3:$AAB$559,158,FALSE))*-0.5,VLOOKUP($C25,'Indicateurs Cumulés'!$C$3:$HJ$560,186,FALSE)))) -> 565 | GH25: 1.00% | GI25: 5.37 | GJ25: 30 | GK25: 65 | GL25: 1 | GM25: 0.20% | GN25: 10 | GP25: 1 | GQ25: 9 | GR25: 20 | GS25: 77 | GT25: 51 | GU25: =IF(ISERROR(IF(VLOOKUP($C25,'Indicateurs Cumulés'!$C$3:$HJ$560,200,FALSE)/(VLOOKUP($C25,objectifs!$C$3:$AAB$559,162,FALSE))>=1.5,(VLOOKUP($C25,objectifs!$C$3:$AAB$559,162,FALSE))*1.5,IF(VLOOKUP($C25,'Indicateurs Cumulés'!$C$3:$HJ$560,200,FALSE)/(VLOOKUP($C25,objectifs!$C$3:$AAB$559,162,FALSE))<=-0.5,(VLOOKUP($C25,objectifs!$C$3:$AAB$559,162,FALSE))*-0.5,VLOOKUP($C25,'Indicateurs Cumulés'!$C$3:$HJ$560,200,FALSE)))),VLOOKUP($C25,'Indicateurs Cumulés'!$C$3:$HJ$560,200,FALSE),IF(VLOOKUP($C25,'Indicateurs Cumulés'!$C$3:$HJ$560,200,FALSE)/(VLOOKUP($C25,objectifs!$C$3:$AAB$559,162,FALSE))>=1.5,(VLOOKUP($C25,objectifs!$C$3:$AAB$559,162,FALSE))*1.5,IF(VLOOKUP($C25,'Indicateurs Cumulés'!$C$3:$HJ$560,200,FALSE)/(VLOOKUP($C25,objectifs!$C$3:$AAB$559,162,FALSE))<=-0.5,(VLOOKUP($C25,objectifs!$C$3:$AAB$559,162,FALSE))*-0.5,VLOOKUP($C25,'Indicateurs Cumulés'!$C$3:$HJ$560,200,FALSE)))) -> 8 | GV25: 0 | GW25: 1 | GY25: 0 | GZ25: 0 | HA25: 1 | HB25: 2 | HC25: 0 | HD25: 4 | HE25: 42 | HF25: 8 | HG25: -5 | HH25: -18 | HI25: -1 | HJ25: 1 | HK25: 5 | HL25: 0 | HM25: 0 | HN25: 0 | HO25: 0 | HP25: 0 | HQ25: 10 | HR25: 20 | HS25: -5 | HT25: 3 | HU25: 4 | HV25: 1 | HW25: 12 | HX25: 0 | HY25: 1 | HZ25: 0 | IA25: 0 | IB25: 42 | IC25: -13 | ID25: -12 | IE25: -1 | IF25: 32 | IG25: 28 | IH25: 29 | II25: 3 | IJ25: -0 | IK25: -11 | IL25: -1 | IM25: 0 | IN25: 2 | IO25: 1 | IP25: 2 | IQ25: -1 | IR25: 0 | IS25: 0 | IT25: 0 | IU25: 1 | IV25: 0 | IW25: 0 | IX25: 2 | IY25: 4 | IZ25: 0 | JA25: 0 | JB25: 27 | JC25: -3 | JD25: -3 | JE25: -0 | JF25: 6 | JG25: 0 | JH25: 5.6 | JI25: 66 | JJ25: 3 | JK25: 0 | JL25: 0 | JM25: 0 | JO25: 0 | JP25: 0 | JQ25: 3 | JR25: 2 | JS25: 2 | JT25: 0 | JU25: 0 | JV25: 4 | JW25: 0 | JX25: 7 | JY25: 5 | JZ25: 0 | KA25: 1 | KB25: 4 | KC25: 1 | KD25: 5 | KE25: 0 | KF25: 4 | KG25: 0 | KH25: 7 | KI25: 0 | KJ25: 1 | KK25: 1 | KL25: 1 | KM25: 0 | KN25: 0 | KO25: 0 | KP25: 0 | KQ25: 4 | KR25: 14 | KS25: -11 | KT25: 198 | KU25: 0 | KV25: 0 | KW25: 289 | KX25: 0 | KY25: -5 | KZ25: 109 | LA25: 147 | LB25: 629 | LC25: 89 | LD25: 193 | LE25: 22 | LF25: 8.2 | LG25: 1.5 | LH25: 1.9 | LI25: 4.5 | LJ25: 2.9 | LK25: 0.1 | LL25: 37 | LM25: 3.8 | LN25: 645 | LO25: 66 | LP25: 169.14 | LQ25: 582 | LR25: 152.7 | LS25: 664 | MI25: =#REF!/U25 -> 
A26: 105006 | B26: 200262 | C26: 38 | D26: OBERHAUSBERGEN | E26: 38 | F26: OBERHAUSBERGEN | G26: 2019-11-30 | H26: 161 | I26: 4.32% | J26: 1.57 | K26: 2019-11-30 | L26: 1,618 | M26: 3.43% | N26: 2.47 | O26: 137 | P26: 97.63% | Q26: 137.70% | R26: 35 | S26: 5 | T26: 188 | U26: 7,982 | V26: 0.25% | W26: 6.96 | X26: 45.71% | Y26: 138.99% | Z26: 124 | AA26: 20 | AB26: 15.8 | AC26: 17 | AD26: 17 | AE26: -22 | AF26: 295 | AG26: 949 | AH26: 0.83% | AI26: 4.93 | AJ26: 0 | AK26: 0.00% | AL26: 0 | AM26: 0 | AN26: 4.9 | AO26: 0.00 | AP26: 89.46% | AQ26: 115.55% | AR26: 5 | AS26: 49 | AT26: 49 | AU26: 4.29% | AV26: 1.90 | AW26: 0 | AX26: 100.00% | AY26: 151.56% | AZ26: 1 | BA26: 6 | BB26: 924 | BC26: 0.24% | BD26: 6.19 | BE26: 3 | BF26: 100.00% | BG26: 3.71% | BH26: 3 | BI26: 2 | BJ26: 20 | BK26: 532 | BL26: 201911 | BM26: 16.00 | BN26: 0.07 | BO26: 0.45% | BP26: 194.27 | BQ26: 31.56 | BR26: 16% | BS26: 3.29 | BT26: 1.69% | BU26: 1,362.47 | BV26: 124.54 | BW26: 9.1% | BX26: 2.61 | BY26: 0.19% | BZ26: 46.09 | CA26: 1.08 | CB26: 2.33% | CC26: 0.90 | CD26: 1.94% | CE26: 1,618.82 | CF26: 157.18 | CG26: 9.7% | CH26: 6.87 | CI26: 0.42% | CJ26: 385 | CK26: 0.70% | CL26: 5.33 | CM26: 14 | CN26: 852 | CO26: 0.63% | CP26: 5.33 | CQ26: 29 | CR26: -22 | CS26: 0.71% | CT26: 5.33 | CU26: -1 | CV26: 157 | CW26: 0.40% | CX26: 1.05 | CY26: 1 | CZ26: -334 | DA26: 0.20% | DB26: 5.37 | DC26: -4 | DD26: 28 | DE26: 0.20% | DF26: 5.37 | DG26: 0 | DH26: -32 | DI26: 0.20% | DJ26: 5.37 | DK26: -0 | DL26: -35 | DM26: 0.19% | DN26: 5.33 | DO26: -0 | DP26: 0 | DQ26: 0.10% | DR26: 8.38 | DS26: 0 | DT26: -27 | DU26: 0.20% | DV26: 9.00 | DW26: -0 | DX26: -65 | DY26: 0.00% | DZ26: 8.59 | EA26: 0 | EB26: 0 | EC26: -0.26% | ED26: 0.74 | EE26: 0 | EF26: -678 | EG26: 0.20% | EH26: 8.00 | EI26: -11 | EJ26: 537 | EK26: 1.00% | EL26: 5.00 | EM26: 27 | EN26: 969 | EO26: 61 | EP26: 318 | EQ26: 0.45% | ER26: 8.00 | ES26: 11 | ET26: 0 | EU26: 0.45% | EV26: 8.00 | EW26: 0 | EX26: -118 | EY26: 0.65% | EZ26: 5.00 | FA26: -4 | FB26: 0 | FC26: 0.65% | FD26: 5.00 | FE26: 0 | FF26: 53 | FG26: 1.00% | FH26: 5.00 | FI26: 3 | FJ26: 1,427 | FK26: 0.42% | FL26: 1.00 | FM26: 6 | FN26: 0 | FO26: 0.42% | FP26: 1.00 | FQ26: 0 | FR26: 21 | FS26: 0.40% | FT26: 1.00 | FU26: 0 | FV26: 0 | FW26: 0.40% | FX26: 1.00 | FY26: 0 | FZ26: 342 | GA26: 7 | GB26: 173 | GC26: 5 | GD26: 253 | GE26: 28 | GF26: -125 | GG26: =IF(ISERROR(IF(VLOOKUP($C26,'Indicateurs Cumulés'!$C$3:$HJ$560,186,FALSE)/(VLOOKUP($C26,objectifs!$C$3:$AAB$559,158,FALSE))>=1.5,(VLOOKUP($C26,objectifs!$C$3:$AAB$559,158,FALSE))*1.5,IF(VLOOKUP($C26,'Indicateurs Cumulés'!$C$3:$HJ$560,186,FALSE)/(VLOOKUP($C26,objectifs!$C$3:$AAB$559,158,FALSE))<=-0.5,(VLOOKUP($C26,objectifs!$C$3:$AAB$559,158,FALSE))*-0.5,VLOOKUP($C26,'Indicateurs Cumulés'!$C$3:$HJ$560,186,FALSE)))),VLOOKUP($C26,'Indicateurs Cumulés'!$C$3:$HJ$560,186,FALSE),IF(VLOOKUP($C26,'Indicateurs Cumulés'!$C$3:$HJ$560,186,FALSE)/(VLOOKUP($C26,objectifs!$C$3:$AAB$559,158,FALSE))>=1.5,(VLOOKUP($C26,objectifs!$C$3:$AAB$559,158,FALSE))*1.5,IF(VLOOKUP($C26,'Indicateurs Cumulés'!$C$3:$HJ$560,186,FALSE)/(VLOOKUP($C26,objectifs!$C$3:$AAB$559,158,FALSE))<=-0.5,(VLOOKUP($C26,objectifs!$C$3:$AAB$559,158,FALSE))*-0.5,VLOOKUP($C26,'Indicateurs Cumulés'!$C$3:$HJ$560,186,FALSE)))) -> -125 | GH26: 1.00% | GI26: 5.37 | GJ26: -7 | GK26: 82 | GL26: 0 | GM26: 0.20% | GN26: 31 | GP26: 9 | GQ26: 51 | GR26: 202 | GS26: 64 | GT26: -6 | GU26: =IF(ISERROR(IF(VLOOKUP($C26,'Indicateurs Cumulés'!$C$3:$HJ$560,200,FALSE)/(VLOOKUP($C26,objectifs!$C$3:$AAB$559,162,FALSE))>=1.5,(VLOOKUP($C26,objectifs!$C$3:$AAB$559,162,FALSE))*1.5,IF(VLOOKUP($C26,'Indicateurs Cumulés'!$C$3:$HJ$560,200,FALSE)/(VLOOKUP($C26,objectifs!$C$3:$AAB$559,162,FALSE))<=-0.5,(VLOOKUP($C26,objectifs!$C$3:$AAB$559,162,FALSE))*-0.5,VLOOKUP($C26,'Indicateurs Cumulés'!$C$3:$HJ$560,200,FALSE)))),VLOOKUP($C26,'Indicateurs Cumulés'!$C$3:$HJ$560,200,FALSE),IF(VLOOKUP($C26,'Indicateurs Cumulés'!$C$3:$HJ$560,200,FALSE)/(VLOOKUP($C26,objectifs!$C$3:$AAB$559,162,FALSE))>=1.5,(VLOOKUP($C26,objectifs!$C$3:$AAB$559,162,FALSE))*1.5,IF(VLOOKUP($C26,'Indicateurs Cumulés'!$C$3:$HJ$560,200,FALSE)/(VLOOKUP($C26,objectifs!$C$3:$AAB$559,162,FALSE))<=-0.5,(VLOOKUP($C26,objectifs!$C$3:$AAB$559,162,FALSE))*-0.5,VLOOKUP($C26,'Indicateurs Cumulés'!$C$3:$HJ$560,200,FALSE)))) -> -3 | GV26: 0 | GW26: 2 | GY26: 0 | GZ26: 0 | HA26: 7 | HB26: 2 | HC26: -0 | HD26: 10 | HE26: 68 | HF26: -46 | HG26: 1 | HH26: -5 | HI26: -4 | HJ26: 4 | HK26: 5 | HL26: 2 | HM26: 0 | HN26: 1 | HO26: 0 | HP26: 0 | HQ26: 25 | HR26: 26 | HS26: 1 | HT26: 6 | HU26: -10 | HV26: 0 | HW26: 13 | HX26: 0 | HY26: 0 | HZ26: -1 | IA26: 14 | IB26: 55 | IC26: -46 | ID26: -7 | IE26: 0 | IF26: 59 | IG26: 33 | IH26: 47 | II26: -20 | IJ26: 0 | IK26: -3 | IL26: -4 | IM26: 1 | IN26: 5 | IO26: 3 | IP26: 3 | IQ26: 0 | IR26: 0 | IS26: -0 | IT26: 0 | IU26: 1 | IV26: 0 | IW26: 0 | IX26: 5 | IY26: 5 | IZ26: -2 | JA26: 14 | JB26: 36 | JC26: -10 | JD26: -1 | JE26: 0 | JF26: 12 | JG26: 0 | JH26: 6.6 | JI26: 99 | JJ26: 3 | JK26: 1 | JL26: 0 | JM26: 0 | JO26: 0 | JP26: 0 | JQ26: 0 | JR26: 1 | JS26: 2 | JT26: 0 | JU26: 0 | JV26: 0 | JW26: 0 | JX26: 2 | JY26: 7 | JZ26: 0 | KA26: -1 | KB26: 5 | KC26: 2 | KD26: 0 | KE26: -2 | KF26: 2 | KG26: 7 | KH26: 10 | KI26: 0 | KJ26: -1 | KK26: 1 | KL26: 1 | KM26: 0 | KN26: -1 | KO26: 0 | KP26: 4 | KQ26: 11 | KR26: 26 | KS26: -30 | KT26: 325 | KU26: 405 | KV26: 0 | KW26: 0 | KX26: 0 | KY26: -13 | KZ26: 99 | LA26: 132 | LB26: 887 | LC26: 97 | LD26: 144 | LE26: 57 | LF26: 7.4 | LG26: 1.3 | LH26: 2.7 | LI26: 4.9 | LJ26: 2.2 | LK26: 0.3 | LL26: 38 | LM26: 3.1 | LN26: 729 | LO26: 109 | LP26: 237.70 | LQ26: 654 | LR26: 213.5 | LS26: 747 | MI26: =#REF!/U26 -> 
A27: 105006 | B27: 200262 | C27: 39 | D27: REICHSTETT | E27: 39 | F27: REICHSTETT | G27: 2019-11-30 | H27: 70 | I27: 4.32% | J27: 1.57 | K27: 2019-11-30 | L27: 908 | M27: 3.44% | N27: 2.68 | O27: 84 | P27: 94.31% | Q27: 140.69% | R27: 21 | S27: 5 | T27: 114 | U27: 1,453 | V27: 0.24% | W27: 7.73 | X27: 44.49% | Y27: 186.07% | Z27: 36 | AA27: 3 | AB27: 2.4 | AC27: 2 | AD27: 2 | AE27: -9 | AF27: 62 | AG27: 256 | AH27: 0.25% | AI27: 5.84 | AJ27: 0 | AK27: 0.00% | AL27: 0 | AM27: 0 | AN27: 1.1 | AO27: 0.00 | AP27: 100.00% | AQ27: 99.58% | AR27: 4 | AS27: 9 | AT27: 71 | AU27: 3.42% | AV27: 2.19 | AW27: 0 | AX27: 100.00% | AY27: 121.13% | AZ27: 1 | BA27: 7 | BB27: 0 | BC27: 0.00% | BD27: 0 | BE27: 0 | BF27: 0.00% | BG27: 0.00% | BH27: 0 | BI27: 0 | BJ27: 0 | BK27: 185 | BL27: 201911 | BM27: 26.00 | BN27: 0.31 | BO27: 1.20% | BP27: 145.40 | BQ27: 9.49 | BR27: 7% | BS27: 1.71 | BT27: 1.17% | BU27: 455.14 | BV27: 17.40 | BW27: 3.8% | BX27: 0.93 | BY27: 0.20% | BZ27: 57.88 | CA27: 1.98 | CB27: 3.43% | CC27: 0.53 | CD27: 0.91% | CE27: 684.43 | CF27: 28.88 | CG27: 4.2% | CH27: 3.48 | CI27: 0.51% | CJ27: -131 | CK27: 0.70% | CL27: 5.33 | CM27: -5 | CN27: 38 | CO27: 0.63% | CP27: 5.33 | CQ27: 1 | CR27: -27 | CS27: 0.71% | CT27: 5.33 | CU27: -1 | CV27: -3 | CW27: 0.40% | CX27: 1.05 | CY27: -0 | CZ27: -190 | DA27: 0.20% | DB27: 5.37 | DC27: -2 | DD27: -13 | DE27: 0.20% | DF27: 5.37 | DG27: -0 | DH27: -17 | DI27: 0.20% | DJ27: 5.37 | DK27: -0 | DL27: -15 | DM27: 0.19% | DN27: 5.33 | DO27: -0 | DP27: -2 | DQ27: 0.10% | DR27: 9.25 | DS27: -0 | DT27: -3 | DU27: 0.20% | DV27: 9.00 | DW27: -0 | DX27: -113 | DY27: 0.00% | DZ27: 8.59 | EA27: 0 | EB27: 13 | EC27: -0.26% | ED27: 0.74 | EE27: -0 | EF27: -239 | EG27: 0.20% | EH27: 8.00 | EI27: -4 | EJ27: 139 | EK27: 1.00% | EL27: 5.00 | EM27: 7 | EN27: -493 | EO27: -2 | EP27: -12 | EQ27: 0.45% | ER27: 8.00 | ES27: -0 | ET27: 0 | EU27: 0.45% | EV27: 8.00 | EW27: 0 | EX27: -57 | EY27: 0.65% | EZ27: 5.00 | FA27: -2 | FB27: 0 | FC27: 0.65% | FD27: 5.00 | FE27: 0 | FF27: 60 | FG27: 1.00% | FH27: 5.00 | FI27: 3 | FJ27: 635 | FK27: 0.51% | FL27: 1.00 | FM27: 3 | FN27: 0 | FO27: 0.51% | FP27: 1.00 | FQ27: 0 | FR27: 7 | FS27: 0.40% | FT27: 1.00 | FU27: 0 | FV27: 0 | FW27: 0.40% | FX27: 1.00 | FY27: 0 | FZ27: 4 | GA27: 0 | GB27: 58 | GC27: 2 | GD27: -9 | GE27: 6 | GF27: 212 | GG27: =IF(ISERROR(IF(VLOOKUP($C27,'Indicateurs Cumulés'!$C$3:$HJ$560,186,FALSE)/(VLOOKUP($C27,objectifs!$C$3:$AAB$559,158,FALSE))>=1.5,(VLOOKUP($C27,objectifs!$C$3:$AAB$559,158,FALSE))*1.5,IF(VLOOKUP($C27,'Indicateurs Cumulés'!$C$3:$HJ$560,186,FALSE)/(VLOOKUP($C27,objectifs!$C$3:$AAB$559,158,FALSE))<=-0.5,(VLOOKUP($C27,objectifs!$C$3:$AAB$559,158,FALSE))*-0.5,VLOOKUP($C27,'Indicateurs Cumulés'!$C$3:$HJ$560,186,FALSE)))),VLOOKUP($C27,'Indicateurs Cumulés'!$C$3:$HJ$560,186,FALSE),IF(VLOOKUP($C27,'Indicateurs Cumulés'!$C$3:$HJ$560,186,FALSE)/(VLOOKUP($C27,objectifs!$C$3:$AAB$559,158,FALSE))>=1.5,(VLOOKUP($C27,objectifs!$C$3:$AAB$559,158,FALSE))*1.5,IF(VLOOKUP($C27,'Indicateurs Cumulés'!$C$3:$HJ$560,186,FALSE)/(VLOOKUP($C27,objectifs!$C$3:$AAB$559,158,FALSE))<=-0.5,(VLOOKUP($C27,objectifs!$C$3:$AAB$559,158,FALSE))*-0.5,VLOOKUP($C27,'Indicateurs Cumulés'!$C$3:$HJ$560,186,FALSE)))) -> 212 | GH27: 1.00% | GI27: 5.37 | GJ27: 11 | GK27: 15 | GL27: 0 | GM27: 0.20% | GN27: 0 | GP27: 2 | GQ27: 4 | GR27: 69 | GS27: 6 | GT27: -13 | GU27: =IF(ISERROR(IF(VLOOKUP($C27,'Indicateurs Cumulés'!$C$3:$HJ$560,200,FALSE)/(VLOOKUP($C27,objectifs!$C$3:$AAB$559,162,FALSE))>=1.5,(VLOOKUP($C27,objectifs!$C$3:$AAB$559,162,FALSE))*1.5,IF(VLOOKUP($C27,'Indicateurs Cumulés'!$C$3:$HJ$560,200,FALSE)/(VLOOKUP($C27,objectifs!$C$3:$AAB$559,162,FALSE))<=-0.5,(VLOOKUP($C27,objectifs!$C$3:$AAB$559,162,FALSE))*-0.5,VLOOKUP($C27,'Indicateurs Cumulés'!$C$3:$HJ$560,200,FALSE)))),VLOOKUP($C27,'Indicateurs Cumulés'!$C$3:$HJ$560,200,FALSE),IF(VLOOKUP($C27,'Indicateurs Cumulés'!$C$3:$HJ$560,200,FALSE)/(VLOOKUP($C27,objectifs!$C$3:$AAB$559,162,FALSE))>=1.5,(VLOOKUP($C27,objectifs!$C$3:$AAB$559,162,FALSE))*1.5,IF(VLOOKUP($C27,'Indicateurs Cumulés'!$C$3:$HJ$560,200,FALSE)/(VLOOKUP($C27,objectifs!$C$3:$AAB$559,162,FALSE))<=-0.5,(VLOOKUP($C27,objectifs!$C$3:$AAB$559,162,FALSE))*-0.5,VLOOKUP($C27,'Indicateurs Cumulés'!$C$3:$HJ$560,200,FALSE)))) -> -3 | GV27: 0 | GW27: 0 | GY27: 0 | GZ27: 0 | HA27: 2 | HB27: 0 | HC27: -0 | HD27: 2 | HE27: 14 | HF27: -16 | HG27: -2 | HH27: -1 | HI27: 0 | HJ27: 0 | HK27: 2 | HL27: 0 | HM27: 0 | HN27: 1 | HO27: 0 | HP27: 0 | HQ27: -1 | HR27: -5 | HS27: 1 | HT27: 1 | HU27: -13 | HV27: -1 | HW27: -4 | HX27: 0 | HY27: 0 | HZ27: 0 | IA27: 0 | IB27: 14 | IC27: -46 | ID27: 6 | IE27: -2 | IF27: 10 | IG27: 7 | IH27: 10 | II27: -7 | IJ27: -0 | IK27: -1 | IL27: 0 | IM27: 1 | IN27: 1 | IO27: -0 | IP27: -0 | IQ27: 0 | IR27: 0 | IS27: -0 | IT27: -0 | IU27: -0 | IV27: 0 | IW27: 0 | IX27: -0 | IY27: -1 | IZ27: 0 | JA27: 0 | JB27: 9 | JC27: -10 | JD27: 1 | JE27: -0 | JF27: 2 | JG27: 0 | JH27: 1.4 | JI27: 5 | JJ27: 1 | JK27: 0 | JL27: 0 | JM27: 0 | JO27: 0 | JP27: 0 | JQ27: 2 | JR27: 2 | JS27: 1 | JT27: 0 | JU27: 0 | JV27: 3 | JW27: 0 | JX27: 4 | JY27: 1 | JZ27: 0 | KA27: 0 | KB27: -4 | KC27: 0 | KD27: 0 | KE27: 0 | KF27: -1 | KG27: 0 | KH27: 1 | KI27: 0 | KJ27: 0 | KK27: -1 | KL27: 0 | KM27: 0 | KN27: 0 | KO27: -0 | KP27: 0 | KQ27: 3 | KR27: 3 | KS27: -11 | KT27: 163 | KU27: 0 | KV27: 0 | KW27: 0 | KX27: 0 | KY27: -11 | KZ27: 38 | LA27: 61 | LB27: 144 | LC27: 18 | LD27: -5 | LE27: 35 | LF27: 2.9 | LG27: 0.6 | LH27: 0.4 | LI27: 0.9 | LJ27: 0.0 | LK27: 0.2 | LL27: 39 | LM27: 1.9 | LN27: 201 | LO27: 24 | LP27: 106.45 | LQ27: 188 | LR27: 99.8 | LS27: 206 | MI27: =#REF!/U27 -> 
A28: 105006 | B28: 200262 | C28: 40 | D28: ECKBOLSHEIM | E28: 48 | F28: STRASBOURG KOENIGSHOFFEN | G28: 2019-11-30 | H28: 73 | I28: 4.32% | J28: 1.57 | K28: 2019-11-30 | L28: 695 | M28: 2.61% | N28: 2.86 | O28: 52 | P28: 86.57% | Q28: 140.06% | R28: 14 | S28: 2 | T28: 74 | U28: 2,371 | V28: 0.18% | W28: 6.55 | X28: 42.26% | Y28: 115.96% | Z28: 33 | AA28: 8 | AB28: 4.5 | AC28: 6 | AD28: 6 | AE28: -8 | AF28: 70 | AG28: 15 | AH28: 1.78% | AI28: 1.72 | AJ28: 31 | AK28: 1.20% | AL28: 1.93 | AM28: 1 | AN28: 0.2 | AO28: 0.31 | AP28: 100.00% | AQ28: 100.00% | AR28: 0 | AS28: 2 | AT28: 198 | AU28: 2.07% | AV28: 3.77 | AW28: 1 | AX28: 82.32% | AY28: 100.00% | AZ28: 4 | BA28: 20 | BB28: 318 | BC28: 0.17% | BD28: 8.80 | BE28: 1 | BF28: 0.00% | BG28: 0.00% | BH28: 0 | BI28: 1 | BJ28: 6 | BK28: 145 | BL28: 201911 | BM28: 0 | BN28: 0 | BO28: 0.00% | BP28: 148.14 | BQ28: 11.67 | BR28: 8% | BS28: 2.21 | BT28: 1.49% | BU28: 743.03 | BV28: 54.84 | BW28: 7.4% | BX28: 0.39 | BY28: 0.05% | BZ28: 53.08 | CA28: 0.67 | CB28: 1.26% | CC28: 1.21 | CD28: 2.28% | CE28: 944.24 | CF28: 67.18 | CG28: 7.1% | CH28: 3.81 | CI28: 0.40% | CJ28: 79 | CK28: 0.70% | CL28: 5.33 | CM28: 3 | CN28: -48 | CO28: 0.63% | CP28: 5.33 | CQ28: -2 | CR28: 47 | CS28: 0.71% | CT28: 5.33 | CU28: 2 | CV28: 293 | CW28: 0.40% | CX28: 1.05 | CY28: 1 | CZ28: -185 | DA28: 0.20% | DB28: 5.37 | DC28: -2 | DD28: 146 | DE28: 0.20% | DF28: 5.37 | DG28: 2 | DH28: -41 | DI28: 0.20% | DJ28: 5.37 | DK28: -0 | DL28: 46 | DM28: 0.19% | DN28: 5.33 | DO28: 0 | DP28: -5 | DQ28: 0.10% | DR28: 8.58 | DS28: -0 | DT28: -149 | DU28: 0.20% | DV28: 9.00 | DW28: -3 | DX28: -85 | DY28: 0.00% | DZ28: 8.59 | EA28: 0 | EB28: 0 | EC28: -0.26% | ED28: 0.74 | EE28: 0 | EF28: -442 | EG28: 0.20% | EH28: 8.00 | EI28: -7 | EJ28: 17 | EK28: 1.00% | EL28: 5.00 | EM28: 1 | EN28: -337 | EO28: -5 | EP28: 383 | EQ28: 0.45% | ER28: 8.00 | ES28: 14 | ET28: 250 | EU28: 0.45% | EV28: 8.00 | EW28: 9 | EX28: -9 | EY28: 0.65% | EZ28: 5.00 | FA28: -0 | FB28: 0 | FC28: 0.65% | FD28: 5.00 | FE28: 0 | FF28: -219 | FG28: 1.00% | FH28: 5.00 | FI28: -11 | FJ28: 962 | FK28: 0.40% | FL28: 1.00 | FM28: 4 | FN28: 250 | FO28: 0.40% | FP28: 1.00 | FQ28: 1 | FR28: 15 | FS28: 0.40% | FT28: 1.00 | FU28: 0 | FV28: 0 | FW28: 0.40% | FX28: 1.00 | FY28: 0 | FZ28: 139 | GA28: 3 | GB28: 60 | GC28: 2 | GD28: 404 | GE28: 21 | GF28: 428 | GG28: =IF(ISERROR(IF(VLOOKUP($C28,'Indicateurs Cumulés'!$C$3:$HJ$560,186,FALSE)/(VLOOKUP($C28,objectifs!$C$3:$AAB$559,158,FALSE))>=1.5,(VLOOKUP($C28,objectifs!$C$3:$AAB$559,158,FALSE))*1.5,IF(VLOOKUP($C28,'Indicateurs Cumulés'!$C$3:$HJ$560,186,FALSE)/(VLOOKUP($C28,objectifs!$C$3:$AAB$559,158,FALSE))<=-0.5,(VLOOKUP($C28,objectifs!$C$3:$AAB$559,158,FALSE))*-0.5,VLOOKUP($C28,'Indicateurs Cumulés'!$C$3:$HJ$560,186,FALSE)))),VLOOKUP($C28,'Indicateurs Cumulés'!$C$3:$HJ$560,186,FALSE),IF(VLOOKUP($C28,'Indicateurs Cumulés'!$C$3:$HJ$560,186,FALSE)/(VLOOKUP($C28,objectifs!$C$3:$AAB$559,158,FALSE))>=1.5,(VLOOKUP($C28,objectifs!$C$3:$AAB$559,158,FALSE))*1.5,IF(VLOOKUP($C28,'Indicateurs Cumulés'!$C$3:$HJ$560,186,FALSE)/(VLOOKUP($C28,objectifs!$C$3:$AAB$559,158,FALSE))<=-0.5,(VLOOKUP($C28,objectifs!$C$3:$AAB$559,158,FALSE))*-0.5,VLOOKUP($C28,'Indicateurs Cumulés'!$C$3:$HJ$560,186,FALSE)))) -> 420 | GH28: 1.00% | GI28: 5.37 | GJ28: 23 | GK28: 38 | GL28: 0 | GM28: 0.20% | GN28: -0 | GP28: -4 | GQ28: 2 | GR28: -9 | GS28: 21 | GT28: 48 | GU28: =IF(ISERROR(IF(VLOOKUP($C28,'Indicateurs Cumulés'!$C$3:$HJ$560,200,FALSE)/(VLOOKUP($C28,objectifs!$C$3:$AAB$559,162,FALSE))>=1.5,(VLOOKUP($C28,objectifs!$C$3:$AAB$559,162,FALSE))*1.5,IF(VLOOKUP($C28,'Indicateurs Cumulés'!$C$3:$HJ$560,200,FALSE)/(VLOOKUP($C28,objectifs!$C$3:$AAB$559,162,FALSE))<=-0.5,(VLOOKUP($C28,objectifs!$C$3:$AAB$559,162,FALSE))*-0.5,VLOOKUP($C28,'Indicateurs Cumulés'!$C$3:$HJ$560,200,FALSE)))),VLOOKUP($C28,'Indicateurs Cumulés'!$C$3:$HJ$560,200,FALSE),IF(VLOOKUP($C28,'Indicateurs Cumulés'!$C$3:$HJ$560,200,FALSE)/(VLOOKUP($C28,objectifs!$C$3:$AAB$559,162,FALSE))>=1.5,(VLOOKUP($C28,objectifs!$C$3:$AAB$559,162,FALSE))*1.5,IF(VLOOKUP($C28,'Indicateurs Cumulés'!$C$3:$HJ$560,200,FALSE)/(VLOOKUP($C28,objectifs!$C$3:$AAB$559,162,FALSE))<=-0.5,(VLOOKUP($C28,objectifs!$C$3:$AAB$559,162,FALSE))*-0.5,VLOOKUP($C28,'Indicateurs Cumulés'!$C$3:$HJ$560,200,FALSE)))) -> 8 | GV28: 0 | GW28: -0 | GY28: -0 | GZ28: 0 | HA28: -0 | HB28: 1 | HC28: 0 | HD28: 1 | HE28: 46 | HF28: -61 | HG28: -2 | HH28: -6 | HI28: -1 | HJ28: 0 | HK28: 0 | HL28: 0 | HM28: 0 | HN28: 0 | HO28: 0 | HP28: 0 | HQ28: 6 | HR28: -8 | HS28: 1 | HT28: 1 | HU28: -6 | HV28: 1 | HW28: 7 | HX28: 0 | HY28: 0 | HZ28: 0 | IA28: 6 | IB28: 40 | IC28: -71 | ID28: -20 | IE28: -1 | IF28: 27 | IG28: 9 | IH28: 32 | II28: -27 | IJ28: -0 | IK28: -4 | IL28: -1 | IM28: 0 | IN28: 0 | IO28: 1 | IP28: -1 | IQ28: 0 | IR28: 0 | IS28: -0 | IT28: 0 | IU28: 1 | IV28: 0 | IW28: 0 | IX28: 1 | IY28: -2 | IZ28: 0 | JA28: 6 | JB28: 26 | JC28: -15 | JD28: -4 | JE28: -0 | JF28: 5 | JG28: 0 | JH28: 1.8 | JI28: 21 | JJ28: 1 | JK28: 0 | JL28: 0 | JM28: 0 | JO28: 0 | JP28: 0 | JQ28: 1 | JR28: 0 | JS28: 1 | JT28: 0 | JU28: 0 | JV28: 1 | JW28: 0 | JX28: 2 | JY28: 1 | JZ28: 0 | KA28: 0 | KB28: 0 | KC28: -1 | KD28: 0 | KE28: 0 | KF28: -1 | KG28: -2 | KH28: 1 | KI28: 0 | KJ28: 0 | KK28: 0 | KL28: -1 | KM28: 0 | KN28: 0 | KO28: -0 | KP28: -1 | KQ28: 2 | KR28: 2 | KS28: -9 | KT28: 179 | KU28: 0 | KV28: 0 | KW28: 0 | KX28: 0 | KY28: -9 | KZ28: 58 | LA28: 93 | LB28: 566 | LC28: 61 | LD28: 11 | LE28: 55 | LF28: 4.4 | LG28: 0.9 | LH28: 1.7 | LI28: 3.1 | LJ28: 0.2 | LK28: 0.3 | LL28: 40 | LM28: 0.7 | LN28: 199 | LO28: 32 | LP28: 290.73 | LQ28: 179 | LR28: 261.0 | LS28: 210 | MI28: =#REF!/U28 -> 
A29: 105060 | B29: 200262 | C29: 41 | D29: HOERDT | E29: 41 | F29: HOERDT | G29: 2019-11-30 | H29: 111 | I29: 4.32% | J29: 1.57 | K29: 2019-11-30 | L29: 1,055 | M29: 3.14% | N29: 2.59 | O29: 86 | P29: 98.61% | Q29: 141.90% | R29: 25 | S29: 6 | T29: 124 | U29: 4,516 | V29: 0.24% | W29: 6.88 | X29: 52.93% | Y29: 190.66% | Z29: 125 | AA29: 9 | AB29: 5.8 | AC29: 4 | AD29: 4 | AE29: -16 | AF29: 202 | AG29: 542 | AH29: 1.33% | AI29: 3.51 | AJ29: 0 | AK29: 0.00% | AL29: 0 | AM29: 0 | AN29: 1.2 | AO29: 0.00 | AP29: 100.00% | AQ29: 149.62% | AR29: 4 | AS29: 31 | AT29: 29 | AU29: 4.72% | AV29: 1.76 | AW29: 0 | AX29: 100.00% | AY29: 100.00% | AZ29: 0 | BA29: 3 | BB29: 0 | BC29: 0.00% | BD29: 0 | BE29: 0 | BF29: 0.00% | BG29: 0.00% | BH29: 0 | BI29: 0 | BJ29: 0 | BK29: 357 | BL29: 201911 | BM29: 27.00 | BN29: 0.65 | BO29: 2.40% | BP29: 218.80 | BQ29: 33.52 | BR29: 15% | BS29: 2.15 | BT29: 0.98% | BU29: 921.00 | BV29: 55.25 | BW29: 6.0% | BX29: 1.06 | BY29: 0.11% | BZ29: 32.26 | CA29: 0.84 | CB29: 2.61% | CC29: 0.57 | CD29: 1.76% | CE29: 1,199.06 | CF29: 89.61 | CG29: 7.5% | CH29: 4.43 | CI29: 0.37% | CJ29: 335 | CK29: 0.70% | CL29: 5.33 | CM29: 13 | CN29: -223 | CO29: 0.63% | CP29: 5.33 | CQ29: -7 | CR29: 7 | CS29: 0.71% | CT29: 5.33 | CU29: 0 | CV29: 20 | CW29: 0.40% | CX29: 1.05 | CY29: 0 | CZ29: -119 | DA29: 0.20% | DB29: 5.37 | DC29: -1 | DD29: 54 | DE29: 0.20% | DF29: 5.37 | DG29: 1 | DH29: -16 | DI29: 0.20% | DJ29: 5.37 | DK29: -0 | DL29: -52 | DM29: 0.19% | DN29: 5.33 | DO29: -1 | DP29: -12 | DQ29: 0.10% | DR29: 7.87 | DS29: -0 | DT29: -58 | DU29: 0.20% | DV29: 9.00 | DW29: -1 | DX29: 236 | DY29: 0.00% | DZ29: 8.59 | EA29: 0 | EB29: 0 | EC29: -0.26% | ED29: 0.74 | EE29: 0 | EF29: -257 | EG29: 0.20% | EH29: 8.00 | EI29: -4 | EJ29: 87 | EK29: 1.00% | EL29: 5.00 | EM29: 4 | EN29: 97 | EO29: 6 | EP29: 884 | EQ29: 0.45% | ER29: 8.00 | ES29: 32 | ET29: 0 | EU29: 0.45% | EV29: 8.00 | EW29: 0 | EX29: -89 | EY29: 0.65% | EZ29: 5.00 | FA29: -3 | FB29: 0 | FC29: 0.65% | FD29: 5.00 | FE29: 0 | FF29: 71 | FG29: 1.00% | FH29: 5.00 | FI29: 4 | FJ29: 1,495 | FK29: 0.37% | FL29: 1.00 | FM29: 6 | FN29: 0 | FO29: 0.37% | FP29: 1.00 | FQ29: 0 | FR29: 27 | FS29: 0.40% | FT29: 1.00 | FU29: 0 | FV29: 0 | FW29: 0.40% | FX29: 1.00 | FY29: 0 | FZ29: 29 | GA29: 1 | GB29: 125 | GC29: 3 | GD29: 866 | GE29: 42 | GF29: 236 | GG29: =IF(ISERROR(IF(VLOOKUP($C29,'Indicateurs Cumulés'!$C$3:$HJ$560,186,FALSE)/(VLOOKUP($C29,objectifs!$C$3:$AAB$559,158,FALSE))>=1.5,(VLOOKUP($C29,objectifs!$C$3:$AAB$559,158,FALSE))*1.5,IF(VLOOKUP($C29,'Indicateurs Cumulés'!$C$3:$HJ$560,186,FALSE)/(VLOOKUP($C29,objectifs!$C$3:$AAB$559,158,FALSE))<=-0.5,(VLOOKUP($C29,objectifs!$C$3:$AAB$559,158,FALSE))*-0.5,VLOOKUP($C29,'Indicateurs Cumulés'!$C$3:$HJ$560,186,FALSE)))),VLOOKUP($C29,'Indicateurs Cumulés'!$C$3:$HJ$560,186,FALSE),IF(VLOOKUP($C29,'Indicateurs Cumulés'!$C$3:$HJ$560,186,FALSE)/(VLOOKUP($C29,objectifs!$C$3:$AAB$559,158,FALSE))>=1.5,(VLOOKUP($C29,objectifs!$C$3:$AAB$559,158,FALSE))*1.5,IF(VLOOKUP($C29,'Indicateurs Cumulés'!$C$3:$HJ$560,186,FALSE)/(VLOOKUP($C29,objectifs!$C$3:$AAB$559,158,FALSE))<=-0.5,(VLOOKUP($C29,objectifs!$C$3:$AAB$559,158,FALSE))*-0.5,VLOOKUP($C29,'Indicateurs Cumulés'!$C$3:$HJ$560,186,FALSE)))) -> 236 | GH29: 1.00% | GI29: 5.37 | GJ29: 13 | GK29: 61 | GL29: -20 | GM29: 0.20% | GN29: 1 | GP29: 7 | GQ29: 2 | GR29: 94 | GS29: -26 | GT29: 54 | GU29: =IF(ISERROR(IF(VLOOKUP($C29,'Indicateurs Cumulés'!$C$3:$HJ$560,200,FALSE)/(VLOOKUP($C29,objectifs!$C$3:$AAB$559,162,FALSE))>=1.5,(VLOOKUP($C29,objectifs!$C$3:$AAB$559,162,FALSE))*1.5,IF(VLOOKUP($C29,'Indicateurs Cumulés'!$C$3:$HJ$560,200,FALSE)/(VLOOKUP($C29,objectifs!$C$3:$AAB$559,162,FALSE))<=-0.5,(VLOOKUP($C29,objectifs!$C$3:$AAB$559,162,FALSE))*-0.5,VLOOKUP($C29,'Indicateurs Cumulés'!$C$3:$HJ$560,200,FALSE)))),VLOOKUP($C29,'Indicateurs Cumulés'!$C$3:$HJ$560,200,FALSE),IF(VLOOKUP($C29,'Indicateurs Cumulés'!$C$3:$HJ$560,200,FALSE)/(VLOOKUP($C29,objectifs!$C$3:$AAB$559,162,FALSE))>=1.5,(VLOOKUP($C29,objectifs!$C$3:$AAB$559,162,FALSE))*1.5,IF(VLOOKUP($C29,'Indicateurs Cumulés'!$C$3:$HJ$560,200,FALSE)/(VLOOKUP($C29,objectifs!$C$3:$AAB$559,162,FALSE))<=-0.5,(VLOOKUP($C29,objectifs!$C$3:$AAB$559,162,FALSE))*-0.5,VLOOKUP($C29,'Indicateurs Cumulés'!$C$3:$HJ$560,200,FALSE)))) -> 8 | GV29: -0 | GW29: 0 | GY29: 0 | GZ29: 0 | HA29: 3 | HB29: -1 | HC29: 0 | HD29: 3 | HE29: 31 | HF29: -14 | HG29: 15 | HH29: -4 | HI29: -6 | HJ29: 2 | HK29: 1 | HL29: 0 | HM29: 0 | HN29: 0 | HO29: 0 | HP29: 0 | HQ29: 26 | HR29: 5 | HS29: 5 | HT29: 12 | HU29: 3 | HV29: 2 | HW29: 13 | HX29: 0 | HY29: 0 | HZ29: -1 | IA29: 1 | IB29: 31 | IC29: -19 | ID29: -4 | IE29: 2 | IF29: 4 | IG29: 8 | IH29: 22 | II29: -6 | IJ29: 1 | IK29: -2 | IL29: -6 | IM29: 0 | IN29: 1 | IO29: 3 | IP29: 0 | IQ29: 1 | IR29: 1 | IS29: 0 | IT29: 0 | IU29: 1 | IV29: 0 | IW29: 0 | IX29: 5 | IY29: 1 | IZ29: -2 | JA29: 1 | JB29: 20 | JC29: -4 | JD29: -1 | JE29: 0 | JF29: 1 | JG29: 0 | JH29: 1.6 | JI29: 39 | JJ29: 1 | JK29: 0 | JL29: 0 | JM29: 0 | JO29: 0 | JP29: 0 | JQ29: 2 | JR29: 1 | JS29: 1 | JT29: 0 | JU29: 0 | JV29: 3 | JW29: 0 | JX29: 4 | JY29: 3 | JZ29: 0 | KA29: 1 | KB29: 4 | KC29: 0 | KD29: 1 | KE29: 0 | KF29: 1 | KG29: 8 | KH29: 4 | KI29: 0 | KJ29: 1 | KK29: 1 | KL29: 0 | KM29: 0 | KN29: 0 | KO29: 0 | KP29: 4 | KQ29: 5 | KR29: 15 | KS29: -10 | KT29: 184 | KU29: 0 | KV29: 0 | KW29: 0 | KX29: 0 | KY29: -10 | KZ29: 97 | LA29: 99 | LB29: 524 | LC29: 85 | LD29: 30 | LE29: 42 | LF29: 7.3 | LG29: 1.0 | LH29: 1.6 | LI29: 4.3 | LJ29: 0.5 | LK29: 0.2 | LL29: 41 | LM29: 2.8 | LN29: 466 | LO29: 54 | LP29: 167.48 | LQ29: 425 | LR29: 152.6 | LS29: 481 | MI29: =#REF!/U29 -> 
